Workbook

Sheet Terms of Use
A1: Terms of Use
A3: Storing all or part of this tool in your computer's hard disc or other storage or use of this software is deemed to have
A4: agreed to the following terms of use specified by the Japan Auto Parts Industries Association (hereinafter referred to as JAPIA).
A6: ・ | B6: The JAPIA owns all of the intellectual property rights including copyrights for this tool.
A7: ・ | B7: Sales of all or part of this tool or sales of its derivative work are prohibited.
A8: ・ | B8: No restrictions are placed on replacement of the internal data or modifications to the macro, either entire
B9: or partial, of this tool.
A10: ・ | B10: However, you are requested to refrain from seeking information from the JAPIA about a problem with this tool or validity of calculation results.
A11: ・ | B11: In addition, you assume responsibility for the use of this tool and data obtained by calculation
B12: with this tool and the JAPIA will not assume any responsibility for them.
A14: Please be reminded that you are not permitted to use this tool without agreeing to Terms of Use described above.

Sheet How to approach
A1: For details, see | C1: JAPIA LCI Calculation Guidelines
C2: JAPIA LCI Calculation Guidelines Supplement 2

Sheet Start
A1: *Be sure to read Terms of Use before use
A2: (1) Select the driving mode from the following. To change calculation conditions for the driving mode, change setting for the driving mode.
A5: (2) Select a part from the table below and click on it to proceed.
A6: (3) Follow the instruction (comment in cells) on the sheet.
A7: (4) For concept of calculation, see this sheet.
A8: Part category | F8: Part category
A9: Large category | B9: Middle category | C9: Small category | D9: Parts | F9: Large category | G9: Middle category | H9: Small category | I9: parts
A10: Parts not using energy (those other than engine parts) (1) | B10: - | C10: - | D10: Airbag | F10: Energy | G10: Electric power (1)+(2) | H10: Use | I10: Audio
A11: Parts not using energy (those other than engine parts) (1) | B11: - | C11: - | D11: Bellows | F11: Energy | G11: Electric power (1)+(2) | H11: Use | I11: Electric power steering
A12: Parts not using energy (those other than engine parts) (1) | B12: - | C12: - | D12: Brake booster | F12: Energy | G12: Electric power (1)+(2) | H12: Use | I12: Electronic circuit unit
A13: Parts not using energy (those other than engine parts) (1) | B13: - | C13: - | D13: Brake main unit | F13: Energy | G13: Electric power (1)+(2) | H13: Use | I13: Head lamp
A14: Parts not using energy (those other than engine parts) (1) | B14: - | C14: - | D14: Clutch | F14: Energy | G14: Electric power (1)+(2) | H14: Use | I14: Meter
A15: Parts not using energy (those other than engine parts) (1) | B15: - | C15: - | D15: Console box | F15: Energy | G15: Electric power (1)+(2) | H15: Use | I15: Mirror
A16: Parts not using energy (those other than engine parts) (1) | B16: - | C16: - | D16: Diaphragm | F16: Energy | G16: Electric power (1)+(2) | H16: Use | I16: Seat (electrically operated)
A17: Parts not using energy (those other than engine parts) (1) | B17: - | C17: - | D17: Disc brake | F17: Energy | G17: Electric power (1)+(2) | H17: Use | I17: Starter
A18: Parts not using energy (those other than engine parts) (1) | B18: - | C18: - | D18: Disc wheel | F18: Energy | G18: Electric power (1)+(2) | H18: Use | I18: Various types of motor
A19: Parts not using energy (those other than engine parts) (1) | B19: - | C19: - | D19: Door trim | F19: Energy | G19: Electric power (1)+(2) | H19: Use | I19: Other (using electric power)
A20: Parts not using energy (those other than engine parts) (1) | B20: - | C20: - | D20: Drum brake | F20: Energy | G20: Electric power (1)+(2) | H20: Transmission | I20: DC-DC converter
A21: Parts not using energy (those other than engine parts) (1) | B21: - | C21: - | D21: Exterior parts | F21: Energy | G21: Electric power (1)+(2) | H21: Transmission | I21: Inverter
A22: Parts not using energy (those other than engine parts) (1) | B22: - | C22: - | D22: Floor carpet | F22: Energy | G22: Electric power (1)+(2) | H22: Transmission | I22: Switch
A23: Parts not using energy (those other than engine parts) (1) | B23: - | C23: - | D23: Gasket | F23: Energy | G23: Electric power (1)+(2) | H23: Transmission | I23: Wire harness
A24: Parts not using energy (those other than engine parts) (1) | B24: - | C24: - | D24: Instrument panel | F24: Energy | G24: Electric power (1)+(2) | H24: Transmission | I24: Other (transmission of electricity)
A25: Parts not using energy (those other than engine parts) (1) | B25: - | C25: - | D25: Interior parts | F25: Energy | G25: Power (1)+(3) | H25: Use | I25: A_C compressor
A26: Parts not using energy (those other than engine parts) (1) | B26: - | C26: - | D26: Lip packing | F26: Energy | G26: Power (1)+(3) | H26: Use | I26: Hub bearing
A27: Parts not using energy (those other than engine parts) (1) | B27: - | C27: - | D27: Lip ring | F27: Energy | G27: Power (1)+(3) | H27: Use | I27: Power steering
A28: Parts not using energy (those other than engine parts) (1) | B28: - | C28: - | D28: Master cylinder | F28: Energy | G28: Power (1)+(3) | H28: Use | I28: Other (using power)
A29: Parts not using energy (those other than engine parts) (1) | B29: - | C29: - | D29: Pillar trim | F29: Energy | G29: Power (1)+(3) | H29: Transmission | I29: Alternator
A30: Parts not using energy (those other than engine parts) (1) | B30: - | C30: - | D30: Rear stabilizer | F30: Energy | G30: Power (1)+(3) | H30: Transmission | I30: Bearing
A31: Parts not using energy (those other than engine parts) (1) | B31: - | C31: - | D31: Roof lining | F31: Energy | G31: Power (1)+(3) | H31: Transmission | I31: Brake disc
A32: Parts not using energy (those other than engine parts) (1) | B32: - | C32: - | D32: Rubber hose | F32: Energy | G32: Power (1)+(3) | H32: Transmission | I32: Brake drum
A33: Parts not using energy (those other than engine parts) (1) | B33: - | C33: - | D33: Seat (not electrically) | F33: Energy | G33: Power (1)+(3) | H33: Transmission | I33: Drive shaft
A34: Parts not using energy (those other than engine parts) (1) | B34: - | C34: - | D34: Seatbelt | F34: Energy | G34: Power (1)+(3) | H34: Transmission | I34: Oil seal
A35: Parts not using energy (those other than engine parts) (1) | B35: - | C35: - | D35: Shock absorber | F35: Energy | G35: Power (1)+(3) | H35: Transmission | I35: Transmission | J35: Conventional gasoline engine | N35: Conventional diesel engine | R35: Gasoline engine HEV/PHEV | V35: Diesel engine HEV
A36: Parts not using energy (those other than engine parts) (1) | B36: - | C36: - | D36: Spring | F36: Energy | G36: Power (1)+(3) | H36: Transmission | I36: Wheel | J36: Naturally aspirated | L36: Supercharged | N36: Naturally aspirated | P36: Supercharged | R36: Naturally aspirated | T36: Supercharged | V36: Naturally aspirated | X36: Supercharged
A37: Parts not using energy (those other than engine parts) (1) | B37: - | C37: - | D37: Steering wheel | F37: Energy | G37: Power (1)+(3) | H37: Transmission | I37: Other (transmitting power) | J37: Allocation rate | K37: Fuel (L) | L37: Allocation rate | M37: Fuel (L) | N37: Allocation rate | O37: Fuel (L) | P37: Allocation rate | Q37: Fuel (L) | R37: Allocation rate | S37: Fuel (L) | T37: Allocation rate | U37: Fuel (L) | V37: Allocation rate | W37: Fuel (L) | X37: Allocation rate | Y37: Fuel (L)
A38: Parts not using energy (those other than engine parts) (1) | B38: - | C38: - | D38: Strut-type shock absorber | F38: Engine | G38: (1)+(2)+(3)+(4) | H38: - | I38: Air cleaner | J38: ='(4) engine'!B5 -> 0.01446759259 | K38: ='(4) engine'!C5 -> 16.06848118 | L38: ='(4) engine'!D5 -> 0.01345532831 | M38: ='(4) engine'!E5 -> 14.94420639 | N38: ='(4) engine'!F5 -> 0.01240387001 | O38: ='(4) engine'!G5 -> 13.77640064 | P38: ='(4) engine'!H5 -> 0.0116522955 | Q38: ='(4) engine'!I5 -> 12.94166184 | R38: ='(4) engine'!J5 -> 0.01446759259 | S38: ='(4) engine'!K5 -> 12.85478494 | T38: ='(4) engine'!L5 -> 0.01345532831 | U38: ='(4) engine'!M5 -> 11.95536512 | V38: ='(4) engine'!N5 -> 0.01240387001 | W38: ='(4) engine'!O5 -> 11.02112051 | X38: ='(4) engine'!P5 -> 0.0116522955 | Y38: ='(4) engine'!Q5 -> 10.35332947
A39: Parts not using energy (those other than engine parts) (1) | B39: - | C39: - | D39: Suspension | F39: Engine | G39: (1)+(2)+(3)+(4) | H39: - | I39: Air cleaner element | J39: ='(4) engine'!B6 -> 0.0001446759259 | K39: ='(4) engine'!C6 -> 0.1606848118 | L39: ='(4) engine'!D6 -> 0.0001345532831 | M39: ='(4) engine'!E6 -> 0.1494420639 | N39: ='(4) engine'!F6 -> 0.0001240387001 | O39: ='(4) engine'!G6 -> 0.1377640064 | P39: ='(4) engine'!H6 -> 0.000116522955 | Q39: ='(4) engine'!I6 -> 0.1294166184 | R39: ='(4) engine'!J6 -> 0.0001446759259 | S39: ='(4) engine'!K6 -> 0.1285478494 | T39: ='(4) engine'!L6 -> 0.0001345532831 | U39: ='(4) engine'!M6 -> 0.1195536512 | V39: ='(4) engine'!N6 -> 0.0001240387001 | W39: ='(4) engine'!O6 -> 0.1102112051 | X39: ='(4) engine'!P6 -> 0.000116522955 | Y39: ='(4) engine'!Q6 -> 0.1035332947
A40: Parts not using energy (those other than engine parts) (1) | B40: - | C40: - | D40: Vibration absorbing rubber | F40: Engine | G40: (1)+(2)+(3)+(4) | H40: - | I40: Bearing metal (for engine) | J40: ='(4) engine'!B22 -> 0.005787037037 | K40: ='(4) engine'!C22 -> 6.427392472 | L40: ='(4) engine'!D22 -> 0.005382131324 | M40: ='(4) engine'!E22 -> 5.977682558 | N40: ='(4) engine'!F22 -> 0.004961548003 | O40: ='(4) engine'!G22 -> 5.510560254 | P40: ='(4) engine'!H22 -> 0.004660918201 | Q40: ='(4) engine'!I22 -> 5.176664737 | R40: ='(4) engine'!J22 -> 0.005787037037 | S40: ='(4) engine'!K22 -> 5.141913978 | T40: ='(4) engine'!L22 -> 0.005382131324 | U40: ='(4) engine'!M22 -> 4.782146046 | V40: ='(4) engine'!N22 -> 0.004961548003 | W40: ='(4) engine'!O22 -> 4.408448203 | X40: ='(4) engine'!P22 -> 0.004660918201 | Y40: ='(4) engine'!Q22 -> 4.141331789
A41: Parts not using energy (those other than engine parts) (1) | B41: - | C41: - | D41: Weather strip | F41: Engine | G41: (1)+(2)+(3)+(4) | H41: - | I41: Canister | J41: ='(4) engine'!B17 -> 0.01446759259 | K41: ='(4) engine'!C17 -> 16.06848118 | L41: ='(4) engine'!D17 -> 0.01345532831 | M41: ='(4) engine'!E17 -> 14.94420639 | N41: ='(4) engine'!F17 -> 0.01240387001 | O41: ='(4) engine'!G17 -> 13.77640064 | P41: ='(4) engine'!H17 -> 0.0116522955 | Q41: ='(4) engine'!I17 -> 12.94166184 | R41: ='(4) engine'!J17 -> 0.01446759259 | S41: ='(4) engine'!K17 -> 12.85478494 | T41: ='(4) engine'!L17 -> 0.01345532831 | U41: ='(4) engine'!M17 -> 11.95536512 | V41: ='(4) engine'!N17 -> 0.01240387001 | W41: ='(4) engine'!O17 -> 11.02112051 | X41: ='(4) engine'!P17 -> 0.0116522955 | Y41: ='(4) engine'!Q17 -> 10.35332947
A42: Parts not using energy (those other than engine parts) (1) | B42: - | C42: - | D42: Wheel cap | F42: Engine | G42: (1)+(2)+(3)+(4) | H42: - | I42: Catalytic device | J42: ='(4) engine'!B23 -> 0.03993055556 | K42: ='(4) engine'!C23 -> 44.34900806 | L42: ='(4) engine'!D23 -> 0.03713670614 | M42: ='(4) engine'!E23 -> 41.24600965 | N42: ='(4) engine'!F23 -> 0.03423468122 | O42: ='(4) engine'!G23 -> 38.02286575 | P42: ='(4) engine'!H23 -> 0.03216033559 | Q42: ='(4) engine'!I23 -> 35.71898668 | R42: ='(4) engine'!J23 -> 0.03993055556 | S42: ='(4) engine'!K23 -> 35.47920645 | T42: ='(4) engine'!L23 -> 0.03713670614 | U42: ='(4) engine'!M23 -> 32.99680772 | V42: ='(4) engine'!N23 -> 0.03423468122 | W42: ='(4) engine'!O23 -> 30.4182926 | X42: ='(4) engine'!P23 -> 0.03216033559 | Y42: ='(4) engine'!Q23 -> 28.57518935
A43: Parts not using energy (those other than engine parts) (1) | B43: - | C43: - | D43: Others (not using energy) | F43: Engine | G43: (1)+(2)+(3)+(4) | H43: - | I43: Connecting rod | J43: ='(4) engine'!B20 -> 0.0384837963 | K43: ='(4) engine'!C20 -> 42.74215994 | L43: ='(4) engine'!D20 -> 0.0357911733 | M43: ='(4) engine'!E20 -> 39.75158901 | N43: ='(4) engine'!F20 -> 0.03299429422 | O43: ='(4) engine'!G20 -> 36.64522569 | P43: ='(4) engine'!H20 -> 0.03099510604 | Q43: ='(4) engine'!I20 -> 34.4248205 | R43: ='(4) engine'!J20 -> 0.0384837963 | S43: ='(4) engine'!K20 -> 34.19372795 | T43: ='(4) engine'!L20 -> 0.0357911733 | U43: ='(4) engine'!M20 -> 31.80127121 | V43: ='(4) engine'!N20 -> 0.03299429422 | W43: ='(4) engine'!O20 -> 29.31618055 | X43: ='(4) engine'!P20 -> 0.03099510604 | Y43: ='(4) engine'!Q20 -> 27.5398564
F44: Engine | G44: (1)+(2)+(3)+(4) | H44: - | I44: Crankshaft | J44: ='(4) engine'!B18 -> 0.07725694444 | K44: ='(4) engine'!C18 -> 85.80568951 | L44: ='(4) engine'!D18 -> 0.07185145318 | M44: ='(4) engine'!E18 -> 79.80206215 | N44: ='(4) engine'!F18 -> 0.06623666584 | O44: ='(4) engine'!G18 -> 73.56597939 | P44: ='(4) engine'!H18 -> 0.06222325798 | Q44: ='(4) engine'!I18 -> 69.10847423 | R44: ='(4) engine'!J18 -> 0.07725694444 | S44: ='(4) engine'!K18 -> 68.64455161 | T44: ='(4) engine'!L18 -> 0.07185145318 | U44: ='(4) engine'!M18 -> 63.84164972 | V44: ='(4) engine'!N18 -> 0.06623666584 | W44: ='(4) engine'!O18 -> 58.85278351 | X44: ='(4) engine'!P18 -> 0.06222325798 | Y44: ='(4) engine'!Q18 -> 55.28677939
F45: Engine | G45: (1)+(2)+(3)+(4) | H45: - | I45: Cylinder block | J45: ='(4) engine'!B25 -> 0.2553530093 | K45: ='(4) engine'!C25 -> 283.6086928 | L45: ='(4) engine'!D25 -> 0.2374865447 | M45: ='(4) engine'!E25 -> 263.7652429 | N45: ='(4) engine'!F25 -> 0.2189283056 | O45: ='(4) engine'!G25 -> 243.1534712 | P45: ='(4) engine'!H25 -> 0.2056630156 | Q45: ='(4) engine'!I25 -> 228.4203315 | R45: ='(4) engine'!J25 -> 0.2553530093 | S45: ='(4) engine'!K25 -> 226.8869543 | T45: ='(4) engine'!L25 -> 0.2374865447 | U45: ='(4) engine'!M25 -> 211.0121943 | V45: ='(4) engine'!N25 -> 0.2189283056 | W45: ='(4) engine'!O25 -> 194.522777 | X45: ='(4) engine'!P25 -> 0.2056630156 | Y45: ='(4) engine'!Q25 -> 182.7362652
F46: Engine | G46: (1)+(2)+(3)+(4) | H46: - | I46: Cylinder liner | J46: ='(4) engine'!B24 -> 0.005497685185 | K46: ='(4) engine'!C24 -> 6.106022849 | L46: ='(4) engine'!D24 -> 0.005113024758 | M46: ='(4) engine'!E24 -> 5.67879843 | N46: ='(4) engine'!F24 -> 0.004713470603 | O46: ='(4) engine'!G24 -> 5.235032241 | P46: ='(4) engine'!H24 -> 0.004427872291 | Q46: ='(4) engine'!I24 -> 4.9178315 | R46: ='(4) engine'!J24 -> 0.005497685185 | S46: ='(4) engine'!K24 -> 4.884818279 | T46: ='(4) engine'!L24 -> 0.005113024758 | U46: ='(4) engine'!M24 -> 4.543038744 | V46: ='(4) engine'!N24 -> 0.004713470603 | W46: ='(4) engine'!O24 -> 4.188025793 | X46: ='(4) engine'!P24 -> 0.004427872291 | Y46: ='(4) engine'!Q24 -> 3.9342652
F47: Engine | G47: (1)+(2)+(3)+(4) | H47: - | I47: Diesel fuel injection nozzle | J47: ='(4) engine'!B30 -> - | K47: ='(4) engine'!C30 -> - | L47: ='(4) engine'!D30 -> - | M47: ='(4) engine'!E30 -> - | N47: ='(4) engine'!F30 -> 0.03572314562 | O47: ='(4) engine'!G30 -> 39.67603383 | P47: ='(4) engine'!H30 -> 0.03355861105 | Q47: ='(4) engine'!I30 -> 37.2719861 | R47: ='(4) engine'!J30 -> - | S47: ='(4) engine'!K30 -> - | T47: ='(4) engine'!L30 -> - | U47: ='(4) engine'!M30 -> - | V47: ='(4) engine'!N30 -> 0.03572314562 | W47: ='(4) engine'!O30 -> 31.74082706 | X47: ='(4) engine'!P30 -> 0.03355861105 | Y47: ='(4) engine'!Q30 -> 29.81758888
F48: Engine | G48: (1)+(2)+(3)+(4) | H48: - | I48: Diesel fuel injection system (common-rail supply pump) | J48: ='(4) engine'!B31 -> - | K48: ='(4) engine'!C31 -> - | L48: ='(4) engine'!D31 -> - | M48: ='(4) engine'!E31 -> - | N48: ='(4) engine'!F31 -> 0.1421483503 | O48: ='(4) engine'!G31 -> 157.8775513 | P48: ='(4) engine'!H31 -> 0.1335353065 | Q48: ='(4) engine'!I31 -> 148.3114447 | R48: ='(4) engine'!J31 -> - | S48: ='(4) engine'!K31 -> - | T48: ='(4) engine'!L31 -> - | U48: ='(4) engine'!M31 -> - | V48: ='(4) engine'!N31 -> 0.1421483503 | W48: ='(4) engine'!O31 -> 126.302041 | X48: ='(4) engine'!P31 -> 0.1335353065 | Y48: ='(4) engine'!Q31 -> 118.6491558
F49: Engine | G49: (1)+(2)+(3)+(4) | H49: - | I49: Engine control unit | J49: ='(4) engine'!B11 -> 0.04484953704 | K49: ='(4) engine'!C11 -> 49.81229166 | L49: ='(4) engine'!D11 -> 0.04171151776 | M49: ='(4) engine'!E11 -> 46.32703982 | N49: ='(4) engine'!F11 -> 0.03845199702 | O49: ='(4) engine'!G11 -> 42.70684197 | P49: ='(4) engine'!H11 -> 0.03612211606 | Q49: ='(4) engine'!I11 -> 40.11915171 | R49: ='(4) engine'!J11 -> 0.04484953704 | S49: ='(4) engine'!K11 -> 39.84983333 | T49: ='(4) engine'!L11 -> 0.04171151776 | U49: ='(4) engine'!M11 -> 37.06163186 | V49: ='(4) engine'!N11 -> 0.03845199702 | W49: ='(4) engine'!O11 -> 34.16547358 | X49: ='(4) engine'!P11 -> 0.03612211606 | Y49: ='(4) engine'!Q11 -> 32.09532137
F50: Engine | G50: (1)+(2)+(3)+(4) | H50: - | I50: Engine gasket & packing | J50: ='(4) engine'!B9 -> 0.006944444444 | K50: ='(4) engine'!C9 -> 7.712870967 | L50: ='(4) engine'!D9 -> 0.006458557589 | M50: ='(4) engine'!E9 -> 7.173219069 | N50: ='(4) engine'!F9 -> 0.005953857604 | O50: ='(4) engine'!G9 -> 6.612672305 | P50: ='(4) engine'!H9 -> 0.005593101841 | Q50: ='(4) engine'!I9 -> 6.211997684 | R50: ='(4) engine'!J9 -> 0.006944444444 | S50: ='(4) engine'!K9 -> 6.170296774 | T50: ='(4) engine'!L9 -> 0.006458557589 | U50: ='(4) engine'!M9 -> 5.738575255 | V50: ='(4) engine'!N9 -> 0.005953857604 | W50: ='(4) engine'!O9 -> 5.290137844 | X50: ='(4) engine'!P9 -> 0.005593101841 | Y50: ='(4) engine'!Q9 -> 4.969598147
F51: Engine | G51: (1)+(2)+(3)+(4) | H51: - | I51: Engine valve | J51: ='(4) engine'!B10 -> 0.006944444444 | K51: ='(4) engine'!C10 -> 7.712870967 | L51: ='(4) engine'!D10 -> 0.006458557589 | M51: ='(4) engine'!E10 -> 7.173219069 | N51: ='(4) engine'!F10 -> 0.005953857604 | O51: ='(4) engine'!G10 -> 6.612672305 | P51: ='(4) engine'!H10 -> 0.005593101841 | Q51: ='(4) engine'!I10 -> 6.211997684 | R51: ='(4) engine'!J10 -> 0.006944444444 | S51: ='(4) engine'!K10 -> 6.170296774 | T51: ='(4) engine'!L10 -> 0.006458557589 | U51: ='(4) engine'!M10 -> 5.738575255 | V51: ='(4) engine'!N10 -> 0.005953857604 | W51: ='(4) engine'!O10 -> 5.290137844 | X51: ='(4) engine'!P10 -> 0.005593101841 | Y51: ='(4) engine'!Q10 -> 4.969598147
F52: Engine | G52: (1)+(2)+(3)+(4) | H52: - | I52: Exhaust gas recirculation (EGR) devices | J52: ='(4) engine'!B27 -> 0.03414351852 | K52: ='(4) engine'!C27 -> 37.92161559 | L52: ='(4) engine'!D27 -> 0.03175457481 | M52: ='(4) engine'!E27 -> 35.26832709 | N52: ='(4) engine'!F27 -> 0.02927313322 | O52: ='(4) engine'!G27 -> 32.5123055 | P52: ='(4) engine'!H27 -> 0.02749941739 | Q52: ='(4) engine'!I27 -> 30.54232195 | R52: ='(4) engine'!J27 -> 0.03414351852 | S52: ='(4) engine'!K27 -> 30.33729247 | T52: ='(4) engine'!L27 -> 0.03175457481 | U52: ='(4) engine'!M27 -> 28.21466167 | V52: ='(4) engine'!N27 -> 0.02927313322 | W52: ='(4) engine'!O27 -> 26.0098444 | X52: ='(4) engine'!P27 -> 0.02749941739 | Y52: ='(4) engine'!Q27 -> 24.43385756
F53: Engine | G53: (1)+(2)+(3)+(4) | H53: - | I53: Exhaust manifold | J53: ='(4) engine'!B7 -> 0.007233796296 | K53: ='(4) engine'!C7 -> 8.034240591 | L53: ='(4) engine'!D7 -> 0.006727664155 | M53: ='(4) engine'!E7 -> 7.472103197 | N53: ='(4) engine'!F7 -> 0.006201935004 | O53: ='(4) engine'!G7 -> 6.888200318 | P53: ='(4) engine'!H7 -> 0.005826147751 | Q53: ='(4) engine'!I7 -> 6.470830921 | R53: ='(4) engine'!J7 -> 0.007233796296 | S53: ='(4) engine'!K7 -> 6.427392472 | T53: ='(4) engine'!L7 -> 0.006727664155 | U53: ='(4) engine'!M7 -> 5.977682558 | V53: ='(4) engine'!N7 -> 0.006201935004 | W53: ='(4) engine'!O7 -> 5.510560254 | X53: ='(4) engine'!P7 -> 0.005826147751 | Y53: ='(4) engine'!Q7 -> 5.176664737
F54: Engine | G54: (1)+(2)+(3)+(4) | H54: - | I54: Exhaust pipe | J54: ='(4) engine'!B8 -> 0.0390625 | K54: ='(4) engine'!C8 -> 43.38489919 | L54: ='(4) engine'!D8 -> 0.03632938644 | M54: ='(4) engine'!E8 -> 40.34935726 | N54: ='(4) engine'!F8 -> 0.03349044902 | O54: ='(4) engine'!G8 -> 37.19628172 | P54: ='(4) engine'!H8 -> 0.03146119786 | Q54: ='(4) engine'!I8 -> 34.94248697 | R54: ='(4) engine'!J8 -> 0.0390625 | S54: ='(4) engine'!K8 -> 34.70791935 | T54: ='(4) engine'!L8 -> 0.03632938644 | U54: ='(4) engine'!M8 -> 32.27948581 | V54: ='(4) engine'!N8 -> 0.03349044902 | W54: ='(4) engine'!O8 -> 29.75702537 | X54: ='(4) engine'!P8 -> 0.03146119786 | Y54: ='(4) engine'!Q8 -> 27.95398958
F55: Engine | G55: (1)+(2)+(3)+(4) | H55: - | I55: Fan and fan clutch | J55: ='(4) engine'!B41 -> 0.004050925926 | K55: ='(4) engine'!C41 -> 4.499174731 | L55: ='(4) engine'!D41 -> 0.003767491927 | M55: ='(4) engine'!E41 -> 4.18437779 | N55: ='(4) engine'!F41 -> 0.003473083602 | O55: ='(4) engine'!G41 -> 3.857392178 | P55: ='(4) engine'!H41 -> 0.003262642741 | Q55: ='(4) engine'!I41 -> 3.623665316 | R55: ='(4) engine'!J41 -> 0.004050925926 | S55: ='(4) engine'!K41 -> 3.599339785 | T55: ='(4) engine'!L41 -> 0.003767491927 | U55: ='(4) engine'!M41 -> 3.347502232 | V55: ='(4) engine'!N41 -> 0.003473083602 | W55: ='(4) engine'!O41 -> 3.085913742 | X55: ='(4) engine'!P41 -> 0.003262642741 | Y55: ='(4) engine'!Q41 -> 2.898932252
F56: Engine | G56: (1)+(2)+(3)+(4) | H56: - | I56: Flywheel | J56: ='(4) engine'!B42 -> 0.01938657407 | K56: ='(4) engine'!C42 -> 21.53176478 | L56: ='(4) engine'!D42 -> 0.01803013994 | M56: ='(4) engine'!E42 -> 20.02523657 | N56: ='(4) engine'!F42 -> 0.01662118581 | O56: ='(4) engine'!G42 -> 18.46037685 | P56: ='(4) engine'!H42 -> 0.01561407597 | Q56: ='(4) engine'!I42 -> 17.34182687 | R56: ='(4) engine'!J42 -> 0.01938657407 | S56: ='(4) engine'!K42 -> 17.22541183 | T56: ='(4) engine'!L42 -> 0.01803013994 | U56: ='(4) engine'!M42 -> 16.02018925 | V56: ='(4) engine'!N42 -> 0.01662118581 | W56: ='(4) engine'!O42 -> 14.76830148 | X56: ='(4) engine'!P42 -> 0.01561407597 | Y56: ='(4) engine'!Q42 -> 13.87346149
F57: Engine | G57: (1)+(2)+(3)+(4) | H57: - | I57: Fuel filter | J57: ='(4) engine'!B34 -> 0.008391203704 | K57: ='(4) engine'!C34 -> 9.319719085 | L57: ='(4) engine'!D34 -> 0.00780409042 | M57: ='(4) engine'!E34 -> 8.667639709 | N57: ='(4) engine'!F34 -> 0.007194244604 | O57: ='(4) engine'!G34 -> 7.990312369 | P57: ='(4) engine'!H34 -> 0.006758331391 | Q57: ='(4) engine'!I34 -> 7.506163868 | R57: ='(4) engine'!J34 -> 0.008391203704 | S57: ='(4) engine'!K34 -> 7.455775268 | T57: ='(4) engine'!L34 -> 0.00780409042 | U57: ='(4) engine'!M34 -> 6.934111767 | V57: ='(4) engine'!N34 -> 0.007194244604 | W57: ='(4) engine'!O34 -> 6.392249895 | X57: ='(4) engine'!P34 -> 0.006758331391 | Y57: ='(4) engine'!Q34 -> 6.004931094
F58: Engine | G58: (1)+(2)+(3)+(4) | H58: - | I58: Fuel pump (electric) | J58: ='(4) engine'!B35 -> 0.01157407407 | K58: ='(4) engine'!C35 -> 12.85478494 | L58: ='(4) engine'!D35 -> 0.01076426265 | M58: ='(4) engine'!E35 -> 11.95536512 | N58: ='(4) engine'!F35 -> 0.009923096006 | O58: ='(4) engine'!G35 -> 11.02112051 | P58: ='(4) engine'!H35 -> 0.009321836402 | Q58: ='(4) engine'!I35 -> 10.35332947 | R58: ='(4) engine'!J35 -> 0.01157407407 | S58: ='(4) engine'!K35 -> 10.28382796 | T58: ='(4) engine'!L35 -> 0.01076426265 | U58: ='(4) engine'!M35 -> 9.564292092 | V58: ='(4) engine'!N35 -> 0.009923096006 | W58: ='(4) engine'!O35 -> 8.816896407 | X58: ='(4) engine'!P35 -> 0.009321836402 | Y58: ='(4) engine'!Q35 -> 8.282663579
F59: Engine | G59: (1)+(2)+(3)+(4) | H59: - | I59: Gasoline injection nozzle | J59: ='(4) engine'!B16 -> 0.02748842593 | K59: ='(4) engine'!C16 -> 30.53011424 | L59: ='(4) engine'!D16 -> 0.02556512379 | M59: ='(4) engine'!E16 -> 28.39399215 | N59: ='(4) engine'!F16 -> - | O59: ='(4) engine'!G16 -> - | P59: ='(4) engine'!H16 -> - | Q59: ='(4) engine'!I16 -> - | R59: ='(4) engine'!J16 -> 0.02748842593 | S59: ='(4) engine'!K16 -> 24.4240914 | T59: ='(4) engine'!L16 -> 0.02556512379 | U59: ='(4) engine'!M16 -> 22.71519372 | V59: ='(4) engine'!N16 -> - | W59: ='(4) engine'!O16 -> - | X59: ='(4) engine'!P16 -> - | Y59: ='(4) engine'!Q16 -> -
F60: Engine | G60: (1)+(2)+(3)+(4) | H60: - | I60: Glow plug | J60: ='(4) engine'!B19 -> - | K60: ='(4) engine'!C19 -> - | L60: ='(4) engine'!D19 -> - | M60: ='(4) engine'!E19 -> - | N60: ='(4) engine'!F19 -> 0.007194244604 | O60: ='(4) engine'!G19 -> 7.990312369 | P60: ='(4) engine'!H19 -> 0.006758331391 | Q60: ='(4) engine'!I19 -> 7.506163868 | R60: ='(4) engine'!J19 -> 0 | S60: ='(4) engine'!K19 -> - | T60: ='(4) engine'!L19 -> - | U60: ='(4) engine'!M19 -> - | V60: ='(4) engine'!N19 -> 0.007194244604 | W60: ='(4) engine'!O19 -> 6.392249895 | X60: ='(4) engine'!P19 -> 0.006758331391 | Y60: ='(4) engine'!Q19 -> 6.004931094
F61: Engine | G61: (1)+(2)+(3)+(4) | H61: - | I61: Hose (for engine) | J61: ='(4) engine'!B43 -> 0.02633101852 | K61: ='(4) engine'!C43 -> 29.24463575 | L61: ='(4) engine'!D43 -> 0.02448869752 | M61: ='(4) engine'!E43 -> 27.19845564 | N61: ='(4) engine'!F43 -> 0.02257504341 | O61: ='(4) engine'!G43 -> 25.07304916 | P61: ='(4) engine'!H43 -> 0.02120717781 | Q61: ='(4) engine'!I43 -> 23.55382455 | R61: ='(4) engine'!J43 -> 0.02633101852 | S61: ='(4) engine'!K43 -> 23.3957086 | T61: ='(4) engine'!L43 -> 0.02448869752 | U61: ='(4) engine'!M43 -> 21.75876451 | V61: ='(4) engine'!N43 -> 0.02257504341 | W61: ='(4) engine'!O43 -> 20.05843933 | X61: ='(4) engine'!P43 -> 0.02120717781 | Y61: ='(4) engine'!Q43 -> 18.84305964
F62: Engine | G62: (1)+(2)+(3)+(4) | H62: - | I62: Ignition coil | J62: ='(4) engine'!B32 -> 0.01851851852 | K62: ='(4) engine'!C32 -> 20.56765591 | L62: ='(4) engine'!D32 -> 0.01722282024 | M62: ='(4) engine'!E32 -> 19.12858418 | N62: ='(4) engine'!F32 -> - | O62: ='(4) engine'!G32 -> - | P62: ='(4) engine'!H32 -> - | Q62: ='(4) engine'!I32 -> - | R62: ='(4) engine'!J32 -> 0.01851851852 | S62: ='(4) engine'!K32 -> 16.45412473 | T62: ='(4) engine'!L32 -> 0.01722282024 | U62: ='(4) engine'!M32 -> 15.30286735 | V62: ='(4) engine'!N32 -> - | W62: ='(4) engine'!O32 -> - | X62: ='(4) engine'!P32 -> - | Y62: ='(4) engine'!Q32 -> -
F63: Engine | G63: (1)+(2)+(3)+(4) | H63: - | I63: Intake manifold | J63: ='(4) engine'!B4 -> 0.006076388889 | K63: ='(4) engine'!C4 -> 6.748762096 | L63: ='(4) engine'!D4 -> 0.00565123789 | M63: ='(4) engine'!E4 -> 6.276566686 | N63: ='(4) engine'!F4 -> 0.005209625403 | O63: ='(4) engine'!G4 -> 5.786088267 | P63: ='(4) engine'!H4 -> 0.004893964111 | Q63: ='(4) engine'!I4 -> 5.435497973 | R63: ='(4) engine'!J4 -> 0.006076388889 | S63: ='(4) engine'!K4 -> 5.399009677 | T63: ='(4) engine'!L4 -> 0.00565123789 | U63: ='(4) engine'!M4 -> 5.021253349 | V63: ='(4) engine'!N4 -> 0.005209625403 | W63: ='(4) engine'!O4 -> 4.628870614 | X63: ='(4) engine'!P4 -> 0.004893964111 | Y63: ='(4) engine'!Q4 -> 4.348398379
F64: Engine | G64: (1)+(2)+(3)+(4) | H64: - | I64: Muffler | J64: ='(4) engine'!B44 -> 0.02893518519 | K64: ='(4) engine'!C44 -> 32.13696236 | L64: ='(4) engine'!D44 -> 0.02691065662 | M64: ='(4) engine'!E44 -> 29.88841279 | N64: ='(4) engine'!F44 -> 0.02480774001 | O64: ='(4) engine'!G44 -> 27.55280127 | P64: ='(4) engine'!H44 -> 0.023304591 | Q64: ='(4) engine'!I44 -> 25.88332368 | R64: ='(4) engine'!J44 -> 0.02893518519 | S64: ='(4) engine'!K44 -> 25.70956989 | T64: ='(4) engine'!L44 -> 0.02691065662 | U64: ='(4) engine'!M44 -> 23.91073023 | V64: ='(4) engine'!N44 -> 0.02480774001 | W64: ='(4) engine'!O44 -> 22.04224102 | X64: ='(4) engine'!P44 -> 0.023304591 | Y64: ='(4) engine'!Q44 -> 20.70665895
F65: Engine | G65: (1)+(2)+(3)+(4) | H65: - | I65: Oil cooler | J65: ='(4) engine'!B12 -> 0.007523148148 | K65: ='(4) engine'!C12 -> 8.355610214 | L65: ='(4) engine'!D12 -> 0.006996770721 | M65: ='(4) engine'!E12 -> 7.770987325 | N65: ='(4) engine'!F12 -> 0.006450012404 | O65: ='(4) engine'!G12 -> 7.16372833 | P65: ='(4) engine'!H12 -> 0.006059193661 | Q65: ='(4) engine'!I12 -> 6.729664158 | R65: ='(4) engine'!J12 -> 0.007523148148 | S65: ='(4) engine'!K12 -> 6.684488171 | T65: ='(4) engine'!L12 -> 0.006996770721 | U65: ='(4) engine'!M12 -> 6.21678986 | V65: ='(4) engine'!N12 -> 0.006450012404 | W65: ='(4) engine'!O12 -> 5.730982664 | X65: ='(4) engine'!P12 -> 0.006059193661 | Y65: ='(4) engine'!Q12 -> 5.383731326
F66: Engine | G66: (1)+(2)+(3)+(4) | H66: - | I66: Oil filter | J66: ='(4) engine'!B13 -> 0.004340277778 | K66: ='(4) engine'!C13 -> 4.820544354 | L66: ='(4) engine'!D13 -> 0.004036598493 | M66: ='(4) engine'!E13 -> 4.483261918 | N66: ='(4) engine'!F13 -> 0.003721161002 | O66: ='(4) engine'!G13 -> 4.132920191 | P66: ='(4) engine'!H13 -> 0.003495688651 | Q66: ='(4) engine'!I13 -> 3.882498552 | R66: ='(4) engine'!J13 -> 0.004340277778 | S66: ='(4) engine'!K13 -> 3.856435483 | T66: ='(4) engine'!L13 -> 0.004036598493 | U66: ='(4) engine'!M13 -> 3.586609535 | V66: ='(4) engine'!N13 -> 0.003721161002 | W66: ='(4) engine'!O13 -> 3.306336153 | X66: ='(4) engine'!P13 -> 0.003495688651 | Y66: ='(4) engine'!Q13 -> 3.105998842
F67: Engine | G67: (1)+(2)+(3)+(4) | H67: - | I67: Oil pump | J67: ='(4) engine'!B14 -> 0.01446759259 | K67: ='(4) engine'!C14 -> 16.06848118 | L67: ='(4) engine'!D14 -> 0.01345532831 | M67: ='(4) engine'!E14 -> 14.94420639 | N67: ='(4) engine'!F14 -> 0.01240387001 | O67: ='(4) engine'!G14 -> 13.77640064 | P67: ='(4) engine'!H14 -> 0.0116522955 | Q67: ='(4) engine'!I14 -> 12.94166184 | R67: ='(4) engine'!J14 -> 0.01446759259 | S67: ='(4) engine'!K14 -> 12.85478494 | T67: ='(4) engine'!L14 -> 0.01345532831 | U67: ='(4) engine'!M14 -> 11.95536512 | V67: ='(4) engine'!N14 -> 0.01240387001 | W67: ='(4) engine'!O14 -> 11.02112051 | X67: ='(4) engine'!P14 -> 0.0116522955 | Y67: ='(4) engine'!Q14 -> 10.35332947
F68: Engine | G68: (1)+(2)+(3)+(4) | H68: - | I68: Piston | J68: ='(4) engine'!B39 -> 0.01099537037 | K68: ='(4) engine'!C39 -> 12.2120457 | L68: ='(4) engine'!D39 -> 0.01022604952 | M68: ='(4) engine'!E39 -> 11.35759686 | N68: ='(4) engine'!F39 -> 0.009426941206 | O68: ='(4) engine'!G39 -> 10.47006448 | P68: ='(4) engine'!H39 -> 0.008855744582 | Q68: ='(4) engine'!I39 -> 9.835662999 | R68: ='(4) engine'!J39 -> 0.01099537037 | S68: ='(4) engine'!K39 -> 9.769636558 | T68: ='(4) engine'!L39 -> 0.01022604952 | U68: ='(4) engine'!M39 -> 9.086077488 | V68: ='(4) engine'!N39 -> 0.009426941206 | W68: ='(4) engine'!O39 -> 8.376051586 | X68: ='(4) engine'!P39 -> 0.008855744582 | Y68: ='(4) engine'!Q39 -> 7.8685304
F69: Engine | G69: (1)+(2)+(3)+(4) | H69: - | I69: Piston ring | J69: ='(4) engine'!B40 -> 0.005787037037 | K69: ='(4) engine'!C40 -> 6.427392472 | L69: ='(4) engine'!D40 -> 0.005382131324 | M69: ='(4) engine'!E40 -> 5.977682558 | N69: ='(4) engine'!F40 -> 0.004961548003 | O69: ='(4) engine'!G40 -> 5.510560254 | P69: ='(4) engine'!H40 -> 0.004660918201 | Q69: ='(4) engine'!I40 -> 5.176664737 | R69: ='(4) engine'!J40 -> 0.005787037037 | S69: ='(4) engine'!K40 -> 5.141913978 | T69: ='(4) engine'!L40 -> 0.005382131324 | U69: ='(4) engine'!M40 -> 4.782146046 | V69: ='(4) engine'!N40 -> 0.004961548003 | W69: ='(4) engine'!O40 -> 4.408448203 | X69: ='(4) engine'!P40 -> 0.004660918201 | Y69: ='(4) engine'!Q40 -> 4.141331789
F70: Engine | G70: (1)+(2)+(3)+(4) | H70: - | I70: Radiator | J70: ='(4) engine'!B46 -> 0.02951388889 | K70: ='(4) engine'!C46 -> 32.77970161 | L70: ='(4) engine'!D46 -> 0.02744886975 | M70: ='(4) engine'!E46 -> 30.48618104 | N70: ='(4) engine'!F46 -> 0.02530389482 | O70: ='(4) engine'!G46 -> 28.1038573 | P70: ='(4) engine'!H46 -> 0.02377068282 | Q70: ='(4) engine'!I46 -> 26.40099016 | R70: ='(4) engine'!J46 -> 0.02951388889 | S70: ='(4) engine'!K46 -> 26.22376129 | T70: ='(4) engine'!L46 -> 0.02744886975 | U70: ='(4) engine'!M46 -> 24.38894484 | V70: ='(4) engine'!N46 -> 0.02530389482 | W70: ='(4) engine'!O46 -> 22.48308584 | X70: ='(4) engine'!P46 -> 0.02377068282 | Y70: ='(4) engine'!Q46 -> 21.12079213
F71: Engine | G71: (1)+(2)+(3)+(4) | H71: - | I71: Rotary engine dedicated parts, etc. | J71: ='(4) engine'!B47 -> 0 | K71: ='(4) engine'!C47 -> 0 | L71: ='(4) engine'!D47 -> 0 | M71: ='(4) engine'!E47 -> 0 | N71: ='(4) engine'!F47 -> 0 | O71: ='(4) engine'!G47 -> 0 | P71: ='(4) engine'!H47 -> 0 | Q71: ='(4) engine'!I47 -> 0 | R71: ='(4) engine'!J47 -> 0 | S71: ='(4) engine'!K47 -> 0 | T71: ='(4) engine'!L47 -> 0 | U71: ='(4) engine'!M47 -> 0 | V71: ='(4) engine'!N47 -> 0 | W71: ='(4) engine'!O47 -> 0 | X71: ='(4) engine'!P47 -> 0 | Y71: ='(4) engine'!Q47 -> 0
F72: Engine | G72: (1)+(2)+(3)+(4) | H72: - | I72: Spark plug | J72: ='(4) engine'!B33 -> 0.003472222222 | K72: ='(4) engine'!C33 -> 3.856435483 | L72: ='(4) engine'!D33 -> 0.003229278794 | M72: ='(4) engine'!E33 -> 3.586609535 | N72: ='(4) engine'!F33 -> - | O72: ='(4) engine'!G33 -> - | P72: ='(4) engine'!H33 -> - | Q72: ='(4) engine'!I33 -> - | R72: ='(4) engine'!J33 -> 0.003472222222 | S72: ='(4) engine'!K33 -> 3.085148387 | T72: ='(4) engine'!L33 -> 0.003229278794 | U72: ='(4) engine'!M33 -> 2.869287628 | V72: ='(4) engine'!N33 -> - | W72: ='(4) engine'!O33 -> - | X72: ='(4) engine'!P33 -> - | Y72: ='(4) engine'!Q33 -> -
F73: Engine | G73: (1)+(2)+(3)+(4) | H73: - | I73: Thermostat | J73: ='(4) engine'!B21 -> 0.002604166667 | K73: ='(4) engine'!C21 -> 2.892326613 | L73: ='(4) engine'!D21 -> 0.002421959096 | M73: ='(4) engine'!E21 -> 2.689957151 | N73: ='(4) engine'!F21 -> 0.002232696601 | O73: ='(4) engine'!G21 -> 2.479752114 | P73: ='(4) engine'!H21 -> 0.00209741319 | Q73: ='(4) engine'!I21 -> 2.329499131 | R73: ='(4) engine'!J21 -> 0.002604166667 | S73: ='(4) engine'!K21 -> 2.31386129 | T73: ='(4) engine'!L21 -> 0.002421959096 | U73: ='(4) engine'!M21 -> 2.151965721 | V73: ='(4) engine'!N21 -> 0.002232696601 | W73: ='(4) engine'!O21 -> 1.983801692 | X73: ='(4) engine'!P21 -> 0.00209741319 | Y73: ='(4) engine'!Q21 -> 1.863599305
F74: Engine | G74: (1)+(2)+(3)+(4) | H74: - | I74: Throttle body | J74: ='(4) engine'!B26 -> 0.02141203704 | K74: ='(4) engine'!C26 -> 23.78135215 | L74: ='(4) engine'!D26 -> 0.0199138859 | M74: ='(4) engine'!E26 -> 22.11742546 | N74: ='(4) engine'!F26 -> 0.01835772761 | O74: ='(4) engine'!G26 -> 20.38907294 | P74: ='(4) engine'!H26 -> 0.01724539734 | Q74: ='(4) engine'!I26 -> 19.15365953 | R74: ='(4) engine'!J26 -> 0.02141203704 | S74: ='(4) engine'!K26 -> 19.02508172 | T74: ='(4) engine'!L26 -> 0.0199138859 | U74: ='(4) engine'!M26 -> 17.69394037 | V74: ='(4) engine'!N26 -> 0.01835772761 | W74: ='(4) engine'!O26 -> 16.31125835 | X74: ='(4) engine'!P26 -> 0.01724539734 | Y74: ='(4) engine'!Q26 -> 15.32292762
F75: Engine | G75: (1)+(2)+(3)+(4) | H75: - | I75: Timing chain and belt | J75: ='(4) engine'!B28 -> 0.00462962963 | K75: ='(4) engine'!C28 -> 5.141913978 | L75: ='(4) engine'!D28 -> 0.004305705059 | M75: ='(4) engine'!E28 -> 4.782146046 | N75: ='(4) engine'!F28 -> 0.003969238402 | O75: ='(4) engine'!G28 -> 4.408448203 | P75: ='(4) engine'!H28 -> 0.003728734561 | Q75: ='(4) engine'!I28 -> 4.141331789 | R75: ='(4) engine'!J28 -> 0.00462962963 | S75: ='(4) engine'!K28 -> 4.113531182 | T75: ='(4) engine'!L28 -> 0.004305705059 | U75: ='(4) engine'!M28 -> 3.825716837 | V75: ='(4) engine'!N28 -> 0.003969238402 | W75: ='(4) engine'!O28 -> 3.526758563 | X75: ='(4) engine'!P28 -> 0.003728734561 | Y75: ='(4) engine'!Q28 -> 3.313065431
F76: Engine | G76: (1)+(2)+(3)+(4) | H76: - | I76: Timing gear cylinder head bolt | J76: ='(4) engine'!B29 -> 0.1252893519 | K76: ='(4) engine'!C29 -> 139.153047 | L76: ='(4) engine'!D29 -> 0.1165231432 | M76: ='(4) engine'!E29 -> 129.4168274 | N76: ='(4) engine'!F29 -> 0.1074175143 | O76: ='(4) engine'!G29 -> 119.3036295 | P76: ='(4) engine'!H29 -> 0.100908879 | Q76: ='(4) engine'!I29 -> 112.0747915 | R76: ='(4) engine'!J29 -> 0.1252893519 | S76: ='(4) engine'!K29 -> 111.3224376 | T76: ='(4) engine'!L29 -> 0.1165231432 | U76: ='(4) engine'!M29 -> 103.5334619 | V76: ='(4) engine'!N29 -> 0.1074175143 | W76: ='(4) engine'!O29 -> 95.4429036 | X76: ='(4) engine'!P29 -> 0.100908879 | Y76: ='(4) engine'!Q29 -> 89.65983324
F77: Engine | G77: (1)+(2)+(3)+(4) | H77: - | I77: Turbocharger & supercharger | J77: ='(4) engine'!B15 -> - | K77: ='(4) engine'!C15 -> - | L77: ='(4) engine'!D15 -> 0.06996770721 | M77: ='(4) engine'!E15 -> 77.70987325 | N77: ='(4) engine'!F15 -> - | O77: ='(4) engine'!G15 -> - | P77: ='(4) engine'!H15 -> 0.06059193661 | Q77: ='(4) engine'!I15 -> 67.29664158 | R77: ='(4) engine'!J15 -> - | S77: ='(4) engine'!K15 -> - | T77: ='(4) engine'!L15 -> 0.06996770721 | U77: ='(4) engine'!M15 -> 62.1678986 | V77: ='(4) engine'!N15 -> - | W77: ='(4) engine'!O15 -> - | X77: ='(4) engine'!P15 -> 0.06059193661 | Y77: ='(4) engine'!Q15 -> 53.83731326
F78: Engine | G78: (1)+(2)+(3)+(4) | H78: - | I78: Valve driving parts and camshaft | J78: ='(4) engine'!B38 -> 0.01041666667 | K78: ='(4) engine'!C38 -> 11.56930645 | L78: ='(4) engine'!D38 -> 0.009687836383 | M78: ='(4) engine'!E38 -> 10.7598286 | N78: ='(4) engine'!F38 -> 0.008930786405 | O78: ='(4) engine'!G38 -> 9.919008458 | P78: ='(4) engine'!H38 -> 0.008389652762 | Q78: ='(4) engine'!I38 -> 9.317996526 | R78: ='(4) engine'!J38 -> 0.01041666667 | S78: ='(4) engine'!K38 -> 9.25544516 | T78: ='(4) engine'!L38 -> 0.009687836383 | U78: ='(4) engine'!M38 -> 8.607862883 | V78: ='(4) engine'!N38 -> 0.008930786405 | W78: ='(4) engine'!O38 -> 7.935206766 | X78: ='(4) engine'!P38 -> 0.008389652762 | Y78: ='(4) engine'!Q38 -> 7.454397221
F79: Engine | G79: (1)+(2)+(3)+(4) | H79: - | I79: Valve rocker arm and shaft | J79: ='(4) engine'!B37 -> 0.005208333333 | K79: ='(4) engine'!C37 -> 5.784653225 | L79: ='(4) engine'!D37 -> 0.004843918192 | M79: ='(4) engine'!E37 -> 5.379914302 | N79: ='(4) engine'!F37 -> 0.004465393203 | O79: ='(4) engine'!G37 -> 4.959504229 | P79: ='(4) engine'!H37 -> 0.004194826381 | Q79: ='(4) engine'!I37 -> 4.658998263 | R79: ='(4) engine'!J37 -> 0.005208333333 | S79: ='(4) engine'!K37 -> 4.62772258 | T79: ='(4) engine'!L37 -> 0.004843918192 | U79: ='(4) engine'!M37 -> 4.303931442 | V79: ='(4) engine'!N37 -> 0.004465393203 | W79: ='(4) engine'!O37 -> 3.967603383 | X79: ='(4) engine'!P37 -> 0.004194826381 | Y79: ='(4) engine'!Q37 -> 3.72719861
F80: Engine | G80: (1)+(2)+(3)+(4) | H80: - | I80: Valve spring | J80: ='(4) engine'!B36 -> 0.006655092593 | K80: ='(4) engine'!C36 -> 7.391501343 | L80: ='(4) engine'!D36 -> 0.006189451023 | M80: ='(4) engine'!E36 -> 6.874334941 | N80: ='(4) engine'!F36 -> 0.005705780203 | O80: ='(4) engine'!G36 -> 6.337144292 | P80: ='(4) engine'!H36 -> 0.005360055931 | Q80: ='(4) engine'!I36 -> 5.953164447 | R80: ='(4) engine'!J36 -> 0.006655092593 | S80: ='(4) engine'!K36 -> 5.913201075 | T80: ='(4) engine'!L36 -> 0.006189451023 | U80: ='(4) engine'!M36 -> 5.499467953 | V80: ='(4) engine'!N36 -> 0.005705780203 | W80: ='(4) engine'!O36 -> 5.069715434 | X80: ='(4) engine'!P36 -> 0.005360055931 | Y80: ='(4) engine'!Q36 -> 4.762531558
F81: Engine | G81: (1)+(2)+(3)+(4) | H81: - | I81: Water pump | J81: ='(4) engine'!B45 -> 0.006365740741 | K81: ='(4) engine'!C45 -> 7.07013172 | L81: ='(4) engine'!D45 -> 0.005920344456 | M81: ='(4) engine'!E45 -> 6.575450814 | N81: ='(4) engine'!F45 -> 0.005457702803 | O81: ='(4) engine'!G45 -> 6.06161628 | P81: ='(4) engine'!H45 -> 0.005127010021 | Q81: ='(4) engine'!I45 -> 5.69433121 | R81: ='(4) engine'!J45 -> 0.006365740741 | S81: ='(4) engine'!K45 -> 5.656105376 | T81: ='(4) engine'!L45 -> 0.005920344456 | U81: ='(4) engine'!M45 -> 5.260360651 | V81: ='(4) engine'!N45 -> 0.005457702803 | W81: ='(4) engine'!O45 -> 4.849293024 | X81: ='(4) engine'!P45 -> 0.005127010021 | Y81: ='(4) engine'!Q45 -> 4.555464968
F82: Engine | G82: (1)+(2)+(3)+(4) | H82: - | I82: Other (engine) | J82: 0 | K82: 0 | L82: 0 | M82: 0 | N82: 0 | O82: 0 | P82: 0 | Q82: 0 | R82: 0 | S82: 0 | T82: 0 | U82: 0 | V82: 0 | W82: 0 | X82: 0 | Y82: 0

Sheet non-energy (hidden)
A1: ='Driving condition'!C3 -> WLTP four-wheeled passenger car | F1: * When other preconditions are changed
A3: ◆Basic information on LCI products
B4: JAPIA product groups
B5: System boundary (Scope of products to be evaluated)
B6: Functional unit (Unit per characteristic value representing product performance)
B7: No. of evaluated items
B8: Operating voltage (V) | C8: 12 | D8: ='Driving condition'!$C$18 -> 12 | E8: ='Driving condition'!$C$18 -> 12 | F8: ='Driving condition'!$C$18 -> 12
B9: Product/part number
B10: Product/part name | C10: JAPIA標準製品 | D10: =D4&" 1" -> 1 | E10: =E4&" 2" -> 2 | F10: =F4&" 3" -> 3
A12: ◆Use-phase load
F13: 1
A14: Input data for calculation | B14: Mass (kg) | C14: 0
B15: Inertia moment (kg･m2) Tire OD (m)
B16: Current (A) | C16: 0
B17: Electric power/power （W） Average engine rpm(s-1) | C17: 0
B18: Life-time operating time (s) | C18: 18000000 | D18: ='Driving condition'!$C$14 -> 12020130 | E18: ='Driving condition'!$C$14 -> 12020130 | F18: ='Driving condition'!$C$14 -> 12020130
A19: (1) Mass related consumption ⇒Click on this to change conditions | B19: Gasoline engine vehicle (L) | C19: 0 | D19: =D$14*'(1) mass related'!$J$2+D$15*'(1) mass related'!$J$15 -> 0 | E19: =E$14*'(1) mass related'!$J$2+E$15*'(1) mass related'!$J$15 -> 0 | F19: =F$14*'(1) mass related'!$J$2+F$15*'(1) mass related'!$J$15 -> 0
B20: Gasoline HEV (L) | C20: 0 | D20: =D$14*'(1) mass related'!$J$4+D$15*'(1) mass related'!$J$17 -> 0 | E20: =E$14*'(1) mass related'!$J$4+E$15*'(1) mass related'!$J$17 -> 0 | F20: =F$14*'(1) mass related'!$J$4+F$15*'(1) mass related'!$J$17 -> 0
B21: Diesel engine vehicle (L) | C21: 0 | D21: =D$14*'(1) mass related'!$J$7+D$15*'(1) mass related'!$J$20 -> 0 | E21: =E$14*'(1) mass related'!$J$7+E$15*'(1) mass related'!$J$20 -> 0 | F21: =F$14*'(1) mass related'!$J$7+F$15*'(1) mass related'!$J$20 -> 0
B22: Diesel HEV (L) | C22: 0 | D22: =D$14*'(1) mass related'!$J$9+D$15*'(1) mass related'!$J$22 -> 0 | E22: =E$14*'(1) mass related'!$J$9+E$15*'(1) mass related'!$J$22 -> 0 | F22: =F$14*'(1) mass related'!$J$9+F$15*'(1) mass related'!$J$22 -> 0
B23: EV (kWh) | C23: 0 | D23: =D$14*'(1) mass related'!$J$10+D$15*'(1) mass related'!$J$23 -> 0 | E23: =E$14*'(1) mass related'!$J$10+E$15*'(1) mass related'!$J$23 -> 0 | F23: =F$14*'(1) mass related'!$J$10+F$15*'(1) mass related'!$J$23 -> 0
B24: Fuel cell vehicle (Nm3) | C24: 0 | D24: =D$14*'(1) mass related'!$J$11+D$15*'(1) mass related'!$J$24 -> 0 | E24: =E$14*'(1) mass related'!$J$11+E$15*'(1) mass related'!$J$24 -> 0 | F24: =F$14*'(1) mass related'!$J$11+F$15*'(1) mass related'!$J$24 -> 0
A25: (2) Electric power related consumption ⇒Click on this to change conditions | B25: Gasoline engine vehicle (L) | C25: 0 | D25: =D$8/12*D$16*D$18*'(2) electric power related'!$H$2 -> 0 | E25: =E$8/12*E$16*E$18*'(2) electric power related'!$H$2 -> 0 | F25: =F$8/12*F$16*F$18*'(2) electric power related'!$H$2 -> 0
B26: Gasoline HEV (L) | C26: 0 | D26: =D$8/12*D$16*D$18*'(2) electric power related'!$H$2 -> 0 | E26: =E$8/12*E$16*E$18*'(2) electric power related'!$H$2 -> 0 | F26: =F$8/12*F$16*F$18*'(2) electric power related'!$H$2 -> 0
B27: Diesel engine vehicle (L) | C27: 0 | D27: =D$8/12*D$16*D$18*'(2) electric power related'!$H$3 -> 0 | E27: =E$8/12*E$16*E$18*'(2) electric power related'!$H$3 -> 0 | F27: =F$8/12*F$16*F$18*'(2) electric power related'!$H$3 -> 0
B28: Diesel HEV (L) | C28: 0 | D28: =D$8/12*D$16*D$18*'(2) electric power related'!$H$3 -> 0 | E28: =E$8/12*E$16*E$18*'(2) electric power related'!$H$3 -> 0 | F28: =F$8/12*F$16*F$18*'(2) electric power related'!$H$3 -> 0
B29: EV (kWh) | C29: 0 | D29: =D$8/12*D$16*D$18*'(2) electric power related'!$H$4 -> 0 | E29: =E$8/12*E$16*E$18*'(2) electric power related'!$H$4 -> 0 | F29: =F$8/12*F$16*F$18*'(2) electric power related'!$H$4 -> 0
B30: Fuel cell vehicle (Nm3) | C30: 0 | D30: =D$8/12*D$16*D$18*'(2) electric power related'!$H$5 -> 0 | E30: =E$8/12*E$16*E$18*'(2) electric power related'!$H$5 -> 0 | F30: =F$8/12*F$16*F$18*'(2) electric power related'!$H$5 -> 0
A31: (3) Power related consumption ⇒Click on this to change conditions | B31: Gasoline engine vehicle (L) | C31: 0 | D31: =D$17*D$18*'(3) power related'!$G$2 -> 0 | E31: =E$17*E$18*'(3) power related'!$G$2 -> 0 | F31: =F$17*F$18*'(3) power related'!$G$2 -> 0
B32: Gasoline HEV (L) | C32: 0 | D32: =D$17*D$18*'(3) power related'!$G$2 -> 0 | E32: =E$17*E$18*'(3) power related'!$G$2 -> 0 | F32: =F$17*F$18*'(3) power related'!$G$2 -> 0
B33: Diesel engine vehicle (L) | C33: 0 | D33: =D$17*D$18*'(3) power related'!$G$3 -> 0 | E33: =E$17*E$18*'(3) power related'!$G$3 -> 0 | F33: =F$17*F$18*'(3) power related'!$G$3 -> 0
B34: Diesel HEV (L) | C34: 0 | D34: =D$17*D$18*'(3) power related'!$G$3 -> 0 | E34: =E$17*E$18*'(3) power related'!$G$3 -> 0 | F34: =F$17*F$18*'(3) power related'!$G$3 -> 0
B35: EV (kWh) | C35: 0 | D35: =D$17*D$18*'(3) power related'!$G$4 -> 0 | E35: =E$17*E$18*'(3) power related'!$G$4 -> 0 | F35: =F$17*F$18*'(3) power related'!$G$4 -> 0
B36: Fuel cell vehicle (Nm3) | C36: 0 | D36: =D$17*D$18*'(3) power related'!$G$5 -> 0 | E36: =E$17*E$18*'(3) power related'!$G$5 -> 0 | F36: =F$17*F$18*'(3) power related'!$G$5 -> 0
A37: (4) Engine related consumption ⇒Click on this to change conditions | B37: Gasoline engine vehicle (L) | C37: 0 | D37: 0 | E37: 0 | F37: 0
B38: Gasoline HEV (L) | C38: 0 | D38: 0 | E38: 0 | F38: 0
B39: Diesel engine vehicle (L) | C39: 0 | D39: 0 | E39: 0 | F39: 0
B40: Diesel HEV (L) | C40: 0 | D40: 0 | E40: 0 | F40: 0
B41: EV (kWh) | C41: 0 | D41: 0 | E41: 0 | F41: 0
B42: Fuel cell vehicle (Nm3) | C42: 0 | D42: 0 | E42: 0 | F42: 0
A43: Calculation results Energy consumption | B43: Gasoline engine vehicle (L) | C43: =SUM(C19,C25,C31) -> 0 | D43: =SUM(D19,D25,D31) -> 0 | E43: 0 | F43: 0
B44: Gasoline HEV (L) | C44: 0 | D44: 0 | E44: 0 | F44: 0
B45: Diesel engine vehicle (L) | C45: 0 | D45: 0 | E45: 0 | F45: 0
B46: Diesel HEV (L) | C46: 0 | D46: 0 | E46: 0 | F46: 0
B47: EV (kWh) | C47: 0 | D47: 0 | E47: 0 | F47: 0
B48: Fuel cell vehicle (Nm3) | C48: 0 | D48: 0 | E48: 0 | F48: 0
A51: (1) Mass related CO2 emission (g-CO2) ⇒Click on this to change original unit. | B51: Gasoline engine vehicle | C51: 0 | D51: =(D$14*'(1) mass related'!$J$2+D$15*'(1) mass related'!$J$15)*('(5) Energy related CO2 emission'!$C$3+'(5) Energy related CO2 emission'!$C$4) -> 0 | E51: =(E$14*'(1) mass related'!$J$2+E$15*'(1) mass related'!$J$15)*('(5) Energy related CO2 emission'!$C$3+'(5) Energy related CO2 emission'!$C$4) -> 0 | F51: =(F$14*'(1) mass related'!$J$2+F$15*'(1) mass related'!$J$15)*('(5) Energy related CO2 emission'!$C$3+'(5) Energy related CO2 emission'!$C$4) -> 0
B52: Gasoline HEV | C52: 0 | D52: =(D$14*'(1) mass related'!$J$4+D$15*'(1) mass related'!$J$17)*('(5) Energy related CO2 emission'!$C$3+'(5) Energy related CO2 emission'!$C$4) -> 0 | E52: =(E$14*'(1) mass related'!$J$4+E$15*'(1) mass related'!$J$17)*('(5) Energy related CO2 emission'!$C$3+'(5) Energy related CO2 emission'!$C$4) -> 0 | F52: =(F$14*'(1) mass related'!$J$4+F$15*'(1) mass related'!$J$17)*('(5) Energy related CO2 emission'!$C$3+'(5) Energy related CO2 emission'!$C$4) -> 0
B53: Diesel engine vehicle | C53: 0 | D53: =(D$14*'(1) mass related'!$J$7+D$15*'(1) mass related'!$J$20)*('(5) Energy related CO2 emission'!$C$5+'(5) Energy related CO2 emission'!$C$6) -> 0 | E53: =(E$14*'(1) mass related'!$J$7+E$15*'(1) mass related'!$J$20)*('(5) Energy related CO2 emission'!$C$5+'(5) Energy related CO2 emission'!$C$6) -> 0 | F53: =(F$14*'(1) mass related'!$J$7+F$15*'(1) mass related'!$J$20)*('(5) Energy related CO2 emission'!$C$5+'(5) Energy related CO2 emission'!$C$6) -> 0
B54: Diesel HEV | C54: 0 | D54: =(D$14*'(1) mass related'!$J$9+D$15*'(1) mass related'!$J$22)*('(5) Energy related CO2 emission'!$C$5+'(5) Energy related CO2 emission'!$C$6) -> 0 | E54: =(E$14*'(1) mass related'!$J$9+E$15*'(1) mass related'!$J$22)*('(5) Energy related CO2 emission'!$C$5+'(5) Energy related CO2 emission'!$C$6) -> 0 | F54: =(F$14*'(1) mass related'!$J$9+F$15*'(1) mass related'!$J$22)*('(5) Energy related CO2 emission'!$C$5+'(5) Energy related CO2 emission'!$C$6) -> 0
B55: EV | C55: 0 | D55: =(D$14*'(1) mass related'!$J$10+D$15*'(1) mass related'!$J$23)*'(5) Energy related CO2 emission'!$C$7 -> 0 | E55: =(E$14*'(1) mass related'!$J$10+E$15*'(1) mass related'!$J$23)*'(5) Energy related CO2 emission'!$C$7 -> 0 | F55: =(F$14*'(1) mass related'!$J$10+F$15*'(1) mass related'!$J$23)*'(5) Energy related CO2 emission'!$C$7 -> 0
B56: Fuel cell vehicle | C56: 0 | D56: =(D$14*'(1) mass related'!$J$11+D$15*'(1) mass related'!$J$24)*'(5) Energy related CO2 emission'!$C$12 -> 0 | E56: =(E$14*'(1) mass related'!$J$11+E$15*'(1) mass related'!$J$24)*'(5) Energy related CO2 emission'!$C$12 -> 0 | F56: =(F$14*'(1) mass related'!$J$11+F$15*'(1) mass related'!$J$24)*'(5) Energy related CO2 emission'!$C$12 -> 0
A57: (2) Electric power related CO2 emission (g-CO2) ⇒Click on this to change original unit. | B57: Gasoline engine vehicle | C57: 0 | D57: =D$8/12*D$16*D$18*'(2) electric power related'!$H$2*('(5) Energy related CO2 emission'!$C$3+'(5) Energy related CO2 emission'!$C$4) -> 0 | E57: =E$8/12*E$16*E$18*'(2) electric power related'!$H$2*('(5) Energy related CO2 emission'!$C$3+'(5) Energy related CO2 emission'!$C$4) -> 0 | F57: =F$8/12*F$16*F$18*'(2) electric power related'!$H$2*('(5) Energy related CO2 emission'!$C$3+'(5) Energy related CO2 emission'!$C$4) -> 0
B58: Gasoline HEV | C58: 0 | D58: =D$8/12*D$16*D$18*'(2) electric power related'!$H$2*('(5) Energy related CO2 emission'!$C$3+'(5) Energy related CO2 emission'!$C$4) -> 0 | E58: =E$8/12*E$16*E$18*'(2) electric power related'!$H$2*('(5) Energy related CO2 emission'!$C$3+'(5) Energy related CO2 emission'!$C$4) -> 0 | F58: =F$8/12*F$16*F$18*'(2) electric power related'!$H$2*('(5) Energy related CO2 emission'!$C$3+'(5) Energy related CO2 emission'!$C$4) -> 0
B59: Diesel engine vehicle | C59: 0 | D59: =D$8/12*D$16*D$18*'(2) electric power related'!$H$3*('(5) Energy related CO2 emission'!$C$5+'(5) Energy related CO2 emission'!$C$6) -> 0 | E59: =E$8/12*E$16*E$18*'(2) electric power related'!$H$3*('(5) Energy related CO2 emission'!$C$5+'(5) Energy related CO2 emission'!$C$6) -> 0 | F59: =F$8/12*F$16*F$18*'(2) electric power related'!$H$3*('(5) Energy related CO2 emission'!$C$5+'(5) Energy related CO2 emission'!$C$6) -> 0
B60: Diesel HEV | C60: 0 | D60: =D$8/12*D$16*D$18*'(2) electric power related'!$H$3*('(5) Energy related CO2 emission'!$C$5+'(5) Energy related CO2 emission'!$C$6) -> 0 | E60: =E$8/12*E$16*E$18*'(2) electric power related'!$H$3*('(5) Energy related CO2 emission'!$C$5+'(5) Energy related CO2 emission'!$C$6) -> 0 | F60: =F$8/12*F$16*F$18*'(2) electric power related'!$H$3*('(5) Energy related CO2 emission'!$C$5+'(5) Energy related CO2 emission'!$C$6) -> 0
B61: EV | C61: 0 | D61: =D$8/12*D$16*D$18*'(2) electric power related'!$H$4*'(5) Energy related CO2 emission'!$C$7 -> 0 | E61: =E$8/12*E$16*E$18*'(2) electric power related'!$H$4*'(5) Energy related CO2 emission'!$C$7 -> 0 | F61: =F$8/12*F$16*F$18*'(2) electric power related'!$H$4*'(5) Energy related CO2 emission'!$C$7 -> 0
B62: Fuel cell vehicle | C62: 0 | D62: =D$8/12*D$16*D$18*'(2) electric power related'!$H$5*'(5) Energy related CO2 emission'!$C$12 -> 0 | E62: =E$8/12*E$16*E$18*'(2) electric power related'!$H$5*'(5) Energy related CO2 emission'!$C$12 -> 0 | F62: =F$8/12*F$16*F$18*'(2) electric power related'!$H$5*'(5) Energy related CO2 emission'!$C$12 -> 0
A63: (3) Power related CO2 emission (g-CO2) ⇒Click on this to change original unit. | B63: Gasoline engine vehicle | C63: 0 | D63: =D$17*D$18*'(3) power related'!$G$2*('(5) Energy related CO2 emission'!$C$3+'(5) Energy related CO2 emission'!$C$4) -> 0 | E63: =E$17*E$18*'(3) power related'!$G$2*('(5) Energy related CO2 emission'!$C$3+'(5) Energy related CO2 emission'!$C$4) -> 0 | F63: =F$17*F$18*'(3) power related'!$G$2*('(5) Energy related CO2 emission'!$C$3+'(5) Energy related CO2 emission'!$C$4) -> 0
B64: Gasoline HEV | C64: 0 | D64: =D$17*D$18*'(3) power related'!$G$2*('(5) Energy related CO2 emission'!$C$3+'(5) Energy related CO2 emission'!$C$4) -> 0 | E64: =E$17*E$18*'(3) power related'!$G$2*('(5) Energy related CO2 emission'!$C$3+'(5) Energy related CO2 emission'!$C$4) -> 0 | F64: =F$17*F$18*'(3) power related'!$G$2*('(5) Energy related CO2 emission'!$C$3+'(5) Energy related CO2 emission'!$C$4) -> 0
B65: Diesel engine vehicle | C65: 0 | D65: =D$17*D$18*'(3) power related'!$G$3*('(5) Energy related CO2 emission'!$C$5+'(5) Energy related CO2 emission'!$C$6) -> 0 | E65: =E$17*E$18*'(3) power related'!$G$3*('(5) Energy related CO2 emission'!$C$5+'(5) Energy related CO2 emission'!$C$6) -> 0 | F65: =F$17*F$18*'(3) power related'!$G$3*('(5) Energy related CO2 emission'!$C$5+'(5) Energy related CO2 emission'!$C$6) -> 0
B66: Diesel HEV | C66: 0 | D66: =D$17*D$18*'(3) power related'!$G$3*('(5) Energy related CO2 emission'!$C$5+'(5) Energy related CO2 emission'!$C$6) -> 0 | E66: =E$17*E$18*'(3) power related'!$G$3*('(5) Energy related CO2 emission'!$C$5+'(5) Energy related CO2 emission'!$C$6) -> 0 | F66: =F$17*F$18*'(3) power related'!$G$3*('(5) Energy related CO2 emission'!$C$5+'(5) Energy related CO2 emission'!$C$6) -> 0
B67: EV | C67: 0 | D67: =D$17*D$18*'(3) power related'!$G$4*'(5) Energy related CO2 emission'!$C$7 -> 0 | E67: =E$17*E$18*'(3) power related'!$G$4*'(5) Energy related CO2 emission'!$C$7 -> 0 | F67: =F$17*F$18*'(3) power related'!$G$4*'(5) Energy related CO2 emission'!$C$7 -> 0
B68: Fuel cell vehicle | C68: 0 | D68: =D$17*D$18*'(3) power related'!$G$5*'(5) Energy related CO2 emission'!$C$12 -> 0 | E68: =E$17*E$18*'(3) power related'!$G$5*'(5) Energy related CO2 emission'!$C$12 -> 0 | F68: =F$17*F$18*'(3) power related'!$G$5*'(5) Energy related CO2 emission'!$C$12 -> 0
A69: (4) Engine related CO2 emission (g-CO2) ⇒Click on this to change original unit. | B69: Gasoline engine vehicle | C69: 0 | D69: 0 | E69: 0 | F69: 0
B70: Gasoline HEV | C70: 0 | D70: 0 | E70: 0 | F70: 0
B71: Diesel engine vehicle | C71: 0 | D71: 0 | E71: 0 | F71: 0
B72: Diesel HEV | C72: 0 | D72: 0 | E72: 0 | F72: 0
B73: EV | C73: 0 | D73: 0 | E73: 0 | F73: 0
B74: Fuel cell vehicle | C74: 0 | D74: 0 | E74: 0 | F74: 0
A75: Calculation results CO2 emission (g-CO2) | B75: Gasoline engine vehicle | C75: =SUM(C27,C33,C39) -> 0 | D75: =SUM(D51,D57,D63) -> 0 | E75: =SUM(E51,E57,E63) -> 0 | F75: 0
B76: Gasoline HEV | C76: 0 | D76: =SUM(D52,D58,D64) -> 0 | E76: 0 | F76: 0
B77: Diesel engine vehicle | C77: 0 | D77: 0 | E77: 0 | F77: 0
B78: Diesel HEV | C78: 0 | D78: 0 | E78: 0 | F78: 0
B79: EV | C79: 0 | D79: 0 | E79: 0 | F79: 0
B80: Fuel cell vehicle | C80: 0 | D80: 0 | E80: 0 | F80: 0
A84: ◆Detailed concept (entry field)
A86: Current related | B86: Concept about current values
B87: Current calculation formula
B88: Concept about operating time
B89: Calculation formula for hour of use
A90: Power related | B90: Concept about power
B91: Power calculation formula
B92: Concept about operating time
B93: Calculation formula for hour of use
A95: Remark

Sheet energy_non-engine (hidden)
A1: ='Driving condition'!C3 -> WLTP four-wheeled passenger car | F1: * When other preconditions are changed
A3: ◆Basic information on LCI products
B4: JAPIA product groups
B5: System boundary (Scope of products to be evaluated)
B6: Functional unit (Unit per characteristic value representing product performance)
B7: No. of evaluated items
B8: Operating voltage (V) | C8: 12 | D8: ='Driving condition'!$C$18 -> 12 | E8: ='Driving condition'!$C$18 -> 12 | F8: ='Driving condition'!$C$18 -> 12
B9: Product/part number
B10: Product/part name | C10: JAPIA標準製品 | D10: =D4&" 1" -> 1 | E10: =E4&" 2" -> 2 | F10: =F4&" 3" -> 3
A12: ◆Use-phase load
A14: Input data for calculation | B14: Mass (kg) | C14: 0
B15: Inertia moment (kg･m2) Tire OD (m)
B16: Current (A) | C16: 0
B17: Electric power/power （W） Average engine rpm(s-1) | C17: 0
B18: Life-time operating time (s) | C18: 18000000 | D18: ='Driving condition'!$C$14 -> 12020130 | E18: ='Driving condition'!$C$14 -> 12020130 | F18: ='Driving condition'!$C$14 -> 12020130
A19: (1) Mass related consumption ⇒Click on this to change conditions | B19: Gasoline engine vehicle (L) | C19: 0 | D19: =D$14*'(1) mass related'!$J$2+D$15*'(1) mass related'!$J$15 -> 0 | E19: =E$14*'(1) mass related'!$J$2+E$15*'(1) mass related'!$J$15 -> 0 | F19: =F$14*'(1) mass related'!$J$2+F$15*'(1) mass related'!$J$15 -> 0
B20: Gasoline HEV (L) | C20: 0 | D20: =D$14*'(1) mass related'!$J$4+D$15*'(1) mass related'!$J$17 -> 0 | E20: =E$14*'(1) mass related'!$J$4+E$15*'(1) mass related'!$J$17 -> 0 | F20: =F$14*'(1) mass related'!$J$4+F$15*'(1) mass related'!$J$17 -> 0
B21: Diesel engine vehicle (L) | C21: 0 | D21: =D$14*'(1) mass related'!$J$7+D$15*'(1) mass related'!$J$20 -> 0 | E21: =E$14*'(1) mass related'!$J$7+E$15*'(1) mass related'!$J$20 -> 0 | F21: =F$14*'(1) mass related'!$J$7+F$15*'(1) mass related'!$J$20 -> 0
B22: Diesel HEV (L) | C22: 0 | D22: =D$14*'(1) mass related'!$J$9+D$15*'(1) mass related'!$J$22 -> 0 | E22: =E$14*'(1) mass related'!$J$9+E$15*'(1) mass related'!$J$22 -> 0 | F22: =F$14*'(1) mass related'!$J$9+F$15*'(1) mass related'!$J$22 -> 0
B23: EV (kWh) | C23: 0 | D23: =D$14*'(1) mass related'!$J$10+D$15*'(1) mass related'!$J$23 -> 0 | E23: =E$14*'(1) mass related'!$J$10+E$15*'(1) mass related'!$J$23 -> 0 | F23: =F$14*'(1) mass related'!$J$10+F$15*'(1) mass related'!$J$23 -> 0
B24: Fuel cell vehicle (Nm3) | C24: 0 | D24: =D$14*'(1) mass related'!$J$11+D$15*'(1) mass related'!$J$24 -> 0 | E24: =E$14*'(1) mass related'!$J$11+E$15*'(1) mass related'!$J$24 -> 0 | F24: =F$14*'(1) mass related'!$J$11+F$15*'(1) mass related'!$J$24 -> 0
A25: (2) Electric power related consumption ⇒Click on this to change conditions | B25: Gasoline engine vehicle (L) | C25: 0 | D25: =D$8/12*D$16*D$18*'(2) electric power related'!$H$2 -> 0 | E25: =E$8/12*E$16*E$18*'(2) electric power related'!$H$2 -> 0 | F25: =F$8/12*F$16*F$18*'(2) electric power related'!$H$2 -> 0
B26: Gasoline HEV (L) | C26: 0 | D26: =D$8/12*D$16*D$18*'(2) electric power related'!$H$2 -> 0 | E26: =E$8/12*E$16*E$18*'(2) electric power related'!$H$2 -> 0 | F26: =F$8/12*F$16*F$18*'(2) electric power related'!$H$2 -> 0
B27: Diesel engine vehicle (L) | C27: 0 | D27: =D$8/12*D$16*D$18*'(2) electric power related'!$H$3 -> 0 | E27: =E$8/12*E$16*E$18*'(2) electric power related'!$H$3 -> 0 | F27: =F$8/12*F$16*F$18*'(2) electric power related'!$H$3 -> 0
B28: Diesel HEV (L) | C28: 0 | D28: =D$8/12*D$16*D$18*'(2) electric power related'!$H$3 -> 0 | E28: =E$8/12*E$16*E$18*'(2) electric power related'!$H$3 -> 0 | F28: =F$8/12*F$16*F$18*'(2) electric power related'!$H$3 -> 0
B29: EV (kWh) | C29: 0 | D29: =D$8/12*D$16*D$18*'(2) electric power related'!$H$4 -> 0 | E29: =E$8/12*E$16*E$18*'(2) electric power related'!$H$4 -> 0 | F29: =F$8/12*F$16*F$18*'(2) electric power related'!$H$4 -> 0
B30: Fuel cell vehicle (Nm3) | C30: 0 | D30: =D$8/12*D$16*D$18*'(2) electric power related'!$H$5 -> 0 | E30: =E$8/12*E$16*E$18*'(2) electric power related'!$H$5 -> 0 | F30: =F$8/12*F$16*F$18*'(2) electric power related'!$H$5 -> 0
A31: (3) Power related consumption ⇒Click on this to change conditions | B31: Gasoline engine vehicle (L) | C31: 0 | D31: =D$17*D$18*'(3) power related'!$G$2 -> 0 | E31: =E$17*E$18*'(3) power related'!$G$2 -> 0 | F31: =F$17*F$18*'(3) power related'!$G$2 -> 0
B32: Gasoline HEV (L) | C32: 0 | D32: =D$17*D$18*'(3) power related'!$G$2 -> 0 | E32: =E$17*E$18*'(3) power related'!$G$2 -> 0 | F32: =F$17*F$18*'(3) power related'!$G$2 -> 0
B33: Diesel engine vehicle (L) | C33: 0 | D33: =D$17*D$18*'(3) power related'!$G$3 -> 0 | E33: =E$17*E$18*'(3) power related'!$G$3 -> 0 | F33: =F$17*F$18*'(3) power related'!$G$3 -> 0
B34: Diesel HEV (L) | C34: 0 | D34: =D$17*D$18*'(3) power related'!$G$3 -> 0 | E34: =E$17*E$18*'(3) power related'!$G$3 -> 0 | F34: =F$17*F$18*'(3) power related'!$G$3 -> 0
B35: EV (kWh) | C35: 0 | D35: =D$17*D$18*'(3) power related'!$G$4 -> 0 | E35: =E$17*E$18*'(3) power related'!$G$4 -> 0 | F35: =F$17*F$18*'(3) power related'!$G$4 -> 0
B36: Fuel cell vehicle (Nm3) | C36: 0 | D36: =D$17*D$18*'(3) power related'!$G$5 -> 0 | E36: =E$17*E$18*'(3) power related'!$G$5 -> 0 | F36: =F$17*F$18*'(3) power related'!$G$5 -> 0
A37: (4) Engine related consumption ⇒Click on this to change conditions | B37: Gasoline engine vehicle (L) | C37: 0 | D37: 0 | E37: 0 | F37: 0
B38: Gasoline HEV (L) | C38: 0 | D38: 0 | E38: 0 | F38: 0
B39: Diesel engine vehicle (L) | C39: 0 | D39: 0 | E39: 0 | F39: 0
B40: Diesel HEV (L) | C40: 0 | D40: 0 | E40: 0 | F40: 0
B41: EV (kWh) | C41: 0 | D41: 0 | E41: 0 | F41: 0
B42: Fuel cell vehicle (Nm3) | C42: 0 | D42: 0 | E42: 0 | F42: 0
A43: Calculation results Energy consumption | B43: Gasoline engine vehicle (L) | C43: =SUM(C19,C25,C31) -> 0 | D43: 0 | E43: 0 | F43: 0
B44: Gasoline HEV (L) | C44: 0 | D44: 0 | E44: 0 | F44: 0
B45: Diesel engine vehicle (L) | C45: 0 | D45: 0 | E45: 0 | F45: 0
B46: Diesel HEV (L) | C46: 0 | D46: 0 | E46: 0 | F46: 0
B47: EV (kWh) | C47: 0 | D47: 0 | E47: 0 | F47: 0
B48: Fuel cell vehicle (Nm3) | C48: 0 | D48: 0 | E48: 0 | F48: 0
A51: (1) Mass related CO2 emission (g-CO2) ⇒Click on this to change original unit. | B51: Gasoline engine vehicle | C51: 0 | D51: =(D$14*'(1) mass related'!$J$2+D$15*'(1) mass related'!$J$15)*('(5) Energy related CO2 emission'!$C$3+'(5) Energy related CO2 emission'!$C$4) -> 0 | E51: =(E$14*'(1) mass related'!$J$2+E$15*'(1) mass related'!$J$15)*('(5) Energy related CO2 emission'!$C$3+'(5) Energy related CO2 emission'!$C$4) -> 0 | F51: =(F$14*'(1) mass related'!$J$2+F$15*'(1) mass related'!$J$15)*('(5) Energy related CO2 emission'!$C$3+'(5) Energy related CO2 emission'!$C$4) -> 0
B52: Gasoline HEV | C52: 0 | D52: =(D$14*'(1) mass related'!$J$4+D$15*'(1) mass related'!$J$17)*('(5) Energy related CO2 emission'!$C$3+'(5) Energy related CO2 emission'!$C$4) -> 0 | E52: =(E$14*'(1) mass related'!$J$4+E$15*'(1) mass related'!$J$17)*('(5) Energy related CO2 emission'!$C$3+'(5) Energy related CO2 emission'!$C$4) -> 0 | F52: =(F$14*'(1) mass related'!$J$4+F$15*'(1) mass related'!$J$17)*('(5) Energy related CO2 emission'!$C$3+'(5) Energy related CO2 emission'!$C$4) -> 0
B53: Diesel engine vehicle | C53: 0 | D53: =(D$14*'(1) mass related'!$J$7+D$15*'(1) mass related'!$J$20)*('(5) Energy related CO2 emission'!$C$5+'(5) Energy related CO2 emission'!$C$6) -> 0 | E53: =(E$14*'(1) mass related'!$J$7+E$15*'(1) mass related'!$J$20)*('(5) Energy related CO2 emission'!$C$5+'(5) Energy related CO2 emission'!$C$6) -> 0 | F53: =(F$14*'(1) mass related'!$J$7+F$15*'(1) mass related'!$J$20)*('(5) Energy related CO2 emission'!$C$5+'(5) Energy related CO2 emission'!$C$6) -> 0
B54: Diesel HEV | C54: 0 | D54: =(D$14*'(1) mass related'!$J$9+D$15*'(1) mass related'!$J$22)*('(5) Energy related CO2 emission'!$C$5+'(5) Energy related CO2 emission'!$C$6) -> 0 | E54: =(E$14*'(1) mass related'!$J$9+E$15*'(1) mass related'!$J$22)*('(5) Energy related CO2 emission'!$C$5+'(5) Energy related CO2 emission'!$C$6) -> 0 | F54: =(F$14*'(1) mass related'!$J$9+F$15*'(1) mass related'!$J$22)*('(5) Energy related CO2 emission'!$C$5+'(5) Energy related CO2 emission'!$C$6) -> 0
B55: EV | C55: 0 | D55: =(D$14*'(1) mass related'!$J$10+D$15*'(1) mass related'!$J$23)*'(5) Energy related CO2 emission'!$C$7 -> 0 | E55: =(E$14*'(1) mass related'!$J$10+E$15*'(1) mass related'!$J$23)*'(5) Energy related CO2 emission'!$C$7 -> 0 | F55: =(F$14*'(1) mass related'!$J$10+F$15*'(1) mass related'!$J$23)*'(5) Energy related CO2 emission'!$C$7 -> 0
B56: Fuel cell vehicle | C56: 0 | D56: =(D$14*'(1) mass related'!$J$11+D$15*'(1) mass related'!$J$24)*'(5) Energy related CO2 emission'!$C$12 -> 0 | E56: =(E$14*'(1) mass related'!$J$11+E$15*'(1) mass related'!$J$24)*'(5) Energy related CO2 emission'!$C$12 -> 0 | F56: =(F$14*'(1) mass related'!$J$11+F$15*'(1) mass related'!$J$24)*'(5) Energy related CO2 emission'!$C$12 -> 0
A57: (2) Electric power related CO2 emission (g-CO2) ⇒Click on this to change original unit. | B57: Gasoline engine vehicle | C57: 0 | D57: =D$8/12*D$16*D$18*'(2) electric power related'!$H$2*('(5) Energy related CO2 emission'!$C$3+'(5) Energy related CO2 emission'!$C$4) -> 0 | E57: =E$8/12*E$16*E$18*'(2) electric power related'!$H$2*('(5) Energy related CO2 emission'!$C$3+'(5) Energy related CO2 emission'!$C$4) -> 0 | F57: =F$8/12*F$16*F$18*'(2) electric power related'!$H$2*('(5) Energy related CO2 emission'!$C$3+'(5) Energy related CO2 emission'!$C$4) -> 0
B58: Gasoline HEV | C58: 0 | D58: =D$8/12*D$16*D$18*'(2) electric power related'!$H$2*('(5) Energy related CO2 emission'!$C$3+'(5) Energy related CO2 emission'!$C$4) -> 0 | E58: =E$8/12*E$16*E$18*'(2) electric power related'!$H$2*('(5) Energy related CO2 emission'!$C$3+'(5) Energy related CO2 emission'!$C$4) -> 0 | F58: =F$8/12*F$16*F$18*'(2) electric power related'!$H$2*('(5) Energy related CO2 emission'!$C$3+'(5) Energy related CO2 emission'!$C$4) -> 0
B59: Diesel engine vehicle | C59: 0 | D59: =D$8/12*D$16*D$18*'(2) electric power related'!$H$3*('(5) Energy related CO2 emission'!$C$5+'(5) Energy related CO2 emission'!$C$6) -> 0 | E59: =E$8/12*E$16*E$18*'(2) electric power related'!$H$3*('(5) Energy related CO2 emission'!$C$5+'(5) Energy related CO2 emission'!$C$6) -> 0 | F59: =F$8/12*F$16*F$18*'(2) electric power related'!$H$3*('(5) Energy related CO2 emission'!$C$5+'(5) Energy related CO2 emission'!$C$6) -> 0
B60: Diesel HEV | C60: 0 | D60: =D$8/12*D$16*D$18*'(2) electric power related'!$H$3*('(5) Energy related CO2 emission'!$C$5+'(5) Energy related CO2 emission'!$C$6) -> 0 | E60: =E$8/12*E$16*E$18*'(2) electric power related'!$H$3*('(5) Energy related CO2 emission'!$C$5+'(5) Energy related CO2 emission'!$C$6) -> 0 | F60: =F$8/12*F$16*F$18*'(2) electric power related'!$H$3*('(5) Energy related CO2 emission'!$C$5+'(5) Energy related CO2 emission'!$C$6) -> 0
B61: EV | C61: 0 | D61: =D$8/12*D$16*D$18*'(2) electric power related'!$H$4*'(5) Energy related CO2 emission'!$C$7 -> 0 | E61: =E$8/12*E$16*E$18*'(2) electric power related'!$H$4*'(5) Energy related CO2 emission'!$C$7 -> 0 | F61: =F$8/12*F$16*F$18*'(2) electric power related'!$H$4*'(5) Energy related CO2 emission'!$C$7 -> 0
B62: Fuel cell vehicle | C62: 0 | D62: =D$8/12*D$16*D$18*'(2) electric power related'!$H$5*'(5) Energy related CO2 emission'!$C$12 -> 0 | E62: =E$8/12*E$16*E$18*'(2) electric power related'!$H$5*'(5) Energy related CO2 emission'!$C$12 -> 0 | F62: =F$8/12*F$16*F$18*'(2) electric power related'!$H$5*'(5) Energy related CO2 emission'!$C$12 -> 0
A63: (3) Power related CO2 emission (g-CO2) ⇒Click on this to change original unit. | B63: Gasoline engine vehicle | C63: 0 | D63: =D$17*D$18*'(3) power related'!$G$2*('(5) Energy related CO2 emission'!$C$3+'(5) Energy related CO2 emission'!$C$4) -> 0 | E63: =E$17*E$18*'(3) power related'!$G$2*('(5) Energy related CO2 emission'!$C$3+'(5) Energy related CO2 emission'!$C$4) -> 0 | F63: =F$17*F$18*'(3) power related'!$G$2*('(5) Energy related CO2 emission'!$C$3+'(5) Energy related CO2 emission'!$C$4) -> 0
B64: Gasoline HEV | C64: 0 | D64: =D$17*D$18*'(3) power related'!$G$2*('(5) Energy related CO2 emission'!$C$3+'(5) Energy related CO2 emission'!$C$4) -> 0 | E64: =E$17*E$18*'(3) power related'!$G$2*('(5) Energy related CO2 emission'!$C$3+'(5) Energy related CO2 emission'!$C$4) -> 0 | F64: =F$17*F$18*'(3) power related'!$G$2*('(5) Energy related CO2 emission'!$C$3+'(5) Energy related CO2 emission'!$C$4) -> 0
B65: Diesel engine vehicle | C65: 0 | D65: =D$17*D$18*'(3) power related'!$G$3*('(5) Energy related CO2 emission'!$C$5+'(5) Energy related CO2 emission'!$C$6) -> 0 | E65: =E$17*E$18*'(3) power related'!$G$3*('(5) Energy related CO2 emission'!$C$5+'(5) Energy related CO2 emission'!$C$6) -> 0 | F65: =F$17*F$18*'(3) power related'!$G$3*('(5) Energy related CO2 emission'!$C$5+'(5) Energy related CO2 emission'!$C$6) -> 0
B66: Diesel HEV | C66: 0 | D66: =D$17*D$18*'(3) power related'!$G$3*('(5) Energy related CO2 emission'!$C$5+'(5) Energy related CO2 emission'!$C$6) -> 0 | E66: =E$17*E$18*'(3) power related'!$G$3*('(5) Energy related CO2 emission'!$C$5+'(5) Energy related CO2 emission'!$C$6) -> 0 | F66: =F$17*F$18*'(3) power related'!$G$3*('(5) Energy related CO2 emission'!$C$5+'(5) Energy related CO2 emission'!$C$6) -> 0
B67: EV | C67: 0 | D67: =D$17*D$18*'(3) power related'!$G$4*'(5) Energy related CO2 emission'!$C$7 -> 0 | E67: =E$17*E$18*'(3) power related'!$G$4*'(5) Energy related CO2 emission'!$C$7 -> 0 | F67: =F$17*F$18*'(3) power related'!$G$4*'(5) Energy related CO2 emission'!$C$7 -> 0
B68: Fuel cell vehicle | C68: 0 | D68: =D$17*D$18*'(3) power related'!$G$5*'(5) Energy related CO2 emission'!$C$12 -> 0 | E68: =E$17*E$18*'(3) power related'!$G$5*'(5) Energy related CO2 emission'!$C$12 -> 0 | F68: =F$17*F$18*'(3) power related'!$G$5*'(5) Energy related CO2 emission'!$C$12 -> 0
A69: (4) Engine related CO2 emission (g-CO2) ⇒Click on this to change original unit. | B69: Gasoline engine vehicle | C69: 0 | D69: 0 | E69: 0 | F69: 0
B70: Gasoline HEV | C70: 0 | D70: 0 | E70: 0 | F70: 0
B71: Diesel engine vehicle | C71: 0 | D71: 0 | E71: 0 | F71: 0
B72: Diesel HEV | C72: 0 | D72: 0 | E72: 0 | F72: 0
B73: EV | C73: 0 | D73: 0 | E73: 0 | F73: 0
B74: Fuel cell vehicle | C74: 0 | D74: 0 | E74: 0 | F74: 0
A75: Calculation results CO2 emission (g-CO2) | B75: Gasoline engine vehicle | C75: =SUM(C27,C33,C39) -> 0 | D75: =SUM(D51,D57,D63) -> 0 | E75: =SUM(E51,E57,E63) -> 0 | F75: 0
B76: Gasoline HEV | C76: 0 | D76: =SUM(D52,D58,D64) -> 0 | E76: 0 | F76: 0
B77: Diesel engine vehicle | C77: 0 | D77: 0 | E77: 0 | F77: 0
B78: Diesel HEV | C78: 0 | D78: 0 | E78: 0 | F78: 0
B79: EV | C79: 0 | D79: 0 | E79: 0 | F79: 0
B80: Fuel cell vehicle | C80: 0 | D80: 0 | E80: 0 | F80: 0
A84: ◆Detailed concept (entry field)
A86: Current related | B86: Concept about current values
B87: Current calculation formula
B88: Concept about operating time
B89: Calculation formula for hour of use
A90: Power related | B90: Concept about power
B91: Power calculation formula
B92: Concept about operating time
B93: Calculation formula for hour of use
A95: Remark

Sheet engine (hidden)
A1: ='Driving condition'!C3 -> WLTP four-wheeled passenger car | F1: * When other preconditions are changed
A3: ◆Basic information on LCI products
B4: JAPIA product groups
B5: System boundary (Scope of products to be evaluated)
B6: Functional unit (Unit per characteristic value representing product performance)
B7: No. of evaluated items
B8: Operating voltage (V) | C8: 12 | D8: ='Driving condition'!$C$18 -> 12 | E8: ='Driving condition'!$C$18 -> 12 | F8: ='Driving condition'!$C$18 -> 12
B9: Product/part number
B10: Product/part name | C10: JAPIA標準製品 | D10: =D4&" 1" -> 1 | E10: =E4&" 2" -> 2 | F10: =F4&" 3" -> 3
A12: ◆Use-phase load
A14: Input data for calculation | B14: Mass (kg)
B15: Inertia moment (kg･m2) Tire OD (m)
B16: Current (A)
B17: Electric power/power （W） Average engine rpm(s-1)
B18: Life-time operating time (s) | C18: 18000000 | D18: ='Driving condition'!$C$14 -> 12020130 | E18: ='Driving condition'!$C$14 -> 12020130 | F18: ='Driving condition'!$C$14 -> 12020130
A19: (1) Mass related consumption ⇒Click on this to change conditions | B19: Gasoline engine vehicle (naturally aspirated) (L) | C19: 0 | D19: =IF(D$49="-","-",D$14*'(1) mass related'!$J$2+D$15*'(1) mass related'!$J$15) -> 0 | E19: =IF(E$49="-","-",E$14*'(1) mass related'!$J$2+E$15*'(1) mass related'!$J$15) -> 0 | F19: =IF(F$49="-","-",F$14*'(1) mass related'!$J$2+F$15*'(1) mass related'!$J$15) -> 0
B20: Gasoline engine vehicle (supercharged) (L) | D20: =IF(D$50="-","-",D$14*'(1) mass related'!$J$2+D$15*'(1) mass related'!$J$15) -> 0 | E20: =IF(E$50="-","-",E$14*'(1) mass related'!$J$2+E$15*'(1) mass related'!$J$15) -> 0 | F20: =IF(F$50="-","-",F$14*'(1) mass related'!$J$2+F$15*'(1) mass related'!$J$15) -> 0
B21: Gasoline HEV (naturally aspirated) (L) | C21: 0 | D21: =IF(D$51="-","-",D$14*'(1) mass related'!$J$4+D$15*'(1) mass related'!$J$17) -> 0 | E21: =IF(E$51="-","-",E$14*'(1) mass related'!$J$4+E$15*'(1) mass related'!$J$17) -> 0 | F21: =IF(F$51="-","-",F$14*'(1) mass related'!$J$4+F$15*'(1) mass related'!$J$17) -> 0
B22: Gasoline HEV (supercharged) (L) | D22: =IF(D$52="-","-",D$14*'(1) mass related'!$J$4+D$15*'(1) mass related'!$J$17) -> 0 | E22: =IF(E$52="-","-",E$14*'(1) mass related'!$J$4+E$15*'(1) mass related'!$J$17) -> 0 | F22: =IF(F$52="-","-",F$14*'(1) mass related'!$J$4+F$15*'(1) mass related'!$J$17) -> 0
B23: Diesel engine vehicle (naturally aspirated) (L) | C23: 0 | D23: =IF(D$53="-","-",D$14*'(1) mass related'!$J$7+D$15*'(1) mass related'!$J$20) -> 0 | E23: =IF(E$53="-","-",E$14*'(1) mass related'!$J$7+E$15*'(1) mass related'!$J$20) -> 0 | F23: =IF(F$53="-","-",F$14*'(1) mass related'!$J$7+F$15*'(1) mass related'!$J$20) -> 0
B24: Diesel engine vehicle (supercharged) (L) | D24: =IF(D$54="-","-",D$14*'(1) mass related'!$J$7+D$15*'(1) mass related'!$J$20) -> 0 | E24: =IF(E$54="-","-",E$14*'(1) mass related'!$J$7+E$15*'(1) mass related'!$J$20) -> 0 | F24: =IF(F$54="-","-",F$14*'(1) mass related'!$J$7+F$15*'(1) mass related'!$J$20) -> 0
B25: Diesel HEV (naturally aspirated) (L) | C25: 0 | D25: =IF(D$55="-","-",D$14*'(1) mass related'!$J$9+D$15*'(1) mass related'!$J$22) -> 0 | E25: =IF(E$55="-","-",E$14*'(1) mass related'!$J$9+E$15*'(1) mass related'!$J$22) -> 0 | F25: =IF(F$55="-","-",F$14*'(1) mass related'!$J$9+F$15*'(1) mass related'!$J$22) -> 0
B26: Diesel HEV (supercharged) (L) | D26: =IF(D$56="-","-",D$14*'(1) mass related'!$J$9+D$15*'(1) mass related'!$J$22) -> 0 | E26: =IF(E$56="-","-",E$14*'(1) mass related'!$J$9+E$15*'(1) mass related'!$J$22) -> 0 | F26: =IF(F$56="-","-",F$14*'(1) mass related'!$J$9+F$15*'(1) mass related'!$J$22) -> 0
B27: EV (kWh) | C27: 0 | D27: - | E27: - | F27: -
B28: Fuel cell vehicle (Nm3) | C28: 0 | D28: - | E28: - | F28: -
A29: (2) Electric power related consumption ⇒Click on this to change conditions | B29: Gasoline engine vehicle (naturally aspirated) (L) | C29: 0 | D29: =IF(D$49="-","-",D$8/12*D$16*D$18*'(2) electric power related'!$H$2) -> 0 | E29: =IF(E$49="-","-",E$8/12*E$16*E$18*'(2) electric power related'!$H$2) -> 0 | F29: =IF(F$49="-","-",F$8/12*F$16*F$18*'(2) electric power related'!$H$2) -> 0
B30: Gasoline engine vehicle (supercharged) (L) | D30: =IF(D$50="-","-",D$8/12*D$16*D$18*'(2) electric power related'!$H$2) -> 0 | E30: =IF(E$50="-","-",E$8/12*E$16*E$18*'(2) electric power related'!$H$2) -> 0 | F30: =IF(F$50="-","-",F$8/12*F$16*F$18*'(2) electric power related'!$H$2) -> 0
B31: Gasoline HEV (naturally aspirated) (L) | C31: 0 | D31: =IF(D$51="-","-",D$8/12*D$16*D$18*'(2) electric power related'!$H$2) -> 0 | E31: =IF(E$51="-","-",E$8/12*E$16*E$18*'(2) electric power related'!$H$2) -> 0 | F31: =IF(F$51="-","-",F$8/12*F$16*F$18*'(2) electric power related'!$H$2) -> 0
B32: Gasoline HEV (supercharged) (L) | D32: =IF(D$52="-","-",D$8/12*D$16*D$18*'(2) electric power related'!$H$2) -> 0 | E32: =IF(E$52="-","-",E$8/12*E$16*E$18*'(2) electric power related'!$H$2) -> 0 | F32: =IF(F$52="-","-",F$8/12*F$16*F$18*'(2) electric power related'!$H$2) -> 0
B33: Diesel engine vehicle (naturally aspirated) (L) | C33: 0 | D33: =IF(D$53="-","-",D$8/12*D$16*D$18*'(2) electric power related'!$H$3) -> 0 | E33: =IF(E$53="-","-",E$8/12*E$16*E$18*'(2) electric power related'!$H$3) -> 0 | F33: =IF(F$53="-","-",F$8/12*F$16*F$18*'(2) electric power related'!$H$3) -> 0
B34: Diesel engine vehicle (supercharged) (L) | D34: =IF(D$54="-","-",D$8/12*D$16*D$18*'(2) electric power related'!$H$3) -> 0 | E34: =IF(E$54="-","-",E$8/12*E$16*E$18*'(2) electric power related'!$H$3) -> 0 | F34: =IF(F$54="-","-",F$8/12*F$16*F$18*'(2) electric power related'!$H$3) -> 0
B35: Diesel HEV (naturally aspirated) (L) | C35: 0 | D35: =IF(D$55="-","-",D$8/12*D$16*D$18*'(2) electric power related'!$H$3) -> 0 | E35: =IF(E$55="-","-",E$8/12*E$16*E$18*'(2) electric power related'!$H$3) -> 0 | F35: =IF(F$55="-","-",F$8/12*F$16*F$18*'(2) electric power related'!$H$3) -> 0
B36: Diesel HEV (supercharged) (L) | D36: =IF(D$56="-","-",D$8/12*D$16*D$18*'(2) electric power related'!$H$3) -> 0 | E36: =IF(E$56="-","-",E$8/12*E$16*E$18*'(2) electric power related'!$H$3) -> 0 | F36: =IF(F$56="-","-",F$8/12*F$16*F$18*'(2) electric power related'!$H$3) -> 0
B37: EV (kWh) | C37: 0 | D37: - | E37: - | F37: -
B38: Fuel cell vehicle (Nm3) | C38: 0 | D38: - | E38: - | F38: -
A39: (3) Power related consumption ⇒Click on this to change conditions | B39: Gasoline engine vehicle (naturally aspirated) (L) | C39: 0 | D39: =IF(D$49="-","-",D$17*D$18*'(3) power related'!$G$2) -> 0 | E39: =IF(E$49="-","-",E$17*E$18*'(3) power related'!$G$2) -> 0 | F39: =IF(F$49="-","-",F$17*F$18*'(3) power related'!$G$2) -> 0
B40: Gasoline engine vehicle (supercharged) (L) | D40: =IF(D$50="-","-",D$17*D$18*'(3) power related'!$G$2) -> 0 | E40: =IF(E$50="-","-",E$17*E$18*'(3) power related'!$G$2) -> 0 | F40: =IF(F$50="-","-",F$17*F$18*'(3) power related'!$G$2) -> 0
B41: Gasoline HEV (naturally aspirated) (L) | C41: 0 | D41: =IF(D$51="-","-",D$17*D$18*'(3) power related'!$G$2) -> 0 | E41: =IF(E$51="-","-",E$17*E$18*'(3) power related'!$G$2) -> 0 | F41: =IF(F$51="-","-",F$17*F$18*'(3) power related'!$G$2) -> 0
B42: Gasoline HEV (supercharged) (L) | D42: =IF(D$52="-","-",D$17*D$18*'(3) power related'!$G$2) -> 0 | E42: =IF(E$52="-","-",E$17*E$18*'(3) power related'!$G$2) -> 0 | F42: =IF(F$52="-","-",F$17*F$18*'(3) power related'!$G$2) -> 0
B43: Diesel engine vehicle (naturally aspirated) (L) | C43: 0 | D43: =IF(D$53="-","-",D$17*D$18*'(3) power related'!$G$3) -> 0 | E43: =IF(E$53="-","-",E$17*E$18*'(3) power related'!$G$3) -> 0 | F43: =IF(F$53="-","-",F$17*F$18*'(3) power related'!$G$3) -> 0
B44: Diesel engine vehicle (supercharged) (L) | D44: =IF(D$54="-","-",D$17*D$18*'(3) power related'!$G$3) -> 0 | E44: =IF(E$54="-","-",E$17*E$18*'(3) power related'!$G$3) -> 0 | F44: =IF(F$54="-","-",F$17*F$18*'(3) power related'!$G$3) -> 0
B45: Diesel HEV (naturally aspirated) (L) | C45: 0 | D45: =IF(D$55="-","-",D$17*D$18*'(3) power related'!$G$3) -> 0 | E45: =IF(E$55="-","-",E$17*E$18*'(3) power related'!$G$3) -> 0 | F45: =IF(F$55="-","-",F$17*F$18*'(3) power related'!$G$3) -> 0
B46: Diesel HEV (supercharged) (L) | D46: =IF(D$56="-","-",D$17*D$18*'(3) power related'!$G$3) -> 0 | E46: =IF(E$56="-","-",E$17*E$18*'(3) power related'!$G$3) -> 0 | F46: =IF(F$56="-","-",F$17*F$18*'(3) power related'!$G$3) -> 0
B47: EV (kWh) | C47: 0 | D47: - | E47: - | F47: -
B48: Fuel cell vehicle (Nm3) | C48: 0 | D48: - | E48: - | F48: -
A49: (4) Engine related consumption ⇒Click on this to change conditions | B49: Gasoline engine vehicle (naturally aspirated) (L) | C49: 0
B50: Gasoline engine vehicle (supercharged) (L) | C50: 0
B51: Gasoline HEV (naturally aspirated) (L) | C51: 0
B52: Gasoline HEV (supercharged) (L) | C52: 0
B53: Diesel engine vehicle (naturally aspirated) (L) | C53: 0
B54: Diesel engine vehicle (supercharged) (L) | C54: 0
B55: Diesel HEV (naturally aspirated) (L) | C55: 0
B56: Diesel HEV (supercharged) (L) | C56: 0
B57: EV (kWh) | C57: 0 | D57: - | E57: - | F57: -
B58: Fuel cell vehicle (Nm3) | C58: 0 | D58: - | E58: - | F58: -
A59: Calculation results Energy consumptio | B59: Gasoline engine vehicle (naturally aspirated) (L) | C59: =SUM(C19,C29,C39,C49) -> 0 | D59: =IF(D49="-","-",SUM(D19,D29,D39,D49)) -> 0 | E59: =IF(E49="-","-",SUM(E19,E29,E39,E49)) -> 0 | F59: 0
B60: Gasoline engine vehicle (supercharged) (L) | C60: =SUM(C19,C29,C39,C50) -> 0 | D60: =IF(D50="-","-",SUM(D20,D30,D40,D50)) -> 0 | E60: =IF(E50="-","-",SUM(E20,E30,E40,E50)) -> 0 | F60: 0
B61: Gasoline HEV (naturally aspirated) (L) | C61: =SUM(C21,C31,C41,C51) -> 0 | D61: 0 | E61: =IF(E51="-","-",SUM(E21,E31,E41,E51)) -> 0 | F61: 0
B62: Gasoline HEV (supercharged) (L) | C62: =SUM(C21,C31,C41,C52) -> 0 | D62: 0 | E62: =IF(E52="-","-",SUM(E22,E32,E42,E52)) -> 0 | F62: 0
B63: Diesel engine vehicle (naturally aspirated) (L) | C63: =SUM(C23,C33,C43,C53) -> 0 | D63: 0 | E63: =IF(E53="-","-",SUM(E23,E33,E43,E53)) -> 0 | F63: 0
B64: Diesel engine vehicle (supercharged) (L) | C64: =SUM(C23,C33,C43,C54) -> 0 | D64: 0 | E64: =IF(E54="-","-",SUM(E24,E34,E44,E54)) -> 0 | F64: 0
B65: Diesel HEV (naturally aspirated) (L) | C65: =SUM(C25,C35,C45,C55) -> 0 | D65: 0 | E65: =IF(E55="-","-",SUM(E25,E35,E45,E55)) -> 0 | F65: 0
B66: Diesel HEV (supercharged) (L) | C66: =SUM(C25,C35,C45,C56) -> 0 | D66: 0 | E66: =IF(E56="-","-",SUM(E26,E36,E46,E56)) -> 0 | F66: =IF(F56="-","-",SUM(F26,F36,F46,F56)) -> 0
A69: (1) Mass related CO2 emission (g-CO2) ⇒Click on this to change original unit. | B69: Gasoline engine vehicle (naturally aspirated) | D69: =IF(D$49="-","-",(D$14*'(1) mass related'!$J$2+D$15*'(1) mass related'!$J$15)*('(5) Energy related CO2 emission'!$C$3+'(5) Energy related CO2 emission'!$C$4)) -> 0 | E69: =IF(E$49="-","-",(E$14*'(1) mass related'!$J$2+E$15*'(1) mass related'!$J$15)*('(5) Energy related CO2 emission'!$C$3+'(5) Energy related CO2 emission'!$C$4)) -> 0 | F69: =IF(F$49="-","-",(F$14*'(1) mass related'!$J$2+F$15*'(1) mass related'!$J$15)*('(5) Energy related CO2 emission'!$C$3+'(5) Energy related CO2 emission'!$C$4)) -> 0
B70: Gasoline engine vehicle (supercharged) | D70: =IF(D$50="-","-",(D$14*'(1) mass related'!$J$2+D$15*'(1) mass related'!$J$15)*('(5) Energy related CO2 emission'!$C$3+'(5) Energy related CO2 emission'!$C$4)) -> 0 | E70: =IF(E$50="-","-",(E$14*'(1) mass related'!$J$2+E$15*'(1) mass related'!$J$15)*('(5) Energy related CO2 emission'!$C$3+'(5) Energy related CO2 emission'!$C$4)) -> 0 | F70: =IF(F$50="-","-",(F$14*'(1) mass related'!$J$2+F$15*'(1) mass related'!$J$15)*('(5) Energy related CO2 emission'!$C$3+'(5) Energy related CO2 emission'!$C$4)) -> 0
B71: Gasoline HEV (naturally aspirated) | D71: =IF(D$51="-","-",(D$14*'(1) mass related'!$J$4+D$15*'(1) mass related'!$J$17)*('(5) Energy related CO2 emission'!$C$3+'(5) Energy related CO2 emission'!$C$4)) -> 0 | E71: =IF(E$51="-","-",(E$14*'(1) mass related'!$J$4+E$15*'(1) mass related'!$J$17)*('(5) Energy related CO2 emission'!$C$3+'(5) Energy related CO2 emission'!$C$4)) -> 0 | F71: =IF(F$51="-","-",(F$14*'(1) mass related'!$J$4+F$15*'(1) mass related'!$J$17)*('(5) Energy related CO2 emission'!$C$3+'(5) Energy related CO2 emission'!$C$4)) -> 0
B72: Gasoline HEV (supercharged) | D72: =IF(D$52="-","-",(D$14*'(1) mass related'!$J$4+D$15*'(1) mass related'!$J$17)*('(5) Energy related CO2 emission'!$C$3+'(5) Energy related CO2 emission'!$C$4)) -> 0 | E72: =IF(E$52="-","-",(E$14*'(1) mass related'!$J$4+E$15*'(1) mass related'!$J$17)*('(5) Energy related CO2 emission'!$C$3+'(5) Energy related CO2 emission'!$C$4)) -> 0 | F72: =IF(F$52="-","-",(F$14*'(1) mass related'!$J$4+F$15*'(1) mass related'!$J$17)*('(5) Energy related CO2 emission'!$C$3+'(5) Energy related CO2 emission'!$C$4)) -> 0
B73: Diesel engine vehicle (naturally aspirated) | D73: =IF(D$53="-","-",(D$14*'(1) mass related'!$J$7+D$15*'(1) mass related'!$J$20)*('(5) Energy related CO2 emission'!$C$5+'(5) Energy related CO2 emission'!$C$6)) -> 0 | E73: =IF(E$53="-","-",(E$14*'(1) mass related'!$J$7+E$15*'(1) mass related'!$J$20)*('(5) Energy related CO2 emission'!$C$5+'(5) Energy related CO2 emission'!$C$6)) -> 0 | F73: =IF(F$53="-","-",(F$14*'(1) mass related'!$J$7+F$15*'(1) mass related'!$J$20)*('(5) Energy related CO2 emission'!$C$5+'(5) Energy related CO2 emission'!$C$6)) -> 0
B74: Diesel engine vehicle (supercharged) | D74: =IF(D$54="-","-",(D$14*'(1) mass related'!$J$7+D$15*'(1) mass related'!$J$20)*('(5) Energy related CO2 emission'!$C$5+'(5) Energy related CO2 emission'!$C$6)) -> 0 | E74: =IF(E$54="-","-",(E$14*'(1) mass related'!$J$7+E$15*'(1) mass related'!$J$20)*('(5) Energy related CO2 emission'!$C$5+'(5) Energy related CO2 emission'!$C$6)) -> 0 | F74: =IF(F$54="-","-",(F$14*'(1) mass related'!$J$7+F$15*'(1) mass related'!$J$20)*('(5) Energy related CO2 emission'!$C$5+'(5) Energy related CO2 emission'!$C$6)) -> 0
B75: Diesel HEV (naturally aspirated) | D75: =IF(D$55="-","-",(D$14*'(1) mass related'!$J$9+D$15*'(1) mass related'!$J$22)*('(5) Energy related CO2 emission'!$C$5+'(5) Energy related CO2 emission'!$C$6)) -> 0 | E75: =IF(E$55="-","-",(E$14*'(1) mass related'!$J$9+E$15*'(1) mass related'!$J$22)*('(5) Energy related CO2 emission'!$C$5+'(5) Energy related CO2 emission'!$C$6)) -> 0 | F75: =IF(F$55="-","-",(F$14*'(1) mass related'!$J$9+F$15*'(1) mass related'!$J$22)*('(5) Energy related CO2 emission'!$C$5+'(5) Energy related CO2 emission'!$C$6)) -> 0
B76: Diesel HEV (supercharged) | D76: =IF(D$56="-","-",(D$14*'(1) mass related'!$J$9+D$15*'(1) mass related'!$J$22)*('(5) Energy related CO2 emission'!$C$5+'(5) Energy related CO2 emission'!$C$6)) -> 0 | E76: =IF(E$56="-","-",(E$14*'(1) mass related'!$J$9+E$15*'(1) mass related'!$J$22)*('(5) Energy related CO2 emission'!$C$5+'(5) Energy related CO2 emission'!$C$6)) -> 0 | F76: =IF(F$56="-","-",(F$14*'(1) mass related'!$J$9+F$15*'(1) mass related'!$J$22)*('(5) Energy related CO2 emission'!$C$5+'(5) Energy related CO2 emission'!$C$6)) -> 0
B77: EV | D77: - | E77: - | F77: -
B78: Fuel cell vehicle | D78: - | E78: - | F78: -
A79: (2) Electric power related CO2 emission (g-CO2) ⇒Click on this to change original unit. | B79: Gasoline engine vehicle (naturally aspirated) | D79: =IF(D$49="-","-",D$8/12*D$16*D$18*'(2) electric power related'!$H$2*('(5) Energy related CO2 emission'!$C$3+'(5) Energy related CO2 emission'!$C$4)) -> 0 | E79: =IF(E$49="-","-",E$8/12*E$16*E$18*'(2) electric power related'!$H$2*('(5) Energy related CO2 emission'!$C$3+'(5) Energy related CO2 emission'!$C$4)) -> 0 | F79: =IF(F$49="-","-",F$8/12*F$16*F$18*'(2) electric power related'!$H$2*('(5) Energy related CO2 emission'!$C$3+'(5) Energy related CO2 emission'!$C$4)) -> 0
B80: Gasoline engine vehicle (supercharged) | D80: =IF(D$50="-","-",D$8/12*D$16*D$18*'(2) electric power related'!$H$2*('(5) Energy related CO2 emission'!$C$3+'(5) Energy related CO2 emission'!$C$4)) -> 0 | E80: =IF(E$50="-","-",E$8/12*E$16*E$18*'(2) electric power related'!$H$2*('(5) Energy related CO2 emission'!$C$3+'(5) Energy related CO2 emission'!$C$4)) -> 0 | F80: =IF(F$50="-","-",F$8/12*F$16*F$18*'(2) electric power related'!$H$2*('(5) Energy related CO2 emission'!$C$3+'(5) Energy related CO2 emission'!$C$4)) -> 0
B81: Gasoline HEV (naturally aspirated) | D81: =IF(D$51="-","-",D$8/12*D$16*D$18*'(2) electric power related'!$H$2*('(5) Energy related CO2 emission'!$C$3+'(5) Energy related CO2 emission'!$C$4)) -> 0 | E81: =IF(E$51="-","-",E$8/12*E$16*E$18*'(2) electric power related'!$H$2*('(5) Energy related CO2 emission'!$C$3+'(5) Energy related CO2 emission'!$C$4)) -> 0 | F81: =IF(F$51="-","-",F$8/12*F$16*F$18*'(2) electric power related'!$H$2*('(5) Energy related CO2 emission'!$C$3+'(5) Energy related CO2 emission'!$C$4)) -> 0
B82: Gasoline HEV (supercharged) | D82: =IF(D$52="-","-",D$8/12*D$16*D$18*'(2) electric power related'!$H$2*('(5) Energy related CO2 emission'!$C$3+'(5) Energy related CO2 emission'!$C$4)) -> 0 | E82: =IF(E$52="-","-",E$8/12*E$16*E$18*'(2) electric power related'!$H$2*('(5) Energy related CO2 emission'!$C$3+'(5) Energy related CO2 emission'!$C$4)) -> 0 | F82: =IF(F$52="-","-",F$8/12*F$16*F$18*'(2) electric power related'!$H$2*('(5) Energy related CO2 emission'!$C$3+'(5) Energy related CO2 emission'!$C$4)) -> 0
B83: Diesel engine vehicle (naturally aspirated) | D83: =IF(D$53="-","-",D$8/12*D$16*D$18*'(2) electric power related'!$H$3*('(5) Energy related CO2 emission'!$C$5+'(5) Energy related CO2 emission'!$C$6)) -> 0 | E83: =IF(E$53="-","-",E$8/12*E$16*E$18*'(2) electric power related'!$H$3*('(5) Energy related CO2 emission'!$C$5+'(5) Energy related CO2 emission'!$C$6)) -> 0 | F83: =IF(F$53="-","-",F$8/12*F$16*F$18*'(2) electric power related'!$H$3*('(5) Energy related CO2 emission'!$C$5+'(5) Energy related CO2 emission'!$C$6)) -> 0
B84: Diesel engine vehicle (supercharged) | D84: =IF(D$54="-","-",D$8/12*D$16*D$18*'(2) electric power related'!$H$3*('(5) Energy related CO2 emission'!$C$5+'(5) Energy related CO2 emission'!$C$6)) -> 0 | E84: =IF(E$54="-","-",E$8/12*E$16*E$18*'(2) electric power related'!$H$3*('(5) Energy related CO2 emission'!$C$5+'(5) Energy related CO2 emission'!$C$6)) -> 0 | F84: =IF(F$54="-","-",F$8/12*F$16*F$18*'(2) electric power related'!$H$3*('(5) Energy related CO2 emission'!$C$5+'(5) Energy related CO2 emission'!$C$6)) -> 0
B85: Diesel HEV (naturally aspirated) | D85: =IF(D$55="-","-",D$8/12*D$16*D$18*'(2) electric power related'!$H$3*('(5) Energy related CO2 emission'!$C$5+'(5) Energy related CO2 emission'!$C$6)) -> 0 | E85: =IF(E$55="-","-",E$8/12*E$16*E$18*'(2) electric power related'!$H$3*('(5) Energy related CO2 emission'!$C$5+'(5) Energy related CO2 emission'!$C$6)) -> 0 | F85: =IF(F$55="-","-",F$8/12*F$16*F$18*'(2) electric power related'!$H$3*('(5) Energy related CO2 emission'!$C$5+'(5) Energy related CO2 emission'!$C$6)) -> 0
B86: Diesel HEV (supercharged) | D86: =IF(D$56="-","-",D$8/12*D$16*D$18*'(2) electric power related'!$H$3*('(5) Energy related CO2 emission'!$C$5+'(5) Energy related CO2 emission'!$C$6)) -> 0 | E86: =IF(E$56="-","-",E$8/12*E$16*E$18*'(2) electric power related'!$H$3*('(5) Energy related CO2 emission'!$C$5+'(5) Energy related CO2 emission'!$C$6)) -> 0 | F86: =IF(F$56="-","-",F$8/12*F$16*F$18*'(2) electric power related'!$H$3*('(5) Energy related CO2 emission'!$C$5+'(5) Energy related CO2 emission'!$C$6)) -> 0
B87: EV | D87: - | E87: - | F87: -
B88: Fuel cell vehicle | D88: - | E88: - | F88: -
A89: (3) Power related CO2 emission (g-CO2) ⇒Click on this to change original unit. | B89: Gasoline engine vehicle (naturally aspirated) | D89: =IF(D$49="-","-",D$17*D$18*'(3) power related'!$G$2*('(5) Energy related CO2 emission'!$C$3+'(5) Energy related CO2 emission'!$C$4)) -> 0 | E89: =IF(E$49="-","-",E$17*E$18*'(3) power related'!$G$2*('(5) Energy related CO2 emission'!$C$3+'(5) Energy related CO2 emission'!$C$4)) -> 0 | F89: =IF(F$49="-","-",F$17*F$18*'(3) power related'!$G$2*('(5) Energy related CO2 emission'!$C$3+'(5) Energy related CO2 emission'!$C$4)) -> 0
B90: Gasoline engine vehicle (supercharged) | D90: =IF(D$50="-","-",D$17*D$18*'(3) power related'!$G$2*('(5) Energy related CO2 emission'!$C$3+'(5) Energy related CO2 emission'!$C$4)) -> 0 | E90: =IF(E$50="-","-",E$17*E$18*'(3) power related'!$G$2*('(5) Energy related CO2 emission'!$C$3+'(5) Energy related CO2 emission'!$C$4)) -> 0 | F90: =IF(F$50="-","-",F$17*F$18*'(3) power related'!$G$2*('(5) Energy related CO2 emission'!$C$3+'(5) Energy related CO2 emission'!$C$4)) -> 0
B91: Gasoline HEV (naturally aspirated) | D91: =IF(D$51="-","-",D$17*D$18*'(3) power related'!$G$2*('(5) Energy related CO2 emission'!$C$3+'(5) Energy related CO2 emission'!$C$4)) -> 0 | E91: =IF(E$51="-","-",E$17*E$18*'(3) power related'!$G$2*('(5) Energy related CO2 emission'!$C$3+'(5) Energy related CO2 emission'!$C$4)) -> 0 | F91: =IF(F$51="-","-",F$17*F$18*'(3) power related'!$G$2*('(5) Energy related CO2 emission'!$C$3+'(5) Energy related CO2 emission'!$C$4)) -> 0
B92: Gasoline HEV (supercharged) | D92: =IF(D$52="-","-",D$17*D$18*'(3) power related'!$G$2*('(5) Energy related CO2 emission'!$C$3+'(5) Energy related CO2 emission'!$C$4)) -> 0 | E92: =IF(E$52="-","-",E$17*E$18*'(3) power related'!$G$2*('(5) Energy related CO2 emission'!$C$3+'(5) Energy related CO2 emission'!$C$4)) -> 0 | F92: =IF(F$52="-","-",F$17*F$18*'(3) power related'!$G$2*('(5) Energy related CO2 emission'!$C$3+'(5) Energy related CO2 emission'!$C$4)) -> 0
B93: Diesel engine vehicle (naturally aspirated) | D93: =IF(D$53="-","-",D$17*D$18*'(3) power related'!$G$3*('(5) Energy related CO2 emission'!$C$5+'(5) Energy related CO2 emission'!$C$6)) -> 0 | E93: =IF(E$53="-","-",E$17*E$18*'(3) power related'!$G$3*('(5) Energy related CO2 emission'!$C$5+'(5) Energy related CO2 emission'!$C$6)) -> 0 | F93: =IF(F$53="-","-",F$17*F$18*'(3) power related'!$G$3*('(5) Energy related CO2 emission'!$C$5+'(5) Energy related CO2 emission'!$C$6)) -> 0
B94: Diesel engine vehicle (supercharged) | D94: =IF(D$54="-","-",D$17*D$18*'(3) power related'!$G$3*('(5) Energy related CO2 emission'!$C$5+'(5) Energy related CO2 emission'!$C$6)) -> 0 | E94: =IF(E$54="-","-",E$17*E$18*'(3) power related'!$G$3*('(5) Energy related CO2 emission'!$C$5+'(5) Energy related CO2 emission'!$C$6)) -> 0 | F94: =IF(F$54="-","-",F$17*F$18*'(3) power related'!$G$3*('(5) Energy related CO2 emission'!$C$5+'(5) Energy related CO2 emission'!$C$6)) -> 0
B95: Diesel HEV (naturally aspirated) | D95: =IF(D$55="-","-",D$17*D$18*'(3) power related'!$G$3*('(5) Energy related CO2 emission'!$C$5+'(5) Energy related CO2 emission'!$C$6)) -> 0 | E95: =IF(E$55="-","-",E$17*E$18*'(3) power related'!$G$3*('(5) Energy related CO2 emission'!$C$5+'(5) Energy related CO2 emission'!$C$6)) -> 0 | F95: =IF(F$55="-","-",F$17*F$18*'(3) power related'!$G$3*('(5) Energy related CO2 emission'!$C$5+'(5) Energy related CO2 emission'!$C$6)) -> 0
B96: Diesel HEV (supercharged) | D96: =IF(D$56="-","-",D$17*D$18*'(3) power related'!$G$3*('(5) Energy related CO2 emission'!$C$5+'(5) Energy related CO2 emission'!$C$6)) -> 0 | E96: =IF(E$56="-","-",E$17*E$18*'(3) power related'!$G$3*('(5) Energy related CO2 emission'!$C$5+'(5) Energy related CO2 emission'!$C$6)) -> 0 | F96: =IF(F$56="-","-",F$17*F$18*'(3) power related'!$G$3*('(5) Energy related CO2 emission'!$C$5+'(5) Energy related CO2 emission'!$C$6)) -> 0
B97: EV | D97: - | E97: - | F97: -
B98: Fuel cell vehicle | D98: - | E98: - | F98: -
A99: (4) Engine related CO2 emission (g-CO2) ⇒Click on this to change original unit. | B99: Gasoline engine vehicle (naturally aspirated) | C99: 0 | D99: =IF(D$49="-","-",D$49*('(5) Energy related CO2 emission'!$C$3+'(5) Energy related CO2 emission'!$C$4)) -> 0 | E99: =IF(E$49="-","-",E$49*('(5) Energy related CO2 emission'!$C$3+'(5) Energy related CO2 emission'!$C$4)) -> 0 | F99: =IF(F$49="-","-",F$49*('(5) Energy related CO2 emission'!$C$3+'(5) Energy related CO2 emission'!$C$4)) -> 0
B100: Gasoline engine vehicle (supercharged) | C100: 0 | D100: =IF(D$50="-","-",D$50*('(5) Energy related CO2 emission'!$C$3+'(5) Energy related CO2 emission'!$C$4)) -> 0 | E100: =IF(E$50="-","-",E$50*('(5) Energy related CO2 emission'!$C$3+'(5) Energy related CO2 emission'!$C$4)) -> 0 | F100: =IF(F$50="-","-",F$50*('(5) Energy related CO2 emission'!$C$3+'(5) Energy related CO2 emission'!$C$4)) -> 0
B101: Gasoline HEV (naturally aspirated) | C101: 0 | D101: =IF(D$51="-","-",D$51*('(5) Energy related CO2 emission'!$C$3+'(5) Energy related CO2 emission'!$C$4)) -> 0 | E101: =IF(E$51="-","-",E$51*('(5) Energy related CO2 emission'!$C$3+'(5) Energy related CO2 emission'!$C$4)) -> 0 | F101: =IF(F$51="-","-",F$51*('(5) Energy related CO2 emission'!$C$3+'(5) Energy related CO2 emission'!$C$4)) -> 0
B102: Gasoline HEV (supercharged) | C102: 0 | D102: =IF(D$52="-","-",D$52*('(5) Energy related CO2 emission'!$C$3+'(5) Energy related CO2 emission'!$C$4)) -> 0 | E102: =IF(E$52="-","-",E$52*('(5) Energy related CO2 emission'!$C$3+'(5) Energy related CO2 emission'!$C$4)) -> 0 | F102: =IF(F$52="-","-",F$52*('(5) Energy related CO2 emission'!$C$3+'(5) Energy related CO2 emission'!$C$4)) -> 0
B103: Diesel engine vehicle (naturally aspirated) | C103: 0 | D103: =IF(D$53="-","-",D$53*('(5) Energy related CO2 emission'!$C$5+'(5) Energy related CO2 emission'!$C$6)) -> 0 | E103: =IF(E$53="-","-",E$53*('(5) Energy related CO2 emission'!$C$5+'(5) Energy related CO2 emission'!$C$6)) -> 0 | F103: =IF(F$53="-","-",F$53*('(5) Energy related CO2 emission'!$C$5+'(5) Energy related CO2 emission'!$C$6)) -> 0
B104: Diesel engine vehicle (supercharged) | C104: 0 | D104: =IF(D$54="-","-",D$54*('(5) Energy related CO2 emission'!$C$5+'(5) Energy related CO2 emission'!$C$6)) -> 0 | E104: =IF(E$54="-","-",E$54*('(5) Energy related CO2 emission'!$C$5+'(5) Energy related CO2 emission'!$C$6)) -> 0 | F104: =IF(F$54="-","-",F$54*('(5) Energy related CO2 emission'!$C$5+'(5) Energy related CO2 emission'!$C$6)) -> 0
B105: Diesel HEV (naturally aspirated) | C105: 0 | D105: =IF(D$55="-","-",D$55*('(5) Energy related CO2 emission'!$C$5+'(5) Energy related CO2 emission'!$C$6)) -> 0 | E105: =IF(E$55="-","-",E$55*('(5) Energy related CO2 emission'!$C$5+'(5) Energy related CO2 emission'!$C$6)) -> 0 | F105: =IF(F$55="-","-",F$55*('(5) Energy related CO2 emission'!$C$5+'(5) Energy related CO2 emission'!$C$6)) -> 0
B106: Diesel HEV (supercharged) | C106: 0 | D106: =IF(D$56="-","-",D$56*('(5) Energy related CO2 emission'!$C$5+'(5) Energy related CO2 emission'!$C$6)) -> 0 | E106: =IF(E$56="-","-",E$56*('(5) Energy related CO2 emission'!$C$5+'(5) Energy related CO2 emission'!$C$6)) -> 0 | F106: =IF(F$56="-","-",F$56*('(5) Energy related CO2 emission'!$C$5+'(5) Energy related CO2 emission'!$C$6)) -> 0
B107: EV | C107: 0 | D107: - | E107: - | F107: -
B108: Fuel cell vehicle | C108: 0 | D108: - | E108: - | F108: -
A109: Calculation results CO2 emission (g-CO2) | B109: Gasoline engine vehicle (naturally aspirated) | C109: =SUM(C69,C79,C89,C99) ->  | D109: =IF(D99="-","-",SUM(D69,D79,D89,D99)) -> 0 | E109: =IF(E99="-","-",SUM(E69,E79,E89,E99)) -> 0 | F109: 0
B110: Gasoline engine vehicle (supercharged) | C110: =SUM(C69,C79,C89,C100) ->  | D110: =IF(D100="-","-",SUM(D70,D80,D90,D100)) -> 0 | E110: 0 | F110: 0
B111: Gasoline HEV (naturally aspirated) | C111: =SUM(C71,C81,C91,C101) ->  | D111: 0 | E111: 0 | F111: 0
B112: Gasoline HEV (supercharged) | C112: =SUM(C71,C81,C91,C102) ->  | D112: 0 | E112: 0 | F112: 0
B113: Diesel engine vehicle (naturally aspirated) | C113: =SUM(C73,C83,C93,C103) ->  | D113: 0 | E113: 0 | F113: 0
B114: Diesel engine vehicle (supercharged) | C114: =SUM(C73,C83,C93,C104) ->  | D114: 0 | E114: 0 | F114: 0
B115: Diesel HEV (naturally aspirated) | C115: =SUM(C75,C85,C95,C105) ->  | D115: 0 | E115: 0 | F115: 0
B116: Diesel HEV (supercharged) | C116: =SUM(C75,C85,C95,C106) ->  | D116: 0 | E116: 0 | F116: 0
A120: ◆Detailed concept (entry field)
A122: Current related | B122: Concept about current values
B123: Current calculation formula
B124: Concept about operating time
B125: Calculation formula for hour of use
A126: Power related | B126: Concept about power
B127: Power calculation formula
B128: Concept about operating time
B129: Calculation formula for hour of use
A131: Remark

Sheet GRAPH REPORT (hidden)
A3: ◆Basic information on LCI products | J3: 製品名 | K3: 配分内訳 | L3: エンジン種類 | M3: ｴﾈﾙｷﾞｰ消費量
B4: JAPIA product groups | C4: =IF(#REF!="","",#REF!) ->  | D4: Airbag | E4: Airbag | F4: Airbag | J4: =$D$10 -> Airbag 1 | K4: (1) mass related | L4: Gasoline engine vehicle (naturally aspirated) | M4: 3.289172736
B5: System boundary (Scope of products to be evaluated) | C5: =IF(#REF!="","",#REF!) ->  | J5: =$D$10 -> Airbag 1 | K5: (1) mass related | L5: Gasoline engine vehicle (supercharged) | M5: 3.289172736
B6: Functional unit (Unit per characteristic value representing product performance) | C6: =IF(#REF!="","",#REF!) ->  | J6: Airbag 1 | K6: (1) mass related | L6: Gasoline HEV (naturally aspirated) | M6: 1.513019458
B7: No. of evaluated items | C7: =IF(#REF!="","",#REF!) ->  | J7: Airbag 1 | K7: (1) mass related | L7: Gasoline HEV (supercharged) | M7: 1.513019458
B8: Operating voltage (V) | C8: =IF(#REF!="","",#REF!) ->  | D8: 12 | E8: 12 | F8: 12 | J8: Airbag 1 | K8: (1) mass related | L8: Diesel engine vehicle (naturally aspirated) | M8: 0
B9: Product/part number | C9: =IF(#REF!="","",#REF!) ->  | J9: Airbag 1 | K9: (1) mass related | L9: Diesel engine vehicle (supercharged) | M9: 0
B10: Product/part name | C10: =IF(#REF!="","",#REF!) ->  | D10: Airbag 1 | E10: Airbag 2 | F10: Airbag 3 | J10: Airbag 1 | K10: (1) mass related | L10: Diesel HEV (naturally aspirated) | M10: 0
J11: Airbag 1 | K11: (1) mass related | L11: Diesel HEV (supercharged) | M11: 0
A12: ◆Use-phase load | J12: Airbag 1 | K12: (1) mass related | L12: EV | M12: 4.601834851
A13: Input data for calculation | B13: Mass (kg) | C13: =#REF! ->  | D13: 1 | J13: Airbag 1 | K13: (1) mass related | L13: Fuel cell vehicle | M13: 1.844329124
B14: Inertia moment (kg･m2) Tire OD (m) | D14: 1 | J14: Airbag 1 | K14: (2) electric power related | L14: Gasoline engine vehicle (naturally aspirated) | M14: 0
B15: Current (A) | C15: =#REF! ->  | D15: 0 | J15: Airbag 1 | K15: (2) electric power related | L15: Gasoline engine vehicle (supercharged) | M15: 0
B16: Electric power/power （W） Average engine rpm(s-1) | C16: =#REF! ->  | D16: 0 | J16: Airbag 1 | K16: (2) electric power related | L16: Gasoline HEV (naturally aspirated) | M16: 0
B17: Life-time operating time (s) | C17: =#REF! ->  | D17: 1245011.787 | E17: 1245011.787 | F17: 1245011.787 | J17: Airbag 1 | K17: (2) electric power related | L17: Gasoline HEV (supercharged) | M17: 0
A18: Calculation results Energy consumption | B18: Gasoline engine vehicle (naturally aspirated) (L) | C18: =#REF! ->  | D18: 3.289172736 | E18: 0 | F18: 0 | J18: Airbag 1 | K18: (2) electric power related | L18: Diesel engine vehicle (naturally aspirated) | M18: 0
B19: Gasoline engine vehicle (supercharged) (L) | C19: =#REF! ->  | D19: 3.289172736 | E19: 0 | F19: 0 | J19: Airbag 1 | K19: (2) electric power related | L19: Diesel engine vehicle (supercharged) | M19: 0
B20: Gasoline HEV (naturally aspirated) (L) | C20: =#REF! ->  | D20: 1.513019458 | E20: 0 | F20: 0 | J20: Airbag 1 | K20: (2) electric power related | L20: Diesel HEV (naturally aspirated) | M20: 0
B21: Gasoline HEV (supercharged) (L) | C21: =#REF! ->  | D21: 1.513019458 | E21: 0 | F21: 0 | J21: Airbag 1 | K21: (2) electric power related | L21: Diesel HEV (supercharged) | M21: 0
B22: Diesel engine vehicle (naturally aspirated) (L) | C22: =#REF! ->  | D22: 0 | E22: 0 | F22: 0 | J22: Airbag 1 | K22: (2) electric power related | L22: EV | M22: 0
B23: Diesel engine vehicle (supercharged) (L) | C23: =#REF! ->  | D23: 0 | E23: 0 | F23: 0 | J23: Airbag 1 | K23: (2) electric power related | L23: Fuel cell vehicle | M23: 0
B24: Diesel HEV (naturally aspirated) (L) | C24: =#REF! ->  | D24: 0 | E24: 0 | F24: 0 | J24: Airbag 1 | K24: (3) power related | L24: Gasoline engine vehicle (naturally aspirated) | M24: 0
B25: Diesel HEV (supercharged) (L) | C25: =#REF! ->  | D25: 0 | E25: 0 | F25: 0 | J25: Airbag 1 | K25: (3) power related | L25: Gasoline engine vehicle (supercharged) | M25: 0
B26: EV (kWh) | D26: 4.601834851 | E26: 0 | F26: 0 | J26: Airbag 1 | K26: (3) power related | L26: Gasoline HEV (naturally aspirated) | M26: 0
B27: Fuel cell vehicle (Nm3) | D27: 1.844329124 | E27: 0 | F27: 0 | J27: Airbag 1 | K27: (3) power related | L27: Gasoline HEV (supercharged) | M27: 0
J28: Airbag 1 | K28: (3) power related | L28: Diesel engine vehicle (naturally aspirated) | M28: 0
J29: Airbag 1 | K29: (3) power related | L29: Diesel engine vehicle (supercharged) | M29: 0
J30: Airbag 1 | K30: (3) power related | L30: Diesel HEV (naturally aspirated) | M30: 0
J31: Airbag 1 | K31: (3) power related | L31: Diesel HEV (supercharged) | M31: 0
J32: Airbag 1 | K32: (3) power related | L32: EV | M32: 0
J33: Airbag 1 | K33: (3) power related | L33: Fuel cell vehicle | M33: 0
J34: Airbag 1 | K34: (4) engine | L34: Gasoline engine vehicle (naturally aspirated) | M34: 0
J35: Airbag 1 | K35: (4) engine | L35: Gasoline engine vehicle (supercharged) | M35: 0
J36: Airbag 1 | K36: (4) engine | L36: Gasoline HEV (naturally aspirated) | M36: 0
J37: Airbag 1 | K37: (4) engine | L37: Gasoline HEV (supercharged) | M37: 0
J38: Airbag 1 | K38: (4) engine | L38: Diesel engine vehicle (naturally aspirated) | M38: 0
J39: Airbag 1 | K39: (4) engine | L39: Diesel engine vehicle (supercharged) | M39: 0
J40: Airbag 1 | K40: (4) engine | L40: Diesel HEV (naturally aspirated) | M40: 0
J41: Airbag 1 | K41: (4) engine | L41: Diesel HEV (supercharged) | M41: 0
J42: Airbag 1 | K42: (4) engine | L42: EV | M42: 0
J43: Airbag 1 | K43: (4) engine | L43: Fuel cell vehicle | M43: 0
J44: =$E$10 -> Airbag 2 | K44: (1) mass related | L44: Gasoline engine vehicle (naturally aspirated) | M44: 0
J45: =$E$10 -> Airbag 2 | K45: (1) mass related | L45: Gasoline engine vehicle (supercharged) | M45: 0
J46: Airbag 2 | K46: (1) mass related | L46: Gasoline HEV (naturally aspirated) | M46: 0
J47: Airbag 2 | K47: (1) mass related | L47: Gasoline HEV (supercharged) | M47: 0
J48: Airbag 2 | K48: (1) mass related | L48: Diesel engine vehicle (naturally aspirated) | M48: 0
J49: Airbag 2 | K49: (1) mass related | L49: Diesel engine vehicle (supercharged) | M49: 0
J50: Airbag 2 | K50: (1) mass related | L50: Diesel HEV (naturally aspirated) | M50: 0
J51: Airbag 2 | K51: (1) mass related | L51: Diesel HEV (supercharged) | M51: 0
J52: Airbag 2 | K52: (1) mass related | L52: EV | M52: 0
J53: Airbag 2 | K53: (1) mass related | L53: Fuel cell vehicle | M53: 0
J54: Airbag 2 | K54: (2) electric power related | L54: Gasoline engine vehicle (naturally aspirated) | M54: 0
J55: Airbag 2 | K55: (2) electric power related | L55: Gasoline engine vehicle (supercharged) | M55: 0
J56: Airbag 2 | K56: (2) electric power related | L56: Gasoline HEV (naturally aspirated) | M56: 0
J57: Airbag 2 | K57: (2) electric power related | L57: Gasoline HEV (supercharged) | M57: 0
J58: Airbag 2 | K58: (2) electric power related | L58: Diesel engine vehicle (naturally aspirated) | M58: 0
J59: Airbag 2 | K59: (2) electric power related | L59: Diesel engine vehicle (supercharged) | M59: 0
J60: Airbag 2 | K60: (2) electric power related | L60: Diesel HEV (naturally aspirated) | M60: 0
J61: Airbag 2 | K61: (2) electric power related | L61: Diesel HEV (supercharged) | M61: 0
J62: Airbag 2 | K62: (2) electric power related | L62: EV | M62: 0
J63: Airbag 2 | K63: (2) electric power related | L63: Fuel cell vehicle | M63: 0
J64: Airbag 2 | K64: (3) power related | L64: Gasoline engine vehicle (naturally aspirated) | M64: 0
J65: Airbag 2 | K65: (3) power related | L65: Gasoline engine vehicle (supercharged) | M65: 0
J66: Airbag 2 | K66: (3) power related | L66: Gasoline HEV (naturally aspirated) | M66: 0
J67: Airbag 2 | K67: (3) power related | L67: Gasoline HEV (supercharged) | M67: 0
J68: Airbag 2 | K68: (3) power related | L68: Diesel engine vehicle (naturally aspirated) | M68: 0
J69: Airbag 2 | K69: (3) power related | L69: Diesel engine vehicle (supercharged) | M69: 0
J70: Airbag 2 | K70: (3) power related | L70: Diesel HEV (naturally aspirated) | M70: 0
J71: Airbag 2 | K71: (3) power related | L71: Diesel HEV (supercharged) | M71: 0
J72: Airbag 2 | K72: (3) power related | L72: EV | M72: 0
J73: Airbag 2 | K73: (3) power related | L73: Fuel cell vehicle | M73: 0
J74: Airbag 2 | K74: (4) engine | L74: Gasoline engine vehicle (naturally aspirated) | M74: 0
J75: Airbag 2 | K75: (4) engine | L75: Gasoline engine vehicle (supercharged) | M75: 0
J76: Airbag 2 | K76: (4) engine | L76: Gasoline HEV (naturally aspirated) | M76: 0
J77: Airbag 2 | K77: (4) engine | L77: Gasoline HEV (supercharged) | M77: 0
J78: Airbag 2 | K78: (4) engine | L78: Diesel engine vehicle (naturally aspirated) | M78: 0
J79: Airbag 2 | K79: (4) engine | L79: Diesel engine vehicle (supercharged) | M79: 0
J80: Airbag 2 | K80: (4) engine | L80: Diesel HEV (naturally aspirated) | M80: 0
J81: Airbag 2 | K81: (4) engine | L81: Diesel HEV (supercharged) | M81: 0
J82: Airbag 2 | K82: (4) engine | L82: EV | M82: 0
J83: Airbag 2 | K83: (4) engine | L83: Fuel cell vehicle | M83: 0
J84: =$F$10 -> Airbag 3 | K84: (1) mass related | L84: Gasoline engine vehicle (naturally aspirated) | M84: 0
J85: =$F$10 -> Airbag 3 | K85: (1) mass related | L85: Gasoline engine vehicle (supercharged) | M85: 0
J86: Airbag 3 | K86: (1) mass related | L86: Gasoline HEV (naturally aspirated) | M86: 0
J87: Airbag 3 | K87: (1) mass related | L87: Gasoline HEV (supercharged) | M87: 0
J88: Airbag 3 | K88: (1) mass related | L88: Diesel engine vehicle (naturally aspirated) | M88: 0
J89: Airbag 3 | K89: (1) mass related | L89: Diesel engine vehicle (supercharged) | M89: 0
J90: Airbag 3 | K90: (1) mass related | L90: Diesel HEV (naturally aspirated) | M90: 0
J91: Airbag 3 | K91: (1) mass related | L91: Diesel HEV (supercharged) | M91: 0
J92: Airbag 3 | K92: (1) mass related | L92: EV | M92: 0
J93: Airbag 3 | K93: (1) mass related | L93: Fuel cell vehicle | M93: 0
J94: Airbag 3 | K94: (2) electric power related | L94: Gasoline engine vehicle (naturally aspirated) | M94: 0
J95: Airbag 3 | K95: (2) electric power related | L95: Gasoline engine vehicle (supercharged) | M95: 0
J96: Airbag 3 | K96: (2) electric power related | L96: Gasoline HEV (naturally aspirated) | M96: 0
J97: Airbag 3 | K97: (2) electric power related | L97: Gasoline HEV (supercharged) | M97: 0
J98: Airbag 3 | K98: (2) electric power related | L98: Diesel engine vehicle (naturally aspirated) | M98: 0
J99: Airbag 3 | K99: (2) electric power related | L99: Diesel engine vehicle (supercharged) | M99: 0
J100: Airbag 3 | K100: (2) electric power related | L100: Diesel HEV (naturally aspirated) | M100: 0
J101: Airbag 3 | K101: (2) electric power related | L101: Diesel HEV (supercharged) | M101: 0
J102: Airbag 3 | K102: (2) electric power related | L102: EV | M102: 0
J103: Airbag 3 | K103: (2) electric power related | L103: Fuel cell vehicle | M103: 0
J104: Airbag 3 | K104: (3) power related | L104: Gasoline engine vehicle (naturally aspirated) | M104: 0
J105: Airbag 3 | K105: (3) power related | L105: Gasoline engine vehicle (supercharged) | M105: 0
J106: Airbag 3 | K106: (3) power related | L106: Gasoline HEV (naturally aspirated) | M106: 0
J107: Airbag 3 | K107: (3) power related | L107: Gasoline HEV (supercharged) | M107: 0
J108: Airbag 3 | K108: (3) power related | L108: Diesel engine vehicle (naturally aspirated) | M108: 0
J109: Airbag 3 | K109: (3) power related | L109: Diesel engine vehicle (supercharged) | M109: 0
J110: Airbag 3 | K110: (3) power related | L110: Diesel HEV (naturally aspirated) | M110: 0
J111: Airbag 3 | K111: (3) power related | L111: Diesel HEV (supercharged) | M111: 0
J112: Airbag 3 | K112: (3) power related | L112: EV | M112: 0
J113: Airbag 3 | K113: (3) power related | L113: Fuel cell vehicle | M113: 0
J114: Airbag 3 | K114: (4) engine | L114: Gasoline engine vehicle (naturally aspirated) | M114: 0
J115: Airbag 3 | K115: (4) engine | L115: Gasoline engine vehicle (supercharged) | M115: 0
J116: Airbag 3 | K116: (4) engine | L116: Gasoline HEV (naturally aspirated) | M116: 0
J117: Airbag 3 | K117: (4) engine | L117: Gasoline HEV (supercharged) | M117: 0
J118: Airbag 3 | K118: (4) engine | L118: Diesel engine vehicle (naturally aspirated) | M118: 0
J119: Airbag 3 | K119: (4) engine | L119: Diesel engine vehicle (supercharged) | M119: 0
J120: Airbag 3 | K120: (4) engine | L120: Diesel HEV (naturally aspirated) | M120: 0
J121: Airbag 3 | K121: (4) engine | L121: Diesel HEV (supercharged) | M121: 0
J122: Airbag 3 | K122: (4) engine | L122: EV | M122: 0
J123: Airbag 3 | K123: (4) engine | L123: Fuel cell vehicle | M123: 0
J124: JAPIA STD product | K124: (1) mass related | L124: Gasoline engine vehicle (naturally aspirated)
J125: JAPIA STD product | K125: (1) mass related | L125: Gasoline engine vehicle (supercharged)
J126: JAPIA STD product | K126: (1) mass related | L126: Gasoline HEV (naturally aspirated)
J127: JAPIA STD product | K127: (1) mass related | L127: Gasoline HEV (supercharged)
J128: JAPIA STD product | K128: (1) mass related | L128: Diesel engine vehicle (naturally aspirated)
J129: JAPIA STD product | K129: (1) mass related | L129: Diesel engine vehicle (supercharged)
J130: JAPIA STD product | K130: (1) mass related | L130: Diesel HEV (naturally aspirated)
J131: JAPIA STD product | K131: (1) mass related | L131: Diesel HEV (supercharged)
J132: JAPIA STD product | K132: (1) mass related | L132: EV
J133: JAPIA STD product | K133: (1) mass related | L133: Fuel cell vehicle
J134: JAPIA STD product | K134: (2) electric power related | L134: Gasoline engine vehicle (naturally aspirated)
J135: JAPIA STD product | K135: (2) electric power related | L135: Gasoline engine vehicle (supercharged)
J136: JAPIA STD product | K136: (2) electric power related | L136: Gasoline HEV (naturally aspirated)
J137: JAPIA STD product | K137: (2) electric power related | L137: Gasoline HEV (supercharged)
J138: JAPIA STD product | K138: (2) electric power related | L138: Diesel engine vehicle (naturally aspirated)
J139: JAPIA STD product | K139: (2) electric power related | L139: Diesel engine vehicle (supercharged)
J140: JAPIA STD product | K140: (2) electric power related | L140: Diesel HEV (naturally aspirated)
J141: JAPIA STD product | K141: (2) electric power related | L141: Diesel HEV (supercharged)
J142: JAPIA STD product | K142: (2) electric power related | L142: EV
J143: JAPIA STD product | K143: (2) electric power related | L143: Fuel cell vehicle
J144: JAPIA STD product | K144: (3) power related | L144: Gasoline engine vehicle (naturally aspirated)
J145: JAPIA STD product | K145: (3) power related | L145: Gasoline engine vehicle (supercharged)
J146: JAPIA STD product | K146: (3) power related | L146: Gasoline HEV (naturally aspirated)
J147: JAPIA STD product | K147: (3) power related | L147: Gasoline HEV (supercharged)
J148: JAPIA STD product | K148: (3) power related | L148: Diesel engine vehicle (naturally aspirated)
J149: JAPIA STD product | K149: (3) power related | L149: Diesel engine vehicle (supercharged)
J150: JAPIA STD product | K150: (3) power related | L150: Diesel HEV (naturally aspirated)
J151: JAPIA STD product | K151: (3) power related | L151: Diesel HEV (supercharged)
J152: JAPIA STD product | K152: (3) power related | L152: EV
J153: JAPIA STD product | K153: (3) power related | L153: Fuel cell vehicle
J154: JAPIA STD product | K154: (4) engine | L154: Gasoline engine vehicle (naturally aspirated)
J155: JAPIA STD product | K155: (4) engine | L155: Gasoline engine vehicle (supercharged)
J156: JAPIA STD product | K156: (4) engine | L156: Gasoline HEV (naturally aspirated)
J157: JAPIA STD product | K157: (4) engine | L157: Gasoline HEV (supercharged)
J158: JAPIA STD product | K158: (4) engine | L158: Diesel engine vehicle (naturally aspirated)
J159: JAPIA STD product | K159: (4) engine | L159: Diesel engine vehicle (supercharged)
J160: JAPIA STD product | K160: (4) engine | L160: Diesel HEV (naturally aspirated)
J161: JAPIA STD product | K161: (4) engine | L161: Diesel HEV (supercharged)
J162: JAPIA STD product | K162: (4) engine | L162: EV
J163: JAPIA STD product | K163: (4) engine | L163: Fuel cell vehicle
J165: 合計 / ｴﾈﾙｷﾞｰ消費量 | K165: 列ラベル | Q165: 合計 / ｴﾈﾙｷﾞｰ消費量 | R165: 列ラベル
J166: 行ラベル | K166: (1) mass related | L166: (2) electric power related | M166: (3) power related | N166: (4) engine | O166: 総計 | Q166: 行ラベル | R166: (1) mass related | S166: (2) electric power related | T166: (3) power related | U166: (4) engine | V166: 総計
J167: Airbag 1 | K167: 9.604384389 | L167: 0 | M167: 0 | N167: 0 | O167: 9.604384389 | Q167: Airbag 1 | R167: 4.601834851 | S167: 0 | T167: 0 | U167: 0 | V167: 4.601834851
J168: Gasoline engine vehicle (naturally aspirated) | K168: 3.289172736 | L168: 0 | M168: 0 | N168: 0 | O168: 3.289172736 | Q168: EV | R168: 4.601834851 | S168: 0 | T168: 0 | U168: 0 | V168: 4.601834851
J169: Gasoline engine vehicle (supercharged) | K169: 3.289172736 | L169: 0 | M169: 0 | N169: 0 | O169: 3.289172736 | Q169: Airbag 2 | R169: 0 | S169: 0 | T169: 0 | U169: 0 | V169: 0
J170: Gasoline HEV (naturally aspirated) | K170: 1.513019458 | L170: 0 | M170: 0 | N170: 0 | O170: 1.513019458 | Q170: EV | R170: 0 | S170: 0 | T170: 0 | U170: 0 | V170: 0
J171: Gasoline HEV (supercharged) | K171: 1.513019458 | L171: 0 | M171: 0 | N171: 0 | O171: 1.513019458 | Q171: Airbag 3 | R171: 0 | S171: 0 | T171: 0 | U171: 0 | V171: 0
J172: Diesel engine vehicle (naturally aspirated) | K172: 0 | L172: 0 | M172: 0 | N172: 0 | O172: 0 | Q172: EV | R172: 0 | S172: 0 | T172: 0 | U172: 0 | V172: 0
J173: Diesel engine vehicle (supercharged) | K173: 0 | L173: 0 | M173: 0 | N173: 0 | O173: 0 | Q173: 総計 | R173: 4.601834851 | S173: 0 | T173: 0 | U173: 0 | V173: 4.601834851
J174: Diesel HEV (naturally aspirated) | K174: 0 | L174: 0 | M174: 0 | N174: 0 | O174: 0
J175: Diesel HEV (supercharged) | K175: 0 | L175: 0 | M175: 0 | N175: 0 | O175: 0 | Q175: 合計 / ｴﾈﾙｷﾞｰ消費量 | R175: 列ラベル
J176: Airbag 2 | K176: 0 | L176: 0 | M176: 0 | N176: 0 | O176: 0 | Q176: 行ラベル | R176: (1) mass related | S176: (2) electric power related | T176: (3) power related | U176: (4) engine | V176: 総計
J177: Gasoline engine vehicle (naturally aspirated) | K177: 0 | L177: 0 | M177: 0 | N177: 0 | O177: 0 | Q177: Airbag 1 | R177: 1.844329124 | S177: 0 | T177: 0 | U177: 0 | V177: 1.844329124
J178: Gasoline engine vehicle (supercharged) | K178: 0 | L178: 0 | M178: 0 | N178: 0 | O178: 0 | Q178: Fuel cell vehicle | R178: 1.844329124 | S178: 0 | T178: 0 | U178: 0 | V178: 1.844329124
J179: Gasoline HEV (naturally aspirated) | K179: 0 | L179: 0 | M179: 0 | N179: 0 | O179: 0 | Q179: Airbag 2 | R179: 0 | S179: 0 | T179: 0 | U179: 0 | V179: 0
J180: Gasoline HEV (supercharged) | K180: 0 | L180: 0 | M180: 0 | N180: 0 | O180: 0 | Q180: Fuel cell vehicle | R180: 0 | S180: 0 | T180: 0 | U180: 0 | V180: 0
J181: Diesel engine vehicle (naturally aspirated) | K181: 0 | L181: 0 | M181: 0 | N181: 0 | O181: 0 | Q181: Airbag 3 | R181: 0 | S181: 0 | T181: 0 | U181: 0 | V181: 0
J182: Diesel engine vehicle (supercharged) | K182: 0 | L182: 0 | M182: 0 | N182: 0 | O182: 0 | Q182: Fuel cell vehicle | R182: 0 | S182: 0 | T182: 0 | U182: 0 | V182: 0
J183: Diesel HEV (naturally aspirated) | K183: 0 | L183: 0 | M183: 0 | N183: 0 | O183: 0 | Q183: 総計 | R183: 1.844329124 | S183: 0 | T183: 0 | U183: 0 | V183: 1.844329124
J184: Diesel HEV (supercharged) | K184: 0 | L184: 0 | M184: 0 | N184: 0 | O184: 0
J185: Airbag 3 | K185: 0 | L185: 0 | M185: 0 | N185: 0 | O185: 0
J186: Gasoline engine vehicle (naturally aspirated) | K186: 0 | L186: 0 | M186: 0 | N186: 0 | O186: 0
J187: Gasoline engine vehicle (supercharged) | K187: 0 | L187: 0 | M187: 0 | N187: 0 | O187: 0
J188: Gasoline HEV (naturally aspirated) | K188: 0 | L188: 0 | M188: 0 | N188: 0 | O188: 0
J189: Gasoline HEV (supercharged) | K189: 0 | L189: 0 | M189: 0 | N189: 0 | O189: 0
J190: Diesel engine vehicle (naturally aspirated) | K190: 0 | L190: 0 | M190: 0 | N190: 0 | O190: 0
J191: Diesel engine vehicle (supercharged) | K191: 0 | L191: 0 | M191: 0 | N191: 0 | O191: 0
J192: Diesel HEV (naturally aspirated) | K192: 0 | L192: 0 | M192: 0 | N192: 0 | O192: 0
J193: Diesel HEV (supercharged) | K193: 0 | L193: 0 | M193: 0 | N193: 0 | O193: 0
J194: 総計 | K194: 9.604384389 | L194: 0 | M194: 0 | N194: 0 | O194: 9.604384389

Sheet GRAPH REPORT_CO2 (hidden)
A3: ◆Basic information on LCI products | J3: 製品名 | K3: 配分内訳 | L3: エンジン種類 | M3: CO2排出量 | P3: 合計 / CO2排出量 | Q3: 列ラベル | W3: 合計 / CO2排出量 | X3: 列ラベル
B4: JAPIA product groups | C4: =IF(#REF!="","",#REF!) ->  | D4: Airbag | E4: Airbag | F4: Airbag | J4: =$D$10 -> Airbag 1 | K4: (1) mass related | L4: Gasoline engine vehicle (naturally aspirated) | M4: 8555.138286 | P4: 行ラベル | Q4: (1) mass related | R4: (2) electric power related | S4: (3) power related | T4: (4) engine | U4: 総計 | W4: 行ラベル | X4: (1) mass related | Y4: (2) electric power related | Z4: (3) power related | AA4: (4) engine | AB4: 総計
B5: System boundary (Scope of products to be evaluated) | C5: =IF(#REF!="","",#REF!) ->  | J5: =$D$10 -> Airbag 1 | K5: (1) mass related | L5: Gasoline engine vehicle (supercharged) | M5: 8555.138286 | P5: Airbag 1 | Q5: 24981.0038 | R5: 0 | S5: 0 | T5: 0 | U5: 24981.0038 | W5: Airbag 1 | X5: 2466.58348 | Y5: 0 | Z5: 0 | AA5: 0 | AB5: 2466.58348
B6: Functional unit (Unit per characteristic value representing product performance) | C6: =IF(#REF!="","",#REF!) ->  | J6: Airbag 1 | K6: (1) mass related | L6: Gasoline HEV (naturally aspirated) | M6: 3935.363612 | P6: Gasoline engine vehicle (naturally aspirated) | Q6: 8555.138286 | R6: 0 | S6: 0 | T6: 0 | U6: 8555.138286 | W6: EV | X6: 2466.58348 | Y6: 0 | Z6: 0 | AA6: 0 | AB6: 2466.58348
B7: No. of evaluated items | C7: =IF(#REF!="","",#REF!) ->  | J7: Airbag 1 | K7: (1) mass related | L7: Gasoline HEV (supercharged) | M7: 3935.363612 | P7: Gasoline engine vehicle (supercharged) | Q7: 8555.138286 | R7: 0 | S7: 0 | T7: 0 | U7: 8555.138286 | W7: Airbag 2 | X7: 0 | Y7: 0 | Z7: 0 | AA7: 0 | AB7: 0
B8: Operating voltage (V) | C8: =IF(#REF!="","",#REF!) ->  | D8: 12 | E8: 12 | F8: 12 | J8: Airbag 1 | K8: (1) mass related | L8: Diesel engine vehicle (naturally aspirated) | M8: 0 | P8: Gasoline HEV (naturally aspirated) | Q8: 3935.363612 | R8: 0 | S8: 0 | T8: 0 | U8: 3935.363612 | W8: EV | X8: 0 | Y8: 0 | Z8: 0 | AA8: 0 | AB8: 0
B9: Product/part number | C9: =IF(#REF!="","",#REF!) ->  | J9: Airbag 1 | K9: (1) mass related | L9: Diesel engine vehicle (supercharged) | M9: 0 | P9: Gasoline HEV (supercharged) | Q9: 3935.363612 | R9: 0 | S9: 0 | T9: 0 | U9: 3935.363612 | W9: Airbag 3 | X9: 0 | Y9: 0 | Z9: 0 | AA9: 0 | AB9: 0
B10: Product/part name | C10: =IF(#REF!="","",#REF!) ->  | D10: Airbag 1 | E10: Airbag 2 | F10: Airbag 3 | J10: Airbag 1 | K10: (1) mass related | L10: Diesel HEV (naturally aspirated) | M10: 0 | P10: Diesel engine vehicle (naturally aspirated) | Q10: 0 | R10: 0 | S10: 0 | T10: 0 | U10: 0 | W10: EV | X10: 0 | Y10: 0 | Z10: 0 | AA10: 0 | AB10: 0
J11: Airbag 1 | K11: (1) mass related | L11: Diesel HEV (supercharged) | M11: 0 | P11: Diesel engine vehicle (supercharged) | Q11: 0 | R11: 0 | S11: 0 | T11: 0 | U11: 0 | W11: 総計 | X11: 2466.58348 | Y11: 0 | Z11: 0 | AA11: 0 | AB11: 2466.58348
A12: ◆Use-phase load | J12: Airbag 1 | K12: (1) mass related | L12: EV | M12: 2466.58348 | P12: Diesel HEV (naturally aspirated) | Q12: 0 | R12: 0 | S12: 0 | T12: 0 | U12: 0
A13: Input data for calculation | B13: Mass (kg) | C13: =#REF! ->  | D13: 1 | J13: Airbag 1 | K13: (1) mass related | L13: Fuel cell vehicle | M13: 2084.09191 | P13: Diesel HEV (supercharged) | Q13: 0 | R13: 0 | S13: 0 | T13: 0 | U13: 0
B14: Inertia moment (kg･m2) Tire OD (m) | D14: 1 | J14: Airbag 1 | K14: (2) electric power related | L14: Gasoline engine vehicle (naturally aspirated) | M14: 0 | P14: Airbag 2 | Q14: 0 | R14: 0 | S14: 0 | T14: 0 | U14: 0
B15: Current (A) | C15: =#REF! ->  | D15: 0 | J15: Airbag 1 | K15: (2) electric power related | L15: Gasoline engine vehicle (supercharged) | M15: 0 | P15: Gasoline engine vehicle (naturally aspirated) | Q15: 0 | R15: 0 | S15: 0 | T15: 0 | U15: 0
B16: Electric power/power （W） Average engine rpm(s-1) | C16: =#REF! ->  | D16: 0 | J16: Airbag 1 | K16: (2) electric power related | L16: Gasoline HEV (naturally aspirated) | M16: 0 | P16: Gasoline engine vehicle (supercharged) | Q16: 0 | R16: 0 | S16: 0 | T16: 0 | U16: 0
B17: Life-time operating time (s) | C17: =#REF! ->  | D17: 1245011.787 | E17: 1245011.787 | F17: 1245011.787 | J17: Airbag 1 | K17: (2) electric power related | L17: Gasoline HEV (supercharged) | M17: 0 | P17: Gasoline HEV (naturally aspirated) | Q17: 0 | R17: 0 | S17: 0 | T17: 0 | U17: 0
A18: Calculation results CO2 emission (g-CO2) | B18: Gasoline engine vehicle (naturally aspirated) | C18: =#REF! ->  | D18: 8555.138286 | E18: 0 | F18: 0 | J18: Airbag 1 | K18: (2) electric power related | L18: Diesel engine vehicle (naturally aspirated) | M18: 0 | P18: Gasoline HEV (supercharged) | Q18: 0 | R18: 0 | S18: 0 | T18: 0 | U18: 0 | W18: 合計 / CO2排出量 | X18: 列ラベル
B19: Gasoline engine vehicle (supercharged) | C19: =#REF! ->  | D19: 8555.138286 | E19: 0 | F19: 0 | J19: Airbag 1 | K19: (2) electric power related | L19: Diesel engine vehicle (supercharged) | M19: 0 | P19: Diesel engine vehicle (naturally aspirated) | Q19: 0 | R19: 0 | S19: 0 | T19: 0 | U19: 0 | W19: 行ラベル | X19: (1) mass related | Y19: (2) electric power related | Z19: (3) power related | AA19: (4) engine | AB19: 総計
B20: Gasoline HEV (naturally aspirated) | C20: =#REF! ->  | D20: 3935.363612 | E20: 0 | F20: 0 | J20: Airbag 1 | K20: (2) electric power related | L20: Diesel HEV (naturally aspirated) | M20: 0 | P20: Diesel engine vehicle (supercharged) | Q20: 0 | R20: 0 | S20: 0 | T20: 0 | U20: 0 | W20: Airbag 1 | X20: 2084.09191 | Y20: 0 | Z20: 0 | AA20: 0 | AB20: 2084.09191
B21: Gasoline HEV (supercharged) | C21: =#REF! ->  | D21: 3935.363612 | E21: 0 | F21: 0 | J21: Airbag 1 | K21: (2) electric power related | L21: Diesel HEV (supercharged) | M21: 0 | P21: Diesel HEV (naturally aspirated) | Q21: 0 | R21: 0 | S21: 0 | T21: 0 | U21: 0 | W21: Fuel cell vehicle | X21: 2084.09191 | Y21: 0 | Z21: 0 | AA21: 0 | AB21: 2084.09191
B22: Diesel engine vehicle (naturally aspirated) | C22: =#REF! ->  | D22: 0 | E22: 0 | F22: 0 | J22: Airbag 1 | K22: (2) electric power related | L22: EV | M22: 0 | P22: Diesel HEV (supercharged) | Q22: 0 | R22: 0 | S22: 0 | T22: 0 | U22: 0 | W22: Airbag 2 | X22: 0 | Y22: 0 | Z22: 0 | AA22: 0 | AB22: 0
B23: Diesel engine vehicle (supercharged) | C23: =#REF! ->  | D23: 0 | E23: 0 | F23: 0 | J23: Airbag 1 | K23: (2) electric power related | L23: Fuel cell vehicle | M23: 0 | P23: Airbag 3 | Q23: 0 | R23: 0 | S23: 0 | T23: 0 | U23: 0 | W23: Fuel cell vehicle | X23: 0 | Y23: 0 | Z23: 0 | AA23: 0 | AB23: 0
B24: Diesel HEV (naturally aspirated) (L) | C24: =#REF! ->  | D24: 0 | E24: 0 | F24: 0 | J24: Airbag 1 | K24: (3) power related | L24: Gasoline engine vehicle (naturally aspirated) | M24: 0 | P24: Gasoline engine vehicle (naturally aspirated) | Q24: 0 | R24: 0 | S24: 0 | T24: 0 | U24: 0 | W24: Airbag 3 | X24: 0 | Y24: 0 | Z24: 0 | AA24: 0 | AB24: 0
B25: Diesel HEV (supercharged) (L) | C25: =#REF! ->  | D25: 0 | E25: 0 | F25: 0 | J25: Airbag 1 | K25: (3) power related | L25: Gasoline engine vehicle (supercharged) | M25: 0 | P25: Gasoline engine vehicle (supercharged) | Q25: 0 | R25: 0 | S25: 0 | T25: 0 | U25: 0 | W25: Fuel cell vehicle | X25: 0 | Y25: 0 | Z25: 0 | AA25: 0 | AB25: 0
B26: EV (kWh) | D26: 2466.58348 | E26: 0 | F26: 0 | J26: Airbag 1 | K26: (3) power related | L26: Gasoline HEV (naturally aspirated) | M26: 0 | P26: Gasoline HEV (naturally aspirated) | Q26: 0 | R26: 0 | S26: 0 | T26: 0 | U26: 0 | W26: 総計 | X26: 2084.09191 | Y26: 0 | Z26: 0 | AA26: 0 | AB26: 2084.09191
B27: Fuel cell vehicle (Nm3) | D27: 2084.09191 | E27: 0 | F27: 0 | J27: Airbag 1 | K27: (3) power related | L27: Gasoline HEV (supercharged) | M27: 0 | P27: Gasoline HEV (supercharged) | Q27: 0 | R27: 0 | S27: 0 | T27: 0 | U27: 0
J28: Airbag 1 | K28: (3) power related | L28: Diesel engine vehicle (naturally aspirated) | M28: 0 | P28: Diesel engine vehicle (naturally aspirated) | Q28: 0 | R28: 0 | S28: 0 | T28: 0 | U28: 0
J29: Airbag 1 | K29: (3) power related | L29: Diesel engine vehicle (supercharged) | M29: 0 | P29: Diesel engine vehicle (supercharged) | Q29: 0 | R29: 0 | S29: 0 | T29: 0 | U29: 0
J30: Airbag 1 | K30: (3) power related | L30: Diesel HEV (naturally aspirated) | M30: 0 | P30: Diesel HEV (naturally aspirated) | Q30: 0 | R30: 0 | S30: 0 | T30: 0 | U30: 0
J31: Airbag 1 | K31: (3) power related | L31: Diesel HEV (supercharged) | M31: 0 | P31: Diesel HEV (supercharged) | Q31: 0 | R31: 0 | S31: 0 | T31: 0 | U31: 0
J32: Airbag 1 | K32: (3) power related | L32: EV | M32: 0 | P32: 総計 | Q32: 24981.0038 | R32: 0 | S32: 0 | T32: 0 | U32: 24981.0038
J33: Airbag 1 | K33: (3) power related | L33: Fuel cell vehicle | M33: 0
J34: Airbag 1 | K34: (4) engine | L34: Gasoline engine vehicle (naturally aspirated) | M34: 0
J35: Airbag 1 | K35: (4) engine | L35: Gasoline engine vehicle (supercharged) | M35: 0
J36: Airbag 1 | K36: (4) engine | L36: Gasoline HEV (naturally aspirated) | M36: 0
J37: Airbag 1 | K37: (4) engine | L37: Gasoline HEV (supercharged) | M37: 0
J38: Airbag 1 | K38: (4) engine | L38: Diesel engine vehicle (naturally aspirated) | M38: 0
J39: Airbag 1 | K39: (4) engine | L39: Diesel engine vehicle (supercharged) | M39: 0
J40: Airbag 1 | K40: (4) engine | L40: Diesel HEV (naturally aspirated) | M40: 0
J41: Airbag 1 | K41: (4) engine | L41: Diesel HEV (supercharged) | M41: 0
J42: Airbag 1 | K42: (4) engine | L42: EV | M42: 0
J43: Airbag 1 | K43: (4) engine | L43: Fuel cell vehicle | M43: 0
J44: =$E$10 -> Airbag 2 | K44: (1) mass related | L44: Gasoline engine vehicle (naturally aspirated) | M44: 0
J45: =$E$10 -> Airbag 2 | K45: (1) mass related | L45: Gasoline engine vehicle (supercharged) | M45: 0
J46: Airbag 2 | K46: (1) mass related | L46: Gasoline HEV (naturally aspirated) | M46: 0
J47: Airbag 2 | K47: (1) mass related | L47: Gasoline HEV (supercharged) | M47: 0
J48: Airbag 2 | K48: (1) mass related | L48: Diesel engine vehicle (naturally aspirated) | M48: 0
J49: Airbag 2 | K49: (1) mass related | L49: Diesel engine vehicle (supercharged) | M49: 0
J50: Airbag 2 | K50: (1) mass related | L50: Diesel HEV (naturally aspirated) | M50: 0
J51: Airbag 2 | K51: (1) mass related | L51: Diesel HEV (supercharged) | M51: 0
J52: Airbag 2 | K52: (1) mass related | L52: EV | M52: 0
J53: Airbag 2 | K53: (1) mass related | L53: Fuel cell vehicle | M53: 0
J54: Airbag 2 | K54: (2) electric power related | L54: Gasoline engine vehicle (naturally aspirated) | M54: 0
J55: Airbag 2 | K55: (2) electric power related | L55: Gasoline engine vehicle (supercharged) | M55: 0
J56: Airbag 2 | K56: (2) electric power related | L56: Gasoline HEV (naturally aspirated) | M56: 0
J57: Airbag 2 | K57: (2) electric power related | L57: Gasoline HEV (supercharged) | M57: 0
J58: Airbag 2 | K58: (2) electric power related | L58: Diesel engine vehicle (naturally aspirated) | M58: 0
J59: Airbag 2 | K59: (2) electric power related | L59: Diesel engine vehicle (supercharged) | M59: 0
J60: Airbag 2 | K60: (2) electric power related | L60: Diesel HEV (naturally aspirated) | M60: 0
J61: Airbag 2 | K61: (2) electric power related | L61: Diesel HEV (supercharged) | M61: 0
J62: Airbag 2 | K62: (2) electric power related | L62: EV | M62: 0
J63: Airbag 2 | K63: (2) electric power related | L63: Fuel cell vehicle | M63: 0
J64: Airbag 2 | K64: (3) power related | L64: Gasoline engine vehicle (naturally aspirated) | M64: 0
J65: Airbag 2 | K65: (3) power related | L65: Gasoline engine vehicle (supercharged) | M65: 0
J66: Airbag 2 | K66: (3) power related | L66: Gasoline HEV (naturally aspirated) | M66: 0
J67: Airbag 2 | K67: (3) power related | L67: Gasoline HEV (supercharged) | M67: 0
J68: Airbag 2 | K68: (3) power related | L68: Diesel engine vehicle (naturally aspirated) | M68: 0
J69: Airbag 2 | K69: (3) power related | L69: Diesel engine vehicle (supercharged) | M69: 0
J70: Airbag 2 | K70: (3) power related | L70: Diesel HEV (naturally aspirated) | M70: 0
J71: Airbag 2 | K71: (3) power related | L71: Diesel HEV (supercharged) | M71: 0
J72: Airbag 2 | K72: (3) power related | L72: EV | M72: 0
J73: Airbag 2 | K73: (3) power related | L73: Fuel cell vehicle | M73: 0
J74: Airbag 2 | K74: (4) engine | L74: Gasoline engine vehicle (naturally aspirated) | M74: 0
J75: Airbag 2 | K75: (4) engine | L75: Gasoline engine vehicle (supercharged) | M75: 0
J76: Airbag 2 | K76: (4) engine | L76: Gasoline HEV (naturally aspirated) | M76: 0
J77: Airbag 2 | K77: (4) engine | L77: Gasoline HEV (supercharged) | M77: 0
J78: Airbag 2 | K78: (4) engine | L78: Diesel engine vehicle (naturally aspirated) | M78: 0
J79: Airbag 2 | K79: (4) engine | L79: Diesel engine vehicle (supercharged) | M79: 0
J80: Airbag 2 | K80: (4) engine | L80: Diesel HEV (naturally aspirated) | M80: 0
J81: Airbag 2 | K81: (4) engine | L81: Diesel HEV (supercharged) | M81: 0
J82: Airbag 2 | K82: (4) engine | L82: EV | M82: 0
J83: Airbag 2 | K83: (4) engine | L83: Fuel cell vehicle | M83: 0
J84: =$F$10 -> Airbag 3 | K84: (1) mass related | L84: Gasoline engine vehicle (naturally aspirated) | M84: 0
J85: =$F$10 -> Airbag 3 | K85: (1) mass related | L85: Gasoline engine vehicle (supercharged) | M85: 0
J86: Airbag 3 | K86: (1) mass related | L86: Gasoline HEV (naturally aspirated) | M86: 0
J87: Airbag 3 | K87: (1) mass related | L87: Gasoline HEV (supercharged) | M87: 0
J88: Airbag 3 | K88: (1) mass related | L88: Diesel engine vehicle (naturally aspirated) | M88: 0
J89: Airbag 3 | K89: (1) mass related | L89: Diesel engine vehicle (supercharged) | M89: 0
J90: Airbag 3 | K90: (1) mass related | L90: Diesel HEV (naturally aspirated) | M90: 0
J91: Airbag 3 | K91: (1) mass related | L91: Diesel HEV (supercharged) | M91: 0
J92: Airbag 3 | K92: (1) mass related | L92: EV | M92: 0
J93: Airbag 3 | K93: (1) mass related | L93: Fuel cell vehicle | M93: 0
J94: Airbag 3 | K94: (2) electric power related | L94: Gasoline engine vehicle (naturally aspirated) | M94: 0
J95: Airbag 3 | K95: (2) electric power related | L95: Gasoline engine vehicle (supercharged) | M95: 0
J96: Airbag 3 | K96: (2) electric power related | L96: Gasoline HEV (naturally aspirated) | M96: 0
J97: Airbag 3 | K97: (2) electric power related | L97: Gasoline HEV (supercharged) | M97: 0
J98: Airbag 3 | K98: (2) electric power related | L98: Diesel engine vehicle (naturally aspirated) | M98: 0
J99: Airbag 3 | K99: (2) electric power related | L99: Diesel engine vehicle (supercharged) | M99: 0
J100: Airbag 3 | K100: (2) electric power related | L100: Diesel HEV (naturally aspirated) | M100: 0
J101: Airbag 3 | K101: (2) electric power related | L101: Diesel HEV (supercharged) | M101: 0
J102: Airbag 3 | K102: (2) electric power related | L102: EV | M102: 0
J103: Airbag 3 | K103: (2) electric power related | L103: Fuel cell vehicle | M103: 0
J104: Airbag 3 | K104: (3) power related | L104: Gasoline engine vehicle (naturally aspirated) | M104: 0
J105: Airbag 3 | K105: (3) power related | L105: Gasoline engine vehicle (supercharged) | M105: 0
J106: Airbag 3 | K106: (3) power related | L106: Gasoline HEV (naturally aspirated) | M106: 0
J107: Airbag 3 | K107: (3) power related | L107: Gasoline HEV (supercharged) | M107: 0
J108: Airbag 3 | K108: (3) power related | L108: Diesel engine vehicle (naturally aspirated) | M108: 0
J109: Airbag 3 | K109: (3) power related | L109: Diesel engine vehicle (supercharged) | M109: 0
J110: Airbag 3 | K110: (3) power related | L110: Diesel HEV (naturally aspirated) | M110: 0
J111: Airbag 3 | K111: (3) power related | L111: Diesel HEV (supercharged) | M111: 0
J112: Airbag 3 | K112: (3) power related | L112: EV | M112: 0
J113: Airbag 3 | K113: (3) power related | L113: Fuel cell vehicle | M113: 0
J114: Airbag 3 | K114: (4) engine | L114: Gasoline engine vehicle (naturally aspirated) | M114: 0
J115: Airbag 3 | K115: (4) engine | L115: Gasoline engine vehicle (supercharged) | M115: 0
J116: Airbag 3 | K116: (4) engine | L116: Gasoline HEV (naturally aspirated) | M116: 0
J117: Airbag 3 | K117: (4) engine | L117: Gasoline HEV (supercharged) | M117: 0
J118: Airbag 3 | K118: (4) engine | L118: Diesel engine vehicle (naturally aspirated) | M118: 0
J119: Airbag 3 | K119: (4) engine | L119: Diesel engine vehicle (supercharged) | M119: 0
J120: Airbag 3 | K120: (4) engine | L120: Diesel HEV (naturally aspirated) | M120: 0
J121: Airbag 3 | K121: (4) engine | L121: Diesel HEV (supercharged) | M121: 0
J122: Airbag 3 | K122: (4) engine | L122: EV | M122: 0
J123: Airbag 3 | K123: (4) engine | L123: Fuel cell vehicle | M123: 0
J124: JAPIA STD product | K124: (1) mass related | L124: Gasoline engine vehicle (naturally aspirated)
J125: JAPIA STD product | K125: (1) mass related | L125: Gasoline engine vehicle (supercharged)
J126: JAPIA STD product | K126: (1) mass related | L126: Gasoline HEV (naturally aspirated)
J127: JAPIA STD product | K127: (1) mass related | L127: Gasoline HEV (supercharged)
J128: JAPIA STD product | K128: (1) mass related | L128: Diesel engine vehicle (naturally aspirated)
J129: JAPIA STD product | K129: (1) mass related | L129: Diesel engine vehicle (supercharged)
J130: JAPIA STD product | K130: (1) mass related | L130: Diesel HEV (naturally aspirated)
J131: JAPIA STD product | K131: (1) mass related | L131: Diesel HEV (supercharged)
J132: JAPIA STD product | K132: (1) mass related | L132: EV
J133: JAPIA STD product | K133: (1) mass related | L133: Fuel cell vehicle
J134: JAPIA STD product | K134: (2) electric power related | L134: Gasoline engine vehicle (naturally aspirated)
J135: JAPIA STD product | K135: (2) electric power related | L135: Gasoline engine vehicle (supercharged)
J136: JAPIA STD product | K136: (2) electric power related | L136: Gasoline HEV (naturally aspirated)
J137: JAPIA STD product | K137: (2) electric power related | L137: Gasoline HEV (supercharged)
J138: JAPIA STD product | K138: (2) electric power related | L138: Diesel engine vehicle (naturally aspirated)
J139: JAPIA STD product | K139: (2) electric power related | L139: Diesel engine vehicle (supercharged)
J140: JAPIA STD product | K140: (2) electric power related | L140: Diesel HEV (naturally aspirated)
J141: JAPIA STD product | K141: (2) electric power related | L141: Diesel HEV (supercharged)
J142: JAPIA STD product | K142: (2) electric power related | L142: EV
J143: JAPIA STD product | K143: (2) electric power related | L143: Fuel cell vehicle
J144: JAPIA STD product | K144: (3) power related | L144: Gasoline engine vehicle (naturally aspirated)
J145: JAPIA STD product | K145: (3) power related | L145: Gasoline engine vehicle (supercharged)
J146: JAPIA STD product | K146: (3) power related | L146: Gasoline HEV (naturally aspirated)
J147: JAPIA STD product | K147: (3) power related | L147: Gasoline HEV (supercharged)
J148: JAPIA STD product | K148: (3) power related | L148: Diesel engine vehicle (naturally aspirated)
J149: JAPIA STD product | K149: (3) power related | L149: Diesel engine vehicle (supercharged)
J150: JAPIA STD product | K150: (3) power related | L150: Diesel HEV (naturally aspirated)
J151: JAPIA STD product | K151: (3) power related | L151: Diesel HEV (supercharged)
J152: JAPIA STD product | K152: (3) power related | L152: EV
J153: JAPIA STD product | K153: (3) power related | L153: Fuel cell vehicle
J154: JAPIA STD product | K154: (4) engine | L154: Gasoline engine vehicle (naturally aspirated)
J155: JAPIA STD product | K155: (4) engine | L155: Gasoline engine vehicle (supercharged)
J156: JAPIA STD product | K156: (4) engine | L156: Gasoline HEV (naturally aspirated)
J157: JAPIA STD product | K157: (4) engine | L157: Gasoline HEV (supercharged)
J158: JAPIA STD product | K158: (4) engine | L158: Diesel engine vehicle (naturally aspirated)
J159: JAPIA STD product | K159: (4) engine | L159: Diesel engine vehicle (supercharged)
J160: JAPIA STD product | K160: (4) engine | L160: Diesel HEV (naturally aspirated)
J161: JAPIA STD product | K161: (4) engine | L161: Diesel HEV (supercharged)
J162: JAPIA STD product | K162: (4) engine | L162: EV
J163: JAPIA STD product | K163: (4) engine | L163: Fuel cell vehicle

Sheet GRAPH REPORT_E_G (hidden)
A3: ◆Basic information on LCI products | J3: 製品名 | K3: 配分内訳 | L3: エンジン種類 | M3: ｴﾈﾙｷﾞｰ消費量 | P3: 合計 / ｴﾈﾙｷﾞｰ消費量 | Q3: 列ラベル
B4: JAPIA product groups | C4: =IF(#REF!="","",#REF!) ->  | D4: Spark plug | E4: Spark plug | F4: Spark plug | J4: =$D$10 -> Spark plug 1 | K4: (1) mass related | L4: Gasoline engine vehicle (naturally aspirated) | M4: 0.5431661399 | P4: 行ラベル | Q4: (1) mass related | R4: (2) electric power related | S4: (3) power related | T4: (4) engine | U4: 総計
B5: System boundary (Scope of products to be evaluated) | C5: =IF(#REF!="","",#REF!) ->  | J5: =$D$10 -> Spark plug 1 | K5: (1) mass related | L5: Gasoline engine vehicle (supercharged) | M5: 0.5431661399 | P5: Spark plug 1 | Q5: 1.586045128 | R5: 5.457901384 | S5: 0 | T5: 1.202833516 | U5: 8.246780028
B6: Functional unit (Unit per characteristic value representing product performance) | C6: =IF(#REF!="","",#REF!) ->  | J6: Spark plug 1 | K6: (1) mass related | L6: Gasoline HEV (naturally aspirated) | M6: 0.2498564243 | P6: Gasoline engine vehicle (naturally aspirated) | Q6: 0.5431661399 | R6: 1.364475346 | S6: 0 | T6: 0.6232193732 | U6: 2.530860859
B7: No. of evaluated items | C7: =IF(#REF!="","",#REF!) ->  | J7: Spark plug 1 | K7: (1) mass related | L7: Gasoline HEV (supercharged) | M7: 0.2498564243 | P7: Gasoline engine vehicle (supercharged) | Q7: 0.5431661399 | R7: 1.364475346 | S7: 0 | T7: 0.5796141426 | U7: 2.487255628
B8: Operating voltage (V) | C8: =IF(#REF!="","",#REF!) ->  | D8: 12 | E8: 12 | F8: 12 | J8: Spark plug 1 | K8: (1) mass related | L8: Diesel engine vehicle (naturally aspirated) | M8: - | P8: Gasoline HEV (naturally aspirated) | Q8: 0.2498564243 | R8: 1.364475346 | S8: 0 | T8: 0 | U8: 1.61433177
B9: Product/part number | C9: =IF(#REF!="","",#REF!) ->  | J9: Spark plug 1 | K9: (1) mass related | L9: Diesel engine vehicle (supercharged) | M9: - | P9: Gasoline HEV (supercharged) | Q9: 0.2498564243 | R9: 1.364475346 | S9: 0 | T9: 0 | U9: 1.61433177
B10: Product/part name | C10: =IF(#REF!="","",#REF!) ->  | D10: Spark plug 1 | E10: Spark plug 2 | F10: Spark plug 3 | J10: Spark plug 1 | K10: (1) mass related | L10: Diesel HEV (naturally aspirated) | M10: - | P10: Diesel engine vehicle (naturally aspirated) | Q10: 0 | R10: 0 | S10: 0 | T10: 0 | U10: 0
J11: Spark plug 1 | K11: (1) mass related | L11: Diesel HEV (supercharged) | M11: - | P11: Diesel engine vehicle (supercharged) | Q11: 0 | R11: 0 | S11: 0 | T11: 0 | U11: 0
A12: ◆Use-phase load | J12: Spark plug 1 | K12: (1) mass related | L12: EV | M12: - | P12: Diesel HEV (naturally aspirated) | Q12: 0 | R12: 0 | S12: 0 | T12: 0 | U12: 0
A13: Input data for calculation | B13: Mass (kg) | C13: =#REF! ->  | D13: 2 | J13: Spark plug 1 | K13: (1) mass related | L13: Fuel cell vehicle | M13: - | P13: Diesel HEV (supercharged) | Q13: 0 | R13: 0 | S13: 0 | T13: 0 | U13: 0
B14: Inertia moment (kg･m2) Tire OD (m) | D14: 0 | J14: Spark plug 1 | K14: (2) electric power related | L14: Gasoline engine vehicle (naturally aspirated) | M14: 1.364475346 | P14: Spark plug 2 | Q14: 0 | R14: 0 | S14: 0 | T14: 0 | U14: 0
B15: Current (A) | C15: =#REF! ->  | D15: 1 | J15: Spark plug 1 | K15: (2) electric power related | L15: Gasoline engine vehicle (supercharged) | M15: 1.364475346 | P15: Gasoline engine vehicle (naturally aspirated) | Q15: 0 | R15: 0 | S15: 0 | T15: 0 | U15: 0
B16: Electric power/power （W） Average engine rpm(s-1) | C16: =#REF! ->  | D16: 0 | J16: Spark plug 1 | K16: (2) electric power related | L16: Gasoline HEV (naturally aspirated) | M16: 1.364475346 | P16: Gasoline engine vehicle (supercharged) | Q16: 0 | R16: 0 | S16: 0 | T16: 0 | U16: 0
B17: Life-time operating time (s) | C17: =#REF! ->  | D17: 1245011.787 | E17: 1245011.787 | F17: 1245011.787 | J17: Spark plug 1 | K17: (2) electric power related | L17: Gasoline HEV (supercharged) | M17: 1.364475346 | P17: Gasoline HEV (naturally aspirated) | Q17: 0 | R17: 0 | S17: 0 | T17: 0 | U17: 0
A18: Calculation results Energy consumption | B18: Gasoline engine vehicle (naturally aspirated) (L) | C18: =#REF! ->  | D18: 2.530860859 | E18: 0 | F18: 0 | J18: Spark plug 1 | K18: (2) electric power related | L18: Diesel engine vehicle (naturally aspirated) | M18: - | P18: Gasoline HEV (supercharged) | Q18: 0 | R18: 0 | S18: 0 | T18: 0 | U18: 0
B19: Gasoline engine vehicle (supercharged) (L) | C19: =#REF! ->  | D19: 2.487255628 | E19: 0 | F19: 0 | J19: Spark plug 1 | K19: (2) electric power related | L19: Diesel engine vehicle (supercharged) | M19: - | P19: Diesel engine vehicle (naturally aspirated) | Q19: 0 | R19: 0 | S19: 0 | T19: 0 | U19: 0
B20: Gasoline HEV (naturally aspirated) (L) | C20: =#REF! ->  | D20: 1.61433177 | E20: 0 | F20: 0 | J20: Spark plug 1 | K20: (2) electric power related | L20: Diesel HEV (naturally aspirated) | M20: - | P20: Diesel engine vehicle (supercharged) | Q20: 0 | R20: 0 | S20: 0 | T20: 0 | U20: 0
B21: Gasoline HEV (supercharged) (L) | C21: =#REF! ->  | D21: 1.61433177 | E21: 0 | F21: 0 | J21: Spark plug 1 | K21: (2) electric power related | L21: Diesel HEV (supercharged) | M21: - | P21: Diesel HEV (naturally aspirated) | Q21: 0 | R21: 0 | S21: 0 | T21: 0 | U21: 0
B22: Diesel engine vehicle (naturally aspirated) (L) | C22: =#REF! ->  | D22: - | E22: - | F22: - | J22: Spark plug 1 | K22: (2) electric power related | L22: EV | M22: - | P22: Diesel HEV (supercharged) | Q22: 0 | R22: 0 | S22: 0 | T22: 0 | U22: 0
B23: Diesel engine vehicle (supercharged) (L) | C23: =#REF! ->  | D23: - | E23: - | F23: - | J23: Spark plug 1 | K23: (2) electric power related | L23: Fuel cell vehicle | M23: - | P23: Spark plug 3 | Q23: 0 | R23: 0 | S23: 0 | T23: 0 | U23: 0
B24: Diesel HEV (naturally aspirated) (L) | C24: =#REF! ->  | D24: - | E24: - | F24: - | J24: Spark plug 1 | K24: (3) power related | L24: Gasoline engine vehicle (naturally aspirated) | M24: 0 | P24: Gasoline engine vehicle (naturally aspirated) | Q24: 0 | R24: 0 | S24: 0 | T24: 0 | U24: 0
B25: Diesel HEV (supercharged) (L) | C25: =#REF! ->  | D25: - | E25: - | F25: - | J25: Spark plug 1 | K25: (3) power related | L25: Gasoline engine vehicle (supercharged) | M25: 0 | P25: Gasoline engine vehicle (supercharged) | Q25: 0 | R25: 0 | S25: 0 | T25: 0 | U25: 0
B26: EV (kWh) | D26: - | E26: - | F26: - | J26: Spark plug 1 | K26: (3) power related | L26: Gasoline HEV (naturally aspirated) | M26: 0 | P26: Gasoline HEV (naturally aspirated) | Q26: 0 | R26: 0 | S26: 0 | T26: 0 | U26: 0
B27: Fuel cell vehicle (Nm3) | D27: - | E27: - | F27: - | J27: Spark plug 1 | K27: (3) power related | L27: Gasoline HEV (supercharged) | M27: 0 | P27: Gasoline HEV (supercharged) | Q27: 0 | R27: 0 | S27: 0 | T27: 0 | U27: 0
J28: Spark plug 1 | K28: (3) power related | L28: Diesel engine vehicle (naturally aspirated) | M28: - | P28: Diesel engine vehicle (naturally aspirated) | Q28: 0 | R28: 0 | S28: 0 | T28: 0 | U28: 0
J29: Spark plug 1 | K29: (3) power related | L29: Diesel engine vehicle (supercharged) | M29: - | P29: Diesel engine vehicle (supercharged) | Q29: 0 | R29: 0 | S29: 0 | T29: 0 | U29: 0
J30: Spark plug 1 | K30: (3) power related | L30: Diesel HEV (naturally aspirated) | M30: - | P30: Diesel HEV (naturally aspirated) | Q30: 0 | R30: 0 | S30: 0 | T30: 0 | U30: 0
J31: Spark plug 1 | K31: (3) power related | L31: Diesel HEV (supercharged) | M31: - | P31: Diesel HEV (supercharged) | Q31: 0 | R31: 0 | S31: 0 | T31: 0 | U31: 0
J32: Spark plug 1 | K32: (3) power related | L32: EV | M32: - | P32: 総計 | Q32: 1.586045128 | R32: 5.457901384 | S32: 0 | T32: 1.202833516 | U32: 8.246780028
J33: Spark plug 1 | K33: (3) power related | L33: Fuel cell vehicle | M33: -
J34: Spark plug 1 | K34: (4) engine | L34: Gasoline engine vehicle (naturally aspirated) | M34: 0.6232193732
J35: Spark plug 1 | K35: (4) engine | L35: Gasoline engine vehicle (supercharged) | M35: 0.5796141426
J36: Spark plug 1 | K36: (4) engine | L36: Gasoline HEV (naturally aspirated) | M36: 0
J37: Spark plug 1 | K37: (4) engine | L37: Gasoline HEV (supercharged) | M37: 0
J38: Spark plug 1 | K38: (4) engine | L38: Diesel engine vehicle (naturally aspirated) | M38: -
J39: Spark plug 1 | K39: (4) engine | L39: Diesel engine vehicle (supercharged) | M39: -
J40: Spark plug 1 | K40: (4) engine | L40: Diesel HEV (naturally aspirated) | M40: -
J41: Spark plug 1 | K41: (4) engine | L41: Diesel HEV (supercharged) | M41: -
J42: Spark plug 1 | K42: (4) engine | L42: EV | M42: -
J43: Spark plug 1 | K43: (4) engine | L43: Fuel cell vehicle | M43: -
J44: =$E$10 -> Spark plug 2 | K44: (1) mass related | L44: Gasoline engine vehicle (naturally aspirated) | M44: 0
J45: =$E$10 -> Spark plug 2 | K45: (1) mass related | L45: Gasoline engine vehicle (supercharged) | M45: 0
J46: Spark plug 2 | K46: (1) mass related | L46: Gasoline HEV (naturally aspirated) | M46: 0
J47: Spark plug 2 | K47: (1) mass related | L47: Gasoline HEV (supercharged) | M47: 0
J48: Spark plug 2 | K48: (1) mass related | L48: Diesel engine vehicle (naturally aspirated) | M48: -
J49: Spark plug 2 | K49: (1) mass related | L49: Diesel engine vehicle (supercharged) | M49: -
J50: Spark plug 2 | K50: (1) mass related | L50: Diesel HEV (naturally aspirated) | M50: -
J51: Spark plug 2 | K51: (1) mass related | L51: Diesel HEV (supercharged) | M51: -
J52: Spark plug 2 | K52: (1) mass related | L52: EV | M52: -
J53: Spark plug 2 | K53: (1) mass related | L53: Fuel cell vehicle | M53: -
J54: Spark plug 2 | K54: (2) electric power related | L54: Gasoline engine vehicle (naturally aspirated) | M54: 0
J55: Spark plug 2 | K55: (2) electric power related | L55: Gasoline engine vehicle (supercharged) | M55: 0
J56: Spark plug 2 | K56: (2) electric power related | L56: Gasoline HEV (naturally aspirated) | M56: 0
J57: Spark plug 2 | K57: (2) electric power related | L57: Gasoline HEV (supercharged) | M57: 0
J58: Spark plug 2 | K58: (2) electric power related | L58: Diesel engine vehicle (naturally aspirated) | M58: -
J59: Spark plug 2 | K59: (2) electric power related | L59: Diesel engine vehicle (supercharged) | M59: -
J60: Spark plug 2 | K60: (2) electric power related | L60: Diesel HEV (naturally aspirated) | M60: -
J61: Spark plug 2 | K61: (2) electric power related | L61: Diesel HEV (supercharged) | M61: -
J62: Spark plug 2 | K62: (2) electric power related | L62: EV | M62: -
J63: Spark plug 2 | K63: (2) electric power related | L63: Fuel cell vehicle | M63: -
J64: Spark plug 2 | K64: (3) power related | L64: Gasoline engine vehicle (naturally aspirated) | M64: 0
J65: Spark plug 2 | K65: (3) power related | L65: Gasoline engine vehicle (supercharged) | M65: 0
J66: Spark plug 2 | K66: (3) power related | L66: Gasoline HEV (naturally aspirated) | M66: 0
J67: Spark plug 2 | K67: (3) power related | L67: Gasoline HEV (supercharged) | M67: 0
J68: Spark plug 2 | K68: (3) power related | L68: Diesel engine vehicle (naturally aspirated) | M68: -
J69: Spark plug 2 | K69: (3) power related | L69: Diesel engine vehicle (supercharged) | M69: -
J70: Spark plug 2 | K70: (3) power related | L70: Diesel HEV (naturally aspirated) | M70: -
J71: Spark plug 2 | K71: (3) power related | L71: Diesel HEV (supercharged) | M71: -
J72: Spark plug 2 | K72: (3) power related | L72: EV | M72: -
J73: Spark plug 2 | K73: (3) power related | L73: Fuel cell vehicle | M73: -
J74: Spark plug 2 | K74: (4) engine | L74: Gasoline engine vehicle (naturally aspirated) | M74: 0
J75: Spark plug 2 | K75: (4) engine | L75: Gasoline engine vehicle (supercharged) | M75: 0
J76: Spark plug 2 | K76: (4) engine | L76: Gasoline HEV (naturally aspirated) | M76: 0
J77: Spark plug 2 | K77: (4) engine | L77: Gasoline HEV (supercharged) | M77: 0
J78: Spark plug 2 | K78: (4) engine | L78: Diesel engine vehicle (naturally aspirated) | M78: -
J79: Spark plug 2 | K79: (4) engine | L79: Diesel engine vehicle (supercharged) | M79: -
J80: Spark plug 2 | K80: (4) engine | L80: Diesel HEV (naturally aspirated) | M80: -
J81: Spark plug 2 | K81: (4) engine | L81: Diesel HEV (supercharged) | M81: -
J82: Spark plug 2 | K82: (4) engine | L82: EV | M82: -
J83: Spark plug 2 | K83: (4) engine | L83: Fuel cell vehicle | M83: -
J84: =$F$10 -> Spark plug 3 | K84: (1) mass related | L84: Gasoline engine vehicle (naturally aspirated) | M84: 0
J85: =$F$10 -> Spark plug 3 | K85: (1) mass related | L85: Gasoline engine vehicle (supercharged) | M85: 0
J86: Spark plug 3 | K86: (1) mass related | L86: Gasoline HEV (naturally aspirated) | M86: 0
J87: Spark plug 3 | K87: (1) mass related | L87: Gasoline HEV (supercharged) | M87: 0
J88: Spark plug 3 | K88: (1) mass related | L88: Diesel engine vehicle (naturally aspirated) | M88: -
J89: Spark plug 3 | K89: (1) mass related | L89: Diesel engine vehicle (supercharged) | M89: -
J90: Spark plug 3 | K90: (1) mass related | L90: Diesel HEV (naturally aspirated) | M90: -
J91: Spark plug 3 | K91: (1) mass related | L91: Diesel HEV (supercharged) | M91: -
J92: Spark plug 3 | K92: (1) mass related | L92: EV | M92: -
J93: Spark plug 3 | K93: (1) mass related | L93: Fuel cell vehicle | M93: -
J94: Spark plug 3 | K94: (2) electric power related | L94: Gasoline engine vehicle (naturally aspirated) | M94: 0
J95: Spark plug 3 | K95: (2) electric power related | L95: Gasoline engine vehicle (supercharged) | M95: 0
J96: Spark plug 3 | K96: (2) electric power related | L96: Gasoline HEV (naturally aspirated) | M96: 0
J97: Spark plug 3 | K97: (2) electric power related | L97: Gasoline HEV (supercharged) | M97: 0
J98: Spark plug 3 | K98: (2) electric power related | L98: Diesel engine vehicle (naturally aspirated) | M98: -
J99: Spark plug 3 | K99: (2) electric power related | L99: Diesel engine vehicle (supercharged) | M99: -
J100: Spark plug 3 | K100: (2) electric power related | L100: Diesel HEV (naturally aspirated) | M100: -
J101: Spark plug 3 | K101: (2) electric power related | L101: Diesel HEV (supercharged) | M101: -
J102: Spark plug 3 | K102: (2) electric power related | L102: EV | M102: -
J103: Spark plug 3 | K103: (2) electric power related | L103: Fuel cell vehicle | M103: -
J104: Spark plug 3 | K104: (3) power related | L104: Gasoline engine vehicle (naturally aspirated) | M104: 0
J105: Spark plug 3 | K105: (3) power related | L105: Gasoline engine vehicle (supercharged) | M105: 0
J106: Spark plug 3 | K106: (3) power related | L106: Gasoline HEV (naturally aspirated) | M106: 0
J107: Spark plug 3 | K107: (3) power related | L107: Gasoline HEV (supercharged) | M107: 0
J108: Spark plug 3 | K108: (3) power related | L108: Diesel engine vehicle (naturally aspirated) | M108: -
J109: Spark plug 3 | K109: (3) power related | L109: Diesel engine vehicle (supercharged) | M109: -
J110: Spark plug 3 | K110: (3) power related | L110: Diesel HEV (naturally aspirated) | M110: -
J111: Spark plug 3 | K111: (3) power related | L111: Diesel HEV (supercharged) | M111: -
J112: Spark plug 3 | K112: (3) power related | L112: EV | M112: -
J113: Spark plug 3 | K113: (3) power related | L113: Fuel cell vehicle | M113: -
J114: Spark plug 3 | K114: (4) engine | L114: Gasoline engine vehicle (naturally aspirated) | M114: 0
J115: Spark plug 3 | K115: (4) engine | L115: Gasoline engine vehicle (supercharged) | M115: 0
J116: Spark plug 3 | K116: (4) engine | L116: Gasoline HEV (naturally aspirated) | M116: 0
J117: Spark plug 3 | K117: (4) engine | L117: Gasoline HEV (supercharged) | M117: 0
J118: Spark plug 3 | K118: (4) engine | L118: Diesel engine vehicle (naturally aspirated) | M118: -
J119: Spark plug 3 | K119: (4) engine | L119: Diesel engine vehicle (supercharged) | M119: -
J120: Spark plug 3 | K120: (4) engine | L120: Diesel HEV (naturally aspirated) | M120: -
J121: Spark plug 3 | K121: (4) engine | L121: Diesel HEV (supercharged) | M121: -
J122: Spark plug 3 | K122: (4) engine | L122: EV | M122: -
J123: Spark plug 3 | K123: (4) engine | L123: Fuel cell vehicle | M123: -
J124: JAPIA STD product | K124: (1) mass related | L124: Gasoline engine vehicle (naturally aspirated)
J125: JAPIA STD product | K125: (1) mass related | L125: Gasoline engine vehicle (supercharged)
J126: JAPIA STD product | K126: (1) mass related | L126: Gasoline HEV (naturally aspirated)
J127: JAPIA STD product | K127: (1) mass related | L127: Gasoline HEV (supercharged)
J128: JAPIA STD product | K128: (1) mass related | L128: Diesel engine vehicle (naturally aspirated)
J129: JAPIA STD product | K129: (1) mass related | L129: Diesel engine vehicle (supercharged)
J130: JAPIA STD product | K130: (1) mass related | L130: Diesel HEV (naturally aspirated)
J131: JAPIA STD product | K131: (1) mass related | L131: Diesel HEV (supercharged)
J132: JAPIA STD product | K132: (1) mass related | L132: EV
J133: JAPIA STD product | K133: (1) mass related | L133: Fuel cell vehicle
J134: JAPIA STD product | K134: (2) electric power related | L134: Gasoline engine vehicle (naturally aspirated)
J135: JAPIA STD product | K135: (2) electric power related | L135: Gasoline engine vehicle (supercharged)
J136: JAPIA STD product | K136: (2) electric power related | L136: Gasoline HEV (naturally aspirated)
J137: JAPIA STD product | K137: (2) electric power related | L137: Gasoline HEV (supercharged)
J138: JAPIA STD product | K138: (2) electric power related | L138: Diesel engine vehicle (naturally aspirated)
J139: JAPIA STD product | K139: (2) electric power related | L139: Diesel engine vehicle (supercharged)
J140: JAPIA STD product | K140: (2) electric power related | L140: Diesel HEV (naturally aspirated)
J141: JAPIA STD product | K141: (2) electric power related | L141: Diesel HEV (supercharged)
J142: JAPIA STD product | K142: (2) electric power related | L142: EV
J143: JAPIA STD product | K143: (2) electric power related | L143: Fuel cell vehicle
J144: JAPIA STD product | K144: (3) power related | L144: Gasoline engine vehicle (naturally aspirated)
J145: JAPIA STD product | K145: (3) power related | L145: Gasoline engine vehicle (supercharged)
J146: JAPIA STD product | K146: (3) power related | L146: Gasoline HEV (naturally aspirated)
J147: JAPIA STD product | K147: (3) power related | L147: Gasoline HEV (supercharged)
J148: JAPIA STD product | K148: (3) power related | L148: Diesel engine vehicle (naturally aspirated)
J149: JAPIA STD product | K149: (3) power related | L149: Diesel engine vehicle (supercharged)
J150: JAPIA STD product | K150: (3) power related | L150: Diesel HEV (naturally aspirated)
J151: JAPIA STD product | K151: (3) power related | L151: Diesel HEV (supercharged)
J152: JAPIA STD product | K152: (3) power related | L152: EV
J153: JAPIA STD product | K153: (3) power related | L153: Fuel cell vehicle
J154: JAPIA STD product | K154: (4) engine | L154: Gasoline engine vehicle (naturally aspirated)
J155: JAPIA STD product | K155: (4) engine | L155: Gasoline engine vehicle (supercharged)
J156: JAPIA STD product | K156: (4) engine | L156: Gasoline HEV (naturally aspirated)
J157: JAPIA STD product | K157: (4) engine | L157: Gasoline HEV (supercharged)
J158: JAPIA STD product | K158: (4) engine | L158: Diesel engine vehicle (naturally aspirated)
J159: JAPIA STD product | K159: (4) engine | L159: Diesel engine vehicle (supercharged)
J160: JAPIA STD product | K160: (4) engine | L160: Diesel HEV (naturally aspirated)
J161: JAPIA STD product | K161: (4) engine | L161: Diesel HEV (supercharged)
J162: JAPIA STD product | K162: (4) engine | L162: EV
J163: JAPIA STD product | K163: (4) engine | L163: Fuel cell vehicle

Sheet GRAPH REPORT_E_G_CO2 (hidden)
A3: ◆Basic information on LCI products | J3: 製品名 | K3: 配分内訳 | L3: エンジン種類 | M3: CO2排出量 | P3: 合計 / CO2排出量 | Q3: 列ラベル
B4: JAPIA product groups | C4: =IF(#REF!="","",#REF!) ->  | D4: Spark plug | E4: Spark plug | F4: Spark plug | J4: =$D$10 -> Spark plug 1 | K4: (1) mass related | L4: Gasoline engine vehicle (naturally aspirated) | M4: 1412.77513 | P4: 行ラベル | Q4: (1) mass related | R4: (2) electric power related | S4: (3) power related | T4: (4) engine | U4: 総計
B5: System boundary (Scope of products to be evaluated) | C5: =IF(#REF!="","",#REF!) ->  | J5: =$D$10 -> Spark plug 1 | K5: (1) mass related | L5: Gasoline engine vehicle (supercharged) | M5: 1412.77513 | P5: Spark plug 1 | Q5: 4125.303379 | R5: 14196.0015 | S5: 0 | T5: 3128.569975 | U5: 21449.87485
B6: Functional unit (Unit per characteristic value representing product performance) | C6: =IF(#REF!="","",#REF!) ->  | J6: Spark plug 1 | K6: (1) mass related | L6: Gasoline HEV (naturally aspirated) | M6: 649.8765597 | P6: Gasoline engine vehicle (naturally aspirated) | Q6: 1412.77513 | R6: 3549.000375 | S6: 0 | T6: 1620.99359 | U6: 6582.769095
B7: No. of evaluated items | C7: =IF(#REF!="","",#REF!) ->  | J7: Spark plug 1 | K7: (1) mass related | L7: Gasoline HEV (supercharged) | M7: 649.8765597 | P7: Gasoline engine vehicle (supercharged) | Q7: 1412.77513 | R7: 3549.000375 | S7: 0 | T7: 1507.576385 | U7: 6469.35189
B8: Operating voltage (V) | C8: =IF(#REF!="","",#REF!) ->  | D8: 12 | E8: 12 | F8: 12 | J8: Spark plug 1 | K8: (1) mass related | L8: Diesel engine vehicle (naturally aspirated) | M8: - | P8: Gasoline HEV (naturally aspirated) | Q8: 649.8765597 | R8: 3549.000375 | S8: 0 | T8: 0 | U8: 4198.876935
B9: Product/part number | C9: =IF(#REF!="","",#REF!) ->  | J9: Spark plug 1 | K9: (1) mass related | L9: Diesel engine vehicle (supercharged) | M9: - | P9: Gasoline HEV (supercharged) | Q9: 649.8765597 | R9: 3549.000375 | S9: 0 | T9: 0 | U9: 4198.876935
B10: Product/part name | C10: =IF(#REF!="","",#REF!) ->  | D10: Spark plug 1 | E10: Spark plug 2 | F10: Spark plug 3 | J10: Spark plug 1 | K10: (1) mass related | L10: Diesel HEV (naturally aspirated) | M10: - | P10: Diesel engine vehicle (naturally aspirated) | Q10: 0 | R10: 0 | S10: 0 | T10: 0 | U10: 0
J11: Spark plug 1 | K11: (1) mass related | L11: Diesel HEV (supercharged) | M11: - | P11: Diesel engine vehicle (supercharged) | Q11: 0 | R11: 0 | S11: 0 | T11: 0 | U11: 0
A12: ◆Use-phase load | J12: Spark plug 1 | K12: (1) mass related | L12: EV | M12: - | P12: Diesel HEV (naturally aspirated) | Q12: 0 | R12: 0 | S12: 0 | T12: 0 | U12: 0
A13: Input data for calculation | B13: Mass (kg) | C13: =#REF! ->  | D13: 2 | J13: Spark plug 1 | K13: (1) mass related | L13: Fuel cell vehicle | M13: - | P13: Diesel HEV (supercharged) | Q13: 0 | R13: 0 | S13: 0 | T13: 0 | U13: 0
B14: Inertia moment (kg･m2) Tire OD (m) | D14: 0 | J14: Spark plug 1 | K14: (2) electric power related | L14: Gasoline engine vehicle (naturally aspirated) | M14: 3549.000375 | P14: Spark plug 2 | Q14: 0 | R14: 0 | S14: 0 | T14: 0 | U14: 0
B15: Current (A) | C15: =#REF! ->  | D15: 1 | J15: Spark plug 1 | K15: (2) electric power related | L15: Gasoline engine vehicle (supercharged) | M15: 3549.000375 | P15: Gasoline engine vehicle (naturally aspirated) | Q15: 0 | R15: 0 | S15: 0 | T15: 0 | U15: 0
B16: Electric power/power （W） Average engine rpm(s-1) | C16: =#REF! ->  | D16: 0 | J16: Spark plug 1 | K16: (2) electric power related | L16: Gasoline HEV (naturally aspirated) | M16: 3549.000375 | P16: Gasoline engine vehicle (supercharged) | Q16: 0 | R16: 0 | S16: 0 | T16: 0 | U16: 0
B17: Life-time operating time (s) | C17: =#REF! ->  | D17: 1245011.787 | E17: 1245011.787 | F17: 1245011.787 | J17: Spark plug 1 | K17: (2) electric power related | L17: Gasoline HEV (supercharged) | M17: 3549.000375 | P17: Gasoline HEV (naturally aspirated) | Q17: 0 | R17: 0 | S17: 0 | T17: 0 | U17: 0
A18: Calculation results CO2 emission (g-CO2) | B18: Gasoline engine vehicle (naturally aspirated) | C18: =#REF! ->  | D18: 6582.769095 | E18: 0 | F18: 0 | J18: Spark plug 1 | K18: (2) electric power related | L18: Diesel engine vehicle (naturally aspirated) | M18: - | P18: Gasoline HEV (supercharged) | Q18: 0 | R18: 0 | S18: 0 | T18: 0 | U18: 0
B19: Gasoline engine vehicle (supercharged) | C19: =#REF! ->  | D19: 6469.35189 | E19: 0 | F19: 0 | J19: Spark plug 1 | K19: (2) electric power related | L19: Diesel engine vehicle (supercharged) | M19: - | P19: Diesel engine vehicle (naturally aspirated) | Q19: 0 | R19: 0 | S19: 0 | T19: 0 | U19: 0
B20: Gasoline HEV (naturally aspirated) | C20: =#REF! ->  | D20: 4198.876935 | E20: 0 | F20: 0 | J20: Spark plug 1 | K20: (2) electric power related | L20: Diesel HEV (naturally aspirated) | M20: - | P20: Diesel engine vehicle (supercharged) | Q20: 0 | R20: 0 | S20: 0 | T20: 0 | U20: 0
B21: Gasoline HEV (supercharged) | C21: =#REF! ->  | D21: 4198.876935 | E21: 0 | F21: 0 | J21: Spark plug 1 | K21: (2) electric power related | L21: Diesel HEV (supercharged) | M21: - | P21: Diesel HEV (naturally aspirated) | Q21: 0 | R21: 0 | S21: 0 | T21: 0 | U21: 0
B22: Diesel engine vehicle (naturally aspirated) | C22: =#REF! ->  | D22: - | E22: - | F22: - | J22: Spark plug 1 | K22: (2) electric power related | L22: EV | M22: - | P22: Diesel HEV (supercharged) | Q22: 0 | R22: 0 | S22: 0 | T22: 0 | U22: 0
B23: Diesel engine vehicle (supercharged) | C23: =#REF! ->  | D23: - | E23: - | F23: - | J23: Spark plug 1 | K23: (2) electric power related | L23: Fuel cell vehicle | M23: - | P23: Spark plug 3 | Q23: 0 | R23: 0 | S23: 0 | T23: 0 | U23: 0
B24: Diesel HEV (naturally aspirated) (L) | C24: =#REF! ->  | D24: - | E24: - | F24: - | J24: Spark plug 1 | K24: (3) power related | L24: Gasoline engine vehicle (naturally aspirated) | M24: 0 | P24: Gasoline engine vehicle (naturally aspirated) | Q24: 0 | R24: 0 | S24: 0 | T24: 0 | U24: 0
B25: Diesel HEV (supercharged) (L) | C25: =#REF! ->  | D25: - | E25: - | F25: - | J25: Spark plug 1 | K25: (3) power related | L25: Gasoline engine vehicle (supercharged) | M25: 0 | P25: Gasoline engine vehicle (supercharged) | Q25: 0 | R25: 0 | S25: 0 | T25: 0 | U25: 0
B26: EV (kWh) | D26: - | E26: - | F26: - | J26: Spark plug 1 | K26: (3) power related | L26: Gasoline HEV (naturally aspirated) | M26: 0 | P26: Gasoline HEV (naturally aspirated) | Q26: 0 | R26: 0 | S26: 0 | T26: 0 | U26: 0
B27: Fuel cell vehicle (Nm3) | D27: - | E27: - | F27: - | J27: Spark plug 1 | K27: (3) power related | L27: Gasoline HEV (supercharged) | M27: 0 | P27: Gasoline HEV (supercharged) | Q27: 0 | R27: 0 | S27: 0 | T27: 0 | U27: 0
J28: Spark plug 1 | K28: (3) power related | L28: Diesel engine vehicle (naturally aspirated) | M28: - | P28: Diesel engine vehicle (naturally aspirated) | Q28: 0 | R28: 0 | S28: 0 | T28: 0 | U28: 0
J29: Spark plug 1 | K29: (3) power related | L29: Diesel engine vehicle (supercharged) | M29: - | P29: Diesel engine vehicle (supercharged) | Q29: 0 | R29: 0 | S29: 0 | T29: 0 | U29: 0
J30: Spark plug 1 | K30: (3) power related | L30: Diesel HEV (naturally aspirated) | M30: - | P30: Diesel HEV (naturally aspirated) | Q30: 0 | R30: 0 | S30: 0 | T30: 0 | U30: 0
J31: Spark plug 1 | K31: (3) power related | L31: Diesel HEV (supercharged) | M31: - | P31: Diesel HEV (supercharged) | Q31: 0 | R31: 0 | S31: 0 | T31: 0 | U31: 0
J32: Spark plug 1 | K32: (3) power related | L32: EV | M32: - | P32: 総計 | Q32: 4125.303379 | R32: 14196.0015 | S32: 0 | T32: 3128.569975 | U32: 21449.87485
J33: Spark plug 1 | K33: (3) power related | L33: Fuel cell vehicle | M33: -
J34: Spark plug 1 | K34: (4) engine | L34: Gasoline engine vehicle (naturally aspirated) | M34: 1620.99359
J35: Spark plug 1 | K35: (4) engine | L35: Gasoline engine vehicle (supercharged) | M35: 1507.576385
J36: Spark plug 1 | K36: (4) engine | L36: Gasoline HEV (naturally aspirated) | M36: 0
J37: Spark plug 1 | K37: (4) engine | L37: Gasoline HEV (supercharged) | M37: 0
J38: Spark plug 1 | K38: (4) engine | L38: Diesel engine vehicle (naturally aspirated) | M38: -
J39: Spark plug 1 | K39: (4) engine | L39: Diesel engine vehicle (supercharged) | M39: -
J40: Spark plug 1 | K40: (4) engine | L40: Diesel HEV (naturally aspirated) | M40: -
J41: Spark plug 1 | K41: (4) engine | L41: Diesel HEV (supercharged) | M41: -
J42: Spark plug 1 | K42: (4) engine | L42: EV | M42: -
J43: Spark plug 1 | K43: (4) engine | L43: Fuel cell vehicle | M43: -
J44: =$E$10 -> Spark plug 2 | K44: (1) mass related | L44: Gasoline engine vehicle (naturally aspirated) | M44: 0
J45: =$E$10 -> Spark plug 2 | K45: (1) mass related | L45: Gasoline engine vehicle (supercharged) | M45: 0
J46: Spark plug 2 | K46: (1) mass related | L46: Gasoline HEV (naturally aspirated) | M46: 0
J47: Spark plug 2 | K47: (1) mass related | L47: Gasoline HEV (supercharged) | M47: 0
J48: Spark plug 2 | K48: (1) mass related | L48: Diesel engine vehicle (naturally aspirated) | M48: -
J49: Spark plug 2 | K49: (1) mass related | L49: Diesel engine vehicle (supercharged) | M49: -
J50: Spark plug 2 | K50: (1) mass related | L50: Diesel HEV (naturally aspirated) | M50: -
J51: Spark plug 2 | K51: (1) mass related | L51: Diesel HEV (supercharged) | M51: -
J52: Spark plug 2 | K52: (1) mass related | L52: EV | M52: -
J53: Spark plug 2 | K53: (1) mass related | L53: Fuel cell vehicle | M53: -
J54: Spark plug 2 | K54: (2) electric power related | L54: Gasoline engine vehicle (naturally aspirated) | M54: 0
J55: Spark plug 2 | K55: (2) electric power related | L55: Gasoline engine vehicle (supercharged) | M55: 0
J56: Spark plug 2 | K56: (2) electric power related | L56: Gasoline HEV (naturally aspirated) | M56: 0
J57: Spark plug 2 | K57: (2) electric power related | L57: Gasoline HEV (supercharged) | M57: 0
J58: Spark plug 2 | K58: (2) electric power related | L58: Diesel engine vehicle (naturally aspirated) | M58: -
J59: Spark plug 2 | K59: (2) electric power related | L59: Diesel engine vehicle (supercharged) | M59: -
J60: Spark plug 2 | K60: (2) electric power related | L60: Diesel HEV (naturally aspirated) | M60: -
J61: Spark plug 2 | K61: (2) electric power related | L61: Diesel HEV (supercharged) | M61: -
J62: Spark plug 2 | K62: (2) electric power related | L62: EV | M62: -
J63: Spark plug 2 | K63: (2) electric power related | L63: Fuel cell vehicle | M63: -
J64: Spark plug 2 | K64: (3) power related | L64: Gasoline engine vehicle (naturally aspirated) | M64: 0
J65: Spark plug 2 | K65: (3) power related | L65: Gasoline engine vehicle (supercharged) | M65: 0
J66: Spark plug 2 | K66: (3) power related | L66: Gasoline HEV (naturally aspirated) | M66: 0
J67: Spark plug 2 | K67: (3) power related | L67: Gasoline HEV (supercharged) | M67: 0
J68: Spark plug 2 | K68: (3) power related | L68: Diesel engine vehicle (naturally aspirated) | M68: -
J69: Spark plug 2 | K69: (3) power related | L69: Diesel engine vehicle (supercharged) | M69: -
J70: Spark plug 2 | K70: (3) power related | L70: Diesel HEV (naturally aspirated) | M70: -
J71: Spark plug 2 | K71: (3) power related | L71: Diesel HEV (supercharged) | M71: -
J72: Spark plug 2 | K72: (3) power related | L72: EV | M72: -
J73: Spark plug 2 | K73: (3) power related | L73: Fuel cell vehicle | M73: -
J74: Spark plug 2 | K74: (4) engine | L74: Gasoline engine vehicle (naturally aspirated) | M74: 0
J75: Spark plug 2 | K75: (4) engine | L75: Gasoline engine vehicle (supercharged) | M75: 0
J76: Spark plug 2 | K76: (4) engine | L76: Gasoline HEV (naturally aspirated) | M76: 0
J77: Spark plug 2 | K77: (4) engine | L77: Gasoline HEV (supercharged) | M77: 0
J78: Spark plug 2 | K78: (4) engine | L78: Diesel engine vehicle (naturally aspirated) | M78: -
J79: Spark plug 2 | K79: (4) engine | L79: Diesel engine vehicle (supercharged) | M79: -
J80: Spark plug 2 | K80: (4) engine | L80: Diesel HEV (naturally aspirated) | M80: -
J81: Spark plug 2 | K81: (4) engine | L81: Diesel HEV (supercharged) | M81: -
J82: Spark plug 2 | K82: (4) engine | L82: EV | M82: -
J83: Spark plug 2 | K83: (4) engine | L83: Fuel cell vehicle | M83: -
J84: =$F$10 -> Spark plug 3 | K84: (1) mass related | L84: Gasoline engine vehicle (naturally aspirated) | M84: 0
J85: =$F$10 -> Spark plug 3 | K85: (1) mass related | L85: Gasoline engine vehicle (supercharged) | M85: 0
J86: Spark plug 3 | K86: (1) mass related | L86: Gasoline HEV (naturally aspirated) | M86: 0
J87: Spark plug 3 | K87: (1) mass related | L87: Gasoline HEV (supercharged) | M87: 0
J88: Spark plug 3 | K88: (1) mass related | L88: Diesel engine vehicle (naturally aspirated) | M88: -
J89: Spark plug 3 | K89: (1) mass related | L89: Diesel engine vehicle (supercharged) | M89: -
J90: Spark plug 3 | K90: (1) mass related | L90: Diesel HEV (naturally aspirated) | M90: -
J91: Spark plug 3 | K91: (1) mass related | L91: Diesel HEV (supercharged) | M91: -
J92: Spark plug 3 | K92: (1) mass related | L92: EV | M92: -
J93: Spark plug 3 | K93: (1) mass related | L93: Fuel cell vehicle | M93: -
J94: Spark plug 3 | K94: (2) electric power related | L94: Gasoline engine vehicle (naturally aspirated) | M94: 0
J95: Spark plug 3 | K95: (2) electric power related | L95: Gasoline engine vehicle (supercharged) | M95: 0
J96: Spark plug 3 | K96: (2) electric power related | L96: Gasoline HEV (naturally aspirated) | M96: 0
J97: Spark plug 3 | K97: (2) electric power related | L97: Gasoline HEV (supercharged) | M97: 0
J98: Spark plug 3 | K98: (2) electric power related | L98: Diesel engine vehicle (naturally aspirated) | M98: -
J99: Spark plug 3 | K99: (2) electric power related | L99: Diesel engine vehicle (supercharged) | M99: -
J100: Spark plug 3 | K100: (2) electric power related | L100: Diesel HEV (naturally aspirated) | M100: -
J101: Spark plug 3 | K101: (2) electric power related | L101: Diesel HEV (supercharged) | M101: -
J102: Spark plug 3 | K102: (2) electric power related | L102: EV | M102: -
J103: Spark plug 3 | K103: (2) electric power related | L103: Fuel cell vehicle | M103: -
J104: Spark plug 3 | K104: (3) power related | L104: Gasoline engine vehicle (naturally aspirated) | M104: 0
J105: Spark plug 3 | K105: (3) power related | L105: Gasoline engine vehicle (supercharged) | M105: 0
J106: Spark plug 3 | K106: (3) power related | L106: Gasoline HEV (naturally aspirated) | M106: 0
J107: Spark plug 3 | K107: (3) power related | L107: Gasoline HEV (supercharged) | M107: 0
J108: Spark plug 3 | K108: (3) power related | L108: Diesel engine vehicle (naturally aspirated) | M108: -
J109: Spark plug 3 | K109: (3) power related | L109: Diesel engine vehicle (supercharged) | M109: -
J110: Spark plug 3 | K110: (3) power related | L110: Diesel HEV (naturally aspirated) | M110: -
J111: Spark plug 3 | K111: (3) power related | L111: Diesel HEV (supercharged) | M111: -
J112: Spark plug 3 | K112: (3) power related | L112: EV | M112: -
J113: Spark plug 3 | K113: (3) power related | L113: Fuel cell vehicle | M113: -
J114: Spark plug 3 | K114: (4) engine | L114: Gasoline engine vehicle (naturally aspirated) | M114: 0
J115: Spark plug 3 | K115: (4) engine | L115: Gasoline engine vehicle (supercharged) | M115: 0
J116: Spark plug 3 | K116: (4) engine | L116: Gasoline HEV (naturally aspirated) | M116: 0
J117: Spark plug 3 | K117: (4) engine | L117: Gasoline HEV (supercharged) | M117: 0
J118: Spark plug 3 | K118: (4) engine | L118: Diesel engine vehicle (naturally aspirated) | M118: -
J119: Spark plug 3 | K119: (4) engine | L119: Diesel engine vehicle (supercharged) | M119: -
J120: Spark plug 3 | K120: (4) engine | L120: Diesel HEV (naturally aspirated) | M120: -
J121: Spark plug 3 | K121: (4) engine | L121: Diesel HEV (supercharged) | M121: -
J122: Spark plug 3 | K122: (4) engine | L122: EV | M122: -
J123: Spark plug 3 | K123: (4) engine | L123: Fuel cell vehicle | M123: -
J124: JAPIA STD product | K124: (1) mass related | L124: Gasoline engine vehicle (naturally aspirated)
J125: JAPIA STD product | K125: (1) mass related | L125: Gasoline engine vehicle (supercharged)
J126: JAPIA STD product | K126: (1) mass related | L126: Gasoline HEV (naturally aspirated)
J127: JAPIA STD product | K127: (1) mass related | L127: Gasoline HEV (supercharged)
J128: JAPIA STD product | K128: (1) mass related | L128: Diesel engine vehicle (naturally aspirated)
J129: JAPIA STD product | K129: (1) mass related | L129: Diesel engine vehicle (supercharged)
J130: JAPIA STD product | K130: (1) mass related | L130: Diesel HEV (naturally aspirated)
J131: JAPIA STD product | K131: (1) mass related | L131: Diesel HEV (supercharged)
J132: JAPIA STD product | K132: (1) mass related | L132: EV
J133: JAPIA STD product | K133: (1) mass related | L133: Fuel cell vehicle
J134: JAPIA STD product | K134: (2) electric power related | L134: Gasoline engine vehicle (naturally aspirated)
J135: JAPIA STD product | K135: (2) electric power related | L135: Gasoline engine vehicle (supercharged)
J136: JAPIA STD product | K136: (2) electric power related | L136: Gasoline HEV (naturally aspirated)
J137: JAPIA STD product | K137: (2) electric power related | L137: Gasoline HEV (supercharged)
J138: JAPIA STD product | K138: (2) electric power related | L138: Diesel engine vehicle (naturally aspirated)
J139: JAPIA STD product | K139: (2) electric power related | L139: Diesel engine vehicle (supercharged)
J140: JAPIA STD product | K140: (2) electric power related | L140: Diesel HEV (naturally aspirated)
J141: JAPIA STD product | K141: (2) electric power related | L141: Diesel HEV (supercharged)
J142: JAPIA STD product | K142: (2) electric power related | L142: EV
J143: JAPIA STD product | K143: (2) electric power related | L143: Fuel cell vehicle
J144: JAPIA STD product | K144: (3) power related | L144: Gasoline engine vehicle (naturally aspirated)
J145: JAPIA STD product | K145: (3) power related | L145: Gasoline engine vehicle (supercharged)
J146: JAPIA STD product | K146: (3) power related | L146: Gasoline HEV (naturally aspirated)
J147: JAPIA STD product | K147: (3) power related | L147: Gasoline HEV (supercharged)
J148: JAPIA STD product | K148: (3) power related | L148: Diesel engine vehicle (naturally aspirated)
J149: JAPIA STD product | K149: (3) power related | L149: Diesel engine vehicle (supercharged)
J150: JAPIA STD product | K150: (3) power related | L150: Diesel HEV (naturally aspirated)
J151: JAPIA STD product | K151: (3) power related | L151: Diesel HEV (supercharged)
J152: JAPIA STD product | K152: (3) power related | L152: EV
J153: JAPIA STD product | K153: (3) power related | L153: Fuel cell vehicle
J154: JAPIA STD product | K154: (4) engine | L154: Gasoline engine vehicle (naturally aspirated)
J155: JAPIA STD product | K155: (4) engine | L155: Gasoline engine vehicle (supercharged)
J156: JAPIA STD product | K156: (4) engine | L156: Gasoline HEV (naturally aspirated)
J157: JAPIA STD product | K157: (4) engine | L157: Gasoline HEV (supercharged)
J158: JAPIA STD product | K158: (4) engine | L158: Diesel engine vehicle (naturally aspirated)
J159: JAPIA STD product | K159: (4) engine | L159: Diesel engine vehicle (supercharged)
J160: JAPIA STD product | K160: (4) engine | L160: Diesel HEV (naturally aspirated)
J161: JAPIA STD product | K161: (4) engine | L161: Diesel HEV (supercharged)
J162: JAPIA STD product | K162: (4) engine | L162: EV
J163: JAPIA STD product | K163: (4) engine | L163: Fuel cell vehicle

Sheet How to enter
A1: ='Driving condition'!C3 -> WLTP four-wheeled passenger car | E1: * When other preconditions are changed
A3: ◆Basic information on LCI products
B4: JAPIA product groups | D4: Meter | E4: Meter | F4: Meter
B5: System boundary (Scope of products to be evaluated) | D5: Including: - Speedometer, tachometer - Fuel gauge, low fuel warning lamp - Direction indicator - Odometer, trip meter *Not including wire harnesses
B6: Functional unit (Unit per characteristic value representing product performance) | D6: Indicates driving conditions for one vehicle (speed, direction indication, engine rpm, etc.)
B7: No. of evaluated items | D7: 1
B8: Operating voltage (V) | C8: 12 | D8: ='Driving condition'!$C$18 -> 12 | E8: 12 | F8: 12
B9: Product/part number | D9: 00000-00000
B10: Product/part name | C10: JAPIA標準製品 | D10: =D4&1 -> Meter1 | E10: =E4&2 -> Meter2 | F10: =F4&3 -> Meter3
A12: ◆Use-phase load
A14: Input data for calculation | B14: Mass (kg) | C14: 0 | D14: 1.5
B15: Inertia moment (kgm2), Tire OD (m) | D15: 0
B16: Current (A) | C16: 0 | D16: 1
B17: Electric power/power (W) Average engine rpm (s-1) | C17: 0 | D17: 0
B18: Life-time operating time (s) | C18: 18000000 | D18: ='Driving condition'!$C$14 -> 12020130 | E18: ='Driving condition'!$C$14 -> 12020130 | F18: ='Driving condition'!$C$14 -> 12020130
A19: (1) Mass related consumption ⇒Click on this to change conditions | B19: Gasoline engine vehicle (L) | C19: 0 | D19: =D$14*'(1) mass related'!$J$2+D$15*'(1) mass related'!$J$15 -> 2.512911211 | E19: 0 | F19: 0
B20: Gasoline HEV (L) | C20: 0 | D20: =D$14*'(1) mass related'!$J$4+D$15*'(1) mass related'!$J$17 -> 1.155939157 | E20: 0 | F20: 0
B21: Diesel engine vehicle (L) | C21: 0 | D21: =D$14*'(1) mass related'!$J$7+D$15*'(1) mass related'!$J$20 -> 1.707069265 | E21: 0 | F21: 0
B22: Diesel HEV (L) | C22: 0 | D22: =D$14*'(1) mass related'!$J$9+D$15*'(1) mass related'!$J$22 -> 0.7852518618 | E22: 0 | F22: 0
B23: EV (kWh) | C23: 0 | D23: =D$14*'(1) mass related'!$J$10+D$15*'(1) mass related'!$J$23 -> 3.967807027 | E23: 0 | F23: 0
B24: Fuel cell vehicle (Nm3) | C24: 0 | D24: =D$14*'(1) mass related'!$J$11+D$15*'(1) mass related'!$J$24 -> 1.59022266 | E24: 0 | F24: 0
A25: (2) Electric power related consumption ⇒Click on this to change conditions | B25: Gasoline engine vehicle (L) | C25: 0 | D25: =D$8/12*D$16*D$18*'(2) electric power related'!$H$2 -> 11.6727274 | E25: 0 | F25: 0
B26: Gasoline HEV (L) | C26: 0 | D26: =D$8/12*D$16*D$18*'(2) electric power related'!$H$2 -> 11.6727274 | E26: 0 | F26: 0
B27: Diesel engine vehicle (L) | C27: 0 | D27: =D$8/12*D$16*D$18*'(2) electric power related'!$H$3 -> 7.929509843 | E27: 0 | F27: 0
B28: Diesel HEV (L) | C28: 0 | D28: =D$8/12*D$16*D$18*'(2) electric power related'!$H$3 -> 7.929509843 | E28: 0 | F28: 0
B29: EV (kWh) | C29: 0 | D29: =D$8/12*D$16*D$18*'(2) electric power related'!$H$4 -> 40.0671 | E29: 0 | F29: 0
B30: Fuel cell vehicle (Nm3) | C30: 0 | D30: =D$8/12*D$16*D$18*'(2) electric power related'!$H$5 -> 16.05814242 | E30: 0 | F30: 0
A31: (3) Power related consumption ⇒Click on this to change conditions | B31: Gasoline engine vehicle (L) | C31: 0 | D31: =D$17*D$18*'(3) power related'!$G$2 -> 0 | E31: 0 | F31: 0
B32: Gasoline HEV (L) | C32: 0 | D32: =D$17*D$18*'(3) power related'!$G$2 -> 0 | E32: 0 | F32: 0
B33: Diesel engine vehicle (L) | C33: 0 | D33: =D$17*D$18*'(3) power related'!$G$3 -> 0 | E33: 0 | F33: 0
B34: Diesel HEV (L) | C34: 0 | D34: =D$17*D$18*'(3) power related'!$G$3 -> 0 | E34: 0 | F34: 0
B35: EV (kWh) | C35: 0 | D35: =D$17*D$18*'(3) power related'!$G$4 -> 0 | E35: 0 | F35: 0
B36: Fuel cell vehicle (Nm3) | C36: 0 | D36: =D$17*D$18*'(3) power related'!$G$5 -> 0 | E36: 0 | F36: 0
A37: (4) Engine related consumption ⇒Click on this to change conditions | B37: Gasoline engine vehicle (L) | C37: 0 | D37: 0 | E37: 0 | F37: 0
B38: Gasoline HEV (L) | C38: 0 | D38: 0 | E38: 0 | F38: 0
B39: Diesel engine vehicle (L) | C39: 0 | D39: 0 | E39: 0 | F39: 0
B40: Diesel HEV (L) | C40: 0 | D40: 0 | E40: 0 | F40: 0
B41: EV (kWh) | C41: 0 | D41: 0 | E41: 0 | F41: 0
B42: Fuel cell vehicle (Nm3) | C42: 0 | D42: 0 | E42: 0 | F42: 0
A43: Calculation results Energy consumption | B43: Gasoline engine vehicle (L) | C43: =SUM(C19,C25,C31) -> 0 | D43: 14.18563861 | E43: 0 | F43: 0
B44: Gasoline HEV (L) | C44: 0 | D44: 12.82866656 | E44: 0 | F44: 0
B45: Diesel engine vehicle (L) | C45: 0 | D45: 9.636579108 | E45: 0 | F45: 0
B46: Diesel HEV (L) | C46: 0 | D46: 8.714761705 | E46: 0 | F46: 0
B47: EV (kWh) | C47: 0 | D47: 44.03490703 | E47: 0 | F47: 0
B48: Fuel cell vehicle (Nm3) | C48: 0 | D48: 17.64836508 | E48: 0 | F48: 0
A51: (1) Mass related CO2 emission (g-CO2) ⇒Click on this to change original unit. | B51: Gasoline engine vehicle | C51: 0 | D51: =(D$14*'(1) mass related'!$J$2+D$15*'(1) mass related'!$J$15)*('(5) Energy related CO2 emission'!$C$3+'(5) Energy related CO2 emission'!$C$4) -> 6536.082059 | E51: 0 | F51: 0
B52: Gasoline HEV | C52: 0 | D52: =(D$14*'(1) mass related'!$J$4+D$15*'(1) mass related'!$J$17)*('(5) Energy related CO2 emission'!$C$3+'(5) Energy related CO2 emission'!$C$4) -> 3006.597747 | E52: 0 | F52: 0
B53: Diesel engine vehicle | C53: 0 | D53: =(D$14*'(1) mass related'!$J$7+D$15*'(1) mass related'!$J$20)*('(5) Energy related CO2 emission'!$C$5+'(5) Energy related CO2 emission'!$C$6) -> 4614.208223 | E53: 0 | F53: 0
B54: Diesel HEV | C54: 0 | D54: =(D$14*'(1) mass related'!$J$9+D$15*'(1) mass related'!$J$22)*('(5) Energy related CO2 emission'!$C$5+'(5) Energy related CO2 emission'!$C$6) -> 2122.535782 | E54: 0 | F54: 0
B55: EV | C55: 0 | D55: =(D$14*'(1) mass related'!$J$10+D$15*'(1) mass related'!$J$23)*'(5) Energy related CO2 emission'!$C$7 -> 2126.744566 | E55: 0 | F55: 0
B56: Fuel cell vehicle | C56: 0 | D56: =(D$14*'(1) mass related'!$J$11+D$15*'(1) mass related'!$J$24)*'(5) Energy related CO2 emission'!$C$12 -> 1796.951606 | E56: 0 | F56: 0
A57: (2) Electric power related CO2 emission (g-CO2) ⇒Click on this to change original unit. | B57: Gasoline engine vehicle | C57: 0 | D57: =D$8/12*D$16*D$18*'(2) electric power related'!$H$2*('(5) Energy related CO2 emission'!$C$3+'(5) Energy related CO2 emission'!$C$4) -> 30360.76396 | E57: 0 | F57: 0
B58: Gasoline HEV | C58: 0 | D58: =D$8/12*D$16*D$18*'(2) electric power related'!$H$2*('(5) Energy related CO2 emission'!$C$3+'(5) Energy related CO2 emission'!$C$4) -> 30360.76396 | E58: 0 | F58: 0
B59: Diesel engine vehicle | C59: 0 | D59: =D$8/12*D$16*D$18*'(2) electric power related'!$H$3*('(5) Energy related CO2 emission'!$C$5+'(5) Energy related CO2 emission'!$C$6) -> 21433.46511 | E59: 0 | F59: 0
B60: Diesel HEV | C60: 0 | D60: =D$8/12*D$16*D$18*'(2) electric power related'!$H$3*('(5) Energy related CO2 emission'!$C$5+'(5) Energy related CO2 emission'!$C$6) -> 21433.46511 | E60: 0 | F60: 0
B61: EV | C61: 0 | D61: =D$8/12*D$16*D$18*'(2) electric power related'!$H$4*'(5) Energy related CO2 emission'!$C$7 -> 21475.9656 | E61: 0 | F61: 0
B62: Fuel cell vehicle | C62: 0 | D62: =D$8/12*D$16*D$18*'(2) electric power related'!$H$5*'(5) Energy related CO2 emission'!$C$12 -> 18145.70094 | E62: 0 | F62: 0
A63: (3) Power related CO2 emission (g-CO2) ⇒Click on this to change original unit. | B63: Gasoline engine vehicle | C63: 0 | D63: =D$17*D$18*'(3) power related'!$G$2*('(5) Energy related CO2 emission'!$C$3+'(5) Energy related CO2 emission'!$C$4) -> 0 | E63: 0 | F63: 0
B64: Gasoline HEV | C64: 0 | D64: =D$17*D$18*'(3) power related'!$G$2*('(5) Energy related CO2 emission'!$C$3+'(5) Energy related CO2 emission'!$C$4) -> 0 | E64: 0 | F64: 0
B65: Diesel engine vehicle | C65: 0 | D65: =D$17*D$18*'(3) power related'!$G$3*('(5) Energy related CO2 emission'!$C$5+'(5) Energy related CO2 emission'!$C$6) -> 0 | E65: 0 | F65: 0
B66: Diesel HEV | C66: 0 | D66: =D$17*D$18*'(3) power related'!$G$3*('(5) Energy related CO2 emission'!$C$5+'(5) Energy related CO2 emission'!$C$6) -> 0 | E66: 0 | F66: 0
B67: EV | C67: 0 | D67: =D$17*D$18*'(3) power related'!$G$4*'(5) Energy related CO2 emission'!$C$7 -> 0 | E67: 0 | F67: 0
B68: Fuel cell vehicle | C68: 0 | D68: =D$17*D$18*'(3) power related'!$G$5*'(5) Energy related CO2 emission'!$C$12 -> 0 | E68: 0 | F68: 0
A69: (4) Engine related CO2 emission (g-CO2) ⇒Click on this to change original unit. | B69: Gasoline engine vehicle | C69: 0 | D69: 0 | E69: 0 | F69: 0
B70: Gasoline HEV | C70: 0 | D70: 0 | E70: 0 | F70: 0
B71: Diesel engine vehicle | C71: 0 | D71: 0 | E71: 0 | F71: 0
B72: Diesel HEV | C72: 0 | D72: 0 | E72: 0 | F72: 0
B73: EV | C73: 0 | D73: 0 | E73: 0 | F73: 0
B74: Fuel cell vehicle | C74: 0 | D74: 0 | E74: 0 | F74: 0
A75: Calculation results CO2 emission (g-CO2) | B75: Gasoline engine vehicle | C75: =SUM(C27,C33,C39) -> 0 | D75: =SUM(D51,D57,D63) -> 36896.84602 | E75: 0 | F75: 0
B76: Gasoline HEV | C76: 0 | D76: 33367.36171 | E76: 0 | F76: 0
B77: Diesel engine vehicle | C77: 0 | D77: 26047.67333 | E77: 0 | F77: 0
B78: Diesel HEV | C78: 0 | D78: 23556.00089 | E78: 0 | F78: 0
B79: EV | C79: 0 | D79: 23602.71017 | E79: 0 | F79: 0
B80: Fuel cell vehicle | C80: 0 | D80: 19942.65254 | E80: 0 | F80: 0
A84: ◆Detailed concept (entry field)
A86: Current related | B86: Concept about current values
B87: Current calculation formula
B88: Concept about operating time
B89: Calculation formula for hour of use
A90: Power related | B90: Concept about power
B91: Power calculation formula
B92: Concept about operating time
B93: Calculation formula for hour of use
A95: Remark

Sheet Driving condition
A1: Item | C1: Value
A2: 番号 | C2: 2
A3: Driving pattern | C3: =HYPERLINK("#"&$C$17&"!A1",LOOKUP('Driving condition'!C2,LOOK_UP!A2:A11,LOOK_UP!B2:B11)) -> WLTP four-wheeled passenger car
A4: Life-time driving pattern repetition count | C4: =LOOKUP('Driving condition'!C2,LOOK_UP!A2:A11,LOOK_UP!E2:E11) -> 8138.205823
A5: Fuel economy | B5: Gasoline and diesel engine [km/L] | C5: =LOOKUP('Driving condition'!C2,LOOK_UP!A2:A11,LOOK_UP!F2:F11) -> 17.6
A6: Life-time travel distance [km] | C6: =LOOKUP('Driving condition'!C2,LOOK_UP!A2:A11,LOOK_UP!G2:G11) -> 122171.8761
A7: Internal combustion engine energy efficiency | B7: Gasoline engine Effective work ratio (thermal efficiency): | C7: =LOOKUP('Driving condition'!C2,LOOK_UP!A2:A11,LOOK_UP!H2:H11) -> 0.3
B8: Gasoline engine theoretical thermal efficiency | C8: =LOOKUP('Driving condition'!C2,LOOK_UP!A2:A11,LOOK_UP!I2:I11) -> 0.46
B9: Diesel engine effective work ratio (thermal efficiency) | C9: =LOOKUP('Driving condition'!C2,LOOK_UP!A2:A11,LOOK_UP!J2:J11) -> 0.4
B10: Diesel engine theoretical thermal efficiency | C10: =LOOKUP('Driving condition'!C2,LOOK_UP!A2:A11,LOOK_UP!K2:K11) -> 0.56
B11: Fuel economy ratio of conventional and hybrid engines | C11: =LOOKUP('Driving condition'!C2,LOOK_UP!A2:A11,LOOK_UP!L2:L11) -> 0.8
A12: Linear acceleration work per kg in driving mode [J] | C12: =LOOKUP('Driving condition'!C2,LOOK_UP!A2:A11,LOOK_UP!C2:C11) -> 2543.755015
A13: Rotational acceleration work per kgm2 in driving mode [J] | C13: =LOOKUP('Driving condition'!C2,LOOK_UP!A2:A11,LOOK_UP!D2:D11) -> 28263.94462
A14: Life-time operating time [s] | C14: =LOOKUP('Driving condition'!C2,LOOK_UP!A2:A11,LOOK_UP!M2:M11) -> 12020130
A15: Tire outer diameter [m] | C15: =HYPERLINK("#"&$C$17&"!V10",LOOKUP('Driving condition'!C2,LOOK_UP!A2:A11,LOOK_UP!O2:O11)) -> 0.6 | D15: ←Click on this to change tire outer diameter
A16: Average engine rpm [s-1] | C16: =LOOKUP('Driving condition'!C2,LOOK_UP!A2:A11,LOOK_UP!N2:N11) -> 25.94078255
A17: パターン名 | C17: =LOOKUP('Driving condition'!C2,LOOK_UP!A2:A11,LOOK_UP!P2:P11) -> WLTP
A18: 電圧 | C18: =LOOKUP('Driving condition'!C2,LOOK_UP!A2:A11,LOOK_UP!Q2:Q11) -> 12

Sheet (1) mass related
A1: ='Driving condition'!C3 -> WLTP four-wheeled passenger car | B1: Acceleration work per kg [J] (1) | D1: Thermodynamic theoretical lost energy associated with generation of energy described to the left [J] (2) =(1)÷[Effective work ratio]×(1-[Theoretical thermal efficiency]) | F1: Energy generated per unit fuel [MJ/**] (3) | H1: Fuel (electric power) consumption per kg (4) =((1)+(2))÷(3) | J1: Life-time fuel (electric power) consumption per kg [**/kg] (5) =(4)×［Mode repetition count］ | L1: Remark
A2: Gasoline engine vehicle | B2: ='Driving condition'!C12 -> 2543.755015 | C2: [J] | D2: =$B$2/'Driving condition'!$C$7*(1-'Driving condition'!$C$8) -> 4578.759028 | E2: [J] | F2: 34.6 | G2: [MJ/L] (Gasoline) | H2: =($B$2+$D$2)/($F$2*10^6) -> 0.000205853007 | I2: [L/kg] | J2: =$H$2*'Driving condition'!C4 -> 1.67527414 | K2: [L/kg] | L2:  JAPIA Product Environmental Indicator Guidelines
L3:  Includes regeneration functions
A4: Gasoline engine HEV (hybrid electric vehicle) | B4: =$B$2-$B$2*0.6*0.9 -> 1170.127307 | C4: [J] | D4: =$B$4/'Driving condition'!$C$7*(1-'Driving condition'!$C$8) -> 2106.229153 | E4: [J] | F4: 34.6 | G4: [MJ/L] (Gasoline) | H4: =($B$4+$D$4)/($F$4*10^6) -> 9.469238323e-05 | I4: [L/kg] | J4: =$H$4*'Driving condition'!C4 -> 0.7706261046 | K4: [L/kg] | L4: Conversion efficiency is 90% when 60% of kinetic energy is regenerated into electric energy during deceleration which is converted into kinetic energy.
A5: Gasoline engine PHEV (Plug-in hybrid electric vehicle) | B5: =$B$2-$B$2*0.6*0.9 -> 1170.127307 | C5: [J] (Running on hybrid) | D5: =B5/'Driving condition'!$C$7*(1-'Driving condition'!$C$8) -> 2106.229153 | E5: [J] | F5: 34.6 | G5: [MJ/L] (Gasoline) | H5: =($B$5+$D$5)/($F$5*10^6) -> 9.469238323e-05 | I5: [L/kg] | J5: - | L5: Since energy resources PHEV receives from the outside include gasoline and commercial electric power, original unit is set individually for them. However, driving patterns largely vary depending on users and types of vehicle. For this, life-time (electric power) consumption is not set.
B6: =$B$2-$B$2*0.6*0.9 -> 1170.127307 | C6: [J] (Running on EV) | D6: 0 | E6: [J] | F6: 3.6 | G6: [MJ/kWh] (Electric power) | H6: =($B$6+$D$6)/($F$6*10^6) -> 0.0003250353631 | I6: [kWh/kg] | J6: -
A7: Diesel engine vehicle | B7: ='Driving condition'!C12 -> 2543.755015 | C7: [J] | D7: =IF('Driving condition'!$C$9=0,"",B7/'Driving condition'!$C$9*(1-'Driving condition'!$C$10)) -> 2798.130517 | E7: [J] | F7: 38.2 | G7: [MJ/L] (Diesel fuel) | H7: =IF('Driving condition'!$C$9=0,"",($B$7+$D$7)/($F$7*10^6)) -> 0.0001398399354 | I7: [L/kg] | J7: =IF('Driving condition'!$C$9=0,"0",$H$7*'Driving condition'!C4) -> 1.138046177 | K7: [L/kg] | L7:  JAPIA Product Environmental Indicator Guidelines
L8:  Includes regeneration functions
A9: Diesel engine HEV (hybrid electric vehicle) | B9: =$B$7-$B$7*0.6*0.9 -> 1170.127307 | C9: [J] | D9: =IF('Driving condition'!$C$9=0,"",B9/'Driving condition'!$C$9*(1-'Driving condition'!$C$10)) -> 1287.140038 | E9: [J] | F9: 38.2 | G9: [MJ/L] (Diesel fuel) | H9: =IF('Driving condition'!$C$9=0,"",($B$9+$D$9)/($F$9*10^6)) -> 6.432637029e-05 | I9: [L/kg] | J9: =IF('Driving condition'!$C$9=0,"0",$H$9*'Driving condition'!C4) -> 0.5235012412 | K9: [L/kg] | L9: Conversion efficiency is 90% when 60% of kinetic energy is regenerated into electric energy during deceleration which is converted into kinetic energy.
A10: Electric vehicle | B10: =$B$2-$B$2*0.6*0.9 -> 1170.127307 | C10: [J] | D10: 0 | E10: [J] | F10: 3.6 | G10: [MJ/kWh] (Electric power) | H10: =($B$10+$D$10)/($F$10*10^6) -> 0.0003250353631 | I10: [kWh/kg] | J10: =$H$10*'Driving condition'!C4 -> 2.645204684 | K10: [kWh/kg] | L10: Regeneration functions are available
A11: Fuel cell vehicle | B11: =$B$2-$B$2*0.6*0.9 -> 1170.127307 | C11: [J] | D11: =B11/0.4*(1-0.83) -> 497.3041055 | E11: [J] (Theoretical thermal efficiency: 83%､PEFC generation efficiency: 40%) | F11: 12.8 | G11: [MJ/Nm3] (Hydrogen) | H11: =($B$11+$D$11)/($F$11*10^6) -> 0.0001302680791 | I11: [Nm3/kg] | J11: =$H$11*'Driving condition'!C4 -> 1.06014844 | K11: [Nm3/kg] | L11: Regeneration functions are available
L12: Ohta - Principle of Fuel Cells for Application, GS Yuasa Technical Report Volume 2, No. 1 (2005)
A14: Inertia moment related | B14: Acceleration work per kgm2 [J] (1) | D14: Thermodynamic theoretical lost energy associated with generation of energy described to the left [J] (2) =(1)÷[Effective work ratio]×(1-[Theoretical thermal efficiency]) | F14: Energy generated per unit fuel [MJ/**] (3) | H14: Fuel (electric power) consumption per kgm2 (4) =((1)+(2))÷(3) | J14: Life-time fuel (electric power) consumption per kgm2 [**/kg] (5) =(4)×［Mode repetition count］ | L14: Remark
A15: Gasoline vehicle | B15: ='Driving condition'!C13 -> 28263.94462 | C15: [J] | D15: =$B$15/'Driving condition'!$C$7*(1-'Driving condition'!$C$8) -> 50875.10031 | E15: [J] | F15: 34.6 | G15: [MJ/L] (Gasoline) | H15: =($B$15+$D$15)/($F$15*10^6) -> 0.002287255634 | I15: [L/kgm2] | J15: =$H$15*'Driving condition'!C4 -> 18.61415712 | K15: [L/kgm2]
A17: Gasoline engine HEV (hybrid electric vehicle) | B17: =$B$15-$B$15*0.6*0.9 -> 13001.41452 | C17: [J] | D17: =$B$17/'Driving condition'!$C$7*(1-'Driving condition'!$C$8) -> 23402.54614 | E17: [J] | F17: 34.6 | G17: [MJ/L] (Gasoline) | H17: =($B$17+$D$17)/($F$17*10^6) -> 0.001052137591 | I17: [L/kgm2] | J17: =$H$17*'Driving condition'!C4 -> 8.562512273 | K17: [L/kgm2]
A18: Gasoline engine PHEV (plug-in hybrid electric vehicle) | B18: =$B$15-$B$15*0.6*0.9 -> 13001.41452 | C18: [J] (Running hybrid) | D18: =B18/'Driving condition'!$C$7*(1-'Driving condition'!$C$8) -> 23402.54614 | E18: [J] | F18: 34.6 | G18: [MJ/L] (Gasoline) | H18: =($B$18+$D$18)/($F$18*10^6) -> 0.001052137591 | I18: [L/kgm2] | J18: -
B19: =$B$15-$B$15*0.6*0.9 -> 13001.41452 | C19: [J] (Running on EV) | D19: 0 | E19: [J] | F19: 3.6 | G19: [MJ/kWh] (Electric power) | H19: =($B$19+$D$19)/($F$19*10^6) -> 0.003611504034 | I19: [kWh/kgm2] | J19: -
A20: Diesel engine vehicle | B20: ='Driving condition'!C13 -> 28263.94462 | C20: [J] | D20: =IF('Driving condition'!$C$9=0,"",B20/'Driving condition'!$C$9*(1-'Driving condition'!$C$10)) -> 31090.33908 | E20: [J] | F20: 38.2 | G20: [MJ/L] (Diesel fuel) | H20: =IF('Driving condition'!$C$9=0,"",($B$20+$D$20)/($F$20*10^6)) -> 0.00155377706 | I20: [L/kgm2] | J20: =IF('Driving condition'!$C$9=0,"0",$H$20*'Driving condition'!C4) -> 12.64495752 | K20: [L/kgm2]
A22: Diesel engine HEV (hybrid electric vehicle) | B22: =$B$20-$B$20*0.6*0.9 -> 13001.41452 | C22: [J] | D22: =IF('Driving condition'!$C$9=0,"",B22/'Driving condition'!$C$9*(1-'Driving condition'!$C$10)) -> 14301.55598 | E22: [J] | F22: 38.2 | G22: [MJ/L] (Diesel fuel) | H22: =IF('Driving condition'!$C$9=0,"",($B$22+$D$22)/($F$22*10^6)) -> 0.0007147374476 | I22: [L/kgm2] | J22: =IF('Driving condition'!$C$9=0,"0",$H$22*'Driving condition'!C4) -> 5.816680458 | K22: [L/kgm2]
A23: Electric vehicle | B23: =$B$20-$B$20*0.6*0.9 -> 13001.41452 | C23: [J] | D23: 0 | E23: [J] | F23: 3.6 | G23: [MJ/kWh] (Electric power) | H23: =($B$23+$D$23)/($F$23*10^6) -> 0.003611504034 | I23: [kWh/kgm2] | J23: =$H$23*'Driving condition'!C4 -> 29.39116316 | K23: [kWh/kgm2]
A24: Fuel cell vehicle | B24: =$B$20-$B$20*0.6*0.9 -> 13001.41452 | C24: [J] | D24: =B24/0.4*(1-0.83) -> 5525.601172 | E24: [J] (Theoretical thermal efficiency: 83%､PEFC generation efficiency: 40%) | F24: 12.8 | G24: [MJ/Nm3] (Hydrogen) | H24: =($B$24+$D$24)/($F$24*10^6) -> 0.001447423101 | I24: [Nm3/kgm2] | J24: =$H$24*'Driving condition'!C4 -> 11.77942711 | K24: [Nm3/kgm2]

Sheet (2) electric power related
A1: ='Driving condition'!C3 -> WLTP four-wheeled passenger car | B1: Work per 1A per sec [J](1) | C1: Thermodynamic theoretical lost energy associated with generation of energy described to the left [J] (2) =(1)÷[Effective work ratio]×(1-[Theoretical thermal efficiency]) | F1: Energy generated per unit fuel [MJ/**] (3) | H1: Fuel (electric power) consumption per 1A per sec Ibu [**/A/s] (4) =((1)+(2))÷(3) | J1: Sources/ References
A2: 12[V] | B2: 12 | C2: Gasoline | D2: =$B$2/'Driving condition'!$C$7*(1-'Driving condition'!$C$8) -> 21.6 | E2: [J] | F2: 34.6 | G2: [MJ/L] | H2: =($B$2+D2)/(F2*10^6) -> 9.710982659e-07 | I2: [L/A/s] | J2: -
C3: Diesel fuel | D3: =IF('Driving condition'!$C$9=0,"",$B$2/'Driving condition'!$C$9*(1-'Driving condition'!$C$10)) -> 13.2 | E3: [J] | F3: 38.2 | G3: [MJ/L] | H3: =IF('Driving condition'!$C$9=0,"0",($B$2+D3)/(F3*10^6)) -> 6.596858639e-07 | I3: [L/A/s]
C4: Electric power | D4: 0 | E4: [J] | F4: 3.6 | G4: [MJ/kWh] | H4: =($B$2+D4)/(F4*10^6) -> 3.333333333e-06 | I4: [kWh/A/s]
C5: Hydrogen | D5: =$B$2/0.4*(1-0.83) -> 5.1 | E5: [J] (Theoretical thermal efficiency: 83%, PEFC generation efficiency: 40%) | F5: 12.8 | G5: [MJ/Nm3] | H5: 1.3359375e-06 | I5: [Nm3/A/s]
A6: 24[V] | B6: 24 | C6: Gasoline | D6: =$B$6/'Driving condition'!$C$7*(1-'Driving condition'!$C$8) -> 43.2 | E6: [J] | F6: 34.6 | G6: [MJ/L] | H6: =($B$6+D6)/(F6*10^6) -> 1.942196532e-06 | I6: [L/A/s] | J6: -
C7: Diesel fuel | D7: =IF('Driving condition'!$C$9=0,"",$B$6/'Driving condition'!$C$9*(1-'Driving condition'!$C$10)) -> 26.4 | E7: [J] | F7: 38.2 | G7: [MJ/L] | H7: =IF('Driving condition'!$C$9=0,"0",($B$6+D7)/(F7*10^6)) -> 1.319371728e-06 | I7: [L/A/s]
C8: Electric power | D8: 0 | E8: [J] | F8: 3.6 | G8: [MJ/kWh] | H8: =($B$6+D8)/(F8*10^6) -> 6.666666667e-06 | I8: [kWh/A/s]
C9: Hydrogen | D9: =$B$6/0.4*(1-0.83) -> 10.2 | E9: [J] (Theoretical thermal efficiency: 83%, PEFC generation efficiency: 40%) | F9: 12.8 | G9: [MJ/Nm3] | H9: 2.671875e-06 | I9: [Nm3/A/s]
A10: 650[V] | B10: 650 | C10: Gasoline | D10: =$B$10/'Driving condition'!$C$7*(1-'Driving condition'!$C$8) -> 1170 | E10: [J] | F10: 34.6 | G10: [MJ/L] | H10: =($B$10+D10)/(F10*10^6) -> 5.260115607e-05 | I10: [L/A/s] | J10: -
C11: Diesel fuel | D11: =IF('Driving condition'!$C$9=0,"",$B$10/'Driving condition'!$C$9*(1-'Driving condition'!$C$10)) -> 715 | E11: [J] | F11: 38.2 | G11: [MJ/L] | H11: =IF('Driving condition'!$C$9=0,"0",($B$10+D11)/(F11*10^6)) -> 3.573298429e-05 | I11: [L/A/s]
C12: Electric power | D12: 0 | E12: [J] | F12: 3.6 | G12: [MJ/kWh] | H12: =($B$10+D12)/(F12*10^6) -> 0.0001805555556 | I12: [kWh/A/s]
C13: Hydrogen | D13: =$B$10/0.4*(1-0.83) -> 276.25 | E13: [J] (Theoretical thermal efficiency: 83%, PEFC generation efficiency: 40%) | F13: 12.8 | G13: [MJ/Nm3] | H13: =($B$10+D13)/(F13*10^6) -> 7.236328125e-05 | I13: [Nm3/A/s]

Sheet (3) power related
A1: ='Driving condition'!C3 -> WLTP four-wheeled passenger car | B1: Thermodynamic theoretical lost energy associated with generation of energy described to the left [J] (2) =(1)÷[Effective work ratio]×(1-[Theoretical thermal efficiency]) | E1: Energy generated per unit fuel [MJ/**] (3) | G1: Fuel (electric power) consumption per 1W per sec Lbu[**/W/s] (4) =((1)+(2))÷(3) | I1: Sources/ References
A2: 1[J]= 1[W]*1[s](1) | B2: Gasoline | C2: =1/'Driving condition'!$C$7*(1-'Driving condition'!$C$8) -> 1.8 | D2: [J] | E2: 34.6 | F2: [MJ/L] | G2: =(1+C2)/(E2*10^6) -> 8.092485549e-08 | H2: [L/W/s] | I2: -
B3: Diesel fuel | C3: =IF('Driving condition'!$C$9=0,"",1/'Driving condition'!$C$9*(1-'Driving condition'!$C$10)) -> 1.1 | D3: [J] | E3: 38.2 | F3: [MJ/L] | G3: =IF('Driving condition'!$C$9=0,"0",(1+C3)/(E3*10^6)) -> 5.497382199e-08 | H3: [L/W/s]
B4: Electric power | C4: 0 | D4: [J] | E4: 3.6 | F4: [MJ/kWh] | G4: =(1+C4)/(E4*10^6) -> 2.777777778e-07 | H4: [kWh/W/s]
B5: Hydrogen (Theoretical thermal efficiency: 83%､PEFC generation efficiency: 40%) | C5: =1/0.4*(1-0.83) -> 0.425 | D5: [J] (Theoretical thermal efficiency: 83%､PEFC generation efficiency: 40%) | E5: 12.8 | F5: [MJ/Nm3] | G5: =(1+C5)/(E5*10^6) -> 1.11328125e-07 | H5: [Nm3/W/s]

Sheet (4) engine
A1: ='Driving condition'!C3 -> WLTP four-wheeled passenger car | B1: Conventional gasoline engine | F1: Conventional diesel engine | J1: Gasoline engine HEV/PHEV | N1: Diesel engine HEV | R1: EV
B2: Naturally aspirated | D2: Supercharged | F2: Naturally aspirated | H2: Supercharged | J2: Naturally aspirated | L2: Supercharged | N2: Naturally aspirated | P2: Supercharged | R2: -
B3: Allocation rate | C3: Fuel (L) | D3: Allocation rate | E3: Fuel (L) | F3: Allocation rate | G3: Fuel (L) | H3: Allocation rate | I3: Fuel (L) | J3: Allocation rate | K3: Fuel (L) | L3: Allocation rate | M3: Fuel (L) | N3: Allocation rate | O3: Fuel (L) | P3: Allocation rate | Q3: Fuel (L)
A4: Intake manifold | B4: 0.006076388889 | C4: =$C$48*B4 -> 6.748762096 | D4: 0.00565123789 | E4: =$E$48*D4 -> 6.276566686 | F4: 0.005209625403 | G4: =$G$48*F4 -> 5.786088267 | H4: 0.004893964111 | I4: =$I$48*H4 -> 5.435497973 | J4: 0.006076388889 | K4: =$K$48*J4 -> 5.399009677 | L4: 0.00565123789 | M4: =$M$48*L4 -> 5.021253349 | N4: 0.005209625403 | O4: =$O$48*N4 -> 4.628870614 | P4: 0.004893964111 | Q4: =$Q$48*P4 -> 4.348398379 | R4: -
A5: Air cleaner | B5: 0.01446759259 | C5: =$C$48*B5 -> 16.06848118 | D5: 0.01345532831 | E5: 14.94420639 | F5: 0.01240387001 | G5: 13.77640064 | H5: 0.0116522955 | I5: 12.94166184 | J5: 0.01446759259 | K5: =$K$48*J5 -> 12.85478494 | L5: 0.01345532831 | M5: =$M$48*L5 -> 11.95536512 | N5: 0.01240387001 | O5: =$O$48*N5 -> 11.02112051 | P5: 0.0116522955 | Q5: =$Q$48*P5 -> 10.35332947 | R5: -
A6: Air cleaner element | B6: 0.0001446759259 | C6: 0.1606848118 | D6: 0.0001345532831 | E6: 0.1494420639 | F6: 0.0001240387001 | G6: 0.1377640064 | H6: 0.000116522955 | I6: 0.1294166184 | J6: 0.0001446759259 | K6: =$K$48*J6 -> 0.1285478494 | L6: 0.0001345532831 | M6: =$M$48*L6 -> 0.1195536512 | N6: 0.0001240387001 | O6: =$O$48*N6 -> 0.1102112051 | P6: 0.000116522955 | Q6: =$Q$48*P6 -> 0.1035332947 | R6: -
A7: Exhaust manifold | B7: 0.007233796296 | C7: 8.034240591 | D7: 0.006727664155 | E7: 7.472103197 | F7: 0.006201935004 | G7: 6.888200318 | H7: 0.005826147751 | I7: 6.470830921 | J7: 0.007233796296 | K7: 6.427392472 | L7: 0.006727664155 | M7: 5.977682558 | N7: 0.006201935004 | O7: 5.510560254 | P7: 0.005826147751 | Q7: 5.176664737 | R7: -
A8: Exhaust pipe | B8: 0.0390625 | C8: 43.38489919 | D8: 0.03632938644 | E8: 40.34935726 | F8: 0.03349044902 | G8: 37.19628172 | H8: 0.03146119786 | I8: 34.94248697 | J8: 0.0390625 | K8: 34.70791935 | L8: 0.03632938644 | M8: 32.27948581 | N8: 0.03349044902 | O8: 29.75702537 | P8: 0.03146119786 | Q8: 27.95398958 | R8: -
A9: Engine gasket & packing | B9: 0.006944444444 | C9: 7.712870967 | D9: 0.006458557589 | E9: 7.173219069 | F9: 0.005953857604 | G9: 6.612672305 | H9: 0.005593101841 | I9: 6.211997684 | J9: 0.006944444444 | K9: 6.170296774 | L9: 0.006458557589 | M9: 5.738575255 | N9: 0.005953857604 | O9: 5.290137844 | P9: 0.005593101841 | Q9: 4.969598147 | R9: -
A10: Engine valve | B10: 0.006944444444 | C10: 7.712870967 | D10: 0.006458557589 | E10: 7.173219069 | F10: 0.005953857604 | G10: 6.612672305 | H10: 0.005593101841 | I10: 6.211997684 | J10: 0.006944444444 | K10: 6.170296774 | L10: 0.006458557589 | M10: 5.738575255 | N10: 0.005953857604 | O10: 5.290137844 | P10: 0.005593101841 | Q10: 4.969598147 | R10: -
A11: Engine control unit | B11: 0.04484953704 | C11: 49.81229166 | D11: 0.04171151776 | E11: 46.32703982 | F11: 0.03845199702 | G11: 42.70684197 | H11: 0.03612211606 | I11: 40.11915171 | J11: 0.04484953704 | K11: 39.84983333 | L11: 0.04171151776 | M11: 37.06163186 | N11: 0.03845199702 | O11: 34.16547358 | P11: 0.03612211606 | Q11: 32.09532137 | R11: -
A12: Oil cooler | B12: 0.007523148148 | C12: 8.355610214 | D12: 0.006996770721 | E12: 7.770987325 | F12: 0.006450012404 | G12: 7.16372833 | H12: 0.006059193661 | I12: 6.729664158 | J12: 0.007523148148 | K12: 6.684488171 | L12: 0.006996770721 | M12: 6.21678986 | N12: 0.006450012404 | O12: 5.730982664 | P12: 0.006059193661 | Q12: 5.383731326 | R12: -
A13: Oil filter | B13: 0.004340277778 | C13: 4.820544354 | D13: 0.004036598493 | E13: 4.483261918 | F13: 0.003721161002 | G13: 4.132920191 | H13: 0.003495688651 | I13: 3.882498552 | J13: 0.004340277778 | K13: 3.856435483 | L13: 0.004036598493 | M13: 3.586609535 | N13: 0.003721161002 | O13: 3.306336153 | P13: 0.003495688651 | Q13: 3.105998842 | R13: -
A14: Oil pump | B14: 0.01446759259 | C14: 16.06848118 | D14: 0.01345532831 | E14: 14.94420639 | F14: 0.01240387001 | G14: 13.77640064 | H14: 0.0116522955 | I14: 12.94166184 | J14: 0.01446759259 | K14: =$K$48*J14 -> 12.85478494 | L14: 0.01345532831 | M14: 11.95536512 | N14: 0.01240387001 | O14: 11.02112051 | P14: 0.0116522955 | Q14: 10.35332947 | R14: -
A15: Turbocharger and supercharger | B15: - | C15: - | D15: 0.06996770721 | E15: 77.70987325 | F15: - | G15: - | H15: 0.06059193661 | I15: 67.29664158 | J15: - | K15: - | L15: 0.06996770721 | M15: 62.1678986 | N15: - | O15: - | P15: 0.06059193661 | Q15: 53.83731326 | R15: -
A16: Gasoline fuel injection nozzle (injector) | B16: 0.02748842593 | C16: =$C$48*B16 -> 30.53011424 | D16: 0.02556512379 | E16: 28.39399215 | F16: - | G16: - | H16: - | I16: - | J16: 0.02748842593 | K16: =$K$48*J16 -> 24.4240914 | L16: 0.02556512379 | M16: 22.71519372 | N16: - | O16: - | P16: - | Q16: - | R16: -
A17: Canister | B17: 0.01446759259 | C17: =$C$48*B17 -> 16.06848118 | D17: 0.01345532831 | E17: 14.94420639 | F17: 0.01240387001 | G17: =$G$48*F17 -> 13.77640064 | H17: 0.0116522955 | I17: =$I$48*H17 -> 12.94166184 | J17: 0.01446759259 | K17: =$K$48*J17 -> 12.85478494 | L17: 0.01345532831 | M17: 11.95536512 | N17: 0.01240387001 | O17: =$O$48*N17 -> 11.02112051 | P17: 0.0116522955 | Q17: 10.35332947 | R17: -
A18: Crankshaft | B18: 0.07725694444 | C18: =$C$48*B18 -> 85.80568951 | D18: 0.07185145318 | E18: 79.80206215 | F18: 0.06623666584 | G18: 73.56597939 | H18: 0.06222325798 | I18: 69.10847423 | J18: 0.07725694444 | K18: =$K$48*J18 -> 68.64455161 | L18: 0.07185145318 | M18: 63.84164972 | N18: 0.06623666584 | O18: 58.85278351 | P18: 0.06222325798 | Q18: 55.28677939 | R18: -
A19: Glow plug | B19: - | C19: - | D19: - | E19: - | F19: 0.007194244604 | G19: 7.990312369 | H19: 0.006758331391 | I19: 7.506163868 | K19: - | L19: - | M19: - | N19: 0.007194244604 | O19: 6.392249895 | P19: 0.006758331391 | Q19: 6.004931094
A20: Connecting rod | B20: 0.0384837963 | C20: =$C$48*B20 -> 42.74215994 | D20: 0.0357911733 | E20: =$E$48*D20 -> 39.75158901 | F20: 0.03299429422 | G20: 36.64522569 | H20: 0.03099510604 | I20: 34.4248205 | J20: 0.0384837963 | K20: =$K$48*J20 -> 34.19372795 | L20: 0.0357911733 | M20: 31.80127121 | N20: 0.03299429422 | O20: 29.31618055 | P20: 0.03099510604 | Q20: 27.5398564 | R20: -
A21: Thermostat | B21: 0.002604166667 | C21: 2.892326613 | D21: 0.002421959096 | E21: 2.689957151 | F21: 0.002232696601 | G21: 2.479752114 | H21: 0.00209741319 | I21: 2.329499131 | J21: 0.002604166667 | K21: =$K$48*J21 -> 2.31386129 | L21: 0.002421959096 | M21: 2.151965721 | N21: 0.002232696601 | O21: 1.983801692 | P21: 0.00209741319 | Q21: 1.863599305 | R21: -
A22: Bearing metal (for engines) | B22: 0.005787037037 | C22: 6.427392472 | D22: 0.005382131324 | E22: 5.977682558 | F22: 0.004961548003 | G22: 5.510560254 | H22: 0.004660918201 | I22: 5.176664737 | J22: 0.005787037037 | K22: 5.141913978 | L22: 0.005382131324 | M22: 4.782146046 | N22: 0.004961548003 | O22: 4.408448203 | P22: 0.004660918201 | Q22: 4.141331789 | R22: -
A23: Catalytic device | B23: 0.03993055556 | C23: 44.34900806 | D23: 0.03713670614 | E23: 41.24600965 | F23: 0.03423468122 | G23: 38.02286575 | H23: 0.03216033559 | I23: 35.71898668 | J23: 0.03993055556 | K23: 35.47920645 | L23: 0.03713670614 | M23: 32.99680772 | N23: 0.03423468122 | O23: 30.4182926 | P23: 0.03216033559 | Q23: 28.57518935 | R23: -
A24: Cylinder liner | B24: 0.005497685185 | C24: 6.106022849 | D24: 0.005113024758 | E24: 5.67879843 | F24: 0.004713470603 | G24: 5.235032241 | H24: 0.004427872291 | I24: 4.9178315 | J24: 0.005497685185 | K24: 4.884818279 | L24: 0.005113024758 | M24: 4.543038744 | N24: 0.004713470603 | O24: 4.188025793 | P24: 0.004427872291 | Q24: 3.9342652 | R24: -
A25: Cylinder block | B25: 0.2553530093 | C25: 283.6086928 | D25: 0.2374865447 | E25: 263.7652429 | F25: 0.2189283056 | G25: 243.1534712 | H25: 0.2056630156 | I25: 228.4203315 | J25: 0.2553530093 | K25: 226.8869543 | L25: 0.2374865447 | M25: 211.0121943 | N25: 0.2189283056 | O25: 194.522777 | P25: 0.2056630156 | Q25: 182.7362652 | R25: -
A26: Throttle body | B26: 0.02141203704 | C26: 23.78135215 | D26: 0.0199138859 | E26: 22.11742546 | F26: 0.01835772761 | G26: 20.38907294 | H26: 0.01724539734 | I26: 19.15365953 | J26: 0.02141203704 | K26: 19.02508172 | L26: 0.0199138859 | M26: 17.69394037 | N26: 0.01835772761 | O26: 16.31125835 | P26: 0.01724539734 | Q26: 15.32292762
A27: Other exhaust gas recirculation (EGR) devices | B27: 0.03414351852 | C27: 37.92161559 | D27: 0.03175457481 | E27: 35.26832709 | F27: 0.02927313322 | G27: 32.5123055 | H27: 0.02749941739 | I27: 30.54232195 | J27: 0.03414351852 | K27: 30.33729247 | L27: 0.03175457481 | M27: 28.21466167 | N27: 0.02927313322 | O27: 26.0098444 | P27: 0.02749941739 | Q27: 24.43385756 | R27: -
A28: Timing chain and belt | B28: 0.00462962963 | C28: 5.141913978 | D28: 0.004305705059 | E28: 4.782146046 | F28: 0.003969238402 | G28: 4.408448203 | H28: 0.003728734561 | I28: 4.141331789 | J28: 0.00462962963 | K28: 4.113531182 | L28: 0.004305705059 | M28: 3.825716837 | N28: 0.003969238402 | O28: 3.526758563 | P28: 0.003728734561 | Q28: 3.313065431 | R28: -
A29: Timing gear cylinder head bolt | B29: 0.1252893519 | C29: 139.153047 | D29: 0.1165231432 | E29: 129.4168274 | F29: 0.1074175143 | G29: 119.3036295 | H29: 0.100908879 | I29: 112.0747915 | J29: 0.1252893519 | K29: 111.3224376 | L29: 0.1165231432 | M29: 103.5334619 | N29: 0.1074175143 | O29: 95.4429036 | P29: 0.100908879 | Q29: 89.65983324 | R29: -
A30: Diesel fuel injection nozzle | B30: - | C30: - | D30: - | E30: - | F30: 0.03572314562 | G30: 39.67603383 | H30: 0.03355861105 | I30: 37.2719861 | J30: - | K30: - | L30: - | M30: - | N30: 0.03572314562 | O30: 31.74082706 | P30: 0.03355861105 | Q30: 29.81758888 | R30: -
A31: Diesel fuel injection system (Common-rail + supply pump: Electronic type) | B31: - | C31: - | D31: - | E31: - | F31: 0.1421483503 | G31: 157.8775513 | H31: 0.1335353065 | I31: 148.3114447 | J31: - | K31: - | L31: - | M31: - | N31: 0.1421483503 | O31: 126.302041 | P31: 0.1335353065 | Q31: 118.6491558 | R31: -
A32: Ignition coil | B32: 0.01851851852 | C32: =$C$48*B32 -> 20.56765591 | D32: 0.01722282024 | E32: =$E$48*D32 -> 19.12858418 | F32: - | G32: - | H32: - | I32: - | J32: 0.01851851852 | K32: =$K$48*J32 -> 16.45412473 | L32: 0.01722282024 | M32: =$M$48*L32 -> 15.30286735 | N32: - | O32: - | P32: - | Q32: - | R32: -
A33: Spark plug | B33: 0.003472222222 | C33: =$C$48*B33 -> 3.856435483 | D33: 0.003229278794 | E33: =$E$48*D33 -> 3.586609535 | F33: - | G33: - | H33: - | I33: - | J33: 0.003472222222 | K33: =$K$48*J33 -> 3.085148387 | L33: 0.003229278794 | M33: 2.869287628 | N33: - | O33: - | P33: - | Q33: - | R33: -
A34: Fuel filter | B34: 0.008391203704 | C34: =$C$48*B34 -> 9.319719085 | D34: 0.00780409042 | E34: =$E$48*D34 -> 8.667639709 | F34: 0.007194244604 | G34: 7.990312369 | H34: 0.006758331391 | I34: 7.506163868 | J34: 0.008391203704 | K34: 7.455775268 | L34: 0.00780409042 | M34: 6.934111767 | N34: 0.007194244604 | O34: =$O$48*N34 -> 6.392249895 | P34: 0.006758331391 | Q34: =$Q$48*P34 -> 6.004931094 | R34: -
A35: Fuel pump (electric) | B35: 0.01157407407 | C35: 12.85478494 | D35: 0.01076426265 | E35: 11.95536512 | F35: 0.009923096006 | G35: 11.02112051 | H35: 0.009321836402 | I35: 10.35332947 | J35: 0.01157407407 | K35: 10.28382796 | L35: 0.01076426265 | M35: 9.564292092 | N35: 0.009923096006 | O35: 8.816896407 | P35: 0.009321836402 | Q35: 8.282663579 | R35: -
A36: Valve spring | B36: 0.006655092593 | C36: 7.391501343 | D36: 0.006189451023 | E36: 6.874334941 | F36: 0.005705780203 | G36: 6.337144292 | H36: 0.005360055931 | I36: 5.953164447 | J36: 0.006655092593 | K36: 5.913201075 | L36: 0.006189451023 | M36: 5.499467953 | N36: 0.005705780203 | O36: 5.069715434 | P36: 0.005360055931 | Q36: 4.762531558 | R36: -
A37: Valve rocker arm and shaft | B37: 0.005208333333 | C37: 5.784653225 | D37: 0.004843918192 | E37: 5.379914302 | F37: 0.004465393203 | G37: 4.959504229 | H37: 0.004194826381 | I37: 4.658998263 | J37: 0.005208333333 | K37: 4.62772258 | L37: 0.004843918192 | M37: 4.303931442 | N37: 0.004465393203 | O37: 3.967603383 | P37: 0.004194826381 | Q37: 3.72719861 | R37: -
A38: Valve driving parts and camshaft | B38: 0.01041666667 | C38: 11.56930645 | D38: 0.009687836383 | E38: 10.7598286 | F38: 0.008930786405 | G38: 9.919008458 | H38: 0.008389652762 | I38: 9.317996526 | J38: 0.01041666667 | K38: 9.25544516 | L38: 0.009687836383 | M38: 8.607862883 | N38: 0.008930786405 | O38: 7.935206766 | P38: 0.008389652762 | Q38: 7.454397221
A39: Piston | B39: 0.01099537037 | C39: 12.2120457 | D39: 0.01022604952 | E39: 11.35759686 | F39: 0.009426941206 | G39: 10.47006448 | H39: 0.008855744582 | I39: 9.835662999 | J39: 0.01099537037 | K39: 9.769636558 | L39: 0.01022604952 | M39: 9.086077488 | N39: 0.009426941206 | O39: 8.376051586 | P39: 0.008855744582 | Q39: 7.8685304 | R39: -
A40: Piston ring | B40: 0.005787037037 | C40: 6.427392472 | D40: 0.005382131324 | E40: 5.977682558 | F40: 0.004961548003 | G40: 5.510560254 | H40: 0.004660918201 | I40: 5.176664737 | J40: 0.005787037037 | K40: 5.141913978 | L40: 0.005382131324 | M40: 4.782146046 | N40: 0.004961548003 | O40: 4.408448203 | P40: 0.004660918201 | Q40: 4.141331789 | R40: -
A41: Fan and fan clutch | B41: 0.004050925926 | C41: 4.499174731 | D41: 0.003767491927 | E41: 4.18437779 | F41: 0.003473083602 | G41: 3.857392178 | H41: 0.003262642741 | I41: 3.623665316 | J41: 0.004050925926 | K41: 3.599339785 | L41: 0.003767491927 | M41: 3.347502232 | N41: 0.003473083602 | O41: 3.085913742 | P41: 0.003262642741 | Q41: 2.898932252
A42: Flywheel | B42: 0.01938657407 | C42: 21.53176478 | D42: 0.01803013994 | E42: 20.02523657 | F42: 0.01662118581 | G42: 18.46037685 | H42: 0.01561407597 | I42: 17.34182687 | J42: 0.01938657407 | K42: 17.22541183 | L42: 0.01803013994 | M42: 16.02018925 | N42: 0.01662118581 | O42: 14.76830148 | P42: 0.01561407597 | Q42: 13.87346149 | R42: -
A43: Hose (for engine) | B43: 0.02633101852 | C43: 29.24463575 | D43: 0.02448869752 | E43: 27.19845564 | F43: 0.02257504341 | G43: 25.07304916 | H43: 0.02120717781 | I43: 23.55382455 | J43: 0.02633101852 | K43: 23.3957086 | L43: 0.02448869752 | M43: 21.75876451 | N43: 0.02257504341 | O43: 20.05843933 | P43: 0.02120717781 | Q43: 18.84305964 | R43: -
A44: Muffler | B44: 0.02893518519 | C44: 32.13696236 | D44: 0.02691065662 | E44: 29.88841279 | F44: 0.02480774001 | G44: 27.55280127 | H44: 0.023304591 | I44: 25.88332368 | J44: 0.02893518519 | K44: 25.70956989 | L44: 0.02691065662 | M44: 23.91073023 | N44: 0.02480774001 | O44: 22.04224102 | P44: 0.023304591 | Q44: 20.70665895 | R44: -
A45: Water pump | B45: 0.006365740741 | C45: 7.07013172 | D45: 0.005920344456 | E45: 6.575450814 | F45: 0.005457702803 | G45: 6.06161628 | H45: 0.005127010021 | I45: 5.69433121 | J45: 0.006365740741 | K45: 5.656105376 | L45: 0.005920344456 | M45: 5.260360651 | N45: 0.005457702803 | O45: 4.849293024 | P45: 0.005127010021 | Q45: 4.555464968 | R45: -
A46: Radiator | B46: 0.02951388889 | C46: =$C$48*B46 -> 32.77970161 | D46: 0.02744886975 | E46: 30.48618104 | F46: 0.02530389482 | G46: 28.1038573 | H46: 0.02377068282 | I46: 26.40099016 | J46: 0.02951388889 | K46: 26.22376129 | L46: 0.02744886975 | M46: 24.38894484 | N46: 0.02530389482 | O46: 22.48308584 | P46: 0.02377068282 | Q46: 21.12079213 | R46: -
A47: Rotary engine dedicated parts | B47: 0 | C47: =$C$48*B47 -> 0 | D47: 0 | E47: 0 | F47: 0 | G47: 0 | H47: 0 | I47: 0 | J47: 0 | K47: 0 | L47: 0 | M47: 0 | N47: 0 | O47: 0 | P47: 0 | Q47: 0 | R47: -
A48: Total | B48: =SUM(B4:B47) -> 1 | C48: ='Driving condition'!C6/'Driving condition'!C5*('Driving condition'!C8-'Driving condition'!C7) -> 1110.653419 | D48: =SUM(D4:D47) -> 1 | E48: =C48 -> 1110.653419 | F48: =SUM(F4:F47) -> 1 | G48: ='Driving condition'!C6/'Driving condition'!C5*('Driving condition'!C10-'Driving condition'!C9) -> 1110.653419 | H48: =SUM(H4:H47) -> 1 | I48: =G48 -> 1110.653419 | J48: =SUM(J4:J47) -> 1 | K48: ='Driving condition'!C6/'Driving condition'!C5*('Driving condition'!C8-'Driving condition'!C7)*'Driving condition'!C11 -> 888.5227354 | L48: =SUM(L4:L47) -> 1 | M48: =K48 -> 888.5227354 | N48: =SUM(N4:N47) -> 1 | O48: ='Driving condition'!C6/'Driving condition'!C5*('Driving condition'!C10-'Driving condition'!C9)*'Driving condition'!C11 -> 888.5227354 | P48: =SUM(P4:P47) -> 1 | Q48: =O48 -> 888.5227354 | R48: 0
A49: Check | C49: =C48-SUM(C4:C47) -> 0 | E49: =E48-SUM(E4:E47) -> 0 | G49: =G48-SUM(G4:G47) -> 0 | I49: =I48-SUM(I4:I47) -> 0 | K49: =K48-SUM(K4:K47) -> 0 | M49: =M48-SUM(M4:M47) -> 0 | O49: =O48-SUM(O4:O47) -> 0 | Q49: =Q48-SUM(Q4:Q47) -> 0
C50: ↑ | E50: ↑ | G50: ↑ | I50: ↑ | K50: ↑ | M50: ↑ | O50: ↑ | Q50: ↑
J53: Click on this to change fuel economy

Sheet (5) Energy related CO2 emission
C1: CO2 | D1: CH4 | E1: N2O | F1: NOx | G1: SOx | H1: PM | I1: HC | J1: HCl | K1: BOD | L1: COD | M1: Source/Reference
C2: (g) | D2: (g) | E2: (g) | F2: (g) | G2: (g) | H2: (g) | I2: (g) | J2: (g) | K2: (g) | L2: (g)
A3: Gasoline | B3: When produced | C3: 280 | D3: - | E3: - | F3: 0.389 | G3: 0.322 | H3: 0 | I3: 0 | J3: - | K3: 0 | L3: 0 | M3: JAPIA LCI calculation tool (non-disclosure)
A4: 1(L) | B4: When burned | C4: 2321 | D4: - | E4: - | F4: # | G4: # | H4: # | I4: # | J4: - | K4: - | L4: - | M4: ↑
A5: Diesel fuel | B5: When produced | C5: 93 | D5: - | E5: - | F5: 0.244 | G5: 0.141 | H5: 0 | I5: 0 | J5: - | K5: 0 | L5: 0 | M5: ↑
A6: 1(L) | B6: When burned | C6: 2610 | D6: - | E6: - | F6: # | G6: # | H6: # | I6: # | J6: - | K6: - | L6: - | M6: ↑
A7: Electric power 1 (kWh) | B7: When produced | C7: 536 | D7: - | E7: - | F7: 0.198 | G7: 0.057 | H7: 0 | I7: - | J7: - | K7: 0 | L7: 0 | M7: JPIA LCI calculation guidelines Supplement 1 (non-disclosure)
A8: Hydrogen 1(Nm3) | B8: When produced | C8: 950 | D8: - | E8: - | F8: Under survey | G8: Under survey | H8: Under survey | I8: Under survey | J8: - | K8: Under survey | L8: Under survey | M8: April 14, 2014, Hydrogen and Fuel Cell Promotion Office, Natural Resources and Energy Agency
C9: (City gas)
C10: 1080
C11: (LPG)
C12: 1130
C13: (naphtha)

Sheet Reference chart
A1: Item | C1: JC08 four-wheeled passenger car | D1: WLTP four-wheeled passenger car | E1: JE05 heavy vehicle (truck) | F1: WHVC heavy vehicle (truck) | G1: JE05 heavy vehicle (bus) | H1: WHVC heavy vehicle (bus) | I1: WMTC_Class1_motorized two-wheeled vehicle Class 1 (not more than 50cc) | J1: WMTC_Class1_motorized two-wheeled vehicle Class 2 (more than 50cc and not more than 125cc) | K1: WMTC_Class2_light two-wheeled vehicle (more than 125cc and not more than 250cc) | L1: WMTC_Class3_small two-wheeled vehicle (more than 250cc) | M1: Remark
A2: Annual hour of use | B2: Hour of use per day [h] | C2: 2 | D2: 1.33557 | E2: 8 | F2: 8 | G2: 16 | H2: 16 | I2: － | J2: － | K2: － | L2: －
B3: Days of use per week [day] | C3: 5 | D3: 5 | E3: 5 | F3: 5 | G3: - | H3: - | I3: － | J3: － | K3: － | L3: －
B4: Weeks of use per year [week] | C4: 50 | D4: 50 | E4: 50 | F4: 50 | G4: - | H4: - | I4: － | J4: － | K4: － | L4: －
B5: How to approach | C5: ･50 weeks a year, 5 days a week, and 2 hours a day of use (assuming use for commuting in local cities for 1 hr in daytime and 1 hr after dark) | D5: ･50 weeks a year, 5 days a week, and 1.34 hours a day of use (assuming use for commuting in local cities for 0.67 hr in daytime and 0.67 hr after dark, including a travel in expressway) | E5: ・50 weeks a year, 5 days a week, and 8 hours a day of use based on improvements of truck driver's working hour standard issued by Labor Standards Bureau, Ministry of Health, Labor, and Welfare http://www.mhlw.go.jp/new-info/kobetu/roudou/gyousei/kantoku/dl/040330-10.pdf ・Years of use based on useful life for major depreciable assets issued by National Tax Agency https://www.keisan.nta.go.jp/survey/publish/34255/faq/34311/faq_34357.php | G5: ・16 hr a day (6 a.m. to 22 p.m.), 365 days of operation, assuming a fixed-routed bus | I5: ･Mostly different from four-wheeled vehicles in usage. So, not specified in terms of envisaged commuting time like four-wheeled vehicles
A6: Years of use [year] | C6: 10 | D6: 10 | E6: =5*3 -> 15 | F6: =5*3 -> 15 | G6: =5*4 -> 20 | H6: =5*4 -> 20 | I6: － | J6: － | K6: － | L6: －
B7: How to approach | C7: ･As a representative value, a period two times the extended warranty period of five years for typical motor vehicles | E7: ･As a representative value, a period three times the useful life for major depreciable assets issued by National Tax Agency https://www.keisan.nta.go.jp/survey/publish/34255/faq/34311/faq_34357.php [Reference] http://www.jta.or.jp/coho/hayawakari/14.sonota.html | G7: ･As a representative value, a period four times the useful life for major depreciable assets issued by National Tax Agency https://www.keisan.nta.go.jp/survey/publish/34255/faq/34311/faq_34357.php [Reference] https://www.env.go.jp/council/06earth/y0613-16/ref06-10.pdf | I7: － | J7: － | K7: － | L7: －
A8: Life-time hour of use [h] | C8: =C2*C3*C4*C6 -> 5000 | D8: =D2*D3*D4*D6 -> 3338.925 | E8: =E2*E3*E4*E6 -> 30000 | F8: =F2*F3*F4*F6 -> 30000 | G8: =G2*G6*365 -> 116800 | H8: =H2*H6*365 -> 116800 | I8: =I11/I13*I12/3600 -> 477.7000912 | J8: =J11/J13*J12/3600 -> 868.5456204 | K8: 505.8904621 | L8: =L11/L13*L12/3600 -> 345.8366076 | M8: ･Life-time hours of use for two-wheeled vehicles is calculated from life-time travel distance and distance/time of mode driving
B9: Source of driving patterns | C9: ･Adopted as a model of commuting use. ･Pursuant to Public Notice Attachment 42 specifying requirements of safety standards for road transport vehicles http://www.mlit.go.jp/jidosha/kijyun/saimokubetten/saibet_042_00.pdf | D9: ・Global technical regulation on Worldwide harmonized Light vehicles Test Procedure ※Scope: Class3b Test cycles: Low speed + middle speed + high speed https://www.unece.org/fileadmin/DAM/trans/main/wp29/wp29r-1998agr-rules/ECE-TRANS-180a15e.pdf | E9: ・Public Notice Attachment 41 of April 4, 2017 specifying requirements of safety standards for road transport vehicles (method of measuring exhaust emissions from heavy vehicles) JE05 mode http://www.mlit.go.jp/common/001184849.pdf | F9: ・Speed modes based on WHVC: United Nations ECE/TRANS/WP.29/GRPE/69/Add.2 I. Adopted technical report on the development of the draft Amendment 3 to global technical regulation (gtr) No. 4 | G9: Same as trucks | H9: Same as trucks | I9: ･Adopted as a model of typical use. ･Driving modes varied with engine capacity ･Global technical regulation No. 2 MEASUREMENT PROCEDURE FOR TWO-WHEELED MOTORCYCLES EQUIPPED WITH A POSITIVE OR COMPRESSION IGNITION ENGINE WITH REGARD TO THE EMISSION OF GASEOUS POLLUTANTS, CO2 EMISSIONS AND FUEL CONSUMPTION https://www.unece.org/trans/main/wp29/wp29wgs/wp29gen/wp29glob_registry.html
F10: ・Engine speed based on WHTC: United Nations ECE/TRANS/WP.29/GRPE/2014/11 Proposal for draft Amendment 3 to global technical regulation (gtr) No. 4: Test procedure for compression-ignition (C.I.) engines and positive-ignition (P.I.) engines fuelled with natural gas (NG) or liquefied petroleum gas (LPG) with regard to the emission of pollutants https://www.unece.org/fileadmin/DAM/trans/doc/2014/wp29grpe/ECE-TRANS-WP29-GRPE-2014-11e.pdf
A11: Life-time travel distance | B11: [km] | C11: =C8*3600/C12*C13 -> 122170.6811 | D11: =D8*3600/D12*D13 -> 122171.8761 | E11: =E8*3600/E12*E13 -> 820309.7321 | F11: =F8*3600/F12*F13 -> 1204324 | G11: 3193739.224 | H11: =H8*3600/H12*H13 -> 4688834.773 | I11: 11000 | J11: 20000 | K11: 20000 | L11: 20000 | M11: ･Driving modes are repeated during life-time hours of use
B12: Mode travel time [s] | C12: ='JC08'!A1219 -> 1204 | D12: =WLTP!A1492 -> 1477 | E12: ='JE05'!A1844 -> 1829 | F12: =WHVC!A1815 -> 1800 | G12: ='JE05'!A1844 -> 1829 | H12: =WHVC!A1815 -> 1800 | I12: =WMTC_Class1_1!A615 -> 600 | J12: =WMTC_Class1_2!A615 -> 600 | K12: =WMTC_Class2!A1215 -> 1200 | L12: =WMTC_Class3!A1815 -> 1800
B13: Mode travel distance [km] | C13: ='JC08'!F1220/1000 -> 8.171861111 | D13: =WLTP!F1493/1000 -> 15.01213889 | E13: ='JE05'!F1845/1000 -> 13.89209722 | F13: =WHVC!F1816/1000 -> 20.07206667 | G13: ='JE05'!F1845/1000 -> 13.89209722 | H13: =WHVC!F1816/1000 -> 20.07206667 | I13: =WMTC_Class1_1!F616/1000 -> 3.837833333 | J13: =WMTC_Class1_2!F616/1000 -> 3.837833333 | K13: =WMTC_Class2!F1216/1000 -> 13.17808333 | L13: =WMTC_Class3!F1816/1000 -> 28.91538889
A14: Life-time travel pattern repetition count [count] | C14: =C8*3600/C12 -> 14950.16611 | D14: 8138.205823 | E14: 59048.66047 | F14: 60000 | G14: 229896.1181 | H14: 233600 | I14: 2866.200547 | J14: =J8*3600/J12 -> 5211.273722 | K14: 1517.671386 | L14: 691.6732151 | M14: ･Life-time hours of use÷mode time
A15: Fuel economy | B15: Gasoline engine and diesel engine [km/L] | C15: 17.6 | E15: 7.46 | G15: 5.8 | I15: 48 | J15: 45.3 | K15: 38.4 | L15: 23.4
B16: [L/100km] | C16: =100/C15 -> 5.681818182 | E16: =100/E15 -> 13.40482574 | G16: =100/G15 -> 17.24137931 | I16: =100/I15 -> 2.083333333 | J16: =100/J15 -> 2.207505519 | K16: 2.604166667 | L16: 4.273504274
B17: Source | C17: ･As a representative value, a median of standards for "gasoline passenger cars, diesel passenger cars, LP gas passenger vehicles (riding capacity of 10 or less) and small buses (passenger cars with riding capacity of 11 or more and gross vehicle weight of 3.5t or less)" as target fiscal year of FY2020 in criteria for judging manufacturers of energy-consuming equipment with regard to passenger car energy-consumption performance improvement (in Public Notice No. 2 issued by Ministry of Economy, Trade and Industry and Ministry of Land, Infrastructure, Transport and Tourism on March 1, 2013) http://www.mlit.go.jp/common/001023498.pdf http://www.mlit.go.jp/common/000991480.pdf | E17: ･As a representative value, a median of (1) target standards for goods vehicles (trucks) in (heavy vehicle fuel economy standards dated December 12, 2017) jointly issued by Energy Conservation and New Energy Subcommittees of the Advisory Committee on Natural Resources and Energy, Energy Subcommittee, Vehicle Judgment Criteria working group and Council of Transport Policy, Land Transport Subcommittee, Motor Vehicle group, Vehicle Fuel Economy Standard Subcommittee http://www.meti.go.jp/report/whitepaper/data/pdf/20171212001_1.pdf | G17: ･As a representative value, a median of (2) target standards for passenger vehicles (fixed-routed buses) in (heavy vehicle fuel economy standards dated December 12, 2017) jointly issued by Energy Conservation and New Energy Subcommittees of the Advisory Committee on Natural Resources and Energy, Energy Subcommittee, Vehicle Judgment Criteria working group and Council of Transport Policy, Land Transport Subcommittee, Motor Vehicle group, Vehicle Fuel Economy Standard Subcommittee http://www.meti.go.jp/report/whitepaper/data/pdf/20171212001_1.pdf | I17: ･June 27, 2012, (51st) Central Environment Council, Air Environment Subcommittee, Vehicle Emission Expert Panel http://www.env.go.jp/council/former2013/07air/y071-51a.html ･Information for review Material 51-3 "Future measures for reducing motor vehicle emissions (11th report) (draft)" 2/4 http://www.env.go.jp/council/former2013/07air/y071-51/mat03-2.pdf
A18: Vehicle mass | B18: [kg] | C18: 1476 | E18: 9000 | G18: 11000 | I18: 83 | J18: 115 | K18: 150 | L18: 206
B19: Source | C19: ･As a representative value, a median of representative fuel economy values in fuel economy standards for vehicle weight class "1421 to 1530kg". | E19: ･As a representative value, a median of representative fuel economy values in fuel economy standards for (1) vehicle weight class of goods vehicles of "8＜GVW gross vehicle weight≤10(t)". | G19: ･As a representative value, a median of representative fuel economy values in fuel economy standards for (2) vehicle weight class of goods vehicles of "10＜GVW gross vehicle weight≤12(t)". | I19: Values representing vehicle weights (kerb weight) set as a default in Worldwide harmonized Motorcycle emissions Certification/Test procedure (WMTC) informal group WMTC-gear selection sheets
A20: Internal combustion engine energy efficiency | B20: Gasoline engine effective work ratio (thermal efficiency):30[%] | C20: 0.3 | I20: 0.25 | M20: ・Representative values for effective works are based on an independent study ･Diesel engines do not apply to motorcycles
B21: Gasoline engine theoretical thermal efficiency：46[%] | C21: 0.46
B22: How to approach | C22: ･Representative ratio of effective work to thermal balance is assumed to be 30%. ･Calculation formula for Otto cycle theoretical thermal efficiency: η=1-ε1-κ where, ε is compression ratio and κ is specific heat ratio, assuming ε=10, κ=1.27, and η=0.46 | I22: ･Representative ratio of effective work to thermal balance is assumed to be 25%. ･Calculation formula for Otto cycle theoretical thermal efficiency: η=1-ε1-κ where, ε is compression ratio and κ is specific heat ratio, assuming ε=10, κ=1.27, and η=0.46
B23: Diesel engine effective work ratio (thermal efficiency):40[%] | C23: 0.4 | I23: －
B24: Diesel engine theoretical thermal efficiency：56[%] | C24: 0.56 | I24: －
B25: How to approach | C25: ･Representative ratio of effective work to thermal balance is assumed to be 40%. ･Calculation formula for Diesel cycle theoretical thermal efficiency: η=1-ε1-κ･(σκ-1)/κ(σ-1) where, ε is compression ratio, κ is specific heat ratio, and σ is isobaric expansion ratio (cut-off ratio) assuming ε=16, κ=1.32, σ=1.5, and η=0.56 | I25: －
A26: Linear acceleration work per 1kg in driving mode [J] | C26: ='JC08'!M1221 -> 1441.929012 | D26: =WLTP!M1494 -> 2543.755015 | E26: ='JE05'!M1846 -> 1683.520687 | F26: =WHVC!M1817 -> 2093.58973 | G26: ='JE05'!M1846 -> 1683.520687 | H26: =WHVC!M1817 -> 2093.58973 | I26: =WMTC_Class1_1!M617 -> 672.9641204 | J26: =WMTC_Class1_2!M617 -> 672.9641204 | K26: =WMTC_Class2!M1217 -> 2541.192515 | L26: =WMTC_Class3!M1817 -> 4299.23071
A27: Angular speed and engine speed calculation condition in driving modes | B27: No. of shifts | C27: ='JC08'!Z2 -> 6 | D27: =WLTP!Z2 -> 6 | E27: ='JE05'!Y2 -> 5 | F27: Specified at maximum rotational speed | G27: ='JE05'!Y2 -> 5 | H27: Specified at maximum rotational speed | I27: =WMTC_Class1_1!X2 -> 4 | J27: =WMTC_Class1_2!Z2 -> 6 | K27: =WMTC_Class2!Y2 -> 5 | L27: =WMTC_Class3!Z2 -> 6 | M27: ･Assumed as a representative value
B28: Gear ratio | C28: Specified individually for each mode
B29: Final reduction ratio | C29: ='JC08'!U4 -> 4.1 | D29: =WLTP!U4 -> 4.1 | E29: ='JE05'!U4 -> 4.875 | F29: Specified at maximum rotational speed | G29: ='JE05'!U4 -> 4.875 | H29: Specified at maximum rotational speed | I29: Specified with regard to NV ratio
B30: Engine speed when vehicle stops [rpm] | C30: ='JC08'!V7 -> 800 | D30: =WLTP!V7 -> 800 | E30: ='JE05'!V7 -> 700 | F30: =WHVC!V7 -> 700 | G30: ='JE05'!V7 -> 700 | H30: =WHVC!V7 -> 700 | I30: =WMTC_Class1_1!V7 -> 1700 | J30: =WMTC_Class1_2!V7 -> 2000 | K30: =WMTC_Class2!V7 -> 1200 | L30: =WMTC_Class3!V7 -> 1300
B31: Tire outer diameter [m] | C31: ='JC08'!V10 -> 0.6 | D31: =WLTP!V10 -> 0.6 | E31: ='JE05'!V10 -> 0.778 | F31: =WHVC!V10 -> 0.778 | G31: ='JE05'!V10 -> 0.778 | H31: =WHVC!V10 -> 0.778 | I31: =WMTC_Class1_1!V10 -> 0.6 | J31: =WMTC_Class1_2!V10 -> 0.6 | K31: =WMTC_Class2!V10 -> 0.6 | L31: =WMTC_Class3!V10 -> 0.6
B32: Average engine speed [rpm] | C32: ='JC08'!S1221 -> 1505.113199 | D32: =WLTP!S1494 -> 1556.446953 | E32: ='JE05'!S1846 -> 1496.685825 | F32: =WHVC!S1817 -> 2294.478222 | G32: ='JE05'!S1846 -> 1496.685825 | H32: =WHVC!S1817 -> 2294.478222 | I32: =WMTC_Class1_1!S617 -> 3491.6458 | J32: =WMTC_Class1_2!S617 -> 3315.077117 | K32: =WMTC_Class2!S1217 -> 10030.79895 | L32: =WMTC_Class3!S1817 -> 15664.27932
B33: Source | C33: ･Pursuant to Public Notice Attachment 42 specifying requirements of safety standards for road transport vehicles | D33: ･Based on initial settings specified in WLTP gear shift calculation tool WLTP_gearshift_calculation_31012017.mdb. [Reference] https://pypi.python.org/pypi/wltp/0.0.8-alpha.2 | E33: ・Public Notice of April 4, 2017, Attachment 41, specifying requirements of safety standards for road transport vehicles (Method of measuring exhaust emissions from heavy vehicles) JE05 mode http://www.mlit.go.jp/common/001184849.pdf ・Tire outer diameter is based on "2. Further sophistication of fuel economy test method for heavy vehicles" by National Traffic Safety and Environment Laboratory https://www.ntsel.go.jp/forum/2013files/1206_1120.pdf | F33: Based on WHTC: United Nations ECE/TRANS/WP.29/GRPE/2014/11 https://www.unece.org/fileadmin/DAM/trans/doc/2014/wp29grpe/ECE-TRANS-WP29-GRPE-2014-11e.pdf | G33: Same as trucks | H33: Same as trucks | I33: ･Based on initial settings described in the WMTC-Gearshift-Sheets prepared by Worldwide harmonized Motorcycle emissions Certification/Test procedure (WMTC) informal group http://www.unece.org/trans/main/wp29/wp29wgs/wp29grpe/wmtc.html
A34: Rotational acceleration work per 1kg･m2 in driving modes [J] | C34: ='JC08'!R1221 -> 16021.43347 | D34: =WLTP!R1494 -> 28263.94462 | E34: ='JE05'!R1846 -> 11125.49274 | F34: =WHVC!R1817 -> 13835.42093 | G34: ='JE05'!R1846 -> 11125.49274 | H34: =WHVC!R1817 -> 13835.42093 | I34: =WMTC_Class1_1!R617 -> 7477.379115 | J34: =WMTC_Class1_2!R617 -> 7477.379115 | K34: =WMTC_Class2!R1217 -> 28235.47239 | L34: =WMTC_Class3!R1817 -> 47769.23011

Sheet JC08
T1: Precondition for transmissions
T2: Shift position | U2: 1 | V2: 2 | W2: 3 | X2: 4 | Y2: 5 | Z2: 6
T3: Gear ratio | U3: 3.6 | V3: 2.16 | W3: 1.52 | X3: 1.2 | Y3: 1 | Z3: 0.76
T4: Final reduction ratio | U4: 4.1
T6: Precondition for engine idling
T7: When vehicle stops 0km/h(rpm) | V7: 800
T9: Precondition for tires
T10: Outer diameter (m) | V10: 0.6
A11: JC08 mode table based on public notice specifying safety standards requirement for road transport vehicles | F11: Various parameters calculated from mode tables
T12: Vehicle speed in first gear at idling speed (m/s) * Idling speed when speeds lower than this are obtained by calculation | V12: =V7/(U3*U4)*PI()*V10/60 -> 1.702760246
A13: Elapsed time | C13: Standard shift position
B14: Speed | C14: A | D14: B | E14: C | F14: Speed | G14: Speed change | H14: (Speed)2 | I14: Acceleration: 1 | J14: Acceleration start | K14: Acceleration end | L14: (Acceleration start | M14: (Acceleration end | N14: Air resistance work coefficient | O14: Angular speed | P14: (Angular speed)2 | Q14: (Acceleration start | R14: (Acceleration end | S14: Engine speed
A15: [sec] | B15: [km/h] | F15: [m/s] | G15: (m/s) | H15: [m/s]2 | I15: Deceleration: 0 | J15: point | K15: point | L15: speed v)2 | M15: speed v')2 | N15: (speed V)2×distance L | O15: ω(rad/s) | P15: [rad/s]2 | Q15: angular speed ω)2 | R15: angular speed ω')2 | S15: [round/s]
A16: 1 | B16: 0 | C16: N | D16: N | E16: N | F16: =B16*1000/3600 -> 0 | G16: =F17-F16 -> 0 | H16: =F16*F16 -> 0 | I16: =IF(F16<=F17,1,0) -> 1 | J16: 1 | L16: =IF(J16="","-",J16*H16) -> 0 | M16: =IF(K16="","-",K16*H16) -> - | N16: =H16*F16 -> 0 | O16: =F16/($V$10/2) -> 0 | P16: =O16*O16 -> 0 | Q16: =IF(J16="","-",P16*J16) -> 0 | R16: =IF(K16="","-",P16*K16) -> - | S16: =IF(OR(F16<$V$12,C16="N"),$V$7/60,IF(C16=1,$U$3,IF(C16=2,$V$3,IF(C16=3,$W$3,IF(C16=4,$X$3,IF(C16=5,$Y$3,$Z$3)))))*$U$4*F16/(PI()*$V$10)) -> 13.33333333
A17: 2 | B17: 0 | C17: N | D17: N | E17: N | F17: =B17*1000/3600 -> 0 | G17: =F18-F17 -> 0 | H17: =F17*F17 -> 0 | I17: =IF(F17<=F18,1,0) -> 1 | J17: =IF(I16<I17,1,"") ->  | K17: =IF(I16>I17,1,"") ->  | L17: =IF(J17="","-",J17*H17) -> - | M17: - | N17: =H17*F17 -> 0 | O17: 0 | P17: =O17*O17 -> 0 | Q17: =IF(J17="","-",P17*J17) -> - | R17: =IF(K17="","-",P17*K17) -> - | S17: =IF(OR(F17<$V$12,C17="N"),$V$7/60,IF(C17=1,$U$3,IF(C17=2,$V$3,IF(C17=3,$W$3,IF(C17=4,$X$3,IF(C17=5,$Y$3,$Z$3)))))*$U$4*F17/(PI()*$V$10)) -> 13.33333333
A18: 3 | B18: 0 | C18: N | D18: N | E18: N | F18: 0 | G18: =F19-F18 -> 0 | H18: 0 | I18: =IF(F18<=F19,1,0) -> 1 | J18: =IF(I17<I18,1,"") ->  | K18: =IF(I17>I18,1,"") ->  | L18: - | M18: - | N18: 0 | O18: 0 | P18: 0 | Q18: - | R18: - | S18: 13.33333333
A19: 4 | B19: 0 | C19: N | D19: N | E19: N | F19: 0 | G19: 0 | H19: 0 | I19: 1 | L19: - | M19: - | N19: 0 | O19: 0 | P19: 0 | Q19: - | R19: - | S19: 13.33333333
A20: 5 | B20: 0 | C20: N | D20: N | E20: N | F20: 0 | G20: 0 | H20: 0 | I20: 1 | L20: - | M20: - | N20: 0 | O20: 0 | P20: 0 | Q20: - | R20: - | S20: 13.33333333
A21: 6 | B21: 0 | C21: N | D21: N | E21: N | F21: 0 | G21: 0 | H21: 0 | I21: 1 | L21: - | M21: - | N21: 0 | O21: 0 | P21: 0 | Q21: - | R21: - | S21: 13.33333333
A22: 7 | B22: 0 | C22: N | D22: N | E22: N | F22: 0 | G22: =F23-F22 -> 0 | H22: 0 | I22: 1 | L22: - | M22: - | N22: 0 | O22: 0 | P22: 0 | Q22: - | R22: - | S22: 13.33333333
A23: 8 | B23: 0 | C23: N | D23: N | E23: N | F23: 0 | G23: =F24-F23 -> 0 | H23: 0 | I23: 1 | L23: - | M23: - | N23: 0 | O23: 0 | P23: 0 | Q23: - | R23: - | S23: 13.33333333
A24: 9 | B24: 0 | C24: N | D24: N | E24: N | F24: 0 | G24: 0 | H24: 0 | I24: 1 | L24: - | M24: - | N24: 0 | O24: 0 | P24: 0 | Q24: - | R24: - | S24: 13.33333333
A25: 10 | B25: 0 | C25: N | D25: N | E25: N | F25: 0 | G25: 0 | H25: 0 | I25: 1 | L25: - | M25: - | N25: 0 | O25: 0 | P25: 0 | Q25: - | R25: - | S25: 13.33333333
A26: 11 | B26: 0 | C26: N | D26: N | E26: N | F26: 0 | G26: 0 | H26: 0 | I26: 1 | L26: - | M26: - | N26: 0 | O26: 0 | P26: 0 | Q26: - | R26: - | S26: 13.33333333
A27: 12 | B27: 0 | C27: N | D27: N | E27: N | F27: 0 | G27: 0 | H27: 0 | I27: 1 | L27: - | M27: - | N27: 0 | O27: 0 | P27: 0 | Q27: - | R27: - | S27: 13.33333333
A28: 13 | B28: 0 | C28: N | D28: N | E28: N | F28: 0 | G28: 0 | H28: 0 | I28: 1 | L28: - | M28: - | N28: 0 | O28: 0 | P28: 0 | Q28: - | R28: - | S28: 13.33333333
A29: 14 | B29: 0 | C29: N | D29: N | E29: N | F29: 0 | G29: 0 | H29: 0 | I29: 1 | L29: - | M29: - | N29: 0 | O29: 0 | P29: 0 | Q29: - | R29: - | S29: 13.33333333
A30: 15 | B30: 0 | C30: N | D30: N | E30: N | F30: 0 | G30: 0 | H30: 0 | I30: 1 | L30: - | M30: - | N30: 0 | O30: 0 | P30: 0 | Q30: - | R30: - | S30: 13.33333333
A31: 16 | B31: 0 | C31: N | D31: N | E31: N | F31: 0 | G31: 0 | H31: 0 | I31: 1 | L31: - | M31: - | N31: 0 | O31: 0 | P31: 0 | Q31: - | R31: - | S31: 13.33333333
A32: 17 | B32: 0 | C32: N | D32: N | E32: N | F32: 0 | G32: 0 | H32: 0 | I32: 1 | L32: - | M32: - | N32: 0 | O32: 0 | P32: 0 | Q32: - | R32: - | S32: 13.33333333
A33: 18 | B33: 0 | C33: N | D33: N | E33: N | F33: 0 | G33: 0 | H33: 0 | I33: 1 | L33: - | M33: - | N33: 0 | O33: 0 | P33: 0 | Q33: - | R33: - | S33: 13.33333333
A34: 19 | B34: 0 | C34: N | D34: N | E34: N | F34: 0 | G34: 0 | H34: 0 | I34: 1 | L34: - | M34: - | N34: 0 | O34: 0 | P34: 0 | Q34: - | R34: - | S34: 13.33333333
A35: 20 | B35: 0 | C35: N | D35: N | E35: N | F35: 0 | G35: 0 | H35: 0 | I35: 1 | L35: - | M35: - | N35: 0 | O35: 0 | P35: 0 | Q35: - | R35: - | S35: 13.33333333
A36: 21 | B36: 0 | C36: 1 | D36: 1 | E36: 1 | F36: 0 | G36: 0 | H36: 0 | I36: 1 | L36: - | M36: - | N36: 0 | O36: 0 | P36: 0 | Q36: - | R36: - | S36: 13.33333333
A37: 22 | B37: 0 | C37: 1 | D37: 1 | E37: 1 | F37: 0 | G37: 0 | H37: 0 | I37: 1 | L37: - | M37: - | N37: 0 | O37: 0 | P37: 0 | Q37: - | R37: - | S37: 13.33333333
A38: 23 | B38: 0 | C38: 1 | D38: 1 | E38: 1 | F38: 0 | G38: 0 | H38: 0 | I38: 1 | L38: - | M38: - | N38: 0 | O38: 0 | P38: 0 | Q38: - | R38: - | S38: 13.33333333
A39: 24 | B39: 0 | C39: 1 | D39: 1 | E39: 1 | F39: 0 | G39: 0 | H39: 0 | I39: 1 | L39: - | M39: - | N39: 0 | O39: 0 | P39: 0 | Q39: - | R39: - | S39: 13.33333333
A40: 25 | B40: 0 | C40: 1 | D40: 1 | E40: 1 | F40: 0 | G40: 0 | H40: 0 | I40: 1 | L40: - | M40: - | N40: 0 | O40: 0 | P40: 0 | Q40: - | R40: - | S40: 13.33333333
A41: 26 | B41: 0 | C41: 1 | D41: 1 | E41: 1 | F41: 0 | G41: 1.361111111 | H41: 0 | I41: 1 | L41: - | M41: - | N41: 0 | O41: 0 | P41: 0 | Q41: - | R41: - | S41: 13.33333333
A42: 27 | B42: 4.9 | C42: 1 | D42: 1 | E42: 1 | F42: 1.361111111 | G42: 1.361111111 | H42: 1.852623457 | I42: 1 | L42: - | M42: - | N42: 2.521626372 | O42: 4.537037037 | P42: 20.58470508 | Q42: - | R42: - | S42: 13.33333333
A43: 28 | B43: 9.8 | C43: 1 | D43: 1 | E43: 1 | F43: 2.722222222 | G43: 1.111111111 | H43: 7.410493827 | I43: 1 | L43: - | M43: - | N43: 20.17301097 | O43: 9.074074074 | P43: 82.3388203 | Q43: - | R43: - | S43: 21.31615204
A44: 29 | B44: 13.8 | C44: 1 | D44: 1 | E44: 1 | F44: 3.833333333 | G44: 0.7777777778 | H44: 14.69444444 | I44: 1 | L44: - | M44: - | N44: 56.3287037 | O44: 12.77777778 | P44: 163.2716049 | Q44: - | R44: - | S44: 30.01662227
A45: 30 | B45: 16.6 | C45: 1 | D45: 2 | E45: 1 | F45: 4.611111111 | G45: 0.5 | H45: 21.26234568 | I45: 1 | L45: - | M45: - | N45: 98.04303841 | O45: 15.37037037 | P45: 236.2482853 | Q45: - | R45: - | S45: 36.10695142
A46: 31 | B46: 18.4 | C46: 1 | D46: 2 | E46: 1 | F46: 5.111111111 | G46: 0.4722222222 | H46: 26.12345679 | I46: 1 | L46: - | M46: - | N46: 133.5198903 | O46: 17.03703704 | P46: 290.260631 | Q46: - | R46: - | S46: 40.02216302
A47: 32 | B47: 20.1 | C47: 2 | D47: 2 | E47: 1 | F47: 5.583333333 | G47: 0.4444444444 | H47: 31.17361111 | I47: 1 | L47: - | M47: - | N47: 174.052662 | O47: 18.61111111 | P47: 346.3734568 | Q47: - | R47: - | S47: 26.23191772
A48: 33 | B48: 21.7 | C48: 2 | D48: 2 | E48: 1 | F48: 6.027777778 | G48: 0.2777777778 | H48: 36.33410494 | I48: 1 | L48: - | M48: - | N48: 219.0139103 | O48: 20.09259259 | P48: 403.7122771 | Q48: - | R48: - | S48: 28.32003057
A49: 34 | B49: 22.7 | C49: 2 | D49: 2 | E49: 2 | F49: 6.305555556 | G49: 0.2222222222 | H49: 39.76003086 | I49: 1 | L49: - | M49: - | N49: 250.7090835 | O49: 21.01851852 | P49: 441.7781207 | Q49: - | R49: - | S49: 29.62510111
A50: 35 | B50: 23.5 | C50: 2 | D50: 2 | E50: 2 | F50: 6.527777778 | G50: 0.3333333333 | H50: 42.61188272 | I50: 1 | L50: - | M50: - | N50: 278.1609011 | O50: 21.75925926 | P50: 473.4653635 | Q50: - | R50: - | S50: 30.66915753
A51: 36 | B51: 24.7 | C51: 2 | D51: 2 | E51: 2 | F51: 6.861111111 | G51: 0.3888888889 | H51: 47.07484568 | I51: 1 | L51: - | M51: - | N51: 322.9857467 | O51: 22.87037037 | P51: 523.0538409 | Q51: - | R51: - | S51: 32.23524217
A52: 37 | B52: 26.1 | C52: 2 | D52: 2 | E52: 2 | F52: 7.25 | G52: 0.4166666667 | H52: 52.5625 | I52: 1 | L52: - | M52: - | N52: 381.078125 | O52: 24.16666667 | P52: 584.0277778 | Q52: - | R52: - | S52: 34.06234092
A53: 38 | B53: 27.6 | C53: 2 | D53: 2 | E53: 2 | F53: 7.666666667 | G53: 0.6388888889 | H53: 58.77777778 | I53: 1 | L53: - | M53: - | N53: 450.6296296 | O53: 25.55555556 | P53: 653.0864198 | Q53: - | R53: - | S53: 36.01994672
A54: 39 | B54: 29.9 | C54: 2 | D54: 3 | E54: 2 | F54: 8.305555556 | G54: 0.8055555556 | H54: 68.98225309 | I54: 1 | L54: - | M54: - | N54: 572.9359354 | O54: 27.68518519 | P54: 766.4694787 | Q54: - | R54: - | S54: 39.02160895
A55: 40 | B55: 32.8 | C55: 2 | D55: 3 | E55: 2 | F55: 9.111111111 | G55: 1.194444444 | H55: 83.01234568 | I55: 1 | L55: - | M55: - | N55: 756.3347051 | O55: 30.37037037 | P55: 922.3593964 | Q55: - | R55: - | S55: 42.80631349
A56: 41 | B56: 37.1 | C56: 3 | D56: 3 | E56: 2 | F56: 10.30555556 | G56: 0.1944444444 | H56: 106.2044753 | I56: =IF(F56<=F57,1,0) -> 1 | L56: - | M56: - | N56: 1094.496121 | O56: 34.35185185 | P56: 1180.049726 | Q56: - | R56: - | S56: 34.07200811
A57: 42 | B57: 37.8 | C57: 3 | D57: 3 | E57: 3 | F57: 10.5 | G57: -0.3333333333 | H57: 110.25 | I57: =IF(F57<=F58,1,0) -> 0 | K57: =IF(I56>I57,1,"") -> 1 | L57: - | M57: 110.25 | N57: 1157.625 | O57: 35 | P57: 1225 | Q57: - | R57: 1225 | S57: 34.71487619
A58: 43 | B58: 36.6 | C58: 3 | D58: 3 | E58: 3 | F58: 10.16666667 | G58: -0.02777777778 | H58: 103.3611111 | I58: 0 | L58: - | M58: - | N58: 1050.837963 | O58: 33.88888889 | P58: 1148.45679 | Q58: - | R58: - | S58: 33.61281663
A59: 44 | B59: 36.5 | C59: 3 | D59: 3 | E59: 3 | F59: 10.13888889 | G59: 0.3333333333 | H59: 102.7970679 | I59: 1 | J59: 1 | L59: 102.7970679 | M59: - | N59: 1042.24805 | O59: 33.7962963 | P59: 1142.189643 | Q59: 1142.189643 | R59: - | S59: 33.52097833
A60: 45 | B60: 37.7 | C60: 3 | D60: 3 | E60: 3 | F60: 10.47222222 | G60: 0.3333333333 | H60: 109.6674383 | I60: 1 | L60: - | M60: - | N60: 1148.461784 | O60: 34.90740741 | P60: 1218.527092 | Q60: - | R60: - | S60: 34.62303789
A61: 46 | B61: 38.9 | C61: 3 | D61: 3 | E61: 3 | F61: 10.80555556 | G61: 0.08333333333 | H61: 116.7600309 | I61: 1 | L61: - | M61: - | N61: 1261.657 | O61: 36.01851852 | P61: 1297.333676 | Q61: - | R61: - | S61: 35.72509745
A62: 47 | B62: 39.2 | C62: 3 | D62: 3 | E62: 3 | F62: 10.88888889 | G62: -0.5277777778 | H62: 118.5679012 | I62: 0 | K62: 1 | L62: - | M62: 118.5679012 | N62: 1291.072702 | O62: 36.2962963 | P62: 1317.421125 | Q62: - | R62: 1317.421125 | S62: 36.00061234
A63: 48 | B63: 37.3 | C63: 3 | D63: 3 | E63: 3 | F63: 10.36111111 | G63: -0.8888888889 | H63: 107.3526235 | I63: 0 | L63: - | M63: - | N63: 1112.29246 | O63: 34.53703704 | P63: 1192.806927 | Q63: - | R63: - | S63: 34.2556847
A64: 49 | B64: 34.1 | C64: 3 | D64: 3 | E64: 3 | F64: 9.472222222 | G64: -0.3611111111 | H64: 89.72299383 | I64: 0 | L64: - | M64: - | N64: 849.876136 | O64: 31.57407407 | P64: 996.9221536 | Q64: - | R64: - | S64: 31.31685921
A65: 50 | B65: 32.8 | C65: 3 | D65: 3 | E65: 3 | F65: 9.111111111 | G65: -0.1111111111 | H65: 83.01234568 | I65: 0 | L65: - | M65: - | N65: 756.3347051 | O65: 30.37037037 | P65: 922.3593964 | Q65: - | R65: - | S65: 30.12296135
A66: 51 | B66: 32.4 | C66: 3 | D66: 3 | E66: 3 | F66: 9 | G66: -0.1944444444 | H66: 81 | I66: 0 | L66: - | M66: - | N66: 729 | O66: 30 | P66: 900 | Q66: - | R66: - | S66: 29.75560816
A67: 52 | B67: 31.7 | C67: 3 | D67: 3 | E67: 3 | F67: 8.805555556 | G67: -0.3611111111 | H67: 77.53780864 | I67: 0 | L67: - | M67: - | N67: 682.7634817 | O67: 29.35185185 | P67: 861.5312071 | Q67: - | R67: - | S67: 29.11274008
A68: 53 | B68: 30.4 | C68: 3 | D68: 3 | E68: 3 | F68: 8.444444444 | G68: -0.3611111111 | H68: 71.30864198 | I68: 0 | L68: - | M68: - | N68: 602.1618656 | O68: 28.14814815 | P68: 792.3182442 | Q68: - | R68: - | S68: 27.91884222
A69: 54 | B69: 29.1 | C69: 3 | D69: 3 | E69: 3 | F69: 8.083333333 | G69: -0.1388888889 | H69: 65.34027778 | I69: 0 | L69: - | M69: - | N69: 528.1672454 | O69: 26.94444444 | P69: 726.0030864 | Q69: - | R69: - | S69: 26.72494437
A70: 55 | B70: 28.6 | C70: 3 | D70: 3 | E70: 3 | F70: 7.944444444 | G70: 0 | H70: 63.11419753 | I70: 1 | J70: 1 | L70: 63.11419753 | M70: - | N70: 501.4072359 | O70: 26.48148148 | P70: 701.2688615 | Q70: 701.2688615 | R70: - | S70: 26.26575288
A71: 56 | B71: 28.6 | C71: 3 | D71: 3 | E71: 3 | F71: 7.944444444 | G71: 0 | H71: 63.11419753 | I71: 1 | L71: - | M71: - | N71: 501.4072359 | O71: 26.48148148 | P71: 701.2688615 | Q71: - | R71: - | S71: 26.26575288
A72: 57 | B72: 28.6 | C72: 3 | D72: 3 | E72: 3 | F72: 7.944444444 | G72: 0.02777777778 | H72: 63.11419753 | I72: 1 | L72: - | M72: - | N72: 501.4072359 | O72: 26.48148148 | P72: 701.2688615 | Q72: - | R72: - | S72: 26.26575288
A73: 58 | B73: 28.7 | C73: 3 | D73: 3 | E73: 3 | F73: 7.972222222 | G73: 0.1111111111 | H73: 63.55632716 | I73: 1 | L73: - | M73: - | N73: 506.6851638 | O73: 26.57407407 | P73: 706.1814129 | Q73: - | R73: - | S73: 26.35759118
A74: 59 | B74: 29.1 | C74: 3 | D74: 3 | E74: 3 | F74: 8.083333333 | G74: 0.1944444444 | H74: 65.34027778 | I74: 1 | L74: - | M74: - | N74: 528.1672454 | O74: 26.94444444 | P74: 726.0030864 | Q74: - | R74: - | S74: 26.72494437
A75: 60 | B75: 29.8 | C75: 3 | D75: 3 | E75: 3 | F75: 8.277777778 | G75: 0.3055555556 | H75: 68.52160494 | I75: 1 | L75: - | M75: - | N75: 567.2066187 | O75: 27.59259259 | P75: 761.351166 | Q75: - | R75: - | S75: 27.36781244
A76: 61 | B76: 30.9 | C76: 3 | D76: 3 | E76: 3 | F76: 8.583333333 | G76: 0.4444444444 | H76: 73.67361111 | I76: 1 | L76: - | M76: - | N76: 632.365162 | O76: 28.61111111 | P76: 818.595679 | Q76: - | R76: - | S76: 28.37803371
A77: 62 | B77: 32.5 | C77: 3 | D77: 3 | E77: 3 | F77: 9.027777778 | G77: 0.7222222222 | H77: 81.5007716 | I77: 1 | L77: - | M77: - | N77: 735.7708548 | O77: 30.09259259 | P77: 905.5641289 | Q77: - | R77: - | S77: 29.84744646
A78: 63 | B78: 35.1 | C78: 3 | D78: 3 | E78: 3 | F78: 9.75 | G78: 0.6666666667 | H78: 95.0625 | I78: 1 | L78: - | M78: - | N78: 926.859375 | O78: 32.5 | P78: 1056.25 | Q78: - | R78: - | S78: 32.23524217
A79: 64 | B79: 37.5 | C79: 3 | D79: 3 | E79: 3 | F79: 10.41666667 | G79: 0.3888888889 | H79: 108.5069444 | I79: 1 | L79: - | M79: - | N79: 1130.280671 | O79: 34.72222222 | P79: 1205.632716 | Q79: - | R79: - | S79: 34.4393613
A80: 65 | B80: 38.9 | C80: 3 | D80: 3 | E80: 3 | F80: 10.80555556 | G80: 0.02777777778 | H80: 116.7600309 | I80: 1 | L80: - | M80: =IF(K80="","-",K80*H80) -> - | N80: 1261.657 | O80: =F80/($V$10/2) -> 36.01851852 | P80: 1297.333676 | Q80: - | R80: - | S80: 35.72509745
A81: 66 | B81: 39 | C81: 3 | D81: 3 | E81: 3 | F81: =B81*1000/3600 -> 10.83333333 | G81: -0.3611111111 | H81: =F81*F81 -> 117.3611111 | I81: 0 | K81: 1 | L81: =IF(J81="","-",J81*H81) -> - | M81: 117.3611111 | N81: =H81*F81 -> 1271.412037 | O81: 36.11111111 | P81: =O81*O81 -> 1304.012346 | Q81: =IF(J81="","-",P81*J81) -> - | R81: =IF(K81="","-",P81*K81) -> 1304.012346 | S81: =IF(OR(F81<$V$12,C81="N"),$V$7/60,IF(C81=1,$U$3,IF(C81=2,$V$3,IF(C81=3,$W$3,IF(C81=4,$X$3,IF(C81=5,$Y$3,$Z$3)))))*$U$4*F81/(PI()*$V$10)) -> 35.81693575
A82: 67 | B82: 37.7 | C82: 3 | D82: 3 | E82: 3 | F82: 10.47222222 | G82: -0.7222222222 | H82: 109.6674383 | I82: =IF(F82<=F83,1,0) -> 0 | J82: =IF(I81<I82,1,"") ->  | K82: =IF(I81>I82,1,"") ->  | L82: - | M82: - | N82: 1148.461784 | O82: 34.90740741 | P82: 1218.527092 | Q82: - | R82: - | S82: 34.62303789
A83: 68 | B83: 35.1 | C83: 3 | D83: 3 | E83: 3 | F83: 9.75 | G83: -0.6111111111 | H83: 95.0625 | I83: 0 | L83: - | M83: - | N83: 926.859375 | O83: 32.5 | P83: 1056.25 | Q83: - | R83: - | S83: 32.23524217
A84: 69 | B84: 32.9 | C84: 3 | D84: 3 | E84: 3 | F84: 9.138888889 | G84: -0.2222222222 | H84: 83.51929012 | I84: 0 | L84: - | M84: - | N84: 763.2735125 | O84: 30.46296296 | P84: 927.9921125 | Q84: - | R84: - | S84: 30.21479964
A85: 70 | B85: 32.1 | C85: 3 | D85: 3 | E85: 3 | F85: 8.916666667 | G85: -0.3055555556 | H85: 79.50694444 | I85: 0 | L85: - | M85: - | N85: 708.9369213 | O85: 29.72222222 | P85: 883.4104938 | Q85: - | R85: - | S85: 29.48009327
A86: 71 | B86: 31 | C86: 3 | D86: 3 | E86: 3 | F86: 8.611111111 | G86: -1 | H86: 74.15123457 | I86: 0 | L86: - | M86: - | N86: 638.5245199 | O86: 28.7037037 | P86: 823.9026063 | Q86: - | R86: - | S86: 28.46987201
A87: 72 | B87: 27.4 | C87: 3 | D87: 3 | E87: 3 | F87: 7.611111111 | G87: =F88-F87 -> -1.027777778 | H87: 57.92901235 | I87: 0 | L87: - | M87: - | N87: 440.9041495 | O87: 25.37037037 | P87: 643.6556927 | Q87: - | R87: - | S87: 25.16369332
A88: 73 | B88: 23.7 | C88: 3 | D88: 3 | E88: N | F88: 6.583333333 | G88: -0.9722222222 | H88: 43.34027778 | I88: 0 | L88: - | M88: - | N88: 285.3234954 | O88: 21.94444444 | P88: 481.558642 | Q88: - | R88: - | S88: 21.76567634
A89: 74 | B89: 20.2 | C89: 3 | D89: 3 | E89: N | F89: 5.611111111 | G89: -0.75 | H89: 31.4845679 | I89: 0 | L89: - | M89: - | N89: 176.6634088 | O89: 18.7037037 | P89: 349.8285322 | Q89: - | R89: - | S89: 18.55133595
A90: 75 | B90: 17.5 | C90: N | D90: 3 | E90: N | F90: 4.861111111 | G90: -0.4444444444 | H90: 23.63040123 | I90: 0 | L90: - | M90: - | N90: 114.870006 | O90: 16.2037037 | P90: 262.5600137 | Q90: - | R90: - | S90: 13.33333333
A91: 76 | B91: 15.9 | C91: N | D91: N | E91: N | F91: 4.416666667 | G91: -0.3888888889 | H91: 19.50694444 | I91: 0 | L91: - | M91: - | N91: 86.1556713 | O91: 14.72222222 | P91: 216.7438272 | Q91: - | R91: - | S91: 13.33333333
A92: 77 | B92: 14.5 | C92: N | D92: N | E92: N | F92: 4.027777778 | G92: -0.5 | H92: 16.22299383 | I92: 0 | L92: - | M92: - | N92: 65.34261403 | O92: 13.42592593 | P92: 180.255487 | Q92: - | R92: - | S92: 13.33333333
A93: 78 | B93: 12.7 | C93: N | D93: N | E93: N | F93: 3.527777778 | G93: -0.5 | H93: 12.44521605 | I93: 0 | L93: - | M93: - | N93: 43.90395662 | O93: 11.75925926 | P93: 138.2801783 | Q93: - | R93: - | S93: 13.33333333
A94: 79 | B94: 10.9 | C94: N | D94: N | E94: N | F94: 3.027777778 | G94: -0.3888888889 | H94: 9.167438272 | I94: 0 | L94: - | M94: - | N94: 27.75696588 | O94: 10.09259259 | P94: 101.8604252 | Q94: - | R94: - | S94: 13.33333333
A95: 80 | B95: 9.5 | C95: N | D95: N | E95: N | F95: 2.638888889 | G95: -0.3888888889 | H95: 6.963734568 | I95: 0 | L95: - | M95: - | N95: 18.37652178 | O95: 8.796296296 | P95: 77.37482853 | Q95: - | R95: - | S95: 13.33333333
A96: 81 | B96: 8.1 | C96: N | D96: N | E96: N | F96: 2.25 | G96: -0.3333333333 | H96: 5.0625 | I96: 0 | L96: - | M96: - | N96: 11.390625 | O96: 7.5 | P96: 56.25 | Q96: - | R96: - | S96: 13.33333333
A97: 82 | B97: 6.9 | C97: N | D97: N | E97: N | F97: 1.916666667 | G97: -0.3055555556 | H97: 3.673611111 | I97: 0 | L97: - | M97: - | N97: 7.041087963 | O97: 6.388888889 | P97: 40.81790123 | Q97: - | R97: - | S97: 13.33333333
A98: 83 | B98: 5.8 | C98: N | D98: N | E98: N | F98: 1.611111111 | G98: -0.3611111111 | H98: 2.595679012 | I98: 0 | L98: - | M98: - | N98: 4.181927298 | O98: 5.37037037 | P98: 28.84087791 | Q98: - | R98: - | S98: 13.33333333
A99: 84 | B99: 4.5 | C99: N | D99: N | E99: N | F99: 1.25 | G99: -0.5555555556 | H99: 1.5625 | I99: 0 | L99: - | M99: - | N99: 1.953125 | O99: 4.166666667 | P99: 17.36111111 | Q99: - | R99: - | S99: 13.33333333
A100: 85 | B100: 2.5 | C100: N | D100: N | E100: N | F100: 0.6944444444 | G100: -0.6944444444 | H100: 0.4822530864 | I100: 0 | L100: - | M100: - | N100: 0.3348979767 | O100: 2.314814815 | P100: 5.358367627 | Q100: - | R100: - | S100: 13.33333333
A101: 86 | B101: 0 | C101: N | D101: N | E101: N | F101: 0 | G101: 0 | H101: 0 | I101: 1 | J101: 1 | L101: 0 | M101: - | N101: 0 | O101: 0 | P101: 0 | Q101: 0 | R101: - | S101: 13.33333333
A102: 87 | B102: 0 | C102: N | D102: N | E102: N | F102: 0 | G102: 0 | H102: 0 | I102: 1 | L102: - | M102: - | N102: 0 | O102: 0 | P102: 0 | Q102: - | R102: - | S102: 13.33333333
A103: 88 | B103: 0 | C103: 1 | D103: 1 | E103: 1 | F103: 0 | G103: 0 | H103: 0 | I103: 1 | L103: - | M103: - | N103: 0 | O103: 0 | P103: 0 | Q103: - | R103: - | S103: 13.33333333
A104: 89 | B104: 0 | C104: 1 | D104: 1 | E104: 1 | F104: 0 | G104: 0 | H104: 0 | I104: 1 | L104: - | M104: - | N104: 0 | O104: 0 | P104: 0 | Q104: - | R104: - | S104: 13.33333333
A105: 90 | B105: 0 | C105: 1 | D105: 1 | E105: 1 | F105: 0 | G105: 0 | H105: 0 | I105: 1 | L105: - | M105: - | N105: 0 | O105: 0 | P105: 0 | Q105: - | R105: - | S105: 13.33333333
A106: 91 | B106: 0 | C106: 1 | D106: 1 | E106: 1 | F106: 0 | G106: 0 | H106: 0 | I106: 1 | L106: - | M106: - | N106: 0 | O106: 0 | P106: 0 | Q106: - | R106: - | S106: 13.33333333
A107: 92 | B107: 0 | C107: 1 | D107: 1 | E107: 1 | F107: 0 | G107: 0 | H107: 0 | I107: 1 | L107: - | M107: - | N107: 0 | O107: 0 | P107: 0 | Q107: - | R107: - | S107: 13.33333333
A108: 93 | B108: 0 | C108: 1 | D108: 1 | E108: 1 | F108: 0 | G108: 0.7222222222 | H108: 0 | I108: 1 | L108: - | M108: - | N108: 0 | O108: 0 | P108: 0 | Q108: - | R108: - | S108: 13.33333333
A109: 94 | B109: 2.6 | C109: 1 | D109: 1 | E109: 1 | F109: 0.7222222222 | G109: 1.138888889 | H109: 0.5216049383 | I109: 1 | L109: - | M109: - | N109: 0.3767146776 | O109: 2.407407407 | P109: 5.795610425 | Q109: - | R109: - | S109: 13.33333333
A110: 95 | B110: 6.7 | C110: 1 | D110: 1 | E110: 1 | F110: 1.861111111 | G110: 1.083333333 | H110: 3.463734568 | I110: 1 | L110: - | M110: - | N110: 6.44639489 | O110: 6.203703704 | P110: 38.48593964 | Q110: - | R110: - | S110: 14.57328762
A111: 96 | B111: 10.6 | C111: 1 | D111: 1 | E111: 1 | F111: 2.944444444 | G111: 1.111111111 | H111: 8.669753086 | I111: 1 | L111: - | M111: - | N111: 25.52760631 | O111: 9.814814815 | P111: 96.33058985 | Q111: - | R111: - | S111: 23.05624609
A112: 97 | B112: 14.6 | C112: 1 | D112: 1 | E112: 1 | F112: 4.055555556 | G112: 1.416666667 | H112: 16.44753086 | I112: 1 | L112: - | M112: - | N112: 66.70387517 | O112: 13.51851852 | P112: 182.7503429 | Q112: - | R112: - | S112: 31.75671631
A113: 98 | B113: 19.7 | C113: 1 | D113: 2 | E113: 1 | F113: 5.472222222 | G113: 1.305555556 | H113: 29.94521605 | I113: 1 | L113: - | M113: - | N113: 163.8668767 | O113: 18.24074074 | P113: 332.7246228 | Q113: - | R113: - | S113: 42.84981585
A114: 99 | B114: 24.4 | C114: 1 | D114: 2 | E114: 1 | F114: 6.777777778 | G114: 0.8611111111 | H114: 45.9382716 | I114: 1 | L114: - | M114: - | N114: 311.3593964 | O114: 22.59259259 | P114: 510.4252401 | Q114: - | R114: - | S114: 53.07286836
A115: 100 | B115: 27.5 | C115: 2 | D115: 2 | E115: 2 | F115: 7.638888889 | G115: 0.75 | H115: 58.35262346 | I115: 1 | L115: - | M115: - | N115: 445.749207 | O115: 25.46296296 | P115: 648.3624829 | Q115: - | R115: - | S115: 35.88943967
A116: 101 | B116: 30.2 | C116: 2 | D116: 2 | E116: 2 | F116: 8.388888889 | G116: 0.8888888889 | H116: 70.37345679 | I116: 1 | L116: - | M116: - | N116: 590.3551097 | O116: 27.96296296 | P116: 781.9272977 | Q116: - | R116: - | S116: 39.41313011
A117: 102 | B117: 33.4 | C117: 2 | D117: 3 | E117: 2 | F117: 9.277777778 | G117: 0.6111111111 | H117: 86.07716049 | I117: 1 | L117: - | M117: - | N117: 798.6047668 | O117: 30.92592593 | P117: 956.4128944 | Q117: - | R117: - | S117: 43.58935581
A118: 103 | B118: 35.6 | C118: 3 | D118: 3 | E118: 2 | F118: 9.888888889 | G118: 0.08333333333 | H118: 97.79012346 | I118: 1 | L118: - | M118: - | N118: 967.0356653 | O118: 32.96296296 | P118: 1086.556927 | Q118: - | R118: - | S118: 32.69443366
A119: 104 | B119: 35.9 | C119: 3 | D119: 3 | E119: 3 | F119: 9.972222222 | G119: -0.1388888889 | H119: 99.44521605 | I119: 0 | K119: 1 | L119: - | M119: 99.44521605 | N119: 991.6897934 | O119: 33.24074074 | P119: 1104.946845 | Q119: - | R119: 1104.946845 | S119: 32.96994855
A120: 105 | B120: 35.4 | C120: 3 | D120: 3 | E120: 3 | F120: 9.833333333 | G120: -0.02777777778 | H120: 96.69444444 | I120: 0 | L120: - | M120: - | N120: 950.8287037 | O120: 32.77777778 | P120: 1074.382716 | Q120: - | R120: - | S120: 32.51075706
A121: 106 | B121: 35.3 | C121: 3 | D121: 3 | E121: 3 | F121: 9.805555556 | G121: 0.1388888889 | H121: 96.14891975 | I121: 1 | J121: 1 | L121: 96.14891975 | M121: - | N121: 942.7935742 | O121: 32.68518519 | P121: 1068.321331 | Q121: 1068.321331 | R121: - | S121: 32.41891877
A122: 107 | B122: 35.8 | C122: 3 | D122: 3 | E122: 3 | F122: 9.944444444 | G122: 0.3611111111 | H122: 98.89197531 | I122: 1 | L122: - | M122: - | N122: 983.4257545 | O122: 33.14814815 | P122: 1098.799726 | Q122: - | R122: - | S122: 32.87811025
A123: 108 | B123: 37.1 | C123: 3 | D123: 3 | E123: 3 | F123: 10.30555556 | G123: 0.4722222222 | H123: 106.2044753 | I123: 1 | L123: - | M123: - | N123: 1094.496121 | O123: 34.35185185 | P123: 1180.049726 | Q123: - | R123: - | S123: 34.07200811
A124: 109 | B124: 38.8 | C124: 3 | D124: 3 | E124: 3 | F124: 10.77777778 | G124: 0.4166666667 | H124: 116.1604938 | I124: 1 | L124: - | M124: - | N124: 1251.951989 | O124: 35.92592593 | P124: 1290.672154 | Q124: - | R124: - | S124: 35.63325916
A125: 110 | B125: 40.3 | C125: 3 | D125: 3 | E125: 3 | F125: 11.19444444 | G125: 0.4166666667 | H125: 125.3155864 | I125: 1 | L125: - | M125: - | N125: 1402.83837 | O125: 37.31481481 | P125: 1392.395405 | Q125: - | R125: - | S125: 37.01083361
A126: 111 | B126: 41.8 | C126: 3 | D126: 3 | E126: 3 | F126: 11.61111111 | G126: 0.5277777778 | H126: 134.8179012 | I126: 1 | L126: - | M126: - | N126: 1565.385631 | O126: 38.7037037 | P126: 1497.97668 | Q126: - | R126: - | S126: 38.38840806
A127: 112 | B127: 43.7 | C127: 3 | D127: 4 | E127: 3 | F127: 12.13888889 | G127: 0.3888888889 | H127: 147.3526235 | I127: 1 | L127: - | M127: - | N127: 1788.697124 | O127: 40.46296296 | P127: 1637.251372 | Q127: - | R127: - | S127: 40.1333357
A128: 113 | B128: 45.1 | C128: 3 | D128: 4 | E128: 3 | F128: 12.52777778 | G128: 0.2777777778 | H128: 156.945216 | I128: 1 | L128: - | M128: - | N128: 1966.17479 | O128: 41.75925926 | P128: 1743.835734 | Q128: - | R128: - | S128: 41.41907185
A129: 114 | B129: 46.1 | C129: 3 | D129: 4 | E129: 3 | F129: 12.80555556 | G129: 0.5 | H129: 163.9822531 | I129: 1 | L129: - | M129: - | N129: 2099.883852 | O129: 42.68518519 | P129: 1822.025034 | Q129: - | R129: - | S129: 42.33745482
A130: 115 | B130: 47.9 | C130: 3 | D130: 4 | E130: 3 | F130: 13.30555556 | G130: 0.6111111111 | H130: 177.0378086 | I130: 1 | L130: - | M130: - | N130: 2355.586398 | O130: 44.35185185 | P130: 1967.086763 | Q130: - | R130: - | S130: 43.99054416
A131: 116 | B131: 50.1 | C131: 3 | D131: 4 | E131: 3 | F131: 13.91666667 | G131: 0.3055555556 | H131: 193.6736111 | I131: 1 | L131: - | M131: - | N131: 2695.291088 | O131: 46.38888889 | P131: 2151.929012 | Q131: - | R131: - | S131: 46.01098669
A132: 117 | B132: 51.2 | C132: 4 | D132: 4 | E132: 3 | F132: 14.22222222 | G132: 0.25 | H132: 202.2716049 | I132: 1 | L132: - | M132: - | N132: 2876.751715 | O132: 47.40740741 | P132: 2247.462277 | Q132: - | R132: - | S132: 37.12200628
A133: 118 | B133: 52.1 | C133: 4 | D133: 4 | E133: 3 | F133: 14.47222222 | G133: 0.5555555556 | H133: 209.445216 | I133: 1 | L133: - | M133: - | N133: 3031.13771 | O133: 48.24074074 | P133: 2327.169067 | Q133: - | R133: - | S133: 37.77454155
A134: 119 | B134: 54.1 | C134: 4 | D134: 4 | E134: 3 | F134: 15.02777778 | G134: 0.5555555556 | H134: 225.8341049 | I134: 1 | L134: - | M134: - | N134: 3393.784744 | O134: 50.09259259 | P134: 2509.267833 | Q134: - | R134: - | S134: 39.22461992
A135: 120 | B135: 56.1 | C135: 4 | D135: 4 | E135: OD | F135: 15.58333333 | G135: 0.2222222222 | H135: 242.8402778 | I135: 1 | L135: - | M135: - | N135: 3784.260995 | O135: 51.94444444 | P135: 2698.225309 | Q135: - | R135: - | S135: 40.67469829
A136: 121 | B136: 56.9 | C136: 4 | D136: 5 | E136: OD | F136: 15.80555556 | G136: 0.2222222222 | H136: 249.8155864 | I136: 1 | L136: - | M136: - | N136: 3948.47413 | O136: 52.68518519 | P136: 2775.728738 | Q136: - | R136: - | S136: 41.25472964
A137: 122 | B137: 57.7 | C137: 4 | D137: 5 | E137: OD | F137: 16.02777778 | G137: 0.5 | H137: 256.8896605 | I137: 1 | L137: - | M137: - | N137: 4117.370392 | O137: 53.42592593 | P137: 2854.329561 | Q137: - | R137: - | S137: 41.83476099
A138: 123 | B138: 59.5 | C138: 4 | D138: 5 | E138: OD | F138: 16.52777778 | G138: 0.5 | H138: 273.1674383 | I138: 1 | L138: - | M138: - | N138: 4514.850716 | O138: 55.09259259 | P138: 3035.193759 | Q138: - | R138: - | S138: 43.13983152
A139: 124 | B139: 61.3 | C139: 4 | D139: 5 | E139: OD | F139: 17.02777778 | G139: 0.1388888889 | H139: 289.945216 | I139: 1 | L139: - | M139: - | N139: 4937.122707 | O139: 56.75925926 | P139: 3221.613512 | Q139: - | R139: - | S139: 44.44490205
A140: 125 | B140: 61.8 | C140: 5 | D140: 5 | E140: OD | F140: 17.16666667 | G140: -0.05555555556 | H140: 294.6944444 | I140: 0 | K140: 1 | L140: - | M140: 294.6944444 | N140: 5058.921296 | O140: 57.22222222 | P140: 3274.382716 | Q140: - | R140: 3274.382716 | S140: 37.33951804
A141: 126 | B141: 61.6 | C141: 5 | D141: 5 | E141: OD | F141: 17.11111111 | G141: -0.1111111111 | H141: 292.7901235 | I141: 0 | L141: - | M141: - | N141: 5009.964335 | O141: 57.03703704 | P141: 3253.223594 | Q141: - | R141: - | S141: 37.21867817
A142: 127 | B142: 61.2 | C142: 5 | D142: 5 | E142: OD | F142: 17 | G142: -0.1944444444 | H142: 289 | I142: 0 | L142: - | M142: - | N142: 4913 | O142: 56.66666667 | P142: 3211.111111 | Q142: - | R142: - | S142: 36.97699845
A143: 128 | B143: 60.5 | C143: 5 | D143: 5 | E143: OD | F143: 16.80555556 | G143: -0.2222222222 | H143: 282.4266975 | I143: 0 | L143: - | M143: - | N143: 4746.337556 | O143: 56.01851852 | P143: 3138.074417 | Q143: - | R143: - | S143: 36.55405892
A144: 129 | B144: 59.7 | C144: 5 | D144: 5 | E144: OD | F144: 16.58333333 | G144: -0.1111111111 | H144: 275.0069444 | I144: 0 | L144: - | M144: =IF(K144="","-",K144*H144) -> - | N144: 4560.531829 | O144: =F144/($V$10/2) -> 55.27777778 | P144: 3055.632716 | Q144: - | R144: - | S144: 36.07069946
A145: 130 | B145: 59.3 | C145: 5 | D145: 5 | E145: OD | F145: =B145*1000/3600 -> 16.47222222 | G145: 0.02777777778 | H145: =F145*F145 -> 271.3341049 | I145: 1 | J145: 1 | L145: =IF(J145="","-",J145*H145) -> 271.3341049 | M145: - | N145: =H145*F145 -> 4469.475673 | O145: 54.90740741 | P145: =O145*O145 -> 3014.823388 | Q145: =IF(J145="","-",P145*J145) -> 3014.823388 | R145: =IF(K145="","-",P145*K145) -> - | S145: =IF(OR(F145<$V$12,C145="N"),$V$7/60,IF(C145=1,$U$3,IF(C145=2,$V$3,IF(C145=3,$W$3,IF(C145=4,$X$3,IF(C145=5,$Y$3,$Z$3)))))*$U$4*F145/(PI()*$V$10)) -> 35.82901974
A146: 131 | B146: 59.4 | C146: 5 | D146: 5 | E146: OD | F146: 16.5 | G146: 0 | H146: 272.25 | I146: =IF(F146<=F147,1,0) -> 1 | J146: =IF(I145<I146,1,"") ->  | K146: =IF(I145>I146,1,"") ->  | L146: - | M146: - | N146: 4492.125 | O146: 55 | P146: 3025 | Q146: - | R146: - | S146: 35.88943967
A147: 132 | B147: 59.4 | C147: 5 | D147: 5 | E147: OD | F147: 16.5 | G147: -0.25 | H147: 272.25 | I147: 0 | K147: 1 | L147: - | M147: 272.25 | N147: 4492.125 | O147: 55 | P147: 3025 | Q147: - | R147: 3025 | S147: 35.88943967
A148: 133 | B148: 58.5 | C148: 5 | D148: 5 | E148: OD | F148: 16.25 | G148: -0.4166666667 | H148: 264.0625 | I148: 0 | L148: - | M148: - | N148: 4291.015625 | O148: 54.16666667 | P148: 2934.027778 | Q148: - | R148: - | S148: 35.34566028
A149: 134 | B149: 57 | C149: 5 | D149: 5 | E149: OD | F149: 15.83333333 | G149: -0.3888888889 | H149: 250.6944444 | I149: 0 | L149: - | M149: - | N149: 3969.328704 | O149: 52.77777778 | P149: 2785.493827 | Q149: - | R149: - | S149: 34.4393613
A150: 135 | B150: 55.6 | C150: 5 | D150: 5 | E150: OD | F150: 15.44444444 | G150: -0.3888888889 | H150: 238.5308642 | I150: 0 | L150: - | M150: - | N150: 3683.97668 | O150: 51.48148148 | P150: 2650.342936 | Q150: - | R150: - | S150: 33.59348225
A151: 136 | B151: 54.2 | C151: 5 | D151: 5 | E151: OD | F151: 15.05555556 | G151: =F152-F151 -> -0.3611111111 | H151: 226.6697531 | I151: 0 | L151: - | M151: - | N151: 3412.63906 | O151: 50.18518519 | P151: 2518.552812 | Q151: - | R151: - | S151: 32.7476032
A152: 137 | B152: 52.9 | C152: 5 | D152: 5 | E152: OD | F152: 14.69444444 | G152: -0.3055555556 | H152: 215.9266975 | I152: 0 | L152: - | M152: - | N152: 3172.922861 | O152: 48.98148148 | P152: 2399.185528 | Q152: - | R152: - | S152: 31.96214408
A153: 138 | B153: 51.8 | C153: 5 | D153: 5 | E153: OD | F153: 14.38888889 | G153: -0.1388888889 | H153: 207.0401235 | I153: 0 | L153: - | M153: - | N153: 2979.077332 | O153: 47.96296296 | P153: 2300.445816 | Q153: - | R153: - | S153: 31.29752483
A154: 139 | B154: 51.3 | C154: 5 | D154: 5 | E154: OD | F154: 14.25 | G154: 0.05555555556 | H154: 203.0625 | I154: 1 | J154: 1 | L154: 203.0625 | M154: - | N154: 2893.640625 | O154: 47.5 | P154: 2256.25 | Q154: 2256.25 | R154: - | S154: 30.99542517
A155: 140 | B155: 51.5 | C155: 5 | D155: 5 | E155: OD | F155: 14.30555556 | G155: 0.3055555556 | H155: 204.6489198 | I155: 1 | L155: - | M155: - | N155: 2927.616491 | O155: 47.68518519 | P155: 2273.876886 | Q155: - | R155: - | S155: 31.11626503
A156: 141 | B156: 52.6 | C156: 5 | D156: 5 | E156: OD | F156: 14.61111111 | G156: 0.4722222222 | H156: 213.4845679 | I156: 1 | L156: - | M156: - | N156: 3119.246742 | O156: 48.7037037 | P156: 2372.050754 | Q156: - | R156: - | S156: 31.78088428
A157: 142 | B157: 54.3 | C157: 5 | D157: 5 | E157: OD | F157: 15.08333333 | G157: 0.4722222222 | H157: 227.5069444 | I157: 1 | L157: - | M157: - | N157: 3431.563079 | O157: 50.27777778 | P157: 2527.854938 | Q157: - | R157: - | S157: 32.80802313
A158: 143 | B158: 56 | C158: 5 | D158: 5 | E158: OD | F158: 15.55555556 | G158: 0.5277777778 | H158: 241.9753086 | I158: 1 | L158: - | M158: - | N158: 3764.060357 | O158: 51.85185185 | P158: 2688.61454 | Q158: - | R158: - | S158: 33.83516198
A159: 144 | B159: 57.9 | C159: 5 | D159: 5 | E159: OD | F159: 16.08333333 | G159: 0.5555555556 | H159: 258.6736111 | I159: 1 | L159: - | M159: - | N159: 4160.333912 | O159: 53.61111111 | P159: 2874.151235 | Q159: - | R159: - | S159: 34.98314069
A160: 145 | B160: 59.9 | C160: 5 | D160: 5 | E160: OD | F160: 16.63888889 | G160: 0.3611111111 | H160: 276.8526235 | I160: 1 | L160: - | M160: - | N160: 4606.52004 | O160: 55.46296296 | P160: 3076.140261 | Q160: - | R160: - | S160: 36.19153933
A161: 146 | B161: 61.2 | C161: 5 | D161: 5 | E161: OD | F161: 17 | G161: 0.1666666667 | H161: 289 | I161: 1 | L161: - | M161: - | N161: 4913 | O161: 56.66666667 | P161: 3211.111111 | Q161: - | R161: - | S161: 36.97699845
A162: 147 | B162: 61.8 | C162: 5 | D162: 5 | E162: OD | F162: 17.16666667 | G162: 0.1111111111 | H162: 294.6944444 | I162: 1 | L162: - | M162: - | N162: 5058.921296 | O162: 57.22222222 | P162: 3274.382716 | Q162: - | R162: - | S162: 37.33951804
A163: 148 | B163: 62.2 | C163: 5 | D163: 5 | E163: OD | F163: 17.27777778 | G163: 0.1111111111 | H163: 298.5216049 | I163: 1 | L163: - | M163: - | N163: 5157.789952 | O163: 57.59259259 | P163: 3316.906722 | Q163: - | R163: - | S163: 37.58119777
A164: 149 | B164: 62.6 | C164: 5 | D164: 5 | E164: OD | F164: 17.38888889 | G164: -0.1388888889 | H164: 302.3734568 | I164: 0 | K164: 1 | L164: - | M164: 302.3734568 | N164: 5257.938443 | O164: 57.96296296 | P164: 3359.705075 | Q164: - | R164: 3359.705075 | S164: 37.82287749
A165: 150 | B165: 62.1 | C165: 5 | D165: 5 | E165: OD | F165: 17.25 | G165: -0.1944444444 | H165: 297.5625 | I165: 0 | L165: - | M165: - | N165: 5132.953125 | O165: 57.5 | P165: 3306.25 | Q165: - | R165: - | S165: 37.52077783
A166: 151 | B166: 61.4 | C166: 5 | D166: 5 | E166: OD | F166: 17.05555556 | G166: -0.02777777778 | H166: 290.8919753 | I166: 0 | L166: - | M166: - | N166: 4961.324246 | O166: 56.85185185 | P166: 3232.133059 | Q166: - | R166: - | S166: 37.09783831
A167: 152 | B167: 61.3 | C167: 5 | D167: 5 | E167: OD | F167: 17.02777778 | G167: 0.1111111111 | H167: 289.945216 | I167: 1 | J167: 1 | L167: 289.945216 | M167: - | N167: 4937.122707 | O167: 56.75925926 | P167: 3221.613512 | Q167: 3221.613512 | R167: - | S167: 37.03741838
A168: 153 | B168: 61.7 | C168: 5 | D168: 5 | E168: OD | F168: 17.13888889 | G168: -0.1111111111 | H168: 293.7415123 | I168: 0 | K168: 1 | L168: - | M168: 293.7415123 | N168: 5034.403142 | O168: 57.12962963 | P168: 3263.794582 | Q168: - | R168: 3263.794582 | S168: 37.27909811
A169: 154 | B169: 61.3 | C169: 5 | D169: 5 | E169: OD | F169: 17.02777778 | G169: -0.2777777778 | H169: 289.945216 | I169: 0 | L169: - | M169: - | N169: 4937.122707 | O169: 56.75925926 | P169: 3221.613512 | Q169: - | R169: - | S169: 37.03741838
A170: 155 | B170: 60.3 | C170: 5 | D170: 5 | E170: OD | F170: 16.75 | G170: -0.2222222222 | H170: 280.5625 | I170: 0 | L170: - | M170: - | N170: 4699.421875 | O170: 55.83333333 | P170: 3117.361111 | Q170: - | R170: - | S170: 36.43321906
A171: 156 | B171: 59.5 | C171: 5 | D171: 5 | E171: OD | F171: 16.52777778 | G171: -0.08333333333 | H171: 273.1674383 | I171: 0 | L171: - | M171: - | N171: 4514.850716 | O171: 55.09259259 | P171: 3035.193759 | Q171: - | R171: - | S171: 35.9498596
A172: 157 | B172: 59.2 | C172: 5 | D172: 5 | E172: OD | F172: 16.44444444 | G172: 0.02777777778 | H172: 270.4197531 | I172: 1 | J172: 1 | L172: 270.4197531 | M172: - | N172: 4446.902606 | O172: 54.81481481 | P172: 3004.663923 | Q172: 3004.663923 | R172: - | S172: 35.7685998
A173: 158 | B173: 59.3 | C173: 5 | D173: 5 | E173: OD | F173: 16.47222222 | G173: -0.05555555556 | H173: 271.3341049 | I173: 0 | K173: 1 | L173: - | M173: 271.3341049 | N173: 4469.475673 | O173: 54.90740741 | P173: 3014.823388 | Q173: - | R173: 3014.823388 | S173: 35.82901974
A174: 159 | B174: 59.1 | C174: 5 | D174: 5 | E174: OD | F174: 16.41666667 | G174: -0.2222222222 | H174: 269.5069444 | I174: 0 | L174: - | M174: - | N174: 4424.405671 | O174: 54.72222222 | P174: 2994.521605 | Q174: - | R174: - | S174: 35.70817987
A175: 160 | B175: 58.3 | C175: 5 | D175: 5 | E175: OD | F175: 16.19444444 | G175: -0.1944444444 | H175: 262.2600309 | I175: 0 | L175: - | M175: - | N175: 4247.1555 | O175: 53.98148148 | P175: 2914.000343 | Q175: - | R175: - | S175: 35.22482041
A176: 161 | B176: 57.6 | C176: 5 | D176: 5 | E176: OD | F176: 16 | G176: -0.05555555556 | H176: 256 | I176: 0 | L176: - | M176: - | N176: 4096 | O176: 53.33333333 | P176: 2844.444444 | Q176: - | R176: - | S176: 34.80188089
A177: 162 | B177: 57.4 | C177: 5 | D177: 5 | E177: OD | F177: 15.94444444 | G177: -0.08333333333 | H177: 254.2253086 | I177: 0 | L177: - | M177: - | N177: 4053.48131 | O177: 53.14814815 | P177: 2824.725652 | Q177: - | R177: - | S177: 34.68104103
A178: 163 | B178: 57.1 | C178: 5 | D178: 5 | E178: OD | F178: 15.86111111 | G178: -0.2777777778 | H178: 251.5748457 | I178: 0 | L178: - | M178: - | N178: 3990.25658 | O178: 52.87037037 | P178: 2795.276063 | Q178: - | R178: - | S178: 34.49978123
A179: 164 | B179: 56.1 | C179: 5 | D179: 5 | E179: OD | F179: 15.58333333 | G179: -0.4722222222 | H179: 242.8402778 | I179: 0 | L179: - | M179: - | N179: 3784.260995 | O179: 51.94444444 | P179: 2698.225309 | Q179: - | R179: - | S179: 33.89558191
A180: 165 | B180: 54.4 | C180: 5 | D180: 5 | E180: OD | F180: 15.11111111 | G180: -0.6111111111 | H180: 228.345679 | I180: 0 | L180: - | M180: - | N180: 3450.556927 | O180: 50.37037037 | P180: 2537.174211 | Q180: - | R180: - | S180: 32.86844306
A181: 166 | B181: 52.2 | C181: 5 | D181: 5 | E181: OD | F181: 14.5 | G181: -0.6944444444 | H181: 210.25 | I181: 0 | L181: - | M181: - | N181: 3048.625 | O181: 48.33333333 | P181: 2336.111111 | Q181: - | R181: - | S181: 31.53920456
A182: 167 | B182: 49.7 | C182: 5 | D182: 5 | E182: OD | F182: 13.80555556 | G182: -0.6111111111 | H182: 190.5933642 | I182: 0 | L182: - | M182: - | N182: 2631.247278 | O182: 46.01851852 | P182: 2117.704047 | Q182: - | R182: - | S182: 30.02870625
A183: 168 | B183: 47.5 | C183: 5 | D183: 5 | E183: OD | F183: 13.19444444 | G183: -0.4444444444 | H183: 174.0933642 | I183: 0 | L183: - | M183: - | N183: 2297.065222 | O183: 43.98148148 | P183: 1934.370713 | Q183: - | R183: - | S183: 28.69946775
A184: 169 | B184: 45.9 | C184: 5 | D184: 5 | E184: OD | F184: 12.75 | G184: -0.5 | H184: 162.5625 | I184: 0 | L184: - | M184: - | N184: 2072.671875 | O184: 42.5 | P184: 1806.25 | Q184: - | R184: - | S184: 27.73274883
A185: 170 | B185: 44.1 | C185: 5 | D185: 5 | E185: OD | F185: 12.25 | G185: -0.6388888889 | H185: 150.0625 | I185: 0 | L185: - | M185: - | N185: 1838.265625 | O185: 40.83333333 | P185: 1667.361111 | Q185: - | R185: - | S185: 26.64519006
A186: 171 | B186: 41.8 | C186: 5 | D186: 5 | E186: OD | F186: 11.61111111 | G186: -0.6111111111 | H186: 134.8179012 | I186: 0 | L186: - | M186: - | N186: 1565.385631 | O186: 38.7037037 | P186: 1497.97668 | Q186: - | R186: - | S186: 25.25553162
A187: 172 | B187: 39.6 | C187: 5 | D187: 5 | E187: OD | F187: 11 | G187: -0.5 | H187: 121 | I187: 0 | L187: - | M187: - | N187: 1331 | O187: 36.66666667 | P187: 1344.444444 | Q187: - | R187: - | S187: 23.92629311
A188: 173 | B188: 37.8 | C188: 5 | D188: 5 | E188: OD | F188: 10.5 | G188: -0.8611111111 | H188: 110.25 | I188: 0 | L188: - | M188: - | N188: 1157.625 | O188: 35 | P188: 1225 | Q188: - | R188: - | S188: 22.83873433
A189: 174 | B189: 34.7 | C189: 5 | D189: 5 | E189: OD | F189: 9.638888889 | G189: -0.7777777778 | H189: 92.90817901 | I189: 0 | L189: - | M189: - | N189: 895.5316144 | O189: 32.12962963 | P189: 1032.3131 | Q189: - | R189: - | S189: 20.96571644
A190: 175 | B190: 31.9 | C190: 5 | D190: 5 | E190: OD | F190: 8.861111111 | G190: -0.5833333333 | H190: 78.51929012 | I190: 0 | L190: - | M190: - | N190: 695.7681541 | O190: 29.53703704 | P190: 872.4365569 | Q190: - | R190: - | S190: 19.27395834
A191: 176 | B191: 29.8 | C191: 5 | D191: 5 | E191: OD | F191: 8.277777778 | G191: -0.4444444444 | H191: 68.52160494 | I191: 0 | L191: - | M191: - | N191: 567.2066187 | O191: 27.59259259 | P191: 761.351166 | Q191: - | R191: - | S191: 18.00513977
A192: 177 | B192: 28.2 | C192: 5 | D192: 5 | E192: OD | F192: 7.833333333 | G192: -0.4166666667 | H192: 61.36111111 | I192: 0 | L192: - | M192: - | N192: 480.662037 | O192: 26.11111111 | P192: 681.7901235 | Q192: - | R192: - | S192: 17.03842085
A193: 178 | B193: 26.7 | C193: 5 | D193: 5 | E193: OD | F193: 7.416666667 | G193: -0.4722222222 | H193: 55.00694444 | I193: 0 | L193: - | M193: - | N193: 407.9681713 | O193: 24.72222222 | P193: 611.1882716 | Q193: - | R193: - | S193: 16.13212187
A194: 179 | B194: 25 | C194: 5 | D194: 5 | E194: OD | F194: 6.944444444 | G194: -0.5 | H194: 48.22530864 | I194: 0 | L194: - | M194: - | N194: 334.8979767 | O194: 23.14814815 | P194: 535.8367627 | Q194: - | R194: - | S194: 15.10498302
A195: 180 | B195: 23.2 | C195: 5 | D195: 5 | E195: OD | F195: 6.444444444 | G195: -0.5833333333 | H195: 41.5308642 | I195: 0 | L195: - | M195: - | N195: 267.6433471 | O195: 21.48148148 | P195: 461.4540466 | Q195: - | R195: - | S195: 14.01742425
A196: 181 | B196: 21.1 | C196: 5 | D196: 5 | E196: OD | F196: 5.861111111 | G196: -0.8055555556 | H196: 34.35262346 | I196: 0 | L196: - | M196: - | N196: 201.344543 | O196: 19.53703704 | P196: 381.6958162 | Q196: - | R196: - | S196: 12.74860567
A197: 182 | B197: 18.2 | C197: 5 | D197: 5 | E197: OD | F197: 5.055555556 | G197: -0.9166666667 | H197: 25.55864198 | I197: 0 | L197: - | M197: - | N197: 129.2131344 | O197: 16.85185185 | P197: 283.9849108 | Q197: - | R197: - | S197: 10.99642764
A198: 183 | B198: 14.9 | C198: 5 | D198: 5 | E198: OD | F198: 4.138888889 | G198: -0.6944444444 | H198: 17.13040123 | I198: 0 | L198: - | M198: - | N198: 70.90082733 | O198: 13.7962963 | P198: 190.3377915 | Q198: - | R198: - | S198: 9.002569883
A199: 184 | B199: 12.4 | C199: 5 | D199: 5 | E199: OD | F199: 3.444444444 | G199: -0.2222222222 | H199: 11.86419753 | I199: 0 | L199: - | M199: - | N199: 40.86556927 | O199: 11.48148148 | P199: 131.824417 | Q199: - | R199: - | S199: 7.49207158
A200: 185 | B200: 11.6 | C200: 2 | D200: 2 | E200: 2 | F200: 3.222222222 | G200: 0.2222222222 | H200: 10.38271605 | I200: 1 | J200: 1 | L200: 10.38271605 | M200: - | N200: 33.45541838 | O200: 10.74074074 | P200: 115.3635117 | Q200: 115.3635117 | R200: - | S200: 15.13881819
A201: 186 | B201: 12.4 | C201: 2 | D201: 2 | E201: 2 | F201: 3.444444444 | G201: 0.3611111111 | H201: 11.86419753 | I201: 1 | L201: - | M201: - | N201: 40.86556927 | O201: 11.48148148 | P201: 131.824417 | Q201: - | R201: - | S201: 16.18287461
A202: 187 | B202: 13.7 | C202: 2 | D202: 2 | E202: 2 | F202: 3.805555556 | G202: 0.6944444444 | H202: 14.48225309 | I202: 1 | L202: - | M202: - | N202: 55.11301869 | O202: 12.68518519 | P202: 160.9139232 | Q202: - | R202: - | S202: 17.87946631
... 1020 more rows

Sheet WLTP
T1: Precondition for transmissions
T2: Shift position | U2: 1 | V2: 2 | W2: 3 | X2: 4 | Y2: 5 | Z2: 6
T3: Gear ratio | U3: 3.6 | V3: 2.16 | W3: 1.52 | X3: 1.2 | Y3: 1 | Z3: 0.76
T4: Final reduction ratio | U4: 4.1
T6: Precondition for engine idling
T7: When vehicle stops 0km/h(rpm) | V7: 800
T9: Precondition for tires
T10: Outer diameter (m) | V10: 0.6
A11: Mode: WLTP, Class3 (Vehicle class 3 (maximum speed,≤120km/h)) | F11: Various parameters calculated from mode tables
T12: Vehicle speed in first gear at idling speed (m/s) * Idling speed when speeds lower than this are obtained by calculation | V12: =V7/(U3*U4)*PI()*V10/60 -> 1.702760246
A13: Elapsed time | C13: Standard shift position
B14: Speed | C14: gear | D14: gear_min | E14: gear_max | F14: Speed | G14: Speed change | H14: (Speed)2 | I14: Acceleration: 1 | J14: Acceleration start | K14: Acceleration end | L14: (Acceleration start | M14: (Acceleration end | N14: Air resistance work coefficient | O14: Angular speed | P14: (Angular speed)2 | Q14: (Acceleration start | R14: (Acceleration end | S14: Engine speed
A15: [sec] | B15: [km/h] | F15: [m/s] | G15: (m/s) | H15: [m/s]2 | I15: Deceleration: 0 | J15: point | K15: point | L15: speed v)2 | M15: speed v')2 | N15: (speed V)2×distance L | O15: ω(rad/s) | P15: [rad/s]2 | Q15: angular speed ω)2 | R15: angular speed ω')2 | S15: [round/s]
A16: 1 | B16: 0 | C16: 0 | D16: 0 | E16: 0 | F16: =B16*1000/3600 -> 0 | G16: =F17-F16 -> 0 | H16: =F16*F16 -> 0 | I16: =IF(F16<=F17,1,0) -> 1 | J16: 1 | L16: =IF(J16="","-",J16*H16) -> 0 | M16: =IF(K16="","-",K16*H16) -> - | N16: =H16*F16 -> 0 | O16: =F16/($V$10/2) -> 0 | P16: =O16*O16 -> 0 | Q16: =IF(J16="","-",P16*J16) -> 0 | R16: =IF(K16="","-",P16*K16) -> - | S16: =IF(OR(F16<$V$12,C16="0"),$V$7/60,IF(C16=1,$U$3,IF(C16=2,$V$3,IF(C16=3,$W$3,IF(C16=4,$X$3,IF(C16=5,$Y$3,$Z$3)))))*$U$4*F16/(PI()*$V$10)) -> 13.33333333
A17: 2 | B17: 0 | C17: 0 | D17: 0 | E17: 0 | F17: =B17*1000/3600 -> 0 | G17: =F18-F17 -> 0 | H17: =F17*F17 -> 0 | I17: =IF(F17<=F18,1,0) -> 1 | J17: =IF(I16<I17,1,"") ->  | K17: =IF(I16>I17,1,"") ->  | L17: =IF(J17="","-",J17*H17) -> - | M17: - | N17: =H17*F17 -> 0 | O17: 0 | P17: =O17*O17 -> 0 | Q17: =IF(J17="","-",P17*J17) -> - | R17: =IF(K17="","-",P17*K17) -> - | S17: =IF(OR(F17<$V$12,C17="0"),$V$7/60,IF(C17=1,$U$3,IF(C17=2,$V$3,IF(C17=3,$W$3,IF(C17=4,$X$3,IF(C17=5,$Y$3,$Z$3)))))*$U$4*F17/(PI()*$V$10)) -> 13.33333333
A18: 3 | B18: 0 | C18: 0 | D18: 0 | E18: 0 | F18: 0 | G18: =F19-F18 -> 0 | H18: 0 | I18: =IF(F18<=F19,1,0) -> 1 | J18: =IF(I17<I18,1,"") ->  | K18: =IF(I17>I18,1,"") ->  | L18: - | M18: - | N18: 0 | O18: 0 | P18: 0 | Q18: - | R18: - | S18: 13.33333333
A19: 4 | B19: 0 | C19: 0 | D19: 0 | E19: 0 | F19: 0 | G19: 0 | H19: 0 | I19: 1 | L19: - | M19: - | N19: 0 | O19: 0 | P19: 0 | Q19: - | R19: - | S19: 13.33333333
A20: 5 | B20: 0 | C20: 0 | D20: 0 | E20: 0 | F20: 0 | G20: 0 | H20: 0 | I20: 1 | L20: - | M20: - | N20: 0 | O20: 0 | P20: 0 | Q20: - | R20: - | S20: 13.33333333
A21: 6 | B21: 0 | C21: 0 | D21: 0 | E21: 0 | F21: 0 | G21: 0 | H21: 0 | I21: 1 | L21: - | M21: - | N21: 0 | O21: 0 | P21: 0 | Q21: - | R21: - | S21: 13.33333333
A22: 7 | B22: 0 | C22: 0 | D22: 0 | E22: 0 | F22: 0 | G22: =F23-F22 -> 0 | H22: 0 | I22: 1 | L22: - | M22: - | N22: 0 | O22: 0 | P22: 0 | Q22: - | R22: - | S22: 13.33333333
A23: 8 | B23: 0 | C23: 0 | D23: 0 | E23: 0 | F23: 0 | G23: =F24-F23 -> 0 | H23: 0 | I23: 1 | L23: - | M23: - | N23: 0 | O23: 0 | P23: 0 | Q23: - | R23: - | S23: 13.33333333
A24: 9 | B24: 0 | C24: 0 | D24: 0 | E24: 0 | F24: 0 | G24: 0 | H24: 0 | I24: 1 | L24: - | M24: - | N24: 0 | O24: 0 | P24: 0 | Q24: - | R24: - | S24: 13.33333333
A25: 10 | B25: 0 | C25: 0 | D25: 0 | E25: 0 | F25: 0 | G25: 0 | H25: 0 | I25: 1 | L25: - | M25: - | N25: 0 | O25: 0 | P25: 0 | Q25: - | R25: - | S25: 13.33333333
A26: 11 | B26: 0 | C26: 1 | D26: 1 | E26: 1 | F26: =B26*1000/3600 -> 0 | G26: 0.05555555556 | H26: 0 | I26: 1 | L26: - | M26: - | N26: 0 | O26: 0 | P26: 0 | Q26: - | R26: - | S26: 13.33333333
A27: 12 | B27: 0.2 | C27: 1 | D27: 1 | E27: 1 | F27: =B27*1000/3600 -> 0.05555555556 | G27: 0.4166666667 | H27: 0.003086419753 | I27: 1 | L27: - | M27: - | N27: 0.0001714677641 | O27: 0.1851851852 | P27: 0.03429355281 | Q27: - | R27: - | S27: 13.33333333
A28: 13 | B28: 1.7 | C28: 1 | D28: 1 | E28: 1 | F28: 0.4722222222 | G28: 1.027777778 | H28: 0.2229938272 | I28: 1 | L28: - | M28: - | N28: 0.1053026406 | O28: 1.574074074 | P28: 2.477709191 | Q28: - | R28: - | S28: =IF(OR(F28<$V$12,C28="0"),$V$7/60,IF(C28=1,$U$3,IF(C28=2,$V$3,IF(C28=3,$W$3,IF(C28=4,$X$3,IF(C28=5,$Y$3,$Z$3)))))*$U$4*F28/(PI()*$V$10)) -> 13.33333333
A29: 14 | B29: 5.4 | C29: 1 | D29: 1 | E29: 1 | F29: 1.5 | G29: 1.25 | H29: 2.25 | I29: 1 | L29: - | M29: - | N29: 3.375 | O29: 5 | P29: 25 | Q29: - | R29: - | S29: =IF(OR(F29<$V$12,C29="0"),$V$7/60,IF(C29=1,$U$3,IF(C29=2,$V$3,IF(C29=3,$W$3,IF(C29=4,$X$3,IF(C29=5,$Y$3,$Z$3)))))*$U$4*F29/(PI()*$V$10)) -> 13.33333333
A30: 15 | B30: 9.9 | C30: 1 | D30: 1 | E30: 1 | F30: 2.75 | G30: 0.8888888889 | H30: 7.5625 | I30: 1 | L30: - | M30: - | N30: 20.796875 | O30: 9.166666667 | P30: 84.02777778 | Q30: - | R30: - | S30: =IF(OR(F30<$V$12,C30="0"),$V$7/60,IF(C30=1,$U$3,IF(C30=2,$V$3,IF(C30=3,$W$3,IF(C30=4,$X$3,IF(C30=5,$Y$3,$Z$3)))))*$U$4*F30/(PI()*$V$10)) -> 21.5336638
A31: 16 | B31: 13.1 | C31: 1 | D31: 1 | E31: 2 | F31: 3.638888889 | G31: 1.055555556 | H31: 13.24151235 | I31: 1 | L31: - | M31: - | N31: 48.18439215 | O31: 12.12962963 | P31: 147.127915 | Q31: - | R31: - | S31: =IF(OR(F31<$V$12,C31="0"),$V$7/60,IF(C31=1,$U$3,IF(C31=2,$V$3,IF(C31=3,$W$3,IF(C31=4,$X$3,IF(C31=5,$Y$3,$Z$3)))))*$U$4*F31/(PI()*$V$10)) -> 28.49403998
A32: 17 | B32: 16.9 | C32: 2 | D32: 1 | E32: 2 | F32: 4.694444444 | G32: 1.333333333 | H32: 22.03780864 | I32: 1 | L32: - | M32: - | N32: 103.4552683 | O32: 15.64814815 | P32: 244.8645405 | Q32: - | R32: - | S32: 22.05569201
A33: 18 | B33: 21.7 | C33: 2 | D33: 1 | E33: 2 | F33: 6.027777778 | G33: 1.194444444 | H33: 36.33410494 | I33: 1 | L33: - | M33: - | N33: 219.0139103 | O33: 20.09259259 | P33: 403.7122771 | Q33: - | R33: - | S33: 28.32003057
A34: 19 | B34: 26 | C34: 2 | D34: 2 | E34: 2 | F34: 7.222222222 | G34: 0.4166666667 | H34: 52.16049383 | I34: 1 | L34: - | M34: - | N34: 376.7146776 | O34: 24.07407407 | P34: 579.5610425 | Q34: - | R34: - | S34: 33.93183387
A35: 20 | B35: 27.5 | C35: 3 | D35: 2 | E35: 3 | F35: 7.638888889 | G35: 0.1666666667 | H35: 58.35262346 | I35: 1 | L35: - | M35: - | N35: 445.749207 | O35: 25.46296296 | P35: 648.3624829 | Q35: - | R35: - | S35: 25.25553162
A36: 21 | B36: 28.1 | C36: 3 | D36: 2 | E36: 3 | F36: 7.805555556 | G36: 0.05555555556 | H36: 60.92669753 | I36: 1 | L36: - | M36: - | N36: 475.5667224 | O36: 26.01851852 | P36: 676.9633059 | Q36: - | R36: - | S36: 25.8065614
A37: 22 | B37: 28.3 | C37: 3 | D37: 2 | E37: 3 | F37: 7.861111111 | G37: 0.1388888889 | H37: 61.7970679 | I37: 1 | L37: - | M37: - | N37: 485.7936171 | O37: 26.2037037 | P37: 686.6340878 | Q37: - | R37: - | S37: 25.99023799
A38: 23 | B38: 28.8 | C38: 3 | D38: 2 | E38: 3 | F38: 8 | G38: 0.08333333333 | H38: 64 | I38: 1 | L38: - | M38: - | N38: 512 | O38: 26.66666667 | P38: 711.1111111 | Q38: - | R38: - | S38: 26.44942948
A39: 24 | B39: 29.1 | C39: 3 | D39: 2 | E39: 3 | F39: 8.083333333 | G39: 0.4722222222 | H39: 65.34027778 | I39: 1 | L39: - | M39: - | N39: 528.1672454 | O39: 26.94444444 | P39: 726.0030864 | Q39: - | R39: - | S39: 26.72494437
A40: 25 | B40: 30.8 | C40: 3 | D40: 2 | E40: 3 | F40: 8.555555556 | G40: 0.3055555556 | H40: 73.19753086 | I40: 1 | L40: - | M40: - | N40: 626.2455418 | O40: 28.51851852 | P40: 813.3058985 | Q40: - | R40: - | S40: 28.28619541
A41: 26 | B41: 31.9 | C41: 3 | D41: 2 | E41: 3 | F41: 8.861111111 | G41: 0.6111111111 | H41: 78.51929012 | I41: 1 | L41: - | M41: - | N41: 695.7681541 | O41: 29.53703704 | P41: 872.4365569 | Q41: - | R41: - | S41: 29.29641668
A42: 27 | B42: 34.1 | C42: 3 | D42: 2 | E42: 3 | F42: 9.472222222 | G42: 0.6944444444 | H42: 89.72299383 | I42: 1 | L42: - | M42: - | N42: 849.876136 | O42: 31.57407407 | P42: 996.9221536 | Q42: - | R42: - | S42: 31.31685921
A43: 28 | B43: 36.6 | C43: 4 | D43: 2 | E43: 4 | F43: 10.16666667 | G43: 0.6944444444 | H43: 103.3611111 | I43: 1 | L43: - | M43: - | N43: 1050.837963 | O43: 33.88888889 | P43: 1148.45679 | Q43: - | R43: - | S43: 26.53643418
A44: 29 | B44: 39.1 | C44: 4 | D44: 2 | E44: 4 | F44: 10.86111111 | G44: 0.6111111111 | H44: 117.9637346 | I44: 1 | L44: - | M44: - | N44: 1281.217228 | O44: 36.2037037 | P44: 1310.708162 | Q44: - | R44: - | S44: 28.34903214
A45: 30 | B45: 41.3 | C45: 4 | D45: 3 | E45: 4 | F45: 11.47222222 | G45: 0.3333333333 | H45: 131.6118827 | I45: 1 | L45: - | M45: - | N45: 1509.880766 | O45: 38.24074074 | P45: 1462.354252 | Q45: - | R45: - | S45: 29.94411835
A46: 31 | B46: 42.5 | C46: 4 | D46: 3 | E46: 4 | F46: 11.80555556 | G46: 0.2222222222 | H46: 139.371142 | I46: 1 | L46: - | M46: - | N46: 1645.353759 | O46: 39.35185185 | P46: 1548.568244 | Q46: - | R46: - | S46: 30.81416537
A47: 32 | B47: 43.3 | C47: 4 | D47: 3 | E47: 4 | F47: 12.02777778 | G47: 0.1666666667 | H47: 144.6674383 | I47: 1 | L47: - | M47: - | N47: 1740.027799 | O47: 40.09259259 | P47: 1607.415981 | Q47: - | R47: - | S47: 31.39419672
A48: 33 | B48: 43.9 | C48: 4 | D48: 3 | E48: 4 | F48: 12.19444444 | G48: 0.1388888889 | H48: 148.7044753 | I48: 1 | L48: - | M48: - | N48: 1813.368463 | O48: 40.64814815 | P48: 1652.271948 | Q48: - | R48: - | S48: 31.82922023
A49: 34 | B49: 44.4 | C49: 4 | D49: 3 | E49: 4 | F49: 12.33333333 | G49: 0.02777777778 | H49: 152.1111111 | I49: 1 | L49: - | M49: - | N49: 1876.037037 | O49: 41.11111111 | P49: 1690.123457 | Q49: - | R49: - | S49: 32.19173982
A50: 35 | B50: 44.5 | C50: 4 | D50: 3 | E50: 5 | F50: 12.36111111 | G50: -0.08333333333 | H50: 152.7970679 | I50: 0 | K50: 1 | L50: - | M50: 152.7970679 | N50: 1888.741534 | O50: 41.2037037 | P50: 1697.745199 | Q50: - | R50: 1697.745199 | S50: 32.26424374
A51: 36 | B51: 44.2 | C51: 4 | D51: 3 | E51: 5 | F51: 12.27777778 | G51: -0.4166666667 | H51: 150.7438272 | I51: 0 | L51: - | M51: - | N51: 1850.799211 | O51: 40.92592593 | P51: 1674.931413 | Q51: - | R51: - | S51: 32.04673199
A52: 37 | B52: 42.7 | C52: 4 | D52: 3 | E52: 5 | F52: 11.86111111 | G52: -0.7777777778 | H52: 140.6859568 | I52: 0 | L52: - | M52: - | N52: 1668.691765 | O52: 39.53703704 | P52: 1563.177298 | Q52: - | R52: - | S52: 30.95917321
A53: 38 | B53: 39.9 | C53: 4 | D53: 3 | E53: 4 | F53: 11.08333333 | G53: -0.8055555556 | H53: 122.8402778 | I53: 0 | L53: - | M53: - | N53: 1361.479745 | O53: 36.94444444 | P53: 1364.891975 | Q53: - | R53: - | S53: 28.92906349
A54: 39 | B54: 37 | C54: 4 | D54: 3 | E54: 4 | F54: 10.27777778 | G54: -0.6666666667 | H54: 105.632716 | I54: 0 | L54: - | M54: - | N54: 1085.669582 | O54: 34.25925926 | P54: 1173.696845 | Q54: - | R54: - | S54: 26.82644985
A55: 40 | B55: 34.6 | C55: 4 | D55: 2 | E55: 4 | F55: 9.611111111 | G55: -0.6388888889 | H55: 92.37345679 | I55: 0 | L55: - | M55: - | N55: 887.8115569 | O55: 32.03703704 | P55: 1026.371742 | Q55: - | R55: - | S55: 25.08635581
A56: 41 | B56: 32.3 | C56: 4 | D56: 2 | E56: 4 | F56: 8.972222222 | G56: -0.9166666667 | H56: 80.5007716 | I56: =IF(F56<=F57,1,0) -> 0 | L56: - | M56: - | N56: 722.2708119 | O56: 29.90740741 | P56: 894.4530178 | Q56: - | R56: - | S56: 23.41876568
A57: 42 | B57: 29 | C57: 3 | D57: 2 | E57: 3 | F57: 8.055555556 | G57: -1.083333333 | H57: 64.89197531 | I57: =IF(F57<=F58,1,0) -> 0 | K57: =IF(I56>I57,1,"") ->  | L57: - | M57: - | N57: 522.7409122 | O57: 26.85185185 | P57: 721.0219479 | Q57: - | R57: - | S57: 26.63310607
A58: 43 | B58: 25.1 | C58: 3 | D58: 2 | E58: 3 | F58: 6.972222222 | G58: -0.8055555556 | H58: 48.61188272 | I58: 0 | L58: - | M58: - | N58: 338.9328489 | O58: 23.24074074 | P58: 540.1320302 | Q58: - | R58: - | S58: 23.05141249
A59: 44 | B59: 22.2 | C59: 3 | D59: 2 | E59: 3 | F59: 6.166666667 | G59: -0.3611111111 | H59: 38.02777778 | I59: 0 | L59: - | M59: - | N59: 234.5046296 | O59: 20.55555556 | P59: 422.5308642 | Q59: - | R59: - | S59: 20.38810189
A60: 45 | B60: 20.9 | C60: 2 | D60: 2 | E60: 2 | F60: 5.805555556 | G60: -0.1388888889 | H60: 33.70447531 | I60: 0 | L60: - | M60: - | N60: 195.6732039 | O60: 19.35185185 | P60: 374.4941701 | Q60: - | R60: - | S60: 27.27597415
A61: 46 | B61: 20.4 | C61: 2 | D61: 2 | E61: 2 | F61: 5.666666667 | G61: -0.25 | H61: 32.11111111 | I61: 0 | L61: - | M61: - | N61: 181.962963 | O61: 18.88888889 | P61: 356.7901235 | Q61: - | R61: - | S61: 26.62343888
A62: 47 | B62: 19.5 | C62: 2 | D62: 1 | E62: 2 | F62: 5.416666667 | G62: -0.3055555556 | H62: 29.34027778 | I62: 0 | L62: - | M62: - | N62: 158.9265046 | O62: 18.05555556 | P62: 326.0030864 | Q62: - | R62: - | S62: 25.4488754
A63: 48 | B63: 18.4 | C63: 2 | D63: 1 | E63: 2 | F63: 5.111111111 | G63: -0.1666666667 | H63: 26.12345679 | I63: 0 | L63: - | M63: - | N63: 133.5198903 | O63: 17.03703704 | P63: 290.260631 | Q63: - | R63: - | S63: 24.01329781
A64: 49 | B64: 17.8 | C64: 2 | D64: 1 | E64: 2 | F64: 4.944444444 | G64: 0 | H64: 24.44753086 | I64: 1 | J64: 1 | L64: 24.44753086 | M64: - | N64: 120.8794582 | O64: 16.48148148 | P64: 271.6392318 | Q64: 271.6392318 | R64: - | S64: 23.23025549
A65: 50 | B65: 17.8 | C65: 2 | D65: 1 | E65: 2 | F65: 4.944444444 | G65: -0.1111111111 | H65: 24.44753086 | I65: 0 | K65: 1 | L65: - | M65: 24.44753086 | N65: 120.8794582 | O65: 16.48148148 | P65: 271.6392318 | Q65: - | R65: 271.6392318 | S65: 23.23025549
A66: 51 | B66: 17.4 | C66: 2 | D66: 1 | E66: 2 | F66: 4.833333333 | G66: -0.4722222222 | H66: 23.36111111 | I66: 0 | L66: - | M66: - | N66: 112.912037 | O66: 16.11111111 | P66: 259.5679012 | Q66: - | R66: - | S66: 22.70822728
A67: 52 | B67: 15.7 | C67: 2 | D67: 1 | E67: 2 | F67: 4.361111111 | G67: -0.7222222222 | H67: 19.01929012 | I67: 0 | L67: - | M67: - | N67: 82.94523748 | O67: 14.53703704 | P67: 211.3254458 | Q67: - | R67: - | S67: 20.48960737
A68: 53 | B68: 13.1 | C68: 2 | D68: 1 | E68: 2 | F68: 3.638888889 | G68: -0.2777777778 | H68: 13.24151235 | I68: 0 | L68: - | M68: - | N68: 48.18439215 | O68: 12.12962963 | P68: 147.127915 | Q68: - | R68: - | S68: 17.09642399
A69: 54 | B69: 12.1 | C69: 2 | D69: 1 | E69: 2 | F69: 3.361111111 | G69: -0.02777777778 | H69: 11.2970679 | I69: 0 | L69: - | M69: - | N69: 37.97070045 | O69: 11.2037037 | P69: 125.5229767 | Q69: - | R69: - | S69: 15.79135345
A70: 55 | B70: 12 | C70: 2 | D70: 1 | E70: 2 | F70: 3.333333333 | G70: 0 | H70: 11.11111111 | I70: 1 | J70: 1 | L70: 11.11111111 | M70: - | N70: 37.03703704 | O70: 11.11111111 | P70: 123.4567901 | Q70: 123.4567901 | R70: - | S70: 15.6608464
A71: 56 | B71: 12 | C71: 2 | D71: 1 | E71: 2 | F71: 3.333333333 | G71: 0 | H71: 11.11111111 | I71: 1 | L71: - | M71: - | N71: 37.03703704 | O71: 11.11111111 | P71: 123.4567901 | Q71: - | R71: - | S71: 15.6608464
A72: 57 | B72: 12 | C72: 2 | D72: 1 | E72: 2 | F72: 3.333333333 | G72: 0.08333333333 | H72: 11.11111111 | I72: 1 | L72: - | M72: - | N72: 37.03703704 | O72: 11.11111111 | P72: 123.4567901 | Q72: - | R72: - | S72: 15.6608464
A73: 58 | B73: 12.3 | C73: 2 | D73: 1 | E73: 2 | F73: 3.416666667 | G73: 0.08333333333 | H73: 11.67361111 | I73: 1 | L73: - | M73: - | N73: 39.88483796 | O73: 11.38888889 | P73: 129.7067901 | Q73: - | R73: - | S73: 16.05236756
A74: 59 | B74: 12.6 | C74: 2 | D74: 1 | E74: 2 | F74: 3.5 | G74: 0.5833333333 | H74: 12.25 | I74: 1 | L74: - | M74: - | N74: 42.875 | O74: 11.66666667 | P74: 136.1111111 | Q74: - | R74: - | S74: 16.44388872
A75: 60 | B75: 14.7 | C75: 2 | D75: 1 | E75: 2 | F75: 4.083333333 | G75: 0.1666666667 | H75: 16.67361111 | I75: 1 | L75: - | M75: - | N75: 68.08391204 | O75: 13.61111111 | P75: 185.2623457 | Q75: - | R75: - | S75: 19.18453684
A76: 61 | B76: 15.3 | C76: 2 | D76: 1 | E76: 2 | F76: 4.25 | G76: 0.1666666667 | H76: 18.0625 | I76: 1 | L76: - | M76: - | N76: 76.765625 | O76: 14.16666667 | P76: 200.6944444 | Q76: - | R76: - | S76: 19.96757916
A77: 62 | B77: 15.9 | C77: 2 | D77: 1 | E77: 2 | F77: 4.416666667 | G77: 0.08333333333 | H77: 19.50694444 | I77: 1 | L77: - | M77: - | N77: 86.1556713 | O77: 14.72222222 | P77: 216.7438272 | Q77: - | R77: - | S77: 20.75062148
A78: 63 | B78: 16.2 | C78: 2 | D78: 1 | E78: 2 | F78: 4.5 | G78: 0.25 | H78: 20.25 | I78: 1 | L78: - | M78: - | N78: 91.125 | O78: 15 | P78: 225 | Q78: - | R78: - | S78: 21.14214264
A79: 64 | B79: 17.1 | C79: 2 | D79: 1 | E79: 2 | F79: 4.75 | G79: 0.1944444444 | H79: 22.5625 | I79: 1 | L79: - | M79: - | N79: 107.171875 | O79: 15.83333333 | P79: 250.6944444 | Q79: - | R79: - | S79: 22.31670612
A80: 65 | B80: 17.8 | C80: 2 | D80: 1 | E80: 2 | F80: 4.944444444 | G80: 0.08333333333 | H80: 24.44753086 | I80: 1 | L80: - | M80: =IF(K80="","-",K80*H80) -> - | N80: 120.8794582 | O80: =F80/($V$10/2) -> 16.48148148 | P80: 271.6392318 | Q80: - | R80: - | S80: 23.23025549
A81: 66 | B81: 18.1 | C81: 2 | D81: 1 | E81: 2 | F81: =B81*1000/3600 -> 5.027777778 | G81: 0.08333333333 | H81: =F81*F81 -> 25.27854938 | I81: 1 | L81: =IF(J81="","-",J81*H81) -> - | M81: - | N81: =H81*F81 -> 127.0949288 | O81: 16.75925926 | P81: =O81*O81 -> 280.8727709 | Q81: =IF(J81="","-",P81*J81) -> - | R81: =IF(K81="","-",P81*K81) -> - | S81: 23.62177665
A82: 67 | B82: 18.4 | C82: 2 | D82: 1 | E82: 2 | F82: 5.111111111 | G82: 0.5277777778 | H82: 26.12345679 | I82: =IF(F82<=F83,1,0) -> 1 | J82: =IF(I81<I82,1,"") ->  | K82: =IF(I81>I82,1,"") ->  | L82: - | M82: - | N82: 133.5198903 | O82: 17.03703704 | P82: 290.260631 | Q82: - | R82: - | S82: 24.01329781
A83: 68 | B83: 20.3 | C83: 2 | D83: 1 | E83: 2 | F83: 5.638888889 | G83: 0.8055555556 | H83: 31.7970679 | I83: 1 | L83: - | M83: - | N83: 179.3001329 | O83: 18.7962963 | P83: 353.3007545 | Q83: - | R83: - | S83: 26.49293183
A84: 69 | B84: 23.2 | C84: 2 | D84: 1 | E84: 2 | F84: 6.444444444 | G84: 0.9166666667 | H84: 41.5308642 | I84: 1 | L84: - | M84: - | N84: 267.6433471 | O84: 21.48148148 | P84: 461.4540466 | Q84: - | R84: - | S84: 30.27763637
A85: 70 | B85: 26.5 | C85: 2 | D85: 2 | E85: 2 | F85: 7.361111111 | G85: 0.9166666667 | H85: 54.18595679 | I85: 1 | L85: - | M85: - | N85: 398.8688486 | O85: 24.53703704 | P85: 602.0661866 | Q85: - | R85: - | S85: 34.58436913
A86: 71 | B86: 29.8 | C86: 3 | D86: 2 | E86: 3 | F86: 8.277777778 | G86: 0.7777777778 | H86: 68.52160494 | I86: 1 | L86: - | M86: - | N86: 567.2066187 | O86: 27.59259259 | P86: 761.351166 | Q86: - | R86: - | S86: 27.36781244
A87: 72 | B87: 32.6 | C87: 3 | D87: 2 | E87: 3 | F87: 9.055555556 | G87: =F88-F87 -> 0.5 | H87: 82.00308642 | I87: 1 | L87: - | M87: - | N87: 742.5835048 | O87: 30.18518519 | P87: 911.1454047 | Q87: - | R87: - | S87: 29.93928475
A88: 73 | B88: 34.4 | C88: 3 | D88: 2 | E88: 3 | F88: 9.555555556 | G88: 0.3055555556 | H88: 91.30864198 | I88: 1 | L88: - | M88: - | N88: 872.5048011 | O88: 31.85185185 | P88: 1014.540466 | Q88: - | R88: - | S88: 31.5923741
A89: 74 | B89: 35.5 | C89: 4 | D89: 2 | E89: 4 | F89: 9.861111111 | G89: 0.25 | H89: 97.24151235 | I89: 1 | L89: - | M89: - | N89: 958.9093579 | O89: 32.87037037 | P89: 1080.461248 | Q89: - | R89: - | S89: 25.73889107
A90: 75 | B90: 36.4 | C90: 4 | D90: 2 | E90: 4 | F90: 10.11111111 | G90: 0.2777777778 | H90: 102.2345679 | I90: 1 | L90: - | M90: - | N90: 1033.705075 | O90: 33.7037037 | P90: 1135.939643 | Q90: - | R90: - | S90: 26.39142634
A91: 76 | B91: 37.4 | C91: 4 | D91: 2 | E91: 4 | F91: 10.38888889 | G91: 0.3055555556 | H91: 107.9290123 | I91: 1 | L91: - | M91: - | N91: 1121.262517 | O91: 34.62962963 | P91: 1199.211248 | Q91: - | R91: - | S91: 27.11646553
A92: 77 | B92: 38.5 | C92: 4 | D92: 2 | E92: 4 | F92: 10.69444444 | G92: 0.2222222222 | H92: 114.371142 | I92: 1 | L92: - | M92: - | N92: 1223.135824 | O92: 35.64814815 | P92: 1270.790466 | Q92: - | R92: - | S92: 27.91400863
A93: 78 | B93: 39.3 | C93: 4 | D93: 2 | E93: 4 | F93: 10.91666667 | G93: 0.05555555556 | H93: 119.1736111 | I93: 1 | L93: - | M93: - | N93: 1300.978588 | O93: 36.38888889 | P93: 1324.151235 | Q93: - | R93: - | S93: 28.49403998
A94: 79 | B94: 39.5 | C94: 4 | D94: 3 | E94: 4 | F94: 10.97222222 | G94: -0.1388888889 | H94: 120.3896605 | I94: 0 | K94: 1 | L94: - | M94: 120.3896605 | N94: 1320.942108 | O94: 36.57407407 | P94: 1337.662894 | Q94: - | R94: 1337.662894 | S94: 28.63904782
A95: 80 | B95: 39 | C95: 4 | D95: 3 | E95: 4 | F95: 10.83333333 | G95: -0.1388888889 | H95: 117.3611111 | I95: 0 | L95: - | M95: - | N95: 1271.412037 | O95: 36.11111111 | P95: 1304.012346 | Q95: - | R95: - | S95: =IF(OR(F95<$V$12,C95="0"),$V$7/60,IF(C95=1,$U$3,IF(C95=2,$V$3,IF(C95=3,$W$3,IF(C95=4,$X$3,IF(C95=5,$Y$3,$Z$3)))))*$U$4*F95/(PI()*$V$10)) -> 28.27652822
A96: 81 | B96: 38.5 | C96: 4 | D96: 3 | E96: 4 | F96: 10.69444444 | G96: -0.3333333333 | H96: 114.371142 | I96: 0 | L96: - | M96: - | N96: 1223.135824 | O96: 35.64814815 | P96: 1270.790466 | Q96: - | R96: - | S96: 27.91400863
